Workbook

Sheet Pareto1
J13: Diagrama de Pareto
J15: PERÍODO ANALISADO: | K15: 2 meses | M15: PROBLEMA A SER INVESTIGADO: | O15: Aumento das reclamações
B17: 120 | C17: Sem ocorrência | D17: sem razão | E17: pular linha | J17: Razões | K17: Número de ocorrências. | M17: Nº | N17: Razões | O17: Ocorrências | P17: Ocorrências Acumulada | Q17: Participação unitária % | R17: Participação acumulada %
A18: 1 | B18: 0.1333333333 | H18: 0.1333333333 | J18: Falta de insumos básicos para cumprir pedido primário | K18: 16 | M18: 1 | N18: Falta de produtos secundários solicitados | O18: 32 | P18: 32 | Q18: 0.2666666667 | R18: 0.2666666667
A19: 2 | B19: 0.05 | H19: 0.05 | J19: Inconsistência no sistema de vendas | K19: 6 | M19: 2 | N19: Falta de insumos básicos para cumprir pedido primário | O19: 16 | P19: 48 | Q19: 0.1333333333 | R19: 0.4
A20: 3 | B20: 0.1083333333 | H20: 0.1083333333 | J20: Reclamações de clientes referente a prazo de entrega prometido | K20: 13 | M20: 3 | N20: Falta de troco | O20: 13 | P20: 61 | Q20: 0.1083333333 | R20: 0.5083333333
A21: 4 | B21: 0.03333333333 | H21: 0.03333333334 | J21: Reclamação de clientes referente a qualidade | K21: 4 | M21: 4 | N21: Reclamações de clientes referente a prazo de entrega prometido | O21: 13 | P21: 74 | Q21: 0.1083333333 | R21: 0.6166666667
A22: 5 | B22: 0.075 | H22: 0.075 | J22: Pedidos não atendidos / perdidos | K22: 9 | M22: 5 | N22: Erro do sistema de pagamento digital | O22: 9 | P22: 83 | Q22: 0.075 | R22: 0.6916666667
A23: 6 | B23: 0.05 | H23: 0.05 | J23: Atraso na entrega de insumos | K23: 6 | M23: 6 | N23: Pedidos não atendidos / perdidos | O23: 9 | P23: 92 | Q23: 0.075 | R23: 0.7666666667
A24: 7 | B24: 0.2666666667 | H24: 0.2666666667 | J24: Falta de produtos secundários solicitados | K24: 32 | M24: 7 | N24: Reclamação referente ao recheio | O24: 7 | P24: 99 | Q24: 0.05833333334 | R24: 0.825
A25: 8 | B25: 0.1083333333 | H25: 0.1083333333 | J25: Falta de troco | K25: 13 | M25: 8 | N25: Atraso na entrega de insumos | O25: 6 | P25: 105 | Q25: 0.05 | R25: 0.875
A26: 9 | B26: 0.075 | H26: 0.075 | J26: Erro do sistema de pagamento digital | K26: 9 | M26: 9 | N26: Inconsistência no sistema de vendas | O26: 6 | P26: 111 | Q26: 0.05 | R26: 0.925
A27: 10 | B27: 0.05833333333 | H27: 0.05833333334 | J27: Reclamação referente ao recheio | K27: 7 | M27: 10 | N27: Atraso na entrega de insumos | O27: 5 | P27: 116 | Q27: 0.04166666667 | R27: 0.9666666667
A28: 11 | B28: 0.04166666667 | H28: 0.04166666667 | J28: Atraso na entrega de insumos | K28: 5 | M28: 11 | N28: Reclamação de clientes referente a qualidade | O28: 4 | P28: 120 | Q28: 0.03333333334 | R28: 1
A29: 12 | B29: 0
A30: 13 | B30: 0
A31: 14 | B31: 0
A32: 15 | B32: 0
A33: 16 | B33: 0
A34: 17 | B34: 0
A35: 18 | B35: 0
A36: 19 | B36: 0
A37: 20 | B37: 0
A38: 21 | B38: 0
A39: 22 | B39: 0
A40: 23 | B40: 0
A41: 24 | B41: 0
A42: 25 | B42: 0
A43: 26 | B43: 0
A44: 27 | B44: 0
A45: 28 | B45: 0
A46: 29 | B46: 0
A47: 30 | B47: 0
A48: 31 | B48: 0
A49: 32 | B49: 0
A50: 33 | B50: 0
A51: 34 | B51: 0
A52: 35 | B52: 0
A53: 36 | B53: 0
A54: 37 | B54: 0
A55: 38 | B55: 0
A56: 39 | B56: 0
A57: 40 | B57: 0
A58: 41 | B58: 0
A59: 42 | B59: 0
A60: 43 | B60: 0
A61: 44 | B61: 0
A62: 45 | B62: 0
A63: 46 | B63: 0
A64: 47 | B64: 0
A65: 48 | B65: 0
A66: 49 | B66: 0
A67: 50 | B67: 0
A68: 51 | B68: 0
A69: 52 | B69: 0
A70: 53 | B70: 0
A71: 54 | B71: 0
A72: 55 | B72: 0
A73: 56 | B73: 0
A74: 57 | B74: 0
A75: 58 | B75: 0
A76: 59 | B76: 0
A77: 60 | B77: 0
A78: 61 | B78: 0
A79: 62 | B79: 0
A80: 63 | B80: 0
A81: 64 | B81: 0
A82: 65 | B82: 0
A83: 66 | B83: 0
A84: 67 | B84: 0
A85: 68 | B85: 0
A86: 69 | B86: 0
A87: 70 | B87: 0
A88: 71 | B88: 0
A89: 72 | B89: 0
A90: 73 | B90: 0
A91: 74 | B91: 0
A92: 75 | B92: 0
A93: 76 | B93: 0
A94: 77 | B94: 0
A95: 78 | B95: 0
A96: 79 | B96: 0
A97: 80 | B97: 0
A98: 81 | B98: 0
A99: 82 | B99: 0
A100: 83 | B100: 0
A101: 84 | B101: 0
A102: 85 | B102: 0
A103: 86 | B103: 0
A104: 87 | B104: 0
A105: 88 | B105: 0
A106: 89 | B106: 0
A107: 90 | B107: 0
A108: 91 | B108: 0
A109: 92 | B109: 0
A110: 93 | B110: 0
A111: 94 | B111: 0
A112: 95 | B112: 0
A113: 96 | B113: 0
A114: 97 | B114: 0
A115: 98 | B115: 0
A116: 99 | B116: 0
A117: 100 | B117: 0
A118: 101 | B118: 0
A119: 102 | B119: 0
A120: 103 | B120: 0
A121: 104 | B121: 0
A122: 105 | B122: 0
A123: 106 | B123: 0
A124: 107 | B124: 0
A125: 108 | B125: 0
A126: 109 | B126: 0
A127: 110 | B127: 0
A128: 111 | B128: 0
A129: 112 | B129: 0
A130: 113 | B130: 0
A131: 114 | B131: 0
A132: 115 | B132: 0
A133: 116 | B133: 0
A134: 117 | B134: 0
A135: 118 | B135: 0
A136: 119 | B136: 0
A137: 120 | B137: 0
A138: 121 | B138: 0
A139: 122 | B139: 0
A140: 123 | B140: 0
A141: 124 | B141: 0
A142: 125 | B142: 0
A143: 126 | B143: 0
A144: 127 | B144: 0
A145: 128 | B145: 0
A146: 129 | B146: 0
A147: 130 | B147: 0
A148: 131 | B148: 0
A149: 132 | B149: 0
A150: 133 | B150: 0
A151: 134 | B151: 0
A152: 135 | B152: 0
A153: 136 | B153: 0
A154: 137 | B154: 0
A155: 138 | B155: 0
A156: 139 | B156: 0
A157: 140 | B157: 0
A158: 141 | B158: 0
A159: 142 | B159: 0
A160: 143 | B160: 0
A161: 144 | B161: 0
A162: 145 | B162: 0
A163: 146 | B163: 0
A164: 147 | B164: 0
A165: 148 | B165: 0
A166: 149 | B166: 0
A167: 150 | B167: 0
A168: 151 | B168: 0
A169: 152 | B169: 0
A170: 153 | B170: 0
A171: 154 | B171: 0
A172: 155 | B172: 0
A173: 156 | B173: 0
A174: 157 | B174: 0
A175: 158 | B175: 0
A176: 159 | B176: 0
A177: 160 | B177: 0
A178: 161 | B178: 0
A179: 162 | B179: 0
A180: 163 | B180: 0
A181: 164 | B181: 0
A182: 165 | B182: 0
A183: 166 | B183: 0
A184: 167 | B184: 0
A185: 168 | B185: 0
A186: 169 | B186: 0
A187: 170 | B187: 0
A188: 171 | B188: 0
A189: 172 | B189: 0
A190: 173 | B190: 0
A191: 174 | B191: 0
A192: 175 | B192: 0
A193: 176 | B193: 0
A194: 177 | B194: 0
A195: 178 | B195: 0
A196: 179 | B196: 0
A197: 180 | B197: 0
A198: 181 | B198: 0
A199: 182 | B199: 0
A200: 183 | B200: 0
A201: 184 | B201: 0
A202: 185 | B202: 0
A203: 186 | B203: 0
A204: 187 | B204: 0
A205: 188 | B205: 0
A206: 189 | B206: 0
A207: 190 | B207: 0
A208: 191 | B208: 0
A209: 192 | B209: 0
A210: 193 | B210: 0
A211: 194 | B211: 0
A212: 195 | B212: 0
A213: 196 | B213: 0
A214: 197 | B214: 0
... 303 more rows

Sheet Plan
C1: Sem causa | D1: pular causas | E1: pular fatores
H2: 1
H3: 1 | P3: Formação do Diagrama de Ishikawa / 6M
H4: 1
H5: 1 | R5: PROBLEMA A SER SOLUCIONADO? | T5: Medir nível de satisfação?
H6: 1 | R6: =Pareto1!$O$15 -> Aumento das reclamações | T6: Sim
H7: 1
A8: MÁQUINAS | F8: 0.5 | G8: 0.96 | H8: 1 | P8: CAUSA: | Q8: 1 | R8: MÁQUINAS | T8: =IFERROR((SUM(T10:T59)-SUM(S10:S59))/SUM(S10:S59),"") -> 0.92 | U8: =IF(OR(C8="x",D8="x",E8="x",F8="x",G8="x"),"<< Contém erro nessa linha","") -> 
H9: 1 | R9: =CONCATENATE("Descrição dos fatores relacionados à: ",R8) -> Descrição dos fatores relacionados à: MÁQUINAS | S9: Nível de satisfação atual. % | T9: Nível de satisfação esperado. %
A10: 1.01 | B10: 1,01 - Sistema de geração de pedidos defasado | H10: 1 | P10: FATORES: | Q10: 1.01 | R10: Sistema de geração de pedidos defasado | S10: 0.4 | T10: 0.9
A11: 1.02 | B11: 1,02 - Poucas máquinas de recebimento de pagamentos | H11: 1 | Q11: 1.02 | R11: Poucas máquinas de recebimento de pagamentos | S11: 0.5 | T11: 1
A12: 1.03 | B12: 1,03 - Fogão industrial avariado | H12: 1 | Q12: 1.03 | R12: Fogão industrial avariado | S12: 0.6 | T12: 0.9
A13: 1.04 | B13: 1,04 - Máquina de corte de frios avariada | H13: 1 | Q13: 1.04 | R13: Máquina de corte de frios avariada | S13: 0.3 | T13: 1
A14: 1.05 | B14: 1,05 - Refrigerador está com capacidade máxima | H14: 1 | Q14: 1.05 | R14: Refrigerador está com capacidade máxima | S14: 0.7 | T14: 1
H15: x | Q15: 1.06
H16: x | Q16: 1.07
H17: x | Q17: 1.08
H18: x | Q18: 1.09
H19: x | Q19: 1.1
H20: x | Q20: 1.11
H21: x | Q21: 1.12
H22: x | Q22: 1.13
H23: x | Q23: 1.14
H24: x | Q24: 1.15
H25: x | Q25: 1.16
H26: x | Q26: 1.17
H27: x | Q27: 1.18
H28: x | Q28: 1.19
H29: x | Q29: 1.2
H30: x | Q30: 1.21
H31: x | Q31: 1.22
H32: x | Q32: 1.23
H33: x | Q33: 1.24
H34: x | Q34: 1.25
H35: x | Q35: 1.26
H36: x | Q36: 1.27
H37: x | Q37: 1.28
H38: x | Q38: 1.29
H39: x | Q39: 1.3
H40: x | Q40: 1.31
H41: x | Q41: 1.32
H42: x | Q42: 1.33
H43: x | Q43: 1.34
H44: x | Q44: 1.35
H45: x | Q45: 1.36
H46: x | Q46: 1.37
H47: x | Q47: 1.38
H48: x | Q48: 1.39
H49: x | Q49: 1.4
H50: x | Q50: 1.41
H51: x | Q51: 1.42
H52: x | Q52: 1.43
H53: x | Q53: 1.44
H54: x | Q54: 1.45
H55: x | Q55: 1.46
H56: x | Q56: 1.47
H57: x | Q57: 1.48
H58: x | Q58: 1.49
H59: x | Q59: 1.5
H60: 1 | Q60: MÉDIA | S60: =IFERROR(AVERAGE(S10:S59),"") -> 0.5 | T60: 0.96
H61: 1
A62: MÉTODO | F62: 0.325 | G62: 0.8 | H62: 1 | P62: =$P$8 -> CAUSA: | Q62: 2 | R62: MÉTODO | T62: =IFERROR((SUM(T64:T113)-SUM(S64:S113))/SUM(S64:S113),"") -> 1.461538462
H63: 1 | R63: =CONCATENATE("Descrição dos fatores relacionados à: ",R62) -> Descrição dos fatores relacionados à: MÉTODO | S63: =$S$9 -> Nível de satisfação atual. % | T63: =$T$9 -> Nível de satisfação esperado. %
A64: 2.01 | B64: 2,01 - Sistema de pedidos à produção ineficiente | H64: 1 | P64: Fatores | Q64: 2.01 | R64: Sistema de pedidos à produção ineficiente | S64: 0.35 | T64: 0.8
A65: 2.02 | B65: 2,02 - Controle de estoques de produtos secundários inexistente. | H65: 1 | Q65: 2.02 | R65: Controle de estoques de produtos secundários inexistente. | S65: 0.3 | T65: 0.8
H66: x | Q66: 2.03
H67: x | Q67: 2.04
H68: x | Q68: 2.05
H69: x | Q69: 2.06
H70: x | Q70: 2.07
H71: x | Q71: 2.08
H72: x | Q72: 2.09
H73: x | Q73: 2.1
H74: x | Q74: 2.11
H75: x | Q75: 2.12
H76: x | Q76: 2.13
H77: x | Q77: 2.14
H78: x | Q78: 2.15
H79: x | Q79: 2.16
H80: x | Q80: 2.17
H81: x | Q81: 2.18
H82: x | Q82: 2.19
H83: x | Q83: 2.2
H84: x | Q84: 2.21
H85: x | Q85: 2.22
H86: x | Q86: 2.23
H87: x | Q87: 2.24
H88: x | Q88: 2.25
H89: x | Q89: 2.26
H90: x | Q90: 2.27
H91: x | Q91: 2.28
H92: x | Q92: 2.29
H93: x | Q93: 2.3
H94: x | Q94: 2.31
H95: x | Q95: 2.32
H96: x | Q96: 2.33
H97: x | Q97: 2.34
H98: x | Q98: 2.35
H99: x | Q99: 2.36
H100: x | Q100: 2.37
H101: x | Q101: 2.38
H102: x | Q102: 2.39
H103: x | Q103: 2.4
H104: x | Q104: 2.41
H105: x | Q105: 2.42
H106: x | Q106: 2.43
H107: x | Q107: 2.44
H108: x | Q108: 2.45
H109: x | Q109: 2.46
H110: x | Q110: 2.47
H111: x | Q111: 2.48
H112: x | Q112: 2.49
H113: x | Q113: 2.5
H114: 1 | Q114: MÉDIA | S114: =IFERROR(AVERAGE(S64:S113),"") -> 0.325 | T114: 0.8
H115: 1
A116: MATERIAL | F116: 0.4 | G116: 0.8333333333 | H116: 1 | P116: =$P$8 -> CAUSA: | Q116: 3 | R116: MATERIAL | T116: =IFERROR((SUM(T118:T167)-SUM(S118:S167))/SUM(S118:S167),"") -> 1.083333333
H117: 1 | R117: =CONCATENATE("Descrição dos fatores relacionados à: ",R116) -> Descrição dos fatores relacionados à: MATERIAL | S117: =$S$9 -> Nível de satisfação atual. % | T117: =$T$9 -> Nível de satisfação esperado. %
A118: 3.01 | B118: 3,01 - Fornecedor de defumados com baixa qualidade | H118: 1 | P118: Fatores | Q118: 3.01 | R118: Fornecedor de defumados com baixa qualidade | S118: 0.2 | T118: 0.8
A119: 3.02 | B119: 3,02 - Falta de insumos básicos constantemente | H119: 1 | Q119: 3.02 | R119: Falta de insumos básicos constantemente | S119: 0.7 | T119: 1
A120: 3.03 | B120: 3,03 - Falta produtos secundários constantemente. | H120: 1 | Q120: 3.03 | R120: Falta produtos secundários constantemente. | S120: 0.3 | T120: 0.7
H121: x | Q121: 3.04
H122: x | Q122: 3.05
H123: x | Q123: 3.06
H124: x | Q124: 3.07
H125: x | Q125: 3.08
H126: x | Q126: 3.09
H127: x | Q127: 3.1
H128: x | Q128: 3.11
H129: x | Q129: 3.12
H130: x | Q130: 3.13
H131: x | Q131: 3.14
H132: x | Q132: 3.15
H133: x | Q133: 3.16
H134: x | Q134: 3.17
H135: x | Q135: 3.18
H136: x | Q136: 3.19
H137: x | Q137: 3.2
H138: x | Q138: 3.21
H139: x | Q139: 3.22
H140: x | Q140: 3.23
H141: x | Q141: 3.24
H142: x | Q142: 3.25
H143: x | Q143: 3.26
H144: x | Q144: 3.27
H145: x | Q145: 3.28
H146: x | Q146: 3.29
H147: x | Q147: 3.3
H148: x | Q148: 3.31
H149: x | Q149: 3.32
H150: x | Q150: 3.33
H151: x | Q151: 3.34
H152: x | Q152: 3.35
H153: x | Q153: 3.36
H154: x | Q154: 3.37
H155: x | Q155: 3.38
H156: x | Q156: 3.39
H157: x | Q157: 3.4
H158: x | Q158: 3.41
H159: x | Q159: 3.42
H160: x | Q160: 3.43
H161: x | Q161: 3.44
H162: x | Q162: 3.45
H163: x | Q163: 3.46
H164: x | Q164: 3.47
H165: x | Q165: 3.48
H166: x | Q166: 3.49
H167: x | Q167: 3.5
H168: 1 | Q168: MÉDIA | S168: =IFERROR(AVERAGE(S118:S167),"") -> 0.4 | T168: 0.8333333333
H169: 1
A170: MÃO-DE-OBRA | F170: 0.4666666667 | G170: 0.7666666667 | H170: 1 | P170: =$P$8 -> CAUSA: | Q170: 4 | R170: MÃO-DE-OBRA | T170: =IFERROR((SUM(T172:T221)-SUM(S172:S221))/SUM(S172:S221),"") -> 0.6428571429
H171: 1 | R171: =CONCATENATE("Descrição dos fatores relacionados à: ",R170) -> Descrição dos fatores relacionados à: MÃO-DE-OBRA | S171: =$S$9 -> Nível de satisfação atual. % | T171: =$T$9 -> Nível de satisfação esperado. %
A172: 4.01 | B172: 4,01 - Atendentes do delivery constantemente com dúvidas | H172: 1 | P172: Fatores | Q172: 4.01 | R172: Atendentes do delivery constantemente com dúvidas | S172: 0.4 | T172: 0.7
A173: 4.02 | B173: 4,02 - Garçons desmotivados. | H173: 1 | Q173: 4.02 | R173: Garçons desmotivados. | S173: 0.7 | T173: 0.9
A174: 4.03 | B174: 4,03 - Atraso nas entregas pelos motoboys | H174: 1 | Q174: 4.03 | R174: Atraso nas entregas pelos motoboys | S174: 0.3 | T174: 0.7
H175: x | Q175: 4.04
H176: x | Q176: 4.05
H177: x | Q177: 4.06
H178: x | Q178: 4.07
H179: x | Q179: 4.08
H180: x | Q180: 4.09
H181: x | Q181: 4.1
H182: x | Q182: 4.11
H183: x | Q183: 4.12
H184: x | Q184: 4.13
H185: x | Q185: 4.14
H186: x | Q186: 4.15
H187: x | Q187: 4.16
H188: x | Q188: 4.17
H189: x | Q189: 4.18
H190: x | Q190: 4.19
H191: x | Q191: 4.2
H192: x | Q192: 4.21
H193: x | Q193: 4.22
H194: x | Q194: 4.23
H195: x | Q195: 4.24
H196: x | Q196: 4.25
H197: x | Q197: 4.26
H198: x | Q198: 4.27
H199: x | Q199: 4.28
H200: x | Q200: 4.29
... 348 more rows

Sheet Plan-D-Ishikawa
K1: x | P1: x | Q1: x | R1: x | S1: x | T1: x | U1: =IF(U2=0,"","x") -> x
A2: 9 | B2: 7 | C2: 5 | D2: 3 | E2: 1 | L2: 0 | M2: 0 | N2: 0 | O2: 0 | P2: 3 | Q2: 3 | R2: 6 | S2: 6 | T2: 7 | U2: =T2 -> 7
A7: 10 | B7: 8 | C7: 6 | D7: 4 | E7: 2 | R7: DIAGRAMA DE ISHIKAWA
I8: 3
F9: 51 | G9: 0.51
F10: 50 | G10: 0.5
F11: 49 | G11: 0.49
F12: 48 | G12: 0.48
F13: 47 | G13: 0.47
F14: 46 | G14: 0.46
F15: 45 | G15: 0.45
F16: 44 | G16: 0.44
F17: 43 | G17: 0.43
F18: 42 | G18: 0.42
F19: 41 | G19: 0.41
F20: 40 | G20: 0.4
F21: 39 | G21: 0.39
F22: 38 | G22: 0.38
F23: 37 | G23: 0.37
F24: 36 | G24: 0.36
F25: 35 | G25: 0.35
F26: 34 | G26: 0.34
F27: 33 | G27: 0.33
F28: 32 | G28: 0.32
F29: 31 | G29: 0.31
F30: 30 | G30: 0.3
F31: 29 | G31: 0.29
F32: 28 | G32: 0.28
F33: 27 | G33: 0.27
F34: 26 | G34: 0.26
F35: 25 | G35: 0.25
F36: 24 | G36: 0.24
F37: 23 | G37: 0.23
F38: 22 | G38: 0.22
F39: 21 | G39: 0.21
F40: 20 | G40: 0.2
F41: 19 | G41: 0.19
F42: 18 | G42: 0.18
F43: 17 | G43: 0.17
F44: 16 | G44: 0.16
F45: 15 | G45: 0.15
F46: 14 | G46: 0.14
F47: 13 | G47: 0.13
F48: 12 | G48: 0.12
F49: 11 | G49: 0.11
F50: 10 | G50: 0.1
F51: 9 | G51: 0.09
F52: 8 | G52: 0.08
F53: 7 | G53: 0.07
A54: 9 | B54: 7 | C54: 5 | D54: 3 | E54: 1 | F54: 6 | G54: 0.06 | I54: 1 | L54: 0 | N54: 0 | P54: MEDIDA | R54: MATERIAL | T54: MÁQUINAS
A55: 9.05 | B55: 7.05 | C55: 5.05 | D55: 3.05 | E55: 1.05 | F55: 5 | G55: 0.05 | H55: 0.05 | I55: 2 | L55: 0 | N55: 0 | P55: 0 | R55: 0 | T55: Refrigerador está com capacidade máxima
A56: 9.04 | B56: 7.04 | C56: 5.04 | D56: 3.04 | E56: 1.04 | F56: 4 | G56: 0.04 | H56: 0.04 | I56: 2 | L56: 0 | N56: 0 | P56: 0 | R56: 0 | T56: Máquina de corte de frios avariada
A57: 9.03 | B57: 7.03 | C57: 5.03 | D57: 3.03 | E57: 1.03 | F57: 3 | G57: 0.03 | H57: 0.03 | I57: 2 | L57: 0 | N57: 0 | P57: 0 | R57: Falta produtos secundários constantemente. | T57: Fogão industrial avariado
A58: 9.02 | B58: 7.02 | C58: 5.02 | D58: 3.02 | E58: 1.02 | F58: 2 | G58: 0.02 | H58: 0.02 | I58: 2 | L58: 0 | N58: 0 | P58: 0 | R58: Falta de insumos básicos constantemente | T58: Poucas máquinas de recebimento de pagamentos | V58: Aumento das reclamações
A59: 9.01 | B59: 7.01 | C59: 5.01 | D59: 3.01 | E59: 1.01 | F59: 1 | G59: 0.01 | H59: 0.01 | I59: 2 | L59: 0 | N59: 0 | P59: Não há sistema para a padronização da produção | R59: Fornecedor de defumados com baixa qualidade | T59: Sistema de geração de pedidos defasado
I60: 3
I61: 3
A62: 10.01 | B62: 8.01 | C62: 6.01 | D62: 4.01 | E62: 2.01 | F62: 1 | G62: 0.01 | H62: 0.01 | I62: 2 | L62: 0 | N62: 0 | P62: Falta de espaço no balcão do forno | R62: Atendentes do delivery constantemente com dúvidas | T62: Sistema de pedidos à produção ineficiente
A63: 10.02 | B63: 8.02 | C63: 6.02 | D63: 4.02 | E63: 2.02 | F63: 2 | G63: 0.02 | H63: 0.02 | I63: 2 | L63: 0 | N63: 0 | P63: Dias frios área externa está inutilizada. | R63: Garçons desmotivados. | T63: Controle de estoques de produtos secundários inexistente.
A64: 10.03 | B64: 8.03 | C64: 6.03 | D64: 4.03 | E64: 2.03 | F64: 3 | G64: 0.03 | H64: 0.03 | I64: 2 | L64: 0 | N64: 0 | P64: 0 | R64: Atraso nas entregas pelos motoboys | T64: 0
A65: 10.04 | B65: 8.04 | C65: 6.04 | D65: 4.04 | E65: 2.04 | F65: 4 | G65: 0.04 | H65: 0.04 | I65: 2 | L65: 0 | N65: 0 | P65: 0 | R65: 0 | T65: 0
A66: 10.05 | B66: 8.05 | C66: 6.05 | D66: 4.05 | E66: 2.05 | F66: 5 | G66: 0.05 | H66: 0.05 | I66: 2 | L66: 0 | N66: 0 | P66: 0 | R66: 0 | T66: 0
A67: 10 | B67: 8 | C67: 6 | D67: 4 | E67: 2 | F67: 6 | G67: 0.06 | I67: 1 | L67: 0 | N67: 0 | P67: MEIO AMBIENTE | R67: MÃO-DE-OBRA | T67: MÉTODO
F68: 7 | G68: 0.07
F69: 8 | G69: 0.08
F70: 9 | G70: 0.09
F71: 10 | G71: 0.1
F72: 11 | G72: 0.11
F73: 12 | G73: 0.12
F74: 13 | G74: 0.13
F75: 14 | G75: 0.14
F76: 15 | G76: 0.15
F77: 16 | G77: 0.16
F78: 17 | G78: 0.17
F79: 18 | G79: 0.18
F80: 19 | G80: 0.19
F81: 20 | G81: 0.2
F82: 21 | G82: 0.21
F83: 22 | G83: 0.22
F84: 23 | G84: 0.23
F85: 24 | G85: 0.24
F86: 25 | G86: 0.25
F87: 26 | G87: 0.26
F88: 27 | G88: 0.27
F89: 28 | G89: 0.28
F90: 29 | G90: 0.29
F91: 30 | G91: 0.3
F92: 31 | G92: 0.31
F93: 32 | G93: 0.32
F94: 33 | G94: 0.33
F95: 34 | G95: 0.34
F96: 35 | G96: 0.35
F97: 36 | G97: 0.36
F98: 37 | G98: 0.37
F99: 38 | G99: 0.38
F100: 39 | G100: 0.39
F101: 40 | G101: 0.4
F102: 41 | G102: 0.41
F103: 42 | G103: 0.42
F104: 43 | G104: 0.43
F105: 44 | G105: 0.44
F106: 45 | G106: 0.45
F107: 46 | G107: 0.46
F108: 47 | G108: 0.47
F109: 48 | G109: 0.48
F110: 49 | G110: 0.49
F111: 50 | G111: 0.5
F112: 51 | G112: 0.51

Sheet Do
A1: 1 | B1: 2 | C1: 3 | D1: 4 | E1: 5 | F1: 6 | G1: 7 | H1: 8 | I1: 9 | J1: 10
L4: 5W2H - EXECUÇÃO
D9: Conta 5w2h preenchido | E9: Verifica 5w2h sem fator | L9: CAUSA | M9: FATOR | N9: What | O9: Why | P9: Where | Q9: When | S9: Who | T9: How | U9: How much
N10: o que será feito? | O10: por que será feito? | P10: onde será feito? | Q10: quando será feito? | S10: por quem será feito? | T10: como será feito? | U10: quanto vai custar?
N11: PLANO DE AÇÃO | O11: RESULTADO ESPERADO | P11: LOCAL DE REALIZAÇÃO | Q11: Início (dd/mm/aaaa) | R11: Duração (dias) | S11: RESPONSÁVEL | T11: COMO SERÁ FEITO? | U11: CUSTOS / VALORES
A12: 1 | C12: 2 | D12: 0 | F12: 2018-09-05T00:00:00.001 | G12: 2018-09-05T00:00:00.001 | H12: 2018-09-30T00:00:00.010 | J12: 1 | L12: MÁQUINAS | M12: 1,01 - Sistema de geração de pedidos defasado | N12: Adquirir novo sistema de pedidos. | O12: Diminuir erros dos cadastros e constantes falhas do sistema | P12: Na sede | Q12: 2018-09-05 | R12: 25 | S12: Fátima | T12: Contratação de novo serviço e treinamento dos funcionários envolvidos | U12: 600
A13: 1 | C13: 1 | D13: 0 | F13: 2018-09-11T00:00:00.001 | G13: 2018-09-11T00:00:00.001 | H13: 2018-10-21T00:00:00.011 | J13: 2 | L13: MÁQUINAS | M13: 1,02 - Poucas máquinas de recebimento de pagamentos | N13: Adquirir novas máquinas de operadoras de cartões. | O13: Diminuir tempo do delivery deixando mais dinâmico | P13: Na sede | Q13: 2018-09-11 | R13: 40 | S13: Fátima | T13: Cotar e adquirir novas máquinas | U13: 800
A14: 1 | C14: 2 | D14: 0 | F14: 2018-09-16T00:00:00.001 | G14: 2018-09-16T00:00:00.001 | H14: 2018-09-26T00:00:00.012 | J14: 3 | L14: MÁQUINAS | M14: 1,03 - Fogão industrial avariado | N14: Consertar avarias existentes. | O14: Melhorar a eficiência na cozinha | P14: Na sede | Q14: 2018-09-16 | R14: 10 | S14: Bruno | T14: Contratação de empresa de manutenção | U14: 450
A15: 1 | C15: 1 | D15: 0 | F15: 2018-09-21T00:00:00.001 | G15: 2024-03-13T00:00:00.001 | H15: 2018-10-16T00:00:00.013 | J15: 4 | L15: MÁQUINAS | M15: 1,04 - Máquina de corte de frios avariada | N15: Comprar nova máquina de frios. | O15: Aumentar qualidade do produto final e agilizar procedimentos na cozinha | P15: Na sede | Q15: 2018-09-21 | R15: 25 | S15: Roberto | T15: Aquisição de nova máquina | U15: 3500
A16: 1 | C16: 2 | D16: 0 | F16: 2018-10-06T00:00:00.001 | G16: 2018-10-06T00:00:00.001 | H16: 2018-10-31T00:00:00.014 | J16: 5 | L16: MÁQUINAS | M16: 1,05 - Refrigerador está com capacidade máxima | N16: Adquirir novo refrigerador | O16: Aumentar a capacidade do estoque de bebidas e aumentar a variedade de opções | P16: Na sede | Q16: 2018-10-06 | R16: 25 | S16: Bruno | T16: Aquisição de nova máquina | U16: 2000
A17: 2 | C17: 1 | D17: 0 | F17: 2018-10-16T00:00:00.001 | G17: 2021-07-12T00:00:00.001 | H17: 2018-11-25T00:00:00.015 | J17: 6 | L17: MÉTODO | M17: 2,01 - Sistema de pedidos à produção ineficiente | N17: Criar novo procedimento | O17: Diminuir erros de pedido a cozinha | P17: Na sede | Q17: 2018-10-16 | R17: 40 | S17: Roberto | T17: Testar variações de sistema de pedido e averiguar o mais eficiente com ênfase em minimizar erros. | U17: 550
A18: 2 | C18: 2 | D18: 0 | F18: 2018-10-21T00:00:00.002 | G18: 2018-10-21T00:00:00.002 | H18: 2018-11-30T00:00:00.016 | J18: 7 | L18: MÉTODO | M18: 2,02 - Controle de estoques de produtos secundários inexistente. | N18: Criar um controle de estoque | O18: Evitar falta de produtos frequentemente solicitado pelos clientes. | P18: Na sede | Q18: 2018-10-21 | R18: 40 | S18: Roberto | T18: Contratar um software e instalar procedimento. | U18: 500
A19: 3 | C19: 1 | D19: 0 | F19: 2018-10-26T00:00:00.002 | G19: 2018-10-26T00:00:00.002 | H19: 2018-10-31T00:00:00.016 | J19: 8 | L19: MATERIAL | M19: 3,01 - Fornecedor de defumados com baixa qualidade | N19: Contratar novo fornecedor | O19: Aumentar qualidade do produto final | P19: Sede / Pesquisa na internet | Q19: 2018-10-26 | R19: 5 | S19: Roberto | T19: Contratar novo fornecedor de melhor qualidade dentro do teto de preços fixado. | U19: 0
A20: 3 | C20: 2 | D20: 0 | F20: 2018-10-26T00:00:00.002 | G20: 2018-10-26T00:00:00.002 | H20: 2018-11-20T00:00:00.017 | J20: 9 | L20: MATERIAL | M20: 3,02 - Falta de insumos básicos constantemente | N20: Melhorar procedimento de compra | O20: Evitar falta de insumos básicos | P20: Na sede | Q20: 2018-10-26 | R20: 25 | S20: Sheila | T20: Melhorar o procedimento existente e treinar o funcionário responsável. | U20: 0
A21: 3 | C21: 1 | D21: 0 | F21: 2018-10-31T00:00:00.002 | G21: 2018-10-31T00:00:00.002 | H21: 2018-12-10T00:00:00.018 | J21: 10 | L21: MATERIAL | M21: 3,03 - Falta produtos secundários constantemente. | N21: Desenvolver procedimento do novo controle de estoque | O21: Evitar falta de produtos frequentemente solicitado pelos clientes. | P21: Na sede | Q21: 2018-10-31 | R21: 40 | S21: Pedro | T21: Criar controle de estoque para produtos secundários com atualização diária. | U21: 600
A22: 4 | C22: 2 | D22: 0 | F22: 2018-11-05T00:00:00.002 | G22: 2018-11-05T00:00:00.002 | H22: 2018-12-05T00:00:00.019 | J22: 11 | L22: MÃO-DE-OBRA | M22: 4,01 - Atendentes do delivery constantemente com dúvidas | N22: Criar um plano de treinamento periódico | O22: Evitar insatisfação do cliente com erros de pedidos e demora no atendimento. | P22: Na sede | Q22: 2018-11-05 | R22: 30 | S22: Fátima | T22: Criar plano de treinamento trimestral | U22: 0
A23: 4 | C23: 1 | D23: 0 | F23: 2018-11-10T00:00:00.002 | G23: 2018-11-10T00:00:00.002 | H23: 2018-12-10T00:00:00.020 | J23: 12 | L23: MÃO-DE-OBRA | M23: 4,02 - Garçons desmotivados. | N23: Desenvolver treinamento periódico e melhorar plano de benefícios. | O23: Garçons mais motivados com o trabalho desenvolvido. | P23: Na sede | Q23: 2018-11-10 | R23: 30 | S23: Sérgio | T23: Desenvolver treinamento trimestral e aumentar em 2% a participação na receita da venda da carta de vinhos. | U23: 0
A24: 4 | C24: 2 | D24: 0 | F24: 2018-09-05T00:00:00.002 | G24: 2018-09-05T00:00:00.002 | H24: 2018-09-20T00:00:00.021 | J24: 13 | L24: MÃO-DE-OBRA | M24: 4,03 - Atraso nas entregas pelos motoboys | N24: Diminuir quantidade de clientes atendidos por vez e aumentar quantidade de entregadores. | O24: Diminuir o tempo de entrega para os últimos clientes | P24: Na sede | Q24: 2018-09-05 | R24: 15 | S24: Fátima | T24: Limitar a entrega de 2 pedidos por viagem junto com a contratação de novos motoboys (custo equipamento básico). | U24: 350
A25: 5 | C25: 1 | D25: 0 | F25: 2018-09-10T00:00:00.002 | G25: 2018-09-10T00:00:00.002 | H25: 2018-09-20T00:00:00.022 | J25: 14 | L25: MEDIDA | M25: 5,01 - Não há sistema para a padronização da produção | N25: Desenvolver sistema de padronização da produção | O25: Produto com qualidade constante, menor variação entre pedidos e agilizar produção | P25: Na sede | Q25: 2018-09-10 | R25: 10 | S25: Pedro e consultor gastronômico | T25: Confeccionar modelo padrão dos produtos e quantificar cada item utilizado. | U25: 400
A26: 6 | C26: 2 | D26: 0 | F26: 2018-10-06T00:00:00.002 | G26: 2018-10-06T00:00:00.002 | H26: 2018-11-10T00:00:00.022 | J26: 15 | L26: MEIO AMBIENTE | M26: 6,01 - Falta de espaço no balcão do forno | N26: Reformar balcão da cozinha | O26: Mais espaço para o trabalho da cozinha | P26: Na sede | Q26: 2018-10-06 | R26: 35 | S26: Bruno + Empreiteiro | T26: Aumentar em 2,00m o balcão da cozinha | U26: 2500
A27: 6 | C27: 1 | D27: 0 | F27: 2018-11-05T00:00:00.002 | G27: 2018-11-05T00:00:00.002 | H27: 2018-11-20T00:00:00.023 | J27: 16 | L27: MEIO AMBIENTE | M27: 6,02 - Dias frios área externa está inutilizada. | N27: Adquirir aquecedores externos | O27: Aumentar o conforto dos clientes em dias frios. | P27: Pesquisa na internet | Q27: 2018-11-05 | R27: 15 | S27: Roberto | T27: Cotar com 3 empresa aquecedores à gás para as áreas externa e adquiri o de menor custo. | U27: 3000
C28: 2 | D28: 0 | J28: 17
C29: 1 | D29: 0 | J29: 18
C30: 2 | D30: 0 | J30: 19
C31: 1 | D31: 0 | J31: 20
C32: 2 | D32: 0 | J32: 21
C33: 1 | D33: 0 | J33: 22
C34: 2 | D34: 0 | J34: 23
C35: 1 | D35: 0 | J35: 24
C36: 2 | D36: 0 | J36: 25
C37: 1 | D37: 0 | J37: 26
C38: 2 | D38: 0 | J38: 27
C39: 1 | D39: 0 | J39: 28
C40: 2 | D40: 0 | J40: 29
C41: 1 | D41: 0 | J41: 30
C42: 2 | D42: 0 | J42: 31
C43: 1 | D43: 0 | J43: 32
C44: 2 | D44: 0 | J44: 33
C45: 1 | D45: 0 | J45: 34
C46: 2 | D46: 0 | J46: 35
C47: 1 | D47: 0 | J47: 36
C48: 2 | D48: 0 | J48: 37
C49: 1 | D49: 0 | J49: 38
C50: 2 | D50: 0 | J50: 39
C51: 1 | D51: 0 | J51: 40
C52: 2 | D52: 0 | J52: 41
C53: 1 | D53: 0 | J53: 42
C54: 2 | D54: 0 | J54: 43
C55: 1 | D55: 0 | J55: 44
C56: 2 | D56: 0 | J56: 45
C57: 1 | D57: 0 | J57: 46
C58: 2 | D58: 0 | J58: 47
C59: 1 | D59: 0 | J59: 48
C60: 2 | D60: 0 | J60: 49
C61: 1 | D61: 0 | J61: 50
C62: 2 | D62: 0 | J62: 51
C63: 1 | D63: 0 | J63: 52
C64: 2 | D64: 0 | J64: 53
C65: 1 | D65: 0 | J65: 54
C66: 2 | D66: 0 | J66: 55
C67: 1 | D67: 0 | J67: 56
C68: 2 | D68: 0 | J68: 57
C69: 1 | D69: 0 | J69: 58
C70: 2 | D70: 0 | J70: 59
C71: 1 | D71: 0 | J71: 60
C72: 2 | D72: 0 | J72: 61
C73: 1 | D73: 0 | J73: 62
C74: 2 | D74: 0 | J74: 63
C75: 1 | D75: 0 | J75: 64
C76: 2 | D76: 0 | J76: 65
C77: 1 | D77: 0 | J77: 66
C78: 2 | D78: 0 | J78: 67
C79: 1 | D79: 0 | J79: 68
C80: 2 | D80: 0 | J80: 69
C81: 1 | D81: 0 | J81: 70
C82: 2 | D82: 0 | J82: 71
C83: 1 | D83: 0 | J83: 72
C84: 2 | D84: 0 | J84: 73
C85: 1 | D85: 0 | J85: 74
C86: 2 | D86: 0 | J86: 75
C87: 1 | D87: 0 | J87: 76
C88: 2 | D88: 0 | J88: 77
C89: 1 | D89: 0 | J89: 78
C90: 2 | D90: 0 | J90: 79
C91: 1 | D91: 0 | J91: 80
C92: 2 | D92: 0 | J92: 81
C93: 1 | D93: 0 | J93: 82
C94: 2 | D94: 0 | J94: 83
C95: 1 | D95: 0 | J95: 84
C96: 2 | D96: 0 | J96: 85
C97: 1 | D97: 0 | J97: 86
C98: 2 | D98: 0 | J98: 87
C99: 1 | D99: 0 | J99: 88
C100: 2 | D100: 0 | J100: 89
C101: 1 | D101: 0 | J101: 90
C102: 2 | D102: 0 | J102: 91
C103: 1 | D103: 0 | J103: 92
C104: 2 | D104: 0 | J104: 93
C105: 1 | D105: 0 | J105: 94
C106: 2 | D106: 0 | J106: 95
C107: 1 | D107: 0 | J107: 96
C108: 2 | D108: 0 | J108: 97
C109: 1 | D109: 0 | J109: 98
C110: 2 | D110: 0 | J110: 99
C111: 1 | D111: 0 | J111: 100
C112: 2 | D112: 0 | J112: 101
C113: 1 | D113: 0 | J113: 102
C114: 2 | D114: 0 | J114: 103
C115: 1 | D115: 0 | J115: 104
C116: 2 | D116: 0 | J116: 105
C117: 1 | D117: 0 | J117: 106
C118: 2 | D118: 0 | J118: 107
C119: 1 | D119: 0 | J119: 108
C120: 2 | D120: 0 | J120: 109
C121: 1 | D121: 0 | J121: 110
C122: 2 | D122: 0 | J122: 111
C123: 1 | D123: 0 | J123: 112
C124: 2 | D124: 0 | J124: 113
C125: 1 | D125: 0 | J125: 114
C126: 2 | D126: 0 | J126: 115
C127: 1 | D127: 0 | J127: 116
C128: 2 | D128: 0 | J128: 117
C129: 1 | D129: 0 | J129: 118
C130: 2 | D130: 0 | J130: 119
C131: 1 | D131: 0 | J131: 120
C132: 2 | D132: 0 | J132: 121
C133: 1 | D133: 0 | J133: 122
C134: 2 | D134: 0 | J134: 123
C135: 1 | D135: 0 | J135: 124
C136: 2 | D136: 0 | J136: 125
C137: 1 | D137: 0 | J137: 126
C138: 2 | D138: 0 | J138: 127
C139: 1 | D139: 0 | J139: 128
C140: 2 | D140: 0 | J140: 129
C141: 1 | D141: 0 | J141: 130
C142: 2 | D142: 0 | J142: 131
C143: 1 | D143: 0 | J143: 132
C144: 2 | D144: 0 | J144: 133
C145: 1 | D145: 0 | J145: 134
C146: 2 | D146: 0 | J146: 135
C147: 1 | D147: 0 | J147: 136
C148: 2 | D148: 0 | J148: 137
C149: 1 | D149: 0 | J149: 138
C150: 2 | D150: 0 | J150: 139
C151: 1 | D151: 0 | J151: 140
C152: 2 | D152: 0 | J152: 141
C153: 1 | D153: 0 | J153: 142
C154: 2 | D154: 0 | J154: 143
C155: 1 | D155: 0 | J155: 144
C156: 2 | D156: 0 | J156: 145
C157: 1 | D157: 0 | J157: 146
C158: 2 | D158: 0 | J158: 147
C159: 1 | D159: 0 | J159: 148
C160: 2 | D160: 0 | J160: 149
C161: 1 | D161: 0 | J161: 150
C162: 2 | D162: 0 | J162: 151
C163: 1 | D163: 0 | J163: 152
C164: 2 | D164: 0 | J164: 153
C165: 1 | D165: 0 | J165: 154
C166: 2 | D166: 0 | J166: 155
C167: 1 | D167: 0 | J167: 156
C168: 2 | D168: 0 | J168: 157
C169: 1 | D169: 0 | J169: 158
C170: 2 | D170: 0 | J170: 159
C171: 1 | D171: 0 | J171: 160
C172: 2 | D172: 0 | J172: 161
C173: 1 | D173: 0 | J173: 162
C174: 2 | D174: 0 | J174: 163
C175: 1 | D175: 0 | J175: 164
C176: 2 | D176: 0 | J176: 165
C177: 1 | D177: 0 | J177: 166
C178: 2 | D178: 0 | J178: 167
C179: 1 | D179: 0 | J179: 168
C180: 2 | D180: 0 | J180: 169
C181: 1 | D181: 0 | J181: 170
C182: 2 | D182: 0 | J182: 171
C183: 1 | D183: 0 | J183: 172
C184: 2 | D184: 0 | J184: 173
C185: 1 | D185: 0 | J185: 174
C186: 2 | D186: 0 | J186: 175
C187: 1 | D187: 0 | J187: 176
C188: 2 | D188: 0 | J188: 177
C189: 1 | D189: 0 | J189: 178
C190: 2 | D190: 0 | J190: 179
C191: 1 | D191: 0 | J191: 180
C192: 2 | D192: 0 | J192: 181
C193: 1 | D193: 0 | J193: 182
C194: 2 | D194: 0 | J194: 183
C195: 1 | D195: 0 | J195: 184
C196: 2 | D196: 0 | J196: 185
C197: 1 | D197: 0 | J197: 186
C198: 2 | D198: 0 | J198: 187
C199: 1 | D199: 0 | J199: 188
C200: 2 | D200: 0 | J200: 189
C201: 1 | D201: 0 | J201: 190
C202: 2 | D202: 0 | J202: 191
C203: 1 | D203: 0 | J203: 192
C204: 2 | D204: 0 | J204: 193
C205: 1 | D205: 0 | J205: 194
C206: 2 | D206: 0 | J206: 195
... 305 more rows

Sheet Do_Ordem
A1: 43348 | B1: 96.00000022 | K1: 1 | L1: 2 | M1: 3 | N1: 4 | O1: 5 | P1: 6 | Q1: 7 | R1: 8 | S1: 9 | T1: 10 | U1: 11 | V1: 12 | W1: 13 | X1: 14 | Y1: 15 | Z1: 16 | AA1: 17 | AB1: 18 | AC1: 19 | AD1: 20 | AE1: 21 | AF1: 22 | AG1: 23 | AH1: 24 | AI1: 25 | AJ1: 26 | AK1: 27 | AL1: 28 | AM1: 29 | AN1: 30 | AO1: 31 | AP1: 32 | AQ1: 33 | AR1: 34 | AS1: 35 | AT1: 36 | AU1: 37 | AV1: 38 | AW1: 39 | AX1: 40 | AY1: 41 | AZ1: 42 | BA1: 43 | BB1: 44 | BC1: 45 | BD1: 46 | BE1: 47 | BF1: 48 | BG1: 49 | BH1: 50 | BI1: 51 | BJ1: 52 | BK1: 53 | BL1: 54 | BM1: 55 | BN1: 56 | BO1: 57 | BP1: 58 | BQ1: 59 | BR1: 60 | BS1: 61 | BT1: 62 | BU1: 63 | BV1: 64 | BW1: 65 | BX1: 66 | BY1: 67 | BZ1: 68 | CA1: 69 | CB1: 70 | CC1: 71 | CD1: 72 | CE1: 73 | CF1: 74 | CG1: 75 | CH1: 76 | CI1: 77 | CJ1: 78 | CK1: 79 | CL1: 80 | CM1: 81 | CN1: 82 | CO1: 83 | CP1: 84 | CQ1: 85 | CR1: 86 | CS1: 87 | CT1: 88 | CU1: 89 | CV1: 90 | CW1: 91 | CX1: 92 | CY1: 93 | CZ1: 94 | DA1: 95 | DB1: 96 | DC1: 97 | DD1: 98 | DE1: 99 | DF1: 100
A2: 43444 | B2: 0.9600000022 | K2: =$A$1+(K$1*$B$2) -> 43348.96 | L2: 43349.92 | M2: 43350.88 | N2: 43351.84 | O2: 43352.8 | P2: 43353.76 | Q2: 43354.72 | R2: 43355.68 | S2: 43356.64 | T2: 43357.6 | U2: 43358.56 | V2: 43359.52 | W2: 43360.48 | X2: 43361.44 | Y2: 43362.4 | Z2: 43363.36 | AA2: 43364.32 | AB2: 43365.28 | AC2: 43366.24 | AD2: 43367.2 | AE2: 43368.16 | AF2: 43369.12 | AG2: 43370.08 | AH2: 43371.04 | AI2: 43372 | AJ2: 43372.96 | AK2: 43373.92 | AL2: 43374.88 | AM2: 43375.84 | AN2: 43376.8 | AO2: 43377.76 | AP2: 43378.72 | AQ2: 43379.68 | AR2: 43380.64 | AS2: 43381.6 | AT2: 43382.56 | AU2: 43383.52 | AV2: 43384.48 | AW2: 43385.44 | AX2: 43386.4 | AY2: 43387.36 | AZ2: 43388.32 | BA2: 43389.28 | BB2: 43390.24 | BC2: 43391.2 | BD2: 43392.16 | BE2: 43393.12 | BF2: 43394.08 | BG2: 43395.04 | BH2: 43396 | BI2: 43396.96 | BJ2: 43397.92 | BK2: 43398.88 | BL2: 43399.84 | BM2: 43400.8 | BN2: 43401.76 | BO2: 43402.72 | BP2: 43403.68 | BQ2: 43404.64 | BR2: 43405.6 | BS2: 43406.56 | BT2: 43407.52 | BU2: 43408.48 | BV2: 43409.44 | BW2: 43410.4 | BX2: 43411.36 | BY2: 43412.32 | BZ2: 43413.28 | CA2: 43414.24 | CB2: 43415.2 | CC2: 43416.16 | CD2: 43417.12 | CE2: 43418.08 | CF2: 43419.04 | CG2: 43420 | CH2: 43420.96 | CI2: 43421.92 | CJ2: 43422.88 | CK2: 43423.84 | CL2: 43424.8 | CM2: 43425.76 | CN2: 43426.72 | CO2: 43427.68 | CP2: 43428.64 | CQ2: 43429.6 | CR2: 43430.56 | CS2: 43431.52 | CT2: 43432.48 | CU2: 43433.44 | CV2: 43434.4 | CW2: 43435.36 | CX2: 43436.32 | CY2: 43437.28 | CZ2: 43438.24 | DA2: 43439.2 | DB2: 43440.16 | DC2: 43441.12 | DD2: 43442.08 | DE2: 43443.04 | DF2: 43444
F4: DO - PROGRAMAÇÃO | K4: 2018-09-05T23:02:24.001 | O4: 2018-09-09T19:12:00.002 | S4: 2018-09-13T15:21:36.003 | W4: 2018-09-17T11:31:12.003 | AA4: 2018-09-21T07:40:48.004 | AE4: 2018-09-25T03:50:24.005 | AI4: 2018-09-29T00:00:00.006 | AM4: 2018-10-02T20:09:36.006 | AQ4: 2018-10-06T16:19:12.007 | AU4: 2018-10-10T12:28:48.008 | AY4: 2018-10-14T08:38:24.009 | BC4: 2018-10-18T04:48:00.010 | BG4: 2018-10-22T00:57:36.010 | BK4: 2018-10-25T21:07:12.011 | BO4: 2018-10-29T17:16:48.012 | BS4: 2018-11-02T13:26:24.013 | BW4: 2018-11-06T09:36:00.013 | CA4: 2018-11-10T05:45:36.014 | CE4: 2018-11-14T01:55:12.015 | CI4: 2018-11-17T22:04:48.016 | CM4: 2018-11-21T18:14:24.016 | CQ4: 2018-11-25T14:24:00.017 | CU4: 2018-11-29T10:33:36.018 | CY4: 2018-12-03T06:43:12.019 | DC4: 2018-12-07T02:52:48.019
F5: DE: | G5: ATÉ: | H5: FATOR: | I5: AÇÃO: | J5: DURAÇÃO | K5: 2018-09-05 | Y5: - | Z5: - | AA5: - | AB5: - | AC5: - | AD5: - | AE5: - | AF5: - | AG5: - | AH5: - | AI5: - | AJ5: - | AK5: - | AL5: - | AM5: - | AN5: - | AO5: - | AP5: - | AQ5: - | AR5: - | AS5: - | AT5: - | AU5: - | AV5: - | AW5: - | AX5: - | AY5: - | AZ5: - | BA5: - | BB5: - | BC5: - | BD5: - | BE5: - | BF5: - | BG5: - | BH5: - | BI5: - | BJ5: - | BK5: - | BL5: - | BM5: - | BN5: - | BO5: - | BP5: - | BQ5: - | BR5: - | BS5: - | BT5: - | BU5: - | BV5: - | BW5: - | BX5: - | BY5: - | BZ5: - | CA5: - | CB5: - | CC5: - | CD5: - | CE5: - | CF5: - | CG5: - | CH5: - | CI5: - | CJ5: - | CK5: - | CL5: - | CM5: - | CN5: - | CO5: - | CP5: - | CQ5: - | CR5: - | CS5: 2018-12-10T00:00:00.020
A6: 1 | B6: 2 | F6: =IFERROR(SMALL(Do!$F$12:$F$511,Do_Ordem!$A6),"") -> 2018-09-05T00:00:00.001 | G6: =IFERROR(VLOOKUP(F6,Do!$F$12:$R$511,13,FALSE)+F6,"") -> 2018-09-30T00:00:00.001 | H6: =IF($F6="","",VLOOKUP($F6,Do!$F$12:$U$511,8,FALSE)) -> 1,01 - Sistema de geração de pedidos defasado | I6: =IF(VLOOKUP(F6,Do!$F$12:$U$511,9,FALSE)="","",VLOOKUP(F6,Do!$F$12:$U$511,9,FALSE)) -> Adquirir novo sistema de pedidos. | J6: =IF(OR(F6="",G6=""),"",G6-F6) -> 25 | K6: x | L6: x | M6: x | N6: x | O6: x | P6: x | Q6: x | R6: x | S6: x | T6: x | U6: x | V6: x | W6: x | X6: x | Y6: x | Z6: x | AA6: x | AB6: x | AC6: x | AD6: x | AE6: x | AF6: x | AG6: x | AH6: x | AI6: x | AJ6: x
A7: 2 | B7: 1 | F7: =IFERROR(SMALL(Do!$F$12:$F$511,Do_Ordem!$A7),"") -> 2018-09-05T00:00:00.002 | G7: =IFERROR(VLOOKUP(F7,Do!$F$12:$R$511,13,FALSE)+F7,"") -> 2018-09-20T00:00:00.002 | H7: =IF($F7="","",VLOOKUP($F7,Do!$F$12:$U$511,8,FALSE)) -> 4,03 - Atraso nas entregas pelos motoboys | I7: =IF(VLOOKUP(F7,Do!$F$12:$U$511,9,FALSE)="","",VLOOKUP(F7,Do!$F$12:$U$511,9,FALSE)) -> Diminuir quantidade de clientes atendidos por vez e aumentar quantidade de entregadores. | J7: 15 | K7: x | L7: x | M7: x | N7: x | O7: x | P7: x | Q7: x | R7: x | S7: x | T7: x | U7: x | V7: x | W7: x | X7: x | Y7: x
A8: 3 | B8: 2 | F8: =IFERROR(SMALL(Do!$F$12:$F$511,Do_Ordem!$A8),"") -> 2018-09-10T00:00:00.002 | G8: =IFERROR(VLOOKUP(F8,Do!$F$12:$R$511,13,FALSE)+F8,"") -> 2018-09-20T00:00:00.002 | H8: =IF($F8="","",VLOOKUP($F8,Do!$F$12:$U$511,8,FALSE)) -> 5,01 - Não há sistema para a padronização da produção | I8: =IF(VLOOKUP(F8,Do!$F$12:$U$511,9,FALSE)="","",VLOOKUP(F8,Do!$F$12:$U$511,9,FALSE)) -> Desenvolver sistema de padronização da produção | J8: 10 | P8: x | Q8: x | R8: x | S8: x | T8: x | U8: x | V8: x | W8: x | X8: x | Y8: x
A9: 4 | B9: 1 | F9: =IFERROR(SMALL(Do!$F$12:$F$511,Do_Ordem!$A9),"") -> 2018-09-11T00:00:00.001 | G9: =IFERROR(VLOOKUP(F9,Do!$F$12:$R$511,13,FALSE)+F9,"") -> 2018-10-21T00:00:00.001 | H9: =IF($F9="","",VLOOKUP($F9,Do!$F$12:$U$511,8,FALSE)) -> 1,02 - Poucas máquinas de recebimento de pagamentos | I9: =IF(VLOOKUP(F9,Do!$F$12:$U$511,9,FALSE)="","",VLOOKUP(F9,Do!$F$12:$U$511,9,FALSE)) -> Adquirir novas máquinas de operadoras de cartões. | J9: 40 | Q9: x | R9: x | S9: x | T9: x | U9: x | V9: x | W9: x | X9: x | Y9: x | Z9: x | AA9: x | AB9: x | AC9: x | AD9: x | AE9: x | AF9: x | AG9: x | AH9: x | AI9: x | AJ9: x | AK9: x | AL9: x | AM9: x | AN9: x | AO9: x | AP9: x | AQ9: x | AR9: x | AS9: x | AT9: x | AU9: x | AV9: x | AW9: x | AX9: x | AY9: x | AZ9: x | BA9: x | BB9: x | BC9: x | BD9: x | BE9: x
A10: 5 | B10: 2 | F10: =IFERROR(SMALL(Do!$F$12:$F$511,Do_Ordem!$A10),"") -> 2018-09-16T00:00:00.001 | G10: =IFERROR(VLOOKUP(F10,Do!$F$12:$R$511,13,FALSE)+F10,"") -> 2018-09-26T00:00:00.001 | H10: =IF($F10="","",VLOOKUP($F10,Do!$F$12:$U$511,8,FALSE)) -> 1,03 - Fogão industrial avariado | I10: =IF(VLOOKUP(F10,Do!$F$12:$U$511,9,FALSE)="","",VLOOKUP(F10,Do!$F$12:$U$511,9,FALSE)) -> Consertar avarias existentes. | J10: 10 | V10: x | W10: x | X10: x | Y10: x | Z10: x | AA10: x | AB10: x | AC10: x | AD10: x | AE10: x
A11: 6 | B11: 1 | F11: =IFERROR(SMALL(Do!$F$12:$F$511,Do_Ordem!$A11),"") -> 2018-09-21T00:00:00.001 | G11: =IFERROR(VLOOKUP(F11,Do!$F$12:$R$511,13,FALSE)+F11,"") -> 2018-10-16T00:00:00.001 | H11: =IF($F11="","",VLOOKUP($F11,Do!$F$12:$U$511,8,FALSE)) -> 1,04 - Máquina de corte de frios avariada | I11: =IF(VLOOKUP(F11,Do!$F$12:$U$511,9,FALSE)="","",VLOOKUP(F11,Do!$F$12:$U$511,9,FALSE)) -> Comprar nova máquina de frios. | J11: 25 | AA11: x | AB11: x | AC11: x | AD11: x | AE11: x | AF11: x | AG11: x | AH11: x | AI11: x | AJ11: x | AK11: x | AL11: x | AM11: x | AN11: x | AO11: x | AP11: x | AQ11: x | AR11: x | AS11: x | AT11: x | AU11: x | AV11: x | AW11: x | AX11: x | AY11: x | AZ11: x
A12: 7 | B12: 2 | F12: =IFERROR(SMALL(Do!$F$12:$F$511,Do_Ordem!$A12),"") -> 2018-10-06T00:00:00.001 | G12: =IFERROR(VLOOKUP(F12,Do!$F$12:$R$511,13,FALSE)+F12,"") -> 2018-10-31T00:00:00.001 | H12: =IF($F12="","",VLOOKUP($F12,Do!$F$12:$U$511,8,FALSE)) -> 1,05 - Refrigerador está com capacidade máxima | I12: =IF(VLOOKUP(F12,Do!$F$12:$U$511,9,FALSE)="","",VLOOKUP(F12,Do!$F$12:$U$511,9,FALSE)) -> Adquirir novo refrigerador | J12: 25 | AQ12: x | AR12: x | AS12: x | AT12: x | AU12: x | AV12: x | AW12: x | AX12: x | AY12: x | AZ12: x | BA12: x | BB12: x | BC12: x | BD12: x | BE12: x | BF12: x | BG12: x | BH12: x | BI12: x | BJ12: x | BK12: x | BL12: x | BM12: x | BN12: x | BO12: x | BP12: x
A13: 8 | B13: 1 | F13: =IFERROR(SMALL(Do!$F$12:$F$511,Do_Ordem!$A13),"") -> 2018-10-06T00:00:00.002 | G13: =IFERROR(VLOOKUP(F13,Do!$F$12:$R$511,13,FALSE)+F13,"") -> 2018-11-10T00:00:00.002 | H13: =IF($F13="","",VLOOKUP($F13,Do!$F$12:$U$511,8,FALSE)) -> 6,01 - Falta de espaço no balcão do forno | I13: =IF(VLOOKUP(F13,Do!$F$12:$U$511,9,FALSE)="","",VLOOKUP(F13,Do!$F$12:$U$511,9,FALSE)) -> Reformar balcão da cozinha | J13: 35 | AQ13: x | AR13: x | AS13: x | AT13: x | AU13: x | AV13: x | AW13: x | AX13: x | AY13: x | AZ13: x | BA13: x | BB13: x | BC13: x | BD13: x | BE13: x | BF13: x | BG13: x | BH13: x | BI13: x | BJ13: x | BK13: x | BL13: x | BM13: x | BN13: x | BO13: x | BP13: x | BQ13: x | BR13: x | BS13: x | BT13: x | BU13: x | BV13: x | BW13: x | BX13: x | BY13: x | BZ13: x
A14: 9 | B14: 2 | F14: =IFERROR(SMALL(Do!$F$12:$F$511,Do_Ordem!$A14),"") -> 2018-10-16T00:00:00.001 | G14: =IFERROR(VLOOKUP(F14,Do!$F$12:$R$511,13,FALSE)+F14,"") -> 2018-11-25T00:00:00.001 | H14: =IF($F14="","",VLOOKUP($F14,Do!$F$12:$U$511,8,FALSE)) -> 2,01 - Sistema de pedidos à produção ineficiente | I14: =IF(VLOOKUP(F14,Do!$F$12:$U$511,9,FALSE)="","",VLOOKUP(F14,Do!$F$12:$U$511,9,FALSE)) -> Criar novo procedimento | J14: 40 | BA14: x | BB14: x | BC14: x | BD14: x | BE14: x | BF14: x | BG14: x | BH14: x | BI14: x | BJ14: x | BK14: x | BL14: x | BM14: x | BN14: x | BO14: x | BP14: x | BQ14: x | BR14: x | BS14: x | BT14: x | BU14: x | BV14: x | BW14: x | BX14: x | BY14: x | BZ14: x | CA14: x | CB14: x | CC14: x | CD14: x | CE14: x | CF14: x | CG14: x | CH14: x | CI14: x | CJ14: x | CK14: x | CL14: x | CM14: x | CN14: x | CO14: x | CP14: x
A15: 10 | B15: 1 | F15: =IFERROR(SMALL(Do!$F$12:$F$511,Do_Ordem!$A15),"") -> 2018-10-21T00:00:00.002 | G15: =IFERROR(VLOOKUP(F15,Do!$F$12:$R$511,13,FALSE)+F15,"") -> 2018-11-30T00:00:00.002 | H15: =IF($F15="","",VLOOKUP($F15,Do!$F$12:$U$511,8,FALSE)) -> 2,02 - Controle de estoques de produtos secundários inexistente. | I15: =IF(VLOOKUP(F15,Do!$F$12:$U$511,9,FALSE)="","",VLOOKUP(F15,Do!$F$12:$U$511,9,FALSE)) -> Criar um controle de estoque | J15: 40 | BF15: x | BG15: x | BH15: x | BI15: x | BJ15: x | BK15: x | BL15: x | BM15: x | BN15: x | BO15: x | BP15: x | BQ15: x | BR15: x | BS15: x | BT15: x | BU15: x | BV15: x | BW15: x | BX15: x | BY15: x | BZ15: x | CA15: x | CB15: x | CC15: x | CD15: x | CE15: x | CF15: x | CG15: x | CH15: x | CI15: x | CJ15: x | CK15: x | CL15: x | CM15: x | CN15: x | CO15: x | CP15: x | CQ15: x | CR15: x | CS15: x | CT15: x | CU15: x
A16: 11 | B16: 2 | F16: =IFERROR(SMALL(Do!$F$12:$F$511,Do_Ordem!$A16),"") -> 2018-10-26T00:00:00.002 | G16: =IFERROR(VLOOKUP(F16,Do!$F$12:$R$511,13,FALSE)+F16,"") -> 2018-10-31T00:00:00.002 | H16: =IF($F16="","",VLOOKUP($F16,Do!$F$12:$U$511,8,FALSE)) -> 3,01 - Fornecedor de defumados com baixa qualidade | I16: =IF(VLOOKUP(F16,Do!$F$12:$U$511,9,FALSE)="","",VLOOKUP(F16,Do!$F$12:$U$511,9,FALSE)) -> Contratar novo fornecedor | J16: 5 | BL16: x | BM16: x | BN16: x | BO16: x | BP16: x
A17: 12 | B17: 1 | F17: =IFERROR(SMALL(Do!$F$12:$F$511,Do_Ordem!$A17),"") -> 2018-10-26T00:00:00.002 | G17: =IFERROR(VLOOKUP(F17,Do!$F$12:$R$511,13,FALSE)+F17,"") -> 2018-11-20T00:00:00.002 | H17: =IF($F17="","",VLOOKUP($F17,Do!$F$12:$U$511,8,FALSE)) -> 3,02 - Falta de insumos básicos constantemente | I17: =IF(VLOOKUP(F17,Do!$F$12:$U$511,9,FALSE)="","",VLOOKUP(F17,Do!$F$12:$U$511,9,FALSE)) -> Melhorar procedimento de compra | J17: 25 | BL17: x | BM17: x | BN17: x | BO17: x | BP17: x | BQ17: x | BR17: x | BS17: x | BT17: x | BU17: x | BV17: x | BW17: x | BX17: x | BY17: x | BZ17: x | CA17: x | CB17: x | CC17: x | CD17: x | CE17: x | CF17: x | CG17: x | CH17: x | CI17: x | CJ17: x | CK17: x
A18: 13 | B18: 2 | F18: =IFERROR(SMALL(Do!$F$12:$F$511,Do_Ordem!$A18),"") -> 2018-10-31T00:00:00.002 | G18: =IFERROR(VLOOKUP(F18,Do!$F$12:$R$511,13,FALSE)+F18,"") -> 2018-12-10T00:00:00.002 | H18: =IF($F18="","",VLOOKUP($F18,Do!$F$12:$U$511,8,FALSE)) -> 3,03 - Falta produtos secundários constantemente. | I18: =IF(VLOOKUP(F18,Do!$F$12:$U$511,9,FALSE)="","",VLOOKUP(F18,Do!$F$12:$U$511,9,FALSE)) -> Desenvolver procedimento do novo controle de estoque | J18: 40 | BQ18: x | BR18: x | BS18: x | BT18: x | BU18: x | BV18: x | BW18: x | BX18: x | BY18: x | BZ18: x | CA18: x | CB18: x | CC18: x | CD18: x | CE18: x | CF18: x | CG18: x | CH18: x | CI18: x | CJ18: x | CK18: x | CL18: x | CM18: x | CN18: x | CO18: x | CP18: x | CQ18: x | CR18: x | CS18: x | CT18: x | CU18: x | CV18: x | CW18: x | CX18: x | CY18: x | CZ18: x | DA18: x | DB18: x | DC18: x | DD18: x | DE18: x
A19: 14 | B19: 1 | F19: =IFERROR(SMALL(Do!$F$12:$F$511,Do_Ordem!$A19),"") -> 2018-11-05T00:00:00.002 | G19: =IFERROR(VLOOKUP(F19,Do!$F$12:$R$511,13,FALSE)+F19,"") -> 2018-12-05T00:00:00.002 | H19: =IF($F19="","",VLOOKUP($F19,Do!$F$12:$U$511,8,FALSE)) -> 4,01 - Atendentes do delivery constantemente com dúvidas | I19: =IF(VLOOKUP(F19,Do!$F$12:$U$511,9,FALSE)="","",VLOOKUP(F19,Do!$F$12:$U$511,9,FALSE)) -> Criar um plano de treinamento periódico | J19: 30 | BV19: x | BW19: x | BX19: x | BY19: x | BZ19: x | CA19: x | CB19: x | CC19: x | CD19: x | CE19: x | CF19: x | CG19: x | CH19: x | CI19: x | CJ19: x | CK19: x | CL19: x | CM19: x | CN19: x | CO19: x | CP19: x | CQ19: x | CR19: x | CS19: x | CT19: x | CU19: x | CV19: x | CW19: x | CX19: x | CY19: x | CZ19: x
A20: 15 | B20: 2 | F20: =IFERROR(SMALL(Do!$F$12:$F$511,Do_Ordem!$A20),"") -> 2018-11-05T00:00:00.002 | G20: =IFERROR(VLOOKUP(F20,Do!$F$12:$R$511,13,FALSE)+F20,"") -> 2018-11-20T00:00:00.002 | H20: =IF($F20="","",VLOOKUP($F20,Do!$F$12:$U$511,8,FALSE)) -> 6,02 - Dias frios área externa está inutilizada. | I20: =IF(VLOOKUP(F20,Do!$F$12:$U$511,9,FALSE)="","",VLOOKUP(F20,Do!$F$12:$U$511,9,FALSE)) -> Adquirir aquecedores externos | J20: 15 | BV20: x | BW20: x | BX20: x | BY20: x | BZ20: x | CA20: x | CB20: x | CC20: x | CD20: x | CE20: x | CF20: x | CG20: x | CH20: x | CI20: x | CJ20: x | CK20: x
A21: 16 | B21: 1 | F21: =IFERROR(SMALL(Do!$F$12:$F$511,Do_Ordem!$A21),"") -> 2018-11-10T00:00:00.002 | G21: =IFERROR(VLOOKUP(F21,Do!$F$12:$R$511,13,FALSE)+F21,"") -> 2018-12-10T00:00:00.002 | H21: =IF($F21="","",VLOOKUP($F21,Do!$F$12:$U$511,8,FALSE)) -> 4,02 - Garçons desmotivados. | I21: =IF(VLOOKUP(F21,Do!$F$12:$U$511,9,FALSE)="","",VLOOKUP(F21,Do!$F$12:$U$511,9,FALSE)) -> Desenvolver treinamento periódico e melhorar plano de benefícios. | J21: 30 | CA21: x | CB21: x | CC21: x | CD21: x | CE21: x | CF21: x | CG21: x | CH21: x | CI21: x | CJ21: x | CK21: x | CL21: x | CM21: x | CN21: x | CO21: x | CP21: x | CQ21: x | CR21: x | CS21: x | CT21: x | CU21: x | CV21: x | CW21: x | CX21: x | CY21: x | CZ21: x | DA21: x | DB21: x | DC21: x | DD21: x | DE21: x
A22: 17 | B22: 2 | F22: =IFERROR(SMALL(Do!$F$12:$F$511,Do_Ordem!$A22),"") ->  | G22: =IFERROR(VLOOKUP(F22,Do!$F$12:$R$511,13,FALSE)+F22,"") ->  | H22: =IF($F22="","",VLOOKUP($F22,Do!$F$12:$U$511,8,FALSE)) ->  | I22: =IF(VLOOKUP(F22,Do!$F$12:$U$511,9,FALSE)="","",VLOOKUP(F22,Do!$F$12:$U$511,9,FALSE)) -> 
A23: 18 | B23: 1 | F23: =IFERROR(SMALL(Do!$F$12:$F$511,Do_Ordem!$A23),"") ->  | G23: =IFERROR(VLOOKUP(F23,Do!$F$12:$R$511,13,FALSE)+F23,"") ->  | H23: =IF($F23="","",VLOOKUP($F23,Do!$F$12:$U$511,8,FALSE)) ->  | I23: =IF(VLOOKUP(F23,Do!$F$12:$U$511,9,FALSE)="","",VLOOKUP(F23,Do!$F$12:$U$511,9,FALSE)) -> 
A24: 19 | B24: 2 | F24: =IFERROR(SMALL(Do!$F$12:$F$511,Do_Ordem!$A24),"") ->  | G24: =IFERROR(VLOOKUP(F24,Do!$F$12:$R$511,13,FALSE)+F24,"") ->  | H24: =IF($F24="","",VLOOKUP($F24,Do!$F$12:$U$511,8,FALSE)) ->  | I24: =IF(VLOOKUP(F24,Do!$F$12:$U$511,9,FALSE)="","",VLOOKUP(F24,Do!$F$12:$U$511,9,FALSE)) -> 
A25: 20 | B25: 1 | F25: =IFERROR(SMALL(Do!$F$12:$F$511,Do_Ordem!$A25),"") ->  | G25: =IFERROR(VLOOKUP(F25,Do!$F$12:$R$511,13,FALSE)+F25,"") ->  | H25: =IF($F25="","",VLOOKUP($F25,Do!$F$12:$U$511,8,FALSE)) ->  | I25: =IF(VLOOKUP(F25,Do!$F$12:$U$511,9,FALSE)="","",VLOOKUP(F25,Do!$F$12:$U$511,9,FALSE)) -> 
A26: 21 | B26: 2 | F26: =IFERROR(SMALL(Do!$F$12:$F$511,Do_Ordem!$A26),"") ->  | G26: =IFERROR(VLOOKUP(F26,Do!$F$12:$R$511,13,FALSE)+F26,"") ->  | H26: =IF($F26="","",VLOOKUP($F26,Do!$F$12:$U$511,8,FALSE)) ->  | I26: =IF(VLOOKUP(F26,Do!$F$12:$U$511,9,FALSE)="","",VLOOKUP(F26,Do!$F$12:$U$511,9,FALSE)) -> 
A27: 22 | B27: 1 | F27: =IFERROR(SMALL(Do!$F$12:$F$511,Do_Ordem!$A27),"") ->  | G27: =IFERROR(VLOOKUP(F27,Do!$F$12:$R$511,13,FALSE)+F27,"") ->  | H27: =IF($F27="","",VLOOKUP($F27,Do!$F$12:$U$511,8,FALSE)) ->  | I27: =IF(VLOOKUP(F27,Do!$F$12:$U$511,9,FALSE)="","",VLOOKUP(F27,Do!$F$12:$U$511,9,FALSE)) -> 
A28: 23 | B28: 2 | F28: =IFERROR(SMALL(Do!$F$12:$F$511,Do_Ordem!$A28),"") ->  | G28: =IFERROR(VLOOKUP(F28,Do!$F$12:$R$511,13,FALSE)+F28,"") ->  | H28: =IF($F28="","",VLOOKUP($F28,Do!$F$12:$U$511,8,FALSE)) ->  | I28: =IF(VLOOKUP(F28,Do!$F$12:$U$511,9,FALSE)="","",VLOOKUP(F28,Do!$F$12:$U$511,9,FALSE)) -> 
A29: 24 | B29: 1 | F29: =IFERROR(SMALL(Do!$F$12:$F$511,Do_Ordem!$A29),"") ->  | G29: =IFERROR(VLOOKUP(F29,Do!$F$12:$R$511,13,FALSE)+F29,"") ->  | H29: =IF($F29="","",VLOOKUP($F29,Do!$F$12:$U$511,8,FALSE)) ->  | I29: =IF(VLOOKUP(F29,Do!$F$12:$U$511,9,FALSE)="","",VLOOKUP(F29,Do!$F$12:$U$511,9,FALSE)) -> 
A30: 25 | B30: 2 | F30: =IFERROR(SMALL(Do!$F$12:$F$511,Do_Ordem!$A30),"") ->  | G30: =IFERROR(VLOOKUP(F30,Do!$F$12:$R$511,13,FALSE)+F30,"") ->  | H30: =IF($F30="","",VLOOKUP($F30,Do!$F$12:$U$511,8,FALSE)) ->  | I30: =IF(VLOOKUP(F30,Do!$F$12:$U$511,9,FALSE)="","",VLOOKUP(F30,Do!$F$12:$U$511,9,FALSE)) -> 
A31: 26 | B31: 1 | F31: =IFERROR(SMALL(Do!$F$12:$F$511,Do_Ordem!$A31),"") ->  | G31: =IFERROR(VLOOKUP(F31,Do!$F$12:$R$511,13,FALSE)+F31,"") ->  | H31: =IF($F31="","",VLOOKUP($F31,Do!$F$12:$U$511,8,FALSE)) ->  | I31: =IF(VLOOKUP(F31,Do!$F$12:$U$511,9,FALSE)="","",VLOOKUP(F31,Do!$F$12:$U$511,9,FALSE)) -> 
A32: 27 | B32: 2 | F32: =IFERROR(SMALL(Do!$F$12:$F$511,Do_Ordem!$A32),"") ->  | G32: =IFERROR(VLOOKUP(F32,Do!$F$12:$R$511,13,FALSE)+F32,"") ->  | H32: =IF($F32="","",VLOOKUP($F32,Do!$F$12:$U$511,8,FALSE)) ->  | I32: =IF(VLOOKUP(F32,Do!$F$12:$U$511,9,FALSE)="","",VLOOKUP(F32,Do!$F$12:$U$511,9,FALSE)) -> 
A33: 28 | B33: 1 | F33: =IFERROR(SMALL(Do!$F$12:$F$511,Do_Ordem!$A33),"") ->  | G33: =IFERROR(VLOOKUP(F33,Do!$F$12:$R$511,13,FALSE)+F33,"") ->  | H33: =IF($F33="","",VLOOKUP($F33,Do!$F$12:$U$511,8,FALSE)) ->  | I33: =IF(VLOOKUP(F33,Do!$F$12:$U$511,9,FALSE)="","",VLOOKUP(F33,Do!$F$12:$U$511,9,FALSE)) -> 
A34: 29 | B34: 2 | F34: =IFERROR(SMALL(Do!$F$12:$F$511,Do_Ordem!$A34),"") ->  | G34: =IFERROR(VLOOKUP(F34,Do!$F$12:$R$511,13,FALSE)+F34,"") ->  | H34: =IF($F34="","",VLOOKUP($F34,Do!$F$12:$U$511,8,FALSE)) ->  | I34: =IF(VLOOKUP(F34,Do!$F$12:$U$511,9,FALSE)="","",VLOOKUP(F34,Do!$F$12:$U$511,9,FALSE)) -> 
A35: 30 | B35: 1 | F35: =IFERROR(SMALL(Do!$F$12:$F$511,Do_Ordem!$A35),"") ->  | G35: =IFERROR(VLOOKUP(F35,Do!$F$12:$R$511,13,FALSE)+F35,"") ->  | H35: =IF($F35="","",VLOOKUP($F35,Do!$F$12:$U$511,8,FALSE)) ->  | I35: =IF(VLOOKUP(F35,Do!$F$12:$U$511,9,FALSE)="","",VLOOKUP(F35,Do!$F$12:$U$511,9,FALSE)) -> 
A36: 31 | B36: 2 | F36: =IFERROR(SMALL(Do!$F$12:$F$511,Do_Ordem!$A36),"") ->  | G36: =IFERROR(VLOOKUP(F36,Do!$F$12:$R$511,13,FALSE)+F36,"") ->  | H36: =IF($F36="","",VLOOKUP($F36,Do!$F$12:$U$511,8,FALSE)) ->  | I36: =IF(VLOOKUP(F36,Do!$F$12:$U$511,9,FALSE)="","",VLOOKUP(F36,Do!$F$12:$U$511,9,FALSE)) -> 
A37: 32 | B37: 1 | F37: =IFERROR(SMALL(Do!$F$12:$F$511,Do_Ordem!$A37),"") ->  | G37: =IFERROR(VLOOKUP(F37,Do!$F$12:$R$511,13,FALSE)+F37,"") ->  | H37: =IF($F37="","",VLOOKUP($F37,Do!$F$12:$U$511,8,FALSE)) ->  | I37: =IF(VLOOKUP(F37,Do!$F$12:$U$511,9,FALSE)="","",VLOOKUP(F37,Do!$F$12:$U$511,9,FALSE)) -> 
A38: 33 | B38: 2 | F38: =IFERROR(SMALL(Do!$F$12:$F$511,Do_Ordem!$A38),"") ->  | G38: =IFERROR(VLOOKUP(F38,Do!$F$12:$R$511,13,FALSE)+F38,"") ->  | H38: =IF($F38="","",VLOOKUP($F38,Do!$F$12:$U$511,8,FALSE)) ->  | I38: =IF(VLOOKUP(F38,Do!$F$12:$U$511,9,FALSE)="","",VLOOKUP(F38,Do!$F$12:$U$511,9,FALSE)) -> 
A39: 34 | B39: 1 | F39: =IFERROR(SMALL(Do!$F$12:$F$511,Do_Ordem!$A39),"") ->  | G39: =IFERROR(VLOOKUP(F39,Do!$F$12:$R$511,13,FALSE)+F39,"") ->  | H39: =IF($F39="","",VLOOKUP($F39,Do!$F$12:$U$511,8,FALSE)) ->  | I39: =IF(VLOOKUP(F39,Do!$F$12:$U$511,9,FALSE)="","",VLOOKUP(F39,Do!$F$12:$U$511,9,FALSE)) -> 
A40: 35 | B40: 2 | F40: =IFERROR(SMALL(Do!$F$12:$F$511,Do_Ordem!$A40),"") ->  | G40: =IFERROR(VLOOKUP(F40,Do!$F$12:$R$511,13,FALSE)+F40,"") ->  | H40: =IF($F40="","",VLOOKUP($F40,Do!$F$12:$U$511,8,FALSE)) ->  | I40: =IF(VLOOKUP(F40,Do!$F$12:$U$511,9,FALSE)="","",VLOOKUP(F40,Do!$F$12:$U$511,9,FALSE)) -> 
A41: 36 | B41: 1 | F41: =IFERROR(SMALL(Do!$F$12:$F$511,Do_Ordem!$A41),"") ->  | G41: =IFERROR(VLOOKUP(F41,Do!$F$12:$R$511,13,FALSE)+F41,"") ->  | H41: =IF($F41="","",VLOOKUP($F41,Do!$F$12:$U$511,8,FALSE)) ->  | I41: =IF(VLOOKUP(F41,Do!$F$12:$U$511,9,FALSE)="","",VLOOKUP(F41,Do!$F$12:$U$511,9,FALSE)) -> 
A42: 37 | B42: 2 | F42: =IFERROR(SMALL(Do!$F$12:$F$511,Do_Ordem!$A42),"") ->  | G42: =IFERROR(VLOOKUP(F42,Do!$F$12:$R$511,13,FALSE)+F42,"") ->  | H42: =IF($F42="","",VLOOKUP($F42,Do!$F$12:$U$511,8,FALSE)) ->  | I42: =IF(VLOOKUP(F42,Do!$F$12:$U$511,9,FALSE)="","",VLOOKUP(F42,Do!$F$12:$U$511,9,FALSE)) -> 
A43: 38 | B43: 1 | F43: =IFERROR(SMALL(Do!$F$12:$F$511,Do_Ordem!$A43),"") ->  | G43: =IFERROR(VLOOKUP(F43,Do!$F$12:$R$511,13,FALSE)+F43,"") ->  | H43: =IF($F43="","",VLOOKUP($F43,Do!$F$12:$U$511,8,FALSE)) ->  | I43: =IF(VLOOKUP(F43,Do!$F$12:$U$511,9,FALSE)="","",VLOOKUP(F43,Do!$F$12:$U$511,9,FALSE)) -> 
A44: 39 | B44: 2 | F44: =IFERROR(SMALL(Do!$F$12:$F$511,Do_Ordem!$A44),"") ->  | G44: =IFERROR(VLOOKUP(F44,Do!$F$12:$R$511,13,FALSE)+F44,"") ->  | H44: =IF($F44="","",VLOOKUP($F44,Do!$F$12:$U$511,8,FALSE)) ->  | I44: =IF(VLOOKUP(F44,Do!$F$12:$U$511,9,FALSE)="","",VLOOKUP(F44,Do!$F$12:$U$511,9,FALSE)) -> 
A45: 40 | B45: 1 | F45: =IFERROR(SMALL(Do!$F$12:$F$511,Do_Ordem!$A45),"") ->  | G45: =IFERROR(VLOOKUP(F45,Do!$F$12:$R$511,13,FALSE)+F45,"") ->  | H45: =IF($F45="","",VLOOKUP($F45,Do!$F$12:$U$511,8,FALSE)) ->  | I45: =IF(VLOOKUP(F45,Do!$F$12:$U$511,9,FALSE)="","",VLOOKUP(F45,Do!$F$12:$U$511,9,FALSE)) -> 
A46: 41 | B46: 2 | F46: =IFERROR(SMALL(Do!$F$12:$F$511,Do_Ordem!$A46),"") ->  | G46: =IFERROR(VLOOKUP(F46,Do!$F$12:$R$511,13,FALSE)+F46,"") ->  | H46: =IF($F46="","",VLOOKUP($F46,Do!$F$12:$U$511,8,FALSE)) ->  | I46: =IF(VLOOKUP(F46,Do!$F$12:$U$511,9,FALSE)="","",VLOOKUP(F46,Do!$F$12:$U$511,9,FALSE)) -> 
A47: 42 | B47: 1 | F47: =IFERROR(SMALL(Do!$F$12:$F$511,Do_Ordem!$A47),"") ->  | G47: =IFERROR(VLOOKUP(F47,Do!$F$12:$R$511,13,FALSE)+F47,"") ->  | H47: =IF($F47="","",VLOOKUP($F47,Do!$F$12:$U$511,8,FALSE)) ->  | I47: =IF(VLOOKUP(F47,Do!$F$12:$U$511,9,FALSE)="","",VLOOKUP(F47,Do!$F$12:$U$511,9,FALSE)) -> 
A48: 43 | B48: 2 | F48: =IFERROR(SMALL(Do!$F$12:$F$511,Do_Ordem!$A48),"") ->  | G48: =IFERROR(VLOOKUP(F48,Do!$F$12:$R$511,13,FALSE)+F48,"") ->  | H48: =IF($F48="","",VLOOKUP($F48,Do!$F$12:$U$511,8,FALSE)) ->  | I48: =IF(VLOOKUP(F48,Do!$F$12:$U$511,9,FALSE)="","",VLOOKUP(F48,Do!$F$12:$U$511,9,FALSE)) -> 
A49: 44 | B49: 1 | F49: =IFERROR(SMALL(Do!$F$12:$F$511,Do_Ordem!$A49),"") ->  | G49: =IFERROR(VLOOKUP(F49,Do!$F$12:$R$511,13,FALSE)+F49,"") ->  | H49: =IF($F49="","",VLOOKUP($F49,Do!$F$12:$U$511,8,FALSE)) ->  | I49: =IF(VLOOKUP(F49,Do!$F$12:$U$511,9,FALSE)="","",VLOOKUP(F49,Do!$F$12:$U$511,9,FALSE)) -> 
A50: 45 | B50: 2 | F50: =IFERROR(SMALL(Do!$F$12:$F$511,Do_Ordem!$A50),"") ->  | G50: =IFERROR(VLOOKUP(F50,Do!$F$12:$R$511,13,FALSE)+F50,"") ->  | H50: =IF($F50="","",VLOOKUP($F50,Do!$F$12:$U$511,8,FALSE)) ->  | I50: =IF(VLOOKUP(F50,Do!$F$12:$U$511,9,FALSE)="","",VLOOKUP(F50,Do!$F$12:$U$511,9,FALSE)) -> 
A51: 46 | B51: 1 | F51: =IFERROR(SMALL(Do!$F$12:$F$511,Do_Ordem!$A51),"") ->  | G51: =IFERROR(VLOOKUP(F51,Do!$F$12:$R$511,13,FALSE)+F51,"") ->  | H51: =IF($F51="","",VLOOKUP($F51,Do!$F$12:$U$511,8,FALSE)) ->  | I51: =IF(VLOOKUP(F51,Do!$F$12:$U$511,9,FALSE)="","",VLOOKUP(F51,Do!$F$12:$U$511,9,FALSE)) -> 
A52: 47 | B52: 2 | F52: =IFERROR(SMALL(Do!$F$12:$F$511,Do_Ordem!$A52),"") ->  | G52: =IFERROR(VLOOKUP(F52,Do!$F$12:$R$511,13,FALSE)+F52,"") ->  | H52: =IF($F52="","",VLOOKUP($F52,Do!$F$12:$U$511,8,FALSE)) ->  | I52: =IF(VLOOKUP(F52,Do!$F$12:$U$511,9,FALSE)="","",VLOOKUP(F52,Do!$F$12:$U$511,9,FALSE)) -> 
A53: 48 | B53: 1 | F53: =IFERROR(SMALL(Do!$F$12:$F$511,Do_Ordem!$A53),"") ->  | G53: =IFERROR(VLOOKUP(F53,Do!$F$12:$R$511,13,FALSE)+F53,"") ->  | H53: =IF($F53="","",VLOOKUP($F53,Do!$F$12:$U$511,8,FALSE)) ->  | I53: =IF(VLOOKUP(F53,Do!$F$12:$U$511,9,FALSE)="","",VLOOKUP(F53,Do!$F$12:$U$511,9,FALSE)) -> 
A54: 49 | B54: 2 | F54: =IFERROR(SMALL(Do!$F$12:$F$511,Do_Ordem!$A54),"") ->  | G54: =IFERROR(VLOOKUP(F54,Do!$F$12:$R$511,13,FALSE)+F54,"") ->  | H54: =IF($F54="","",VLOOKUP($F54,Do!$F$12:$U$511,8,FALSE)) ->  | I54: =IF(VLOOKUP(F54,Do!$F$12:$U$511,9,FALSE)="","",VLOOKUP(F54,Do!$F$12:$U$511,9,FALSE)) -> 
A55: 50 | B55: 1 | F55: =IFERROR(SMALL(Do!$F$12:$F$511,Do_Ordem!$A55),"") ->  | G55: =IFERROR(VLOOKUP(F55,Do!$F$12:$R$511,13,FALSE)+F55,"") ->  | H55: =IF($F55="","",VLOOKUP($F55,Do!$F$12:$U$511,8,FALSE)) ->  | I55: =IF(VLOOKUP(F55,Do!$F$12:$U$511,9,FALSE)="","",VLOOKUP(F55,Do!$F$12:$U$511,9,FALSE)) -> 
A56: 51 | B56: 2 | F56: =IFERROR(SMALL(Do!$F$12:$F$511,Do_Ordem!$A56),"") ->  | G56: =IFERROR(VLOOKUP(F56,Do!$F$12:$R$511,13,FALSE)+F56,"") ->  | H56: =IF($F56="","",VLOOKUP($F56,Do!$F$12:$U$511,8,FALSE)) ->  | I56: =IF(VLOOKUP(F56,Do!$F$12:$U$511,9,FALSE)="","",VLOOKUP(F56,Do!$F$12:$U$511,9,FALSE)) -> 
A57: 52 | B57: 1 | F57: =IFERROR(SMALL(Do!$F$12:$F$511,Do_Ordem!$A57),"") ->  | G57: =IFERROR(VLOOKUP(F57,Do!$F$12:$R$511,13,FALSE)+F57,"") ->  | H57: =IF($F57="","",VLOOKUP($F57,Do!$F$12:$U$511,8,FALSE)) ->  | I57: =IF(VLOOKUP(F57,Do!$F$12:$U$511,9,FALSE)="","",VLOOKUP(F57,Do!$F$12:$U$511,9,FALSE)) -> 
A58: 53 | B58: 2 | F58: =IFERROR(SMALL(Do!$F$12:$F$511,Do_Ordem!$A58),"") ->  | G58: =IFERROR(VLOOKUP(F58,Do!$F$12:$R$511,13,FALSE)+F58,"") ->  | H58: =IF($F58="","",VLOOKUP($F58,Do!$F$12:$U$511,8,FALSE)) ->  | I58: =IF(VLOOKUP(F58,Do!$F$12:$U$511,9,FALSE)="","",VLOOKUP(F58,Do!$F$12:$U$511,9,FALSE)) -> 
A59: 54 | B59: 1 | F59: =IFERROR(SMALL(Do!$F$12:$F$511,Do_Ordem!$A59),"") ->  | G59: =IFERROR(VLOOKUP(F59,Do!$F$12:$R$511,13,FALSE)+F59,"") ->  | H59: =IF($F59="","",VLOOKUP($F59,Do!$F$12:$U$511,8,FALSE)) ->  | I59: =IF(VLOOKUP(F59,Do!$F$12:$U$511,9,FALSE)="","",VLOOKUP(F59,Do!$F$12:$U$511,9,FALSE)) -> 
A60: 55 | B60: 2 | F60: =IFERROR(SMALL(Do!$F$12:$F$511,Do_Ordem!$A60),"") ->  | G60: =IFERROR(VLOOKUP(F60,Do!$F$12:$R$511,13,FALSE)+F60,"") ->  | H60: =IF($F60="","",VLOOKUP($F60,Do!$F$12:$U$511,8,FALSE)) ->  | I60: =IF(VLOOKUP(F60,Do!$F$12:$U$511,9,FALSE)="","",VLOOKUP(F60,Do!$F$12:$U$511,9,FALSE)) -> 
A61: 56 | B61: 1 | F61: =IFERROR(SMALL(Do!$F$12:$F$511,Do_Ordem!$A61),"") ->  | G61: =IFERROR(VLOOKUP(F61,Do!$F$12:$R$511,13,FALSE)+F61,"") ->  | H61: =IF($F61="","",VLOOKUP($F61,Do!$F$12:$U$511,8,FALSE)) ->  | I61: =IF(VLOOKUP(F61,Do!$F$12:$U$511,9,FALSE)="","",VLOOKUP(F61,Do!$F$12:$U$511,9,FALSE)) -> 
A62: 57 | B62: 2 | F62: =IFERROR(SMALL(Do!$F$12:$F$511,Do_Ordem!$A62),"") ->  | G62: =IFERROR(VLOOKUP(F62,Do!$F$12:$R$511,13,FALSE)+F62,"") ->  | H62: =IF($F62="","",VLOOKUP($F62,Do!$F$12:$U$511,8,FALSE)) ->  | I62: =IF(VLOOKUP(F62,Do!$F$12:$U$511,9,FALSE)="","",VLOOKUP(F62,Do!$F$12:$U$511,9,FALSE)) -> 
A63: 58 | B63: 1 | F63: =IFERROR(SMALL(Do!$F$12:$F$511,Do_Ordem!$A63),"") ->  | G63: =IFERROR(VLOOKUP(F63,Do!$F$12:$R$511,13,FALSE)+F63,"") ->  | H63: =IF($F63="","",VLOOKUP($F63,Do!$F$12:$U$511,8,FALSE)) ->  | I63: =IF(VLOOKUP(F63,Do!$F$12:$U$511,9,FALSE)="","",VLOOKUP(F63,Do!$F$12:$U$511,9,FALSE)) -> 
A64: 59 | B64: 2 | F64: =IFERROR(SMALL(Do!$F$12:$F$511,Do_Ordem!$A64),"") ->  | G64: =IFERROR(VLOOKUP(F64,Do!$F$12:$R$511,13,FALSE)+F64,"") ->  | H64: =IF($F64="","",VLOOKUP($F64,Do!$F$12:$U$511,8,FALSE)) ->  | I64: =IF(VLOOKUP(F64,Do!$F$12:$U$511,9,FALSE)="","",VLOOKUP(F64,Do!$F$12:$U$511,9,FALSE)) -> 
A65: 60 | B65: 1 | F65: =IFERROR(SMALL(Do!$F$12:$F$511,Do_Ordem!$A65),"") ->  | G65: =IFERROR(VLOOKUP(F65,Do!$F$12:$R$511,13,FALSE)+F65,"") ->  | H65: =IF($F65="","",VLOOKUP($F65,Do!$F$12:$U$511,8,FALSE)) ->  | I65: =IF(VLOOKUP(F65,Do!$F$12:$U$511,9,FALSE)="","",VLOOKUP(F65,Do!$F$12:$U$511,9,FALSE)) -> 
A66: 61 | B66: 2 | F66: =IFERROR(SMALL(Do!$F$12:$F$511,Do_Ordem!$A66),"") ->  | G66: =IFERROR(VLOOKUP(F66,Do!$F$12:$R$511,13,FALSE)+F66,"") ->  | H66: =IF($F66="","",VLOOKUP($F66,Do!$F$12:$U$511,8,FALSE)) ->  | I66: =IF(VLOOKUP(F66,Do!$F$12:$U$511,9,FALSE)="","",VLOOKUP(F66,Do!$F$12:$U$511,9,FALSE)) -> 
A67: 62 | B67: 1 | F67: =IFERROR(SMALL(Do!$F$12:$F$511,Do_Ordem!$A67),"") ->  | G67: =IFERROR(VLOOKUP(F67,Do!$F$12:$R$511,13,FALSE)+F67,"") ->  | H67: =IF($F67="","",VLOOKUP($F67,Do!$F$12:$U$511,8,FALSE)) ->  | I67: =IF(VLOOKUP(F67,Do!$F$12:$U$511,9,FALSE)="","",VLOOKUP(F67,Do!$F$12:$U$511,9,FALSE)) -> 
A68: 63 | B68: 2 | F68: =IFERROR(SMALL(Do!$F$12:$F$511,Do_Ordem!$A68),"") ->  | G68: =IFERROR(VLOOKUP(F68,Do!$F$12:$R$511,13,FALSE)+F68,"") ->  | H68: =IF($F68="","",VLOOKUP($F68,Do!$F$12:$U$511,8,FALSE)) ->  | I68: =IF(VLOOKUP(F68,Do!$F$12:$U$511,9,FALSE)="","",VLOOKUP(F68,Do!$F$12:$U$511,9,FALSE)) -> 
A69: 64 | B69: 1 | F69: =IFERROR(SMALL(Do!$F$12:$F$511,Do_Ordem!$A69),"") ->  | G69: =IFERROR(VLOOKUP(F69,Do!$F$12:$R$511,13,FALSE)+F69,"") ->  | H69: =IF($F69="","",VLOOKUP($F69,Do!$F$12:$U$511,8,FALSE)) ->  | I69: =IF(VLOOKUP(F69,Do!$F$12:$U$511,9,FALSE)="","",VLOOKUP(F69,Do!$F$12:$U$511,9,FALSE)) -> 
A70: 65 | B70: 2 | F70: =IFERROR(SMALL(Do!$F$12:$F$511,Do_Ordem!$A70),"") ->  | G70: =IFERROR(VLOOKUP(F70,Do!$F$12:$R$511,13,FALSE)+F70,"") ->  | H70: =IF($F70="","",VLOOKUP($F70,Do!$F$12:$U$511,8,FALSE)) ->  | I70: =IF(VLOOKUP(F70,Do!$F$12:$U$511,9,FALSE)="","",VLOOKUP(F70,Do!$F$12:$U$511,9,FALSE)) -> 
A71: 66 | B71: 1 | F71: =IFERROR(SMALL(Do!$F$12:$F$511,Do_Ordem!$A71),"") ->  | G71: =IFERROR(VLOOKUP(F71,Do!$F$12:$R$511,13,FALSE)+F71,"") ->  | H71: =IF($F71="","",VLOOKUP($F71,Do!$F$12:$U$511,8,FALSE)) ->  | I71: =IF(VLOOKUP(F71,Do!$F$12:$U$511,9,FALSE)="","",VLOOKUP(F71,Do!$F$12:$U$511,9,FALSE)) -> 
A72: 67 | B72: 2 | F72: =IFERROR(SMALL(Do!$F$12:$F$511,Do_Ordem!$A72),"") ->  | G72: =IFERROR(VLOOKUP(F72,Do!$F$12:$R$511,13,FALSE)+F72,"") ->  | H72: =IF($F72="","",VLOOKUP($F72,Do!$F$12:$U$511,8,FALSE)) ->  | I72: =IF(VLOOKUP(F72,Do!$F$12:$U$511,9,FALSE)="","",VLOOKUP(F72,Do!$F$12:$U$511,9,FALSE)) -> 
A73: 68 | B73: 1 | F73: =IFERROR(SMALL(Do!$F$12:$F$511,Do_Ordem!$A73),"") ->  | G73: =IFERROR(VLOOKUP(F73,Do!$F$12:$R$511,13,FALSE)+F73,"") ->  | H73: =IF($F73="","",VLOOKUP($F73,Do!$F$12:$U$511,8,FALSE)) ->  | I73: =IF(VLOOKUP(F73,Do!$F$12:$U$511,9,FALSE)="","",VLOOKUP(F73,Do!$F$12:$U$511,9,FALSE)) -> 
A74: 69 | B74: 2 | F74: =IFERROR(SMALL(Do!$F$12:$F$511,Do_Ordem!$A74),"") ->  | G74: =IFERROR(VLOOKUP(F74,Do!$F$12:$R$511,13,FALSE)+F74,"") ->  | H74: =IF($F74="","",VLOOKUP($F74,Do!$F$12:$U$511,8,FALSE)) ->  | I74: =IF(VLOOKUP(F74,Do!$F$12:$U$511,9,FALSE)="","",VLOOKUP(F74,Do!$F$12:$U$511,9,FALSE)) -> 
A75: 70 | B75: 1 | F75: =IFERROR(SMALL(Do!$F$12:$F$511,Do_Ordem!$A75),"") ->  | G75: =IFERROR(VLOOKUP(F75,Do!$F$12:$R$511,13,FALSE)+F75,"") ->  | H75: =IF($F75="","",VLOOKUP($F75,Do!$F$12:$U$511,8,FALSE)) ->  | I75: =IF(VLOOKUP(F75,Do!$F$12:$U$511,9,FALSE)="","",VLOOKUP(F75,Do!$F$12:$U$511,9,FALSE)) -> 
A76: 71 | B76: 2 | F76: =IFERROR(SMALL(Do!$F$12:$F$511,Do_Ordem!$A76),"") ->  | G76: =IFERROR(VLOOKUP(F76,Do!$F$12:$R$511,13,FALSE)+F76,"") ->  | H76: =IF($F76="","",VLOOKUP($F76,Do!$F$12:$U$511,8,FALSE)) ->  | I76: =IF(VLOOKUP(F76,Do!$F$12:$U$511,9,FALSE)="","",VLOOKUP(F76,Do!$F$12:$U$511,9,FALSE)) -> 
A77: 72 | B77: 1 | F77: =IFERROR(SMALL(Do!$F$12:$F$511,Do_Ordem!$A77),"") ->  | G77: =IFERROR(VLOOKUP(F77,Do!$F$12:$R$511,13,FALSE)+F77,"") ->  | H77: =IF($F77="","",VLOOKUP($F77,Do!$F$12:$U$511,8,FALSE)) ->  | I77: =IF(VLOOKUP(F77,Do!$F$12:$U$511,9,FALSE)="","",VLOOKUP(F77,Do!$F$12:$U$511,9,FALSE)) -> 
A78: 73 | B78: 2 | F78: =IFERROR(SMALL(Do!$F$12:$F$511,Do_Ordem!$A78),"") ->  | G78: =IFERROR(VLOOKUP(F78,Do!$F$12:$R$511,13,FALSE)+F78,"") ->  | H78: =IF($F78="","",VLOOKUP($F78,Do!$F$12:$U$511,8,FALSE)) ->  | I78: =IF(VLOOKUP(F78,Do!$F$12:$U$511,9,FALSE)="","",VLOOKUP(F78,Do!$F$12:$U$511,9,FALSE)) -> 
A79: 74 | B79: 1 | F79: =IFERROR(SMALL(Do!$F$12:$F$511,Do_Ordem!$A79),"") ->  | G79: =IFERROR(VLOOKUP(F79,Do!$F$12:$R$511,13,FALSE)+F79,"") ->  | H79: =IF($F79="","",VLOOKUP($F79,Do!$F$12:$U$511,8,FALSE)) ->  | I79: =IF(VLOOKUP(F79,Do!$F$12:$U$511,9,FALSE)="","",VLOOKUP(F79,Do!$F$12:$U$511,9,FALSE)) -> 
A80: 75 | B80: 2 | F80: =IFERROR(SMALL(Do!$F$12:$F$511,Do_Ordem!$A80),"") ->  | G80: =IFERROR(VLOOKUP(F80,Do!$F$12:$R$511,13,FALSE)+F80,"") ->  | H80: =IF($F80="","",VLOOKUP($F80,Do!$F$12:$U$511,8,FALSE)) ->  | I80: =IF(VLOOKUP(F80,Do!$F$12:$U$511,9,FALSE)="","",VLOOKUP(F80,Do!$F$12:$U$511,9,FALSE)) -> 
A81: 76 | B81: 1 | F81: =IFERROR(SMALL(Do!$F$12:$F$511,Do_Ordem!$A81),"") ->  | G81: =IFERROR(VLOOKUP(F81,Do!$F$12:$R$511,13,FALSE)+F81,"") ->  | H81: =IF($F81="","",VLOOKUP($F81,Do!$F$12:$U$511,8,FALSE)) ->  | I81: =IF(VLOOKUP(F81,Do!$F$12:$U$511,9,FALSE)="","",VLOOKUP(F81,Do!$F$12:$U$511,9,FALSE)) -> 
A82: 77 | B82: 2 | F82: =IFERROR(SMALL(Do!$F$12:$F$511,Do_Ordem!$A82),"") ->  | G82: =IFERROR(VLOOKUP(F82,Do!$F$12:$R$511,13,FALSE)+F82,"") ->  | H82: =IF($F82="","",VLOOKUP($F82,Do!$F$12:$U$511,8,FALSE)) ->  | I82: =IF(VLOOKUP(F82,Do!$F$12:$U$511,9,FALSE)="","",VLOOKUP(F82,Do!$F$12:$U$511,9,FALSE)) -> 
A83: 78 | B83: 1 | F83: =IFERROR(SMALL(Do!$F$12:$F$511,Do_Ordem!$A83),"") ->  | G83: =IFERROR(VLOOKUP(F83,Do!$F$12:$R$511,13,FALSE)+F83,"") ->  | H83: =IF($F83="","",VLOOKUP($F83,Do!$F$12:$U$511,8,FALSE)) ->  | I83: =IF(VLOOKUP(F83,Do!$F$12:$U$511,9,FALSE)="","",VLOOKUP(F83,Do!$F$12:$U$511,9,FALSE)) -> 
A84: 79 | B84: 2 | F84: =IFERROR(SMALL(Do!$F$12:$F$511,Do_Ordem!$A84),"") ->  | G84: =IFERROR(VLOOKUP(F84,Do!$F$12:$R$511,13,FALSE)+F84,"") ->  | H84: =IF($F84="","",VLOOKUP($F84,Do!$F$12:$U$511,8,FALSE)) ->  | I84: =IF(VLOOKUP(F84,Do!$F$12:$U$511,9,FALSE)="","",VLOOKUP(F84,Do!$F$12:$U$511,9,FALSE)) -> 
A85: 80 | B85: 1 | F85: =IFERROR(SMALL(Do!$F$12:$F$511,Do_Ordem!$A85),"") ->  | G85: =IFERROR(VLOOKUP(F85,Do!$F$12:$R$511,13,FALSE)+F85,"") ->  | H85: =IF($F85="","",VLOOKUP($F85,Do!$F$12:$U$511,8,FALSE)) ->  | I85: =IF(VLOOKUP(F85,Do!$F$12:$U$511,9,FALSE)="","",VLOOKUP(F85,Do!$F$12:$U$511,9,FALSE)) -> 
A86: 81 | B86: 2 | F86: =IFERROR(SMALL(Do!$F$12:$F$511,Do_Ordem!$A86),"") ->  | G86: =IFERROR(VLOOKUP(F86,Do!$F$12:$R$511,13,FALSE)+F86,"") ->  | H86: =IF($F86="","",VLOOKUP($F86,Do!$F$12:$U$511,8,FALSE)) ->  | I86: =IF(VLOOKUP(F86,Do!$F$12:$U$511,9,FALSE)="","",VLOOKUP(F86,Do!$F$12:$U$511,9,FALSE)) -> 
A87: 82 | B87: 1 | F87: =IFERROR(SMALL(Do!$F$12:$F$511,Do_Ordem!$A87),"") ->  | G87: =IFERROR(VLOOKUP(F87,Do!$F$12:$R$511,13,FALSE)+F87,"") ->  | H87: =IF($F87="","",VLOOKUP($F87,Do!$F$12:$U$511,8,FALSE)) ->  | I87: =IF(VLOOKUP(F87,Do!$F$12:$U$511,9,FALSE)="","",VLOOKUP(F87,Do!$F$12:$U$511,9,FALSE)) -> 
A88: 83 | B88: 2 | F88: =IFERROR(SMALL(Do!$F$12:$F$511,Do_Ordem!$A88),"") ->  | G88: =IFERROR(VLOOKUP(F88,Do!$F$12:$R$511,13,FALSE)+F88,"") ->  | H88: =IF($F88="","",VLOOKUP($F88,Do!$F$12:$U$511,8,FALSE)) ->  | I88: =IF(VLOOKUP(F88,Do!$F$12:$U$511,9,FALSE)="","",VLOOKUP(F88,Do!$F$12:$U$511,9,FALSE)) -> 
A89: 84 | B89: 1 | F89: =IFERROR(SMALL(Do!$F$12:$F$511,Do_Ordem!$A89),"") ->  | G89: =IFERROR(VLOOKUP(F89,Do!$F$12:$R$511,13,FALSE)+F89,"") ->  | H89: =IF($F89="","",VLOOKUP($F89,Do!$F$12:$U$511,8,FALSE)) ->  | I89: =IF(VLOOKUP(F89,Do!$F$12:$U$511,9,FALSE)="","",VLOOKUP(F89,Do!$F$12:$U$511,9,FALSE)) -> 
A90: 85 | B90: 2 | F90: =IFERROR(SMALL(Do!$F$12:$F$511,Do_Ordem!$A90),"") ->  | G90: =IFERROR(VLOOKUP(F90,Do!$F$12:$R$511,13,FALSE)+F90,"") ->  | H90: =IF($F90="","",VLOOKUP($F90,Do!$F$12:$U$511,8,FALSE)) ->  | I90: =IF(VLOOKUP(F90,Do!$F$12:$U$511,9,FALSE)="","",VLOOKUP(F90,Do!$F$12:$U$511,9,FALSE)) -> 
A91: 86 | B91: 1 | F91: =IFERROR(SMALL(Do!$F$12:$F$511,Do_Ordem!$A91),"") ->  | G91: =IFERROR(VLOOKUP(F91,Do!$F$12:$R$511,13,FALSE)+F91,"") ->  | H91: =IF($F91="","",VLOOKUP($F91,Do!$F$12:$U$511,8,FALSE)) ->  | I91: =IF(VLOOKUP(F91,Do!$F$12:$U$511,9,FALSE)="","",VLOOKUP(F91,Do!$F$12:$U$511,9,FALSE)) -> 
A92: 87 | B92: 2 | F92: =IFERROR(SMALL(Do!$F$12:$F$511,Do_Ordem!$A92),"") ->  | G92: =IFERROR(VLOOKUP(F92,Do!$F$12:$R$511,13,FALSE)+F92,"") ->  | H92: =IF($F92="","",VLOOKUP($F92,Do!$F$12:$U$511,8,FALSE)) ->  | I92: =IF(VLOOKUP(F92,Do!$F$12:$U$511,9,FALSE)="","",VLOOKUP(F92,Do!$F$12:$U$511,9,FALSE)) -> 
A93: 88 | B93: 1 | F93: =IFERROR(SMALL(Do!$F$12:$F$511,Do_Ordem!$A93),"") ->  | G93: =IFERROR(VLOOKUP(F93,Do!$F$12:$R$511,13,FALSE)+F93,"") ->  | H93: =IF($F93="","",VLOOKUP($F93,Do!$F$12:$U$511,8,FALSE)) ->  | I93: =IF(VLOOKUP(F93,Do!$F$12:$U$511,9,FALSE)="","",VLOOKUP(F93,Do!$F$12:$U$511,9,FALSE)) -> 
A94: 89 | B94: 2 | F94: =IFERROR(SMALL(Do!$F$12:$F$511,Do_Ordem!$A94),"") ->  | G94: =IFERROR(VLOOKUP(F94,Do!$F$12:$R$511,13,FALSE)+F94,"") ->  | H94: =IF($F94="","",VLOOKUP($F94,Do!$F$12:$U$511,8,FALSE)) ->  | I94: =IF(VLOOKUP(F94,Do!$F$12:$U$511,9,FALSE)="","",VLOOKUP(F94,Do!$F$12:$U$511,9,FALSE)) -> 
A95: 90 | B95: 1 | F95: =IFERROR(SMALL(Do!$F$12:$F$511,Do_Ordem!$A95),"") ->  | G95: =IFERROR(VLOOKUP(F95,Do!$F$12:$R$511,13,FALSE)+F95,"") ->  | H95: =IF($F95="","",VLOOKUP($F95,Do!$F$12:$U$511,8,FALSE)) ->  | I95: =IF(VLOOKUP(F95,Do!$F$12:$U$511,9,FALSE)="","",VLOOKUP(F95,Do!$F$12:$U$511,9,FALSE)) -> 
A96: 91 | B96: 2 | F96: =IFERROR(SMALL(Do!$F$12:$F$511,Do_Ordem!$A96),"") ->  | G96: =IFERROR(VLOOKUP(F96,Do!$F$12:$R$511,13,FALSE)+F96,"") ->  | H96: =IF($F96="","",VLOOKUP($F96,Do!$F$12:$U$511,8,FALSE)) ->  | I96: =IF(VLOOKUP(F96,Do!$F$12:$U$511,9,FALSE)="","",VLOOKUP(F96,Do!$F$12:$U$511,9,FALSE)) -> 
A97: 92 | B97: 1 | F97: =IFERROR(SMALL(Do!$F$12:$F$511,Do_Ordem!$A97),"") ->  | G97: =IFERROR(VLOOKUP(F97,Do!$F$12:$R$511,13,FALSE)+F97,"") ->  | H97: =IF($F97="","",VLOOKUP($F97,Do!$F$12:$U$511,8,FALSE)) ->  | I97: =IF(VLOOKUP(F97,Do!$F$12:$U$511,9,FALSE)="","",VLOOKUP(F97,Do!$F$12:$U$511,9,FALSE)) -> 
A98: 93 | B98: 2 | F98: =IFERROR(SMALL(Do!$F$12:$F$511,Do_Ordem!$A98),"") ->  | G98: =IFERROR(VLOOKUP(F98,Do!$F$12:$R$511,13,FALSE)+F98,"") ->  | H98: =IF($F98="","",VLOOKUP($F98,Do!$F$12:$U$511,8,FALSE)) ->  | I98: =IF(VLOOKUP(F98,Do!$F$12:$U$511,9,FALSE)="","",VLOOKUP(F98,Do!$F$12:$U$511,9,FALSE)) -> 
A99: 94 | B99: 1 | F99: =IFERROR(SMALL(Do!$F$12:$F$511,Do_Ordem!$A99),"") ->  | G99: =IFERROR(VLOOKUP(F99,Do!$F$12:$R$511,13,FALSE)+F99,"") ->  | H99: =IF($F99="","",VLOOKUP($F99,Do!$F$12:$U$511,8,FALSE)) ->  | I99: =IF(VLOOKUP(F99,Do!$F$12:$U$511,9,FALSE)="","",VLOOKUP(F99,Do!$F$12:$U$511,9,FALSE)) -> 
A100: 95 | B100: 2 | F100: =IFERROR(SMALL(Do!$F$12:$F$511,Do_Ordem!$A100),"") ->  | G100: =IFERROR(VLOOKUP(F100,Do!$F$12:$R$511,13,FALSE)+F100,"") ->  | H100: =IF($F100="","",VLOOKUP($F100,Do!$F$12:$U$511,8,FALSE)) ->  | I100: =IF(VLOOKUP(F100,Do!$F$12:$U$511,9,FALSE)="","",VLOOKUP(F100,Do!$F$12:$U$511,9,FALSE)) -> 
A101: 96 | B101: 1 | F101: =IFERROR(SMALL(Do!$F$12:$F$511,Do_Ordem!$A101),"") ->  | G101: =IFERROR(VLOOKUP(F101,Do!$F$12:$R$511,13,FALSE)+F101,"") ->  | H101: =IF($F101="","",VLOOKUP($F101,Do!$F$12:$U$511,8,FALSE)) ->  | I101: =IF(VLOOKUP(F101,Do!$F$12:$U$511,9,FALSE)="","",VLOOKUP(F101,Do!$F$12:$U$511,9,FALSE)) -> 
A102: 97 | B102: 2 | F102: =IFERROR(SMALL(Do!$F$12:$F$511,Do_Ordem!$A102),"") ->  | G102: =IFERROR(VLOOKUP(F102,Do!$F$12:$R$511,13,FALSE)+F102,"") ->  | H102: =IF($F102="","",VLOOKUP($F102,Do!$F$12:$U$511,8,FALSE)) ->  | I102: =IF(VLOOKUP(F102,Do!$F$12:$U$511,9,FALSE)="","",VLOOKUP(F102,Do!$F$12:$U$511,9,FALSE)) -> 
A103: 98 | B103: 1 | F103: =IFERROR(SMALL(Do!$F$12:$F$511,Do_Ordem!$A103),"") ->  | G103: =IFERROR(VLOOKUP(F103,Do!$F$12:$R$511,13,FALSE)+F103,"") ->  | H103: =IF($F103="","",VLOOKUP($F103,Do!$F$12:$U$511,8,FALSE)) ->  | I103: =IF(VLOOKUP(F103,Do!$F$12:$U$511,9,FALSE)="","",VLOOKUP(F103,Do!$F$12:$U$511,9,FALSE)) -> 
A104: 99 | B104: 2 | F104: =IFERROR(SMALL(Do!$F$12:$F$511,Do_Ordem!$A104),"") ->  | G104: =IFERROR(VLOOKUP(F104,Do!$F$12:$R$511,13,FALSE)+F104,"") ->  | H104: =IF($F104="","",VLOOKUP($F104,Do!$F$12:$U$511,8,FALSE)) ->  | I104: =IF(VLOOKUP(F104,Do!$F$12:$U$511,9,FALSE)="","",VLOOKUP(F104,Do!$F$12:$U$511,9,FALSE)) -> 
A105: 100 | B105: 1 | F105: =IFERROR(SMALL(Do!$F$12:$F$511,Do_Ordem!$A105),"") ->  | G105: =IFERROR(VLOOKUP(F105,Do!$F$12:$R$511,13,FALSE)+F105,"") ->  | H105: =IF($F105="","",VLOOKUP($F105,Do!$F$12:$U$511,8,FALSE)) ->  | I105: =IF(VLOOKUP(F105,Do!$F$12:$U$511,9,FALSE)="","",VLOOKUP(F105,Do!$F$12:$U$511,9,FALSE)) -> 
A106: 101 | B106: 2 | F106: =IFERROR(SMALL(Do!$F$12:$F$511,Do_Ordem!$A106),"") ->  | G106: =IFERROR(VLOOKUP(F106,Do!$F$12:$R$511,13,FALSE)+F106,"") ->  | H106: =IF($F106="","",VLOOKUP($F106,Do!$F$12:$U$511,8,FALSE)) ->  | I106: =IF(VLOOKUP(F106,Do!$F$12:$U$511,9,FALSE)="","",VLOOKUP(F106,Do!$F$12:$U$511,9,FALSE)) -> 
A107: 102 | B107: 1 | F107: =IFERROR(SMALL(Do!$F$12:$F$511,Do_Ordem!$A107),"") ->  | G107: =IFERROR(VLOOKUP(F107,Do!$F$12:$R$511,13,FALSE)+F107,"") ->  | H107: =IF($F107="","",VLOOKUP($F107,Do!$F$12:$U$511,8,FALSE)) ->  | I107: =IF(VLOOKUP(F107,Do!$F$12:$U$511,9,FALSE)="","",VLOOKUP(F107,Do!$F$12:$U$511,9,FALSE)) -> 
A108: 103 | B108: 2 | F108: =IFERROR(SMALL(Do!$F$12:$F$511,Do_Ordem!$A108),"") ->  | G108: =IFERROR(VLOOKUP(F108,Do!$F$12:$R$511,13,FALSE)+F108,"") ->  | H108: =IF($F108="","",VLOOKUP($F108,Do!$F$12:$U$511,8,FALSE)) ->  | I108: =IF(VLOOKUP(F108,Do!$F$12:$U$511,9,FALSE)="","",VLOOKUP(F108,Do!$F$12:$U$511,9,FALSE)) -> 
A109: 104 | B109: 1 | F109: =IFERROR(SMALL(Do!$F$12:$F$511,Do_Ordem!$A109),"") ->  | G109: =IFERROR(VLOOKUP(F109,Do!$F$12:$R$511,13,FALSE)+F109,"") ->  | H109: =IF($F109="","",VLOOKUP($F109,Do!$F$12:$U$511,8,FALSE)) ->  | I109: =IF(VLOOKUP(F109,Do!$F$12:$U$511,9,FALSE)="","",VLOOKUP(F109,Do!$F$12:$U$511,9,FALSE)) -> 
A110: 105 | B110: 2 | F110: =IFERROR(SMALL(Do!$F$12:$F$511,Do_Ordem!$A110),"") ->  | G110: =IFERROR(VLOOKUP(F110,Do!$F$12:$R$511,13,FALSE)+F110,"") ->  | H110: =IF($F110="","",VLOOKUP($F110,Do!$F$12:$U$511,8,FALSE)) ->  | I110: =IF(VLOOKUP(F110,Do!$F$12:$U$511,9,FALSE)="","",VLOOKUP(F110,Do!$F$12:$U$511,9,FALSE)) -> 
A111: 106 | B111: 1 | F111: =IFERROR(SMALL(Do!$F$12:$F$511,Do_Ordem!$A111),"") ->  | G111: =IFERROR(VLOOKUP(F111,Do!$F$12:$R$511,13,FALSE)+F111,"") ->  | H111: =IF($F111="","",VLOOKUP($F111,Do!$F$12:$U$511,8,FALSE)) ->  | I111: =IF(VLOOKUP(F111,Do!$F$12:$U$511,9,FALSE)="","",VLOOKUP(F111,Do!$F$12:$U$511,9,FALSE)) -> 
A112: 107 | B112: 2 | F112: =IFERROR(SMALL(Do!$F$12:$F$511,Do_Ordem!$A112),"") ->  | G112: =IFERROR(VLOOKUP(F112,Do!$F$12:$R$511,13,FALSE)+F112,"") ->  | H112: =IF($F112="","",VLOOKUP($F112,Do!$F$12:$U$511,8,FALSE)) ->  | I112: =IF(VLOOKUP(F112,Do!$F$12:$U$511,9,FALSE)="","",VLOOKUP(F112,Do!$F$12:$U$511,9,FALSE)) -> 
A113: 108 | B113: 1 | F113: =IFERROR(SMALL(Do!$F$12:$F$511,Do_Ordem!$A113),"") ->  | G113: =IFERROR(VLOOKUP(F113,Do!$F$12:$R$511,13,FALSE)+F113,"") ->  | H113: =IF($F113="","",VLOOKUP($F113,Do!$F$12:$U$511,8,FALSE)) ->  | I113: =IF(VLOOKUP(F113,Do!$F$12:$U$511,9,FALSE)="","",VLOOKUP(F113,Do!$F$12:$U$511,9,FALSE)) -> 
A114: 109 | B114: 2 | F114: =IFERROR(SMALL(Do!$F$12:$F$511,Do_Ordem!$A114),"") ->  | G114: =IFERROR(VLOOKUP(F114,Do!$F$12:$R$511,13,FALSE)+F114,"") ->  | H114: =IF($F114="","",VLOOKUP($F114,Do!$F$12:$U$511,8,FALSE)) ->  | I114: =IF(VLOOKUP(F114,Do!$F$12:$U$511,9,FALSE)="","",VLOOKUP(F114,Do!$F$12:$U$511,9,FALSE)) -> 
A115: 110 | B115: 1 | F115: =IFERROR(SMALL(Do!$F$12:$F$511,Do_Ordem!$A115),"") ->  | G115: =IFERROR(VLOOKUP(F115,Do!$F$12:$R$511,13,FALSE)+F115,"") ->  | H115: =IF($F115="","",VLOOKUP($F115,Do!$F$12:$U$511,8,FALSE)) ->  | I115: =IF(VLOOKUP(F115,Do!$F$12:$U$511,9,FALSE)="","",VLOOKUP(F115,Do!$F$12:$U$511,9,FALSE)) -> 
A116: 111 | B116: 2 | F116: =IFERROR(SMALL(Do!$F$12:$F$511,Do_Ordem!$A116),"") ->  | G116: =IFERROR(VLOOKUP(F116,Do!$F$12:$R$511,13,FALSE)+F116,"") ->  | H116: =IF($F116="","",VLOOKUP($F116,Do!$F$12:$U$511,8,FALSE)) ->  | I116: =IF(VLOOKUP(F116,Do!$F$12:$U$511,9,FALSE)="","",VLOOKUP(F116,Do!$F$12:$U$511,9,FALSE)) -> 
A117: 112 | B117: 1 | F117: =IFERROR(SMALL(Do!$F$12:$F$511,Do_Ordem!$A117),"") ->  | G117: =IFERROR(VLOOKUP(F117,Do!$F$12:$R$511,13,FALSE)+F117,"") ->  | H117: =IF($F117="","",VLOOKUP($F117,Do!$F$12:$U$511,8,FALSE)) ->  | I117: =IF(VLOOKUP(F117,Do!$F$12:$U$511,9,FALSE)="","",VLOOKUP(F117,Do!$F$12:$U$511,9,FALSE)) -> 
A118: 113 | B118: 2 | F118: =IFERROR(SMALL(Do!$F$12:$F$511,Do_Ordem!$A118),"") ->  | G118: =IFERROR(VLOOKUP(F118,Do!$F$12:$R$511,13,FALSE)+F118,"") ->  | H118: =IF($F118="","",VLOOKUP($F118,Do!$F$12:$U$511,8,FALSE)) ->  | I118: =IF(VLOOKUP(F118,Do!$F$12:$U$511,9,FALSE)="","",VLOOKUP(F118,Do!$F$12:$U$511,9,FALSE)) -> 
A119: 114 | B119: 1 | F119: =IFERROR(SMALL(Do!$F$12:$F$511,Do_Ordem!$A119),"") ->  | G119: =IFERROR(VLOOKUP(F119,Do!$F$12:$R$511,13,FALSE)+F119,"") ->  | H119: =IF($F119="","",VLOOKUP($F119,Do!$F$12:$U$511,8,FALSE)) ->  | I119: =IF(VLOOKUP(F119,Do!$F$12:$U$511,9,FALSE)="","",VLOOKUP(F119,Do!$F$12:$U$511,9,FALSE)) -> 
A120: 115 | B120: 2 | F120: =IFERROR(SMALL(Do!$F$12:$F$511,Do_Ordem!$A120),"") ->  | G120: =IFERROR(VLOOKUP(F120,Do!$F$12:$R$511,13,FALSE)+F120,"") ->  | H120: =IF($F120="","",VLOOKUP($F120,Do!$F$12:$U$511,8,FALSE)) ->  | I120: =IF(VLOOKUP(F120,Do!$F$12:$U$511,9,FALSE)="","",VLOOKUP(F120,Do!$F$12:$U$511,9,FALSE)) -> 
A121: 116 | B121: 1 | F121: =IFERROR(SMALL(Do!$F$12:$F$511,Do_Ordem!$A121),"") ->  | G121: =IFERROR(VLOOKUP(F121,Do!$F$12:$R$511,13,FALSE)+F121,"") ->  | H121: =IF($F121="","",VLOOKUP($F121,Do!$F$12:$U$511,8,FALSE)) ->  | I121: =IF(VLOOKUP(F121,Do!$F$12:$U$511,9,FALSE)="","",VLOOKUP(F121,Do!$F$12:$U$511,9,FALSE)) -> 
A122: 117 | B122: 2 | F122: =IFERROR(SMALL(Do!$F$12:$F$511,Do_Ordem!$A122),"") ->  | G122: =IFERROR(VLOOKUP(F122,Do!$F$12:$R$511,13,FALSE)+F122,"") ->  | H122: =IF($F122="","",VLOOKUP($F122,Do!$F$12:$U$511,8,FALSE)) ->  | I122: =IF(VLOOKUP(F122,Do!$F$12:$U$511,9,FALSE)="","",VLOOKUP(F122,Do!$F$12:$U$511,9,FALSE)) -> 
A123: 118 | B123: 1 | F123: =IFERROR(SMALL(Do!$F$12:$F$511,Do_Ordem!$A123),"") ->  | G123: =IFERROR(VLOOKUP(F123,Do!$F$12:$R$511,13,FALSE)+F123,"") ->  | H123: =IF($F123="","",VLOOKUP($F123,Do!$F$12:$U$511,8,FALSE)) ->  | I123: =IF(VLOOKUP(F123,Do!$F$12:$U$511,9,FALSE)="","",VLOOKUP(F123,Do!$F$12:$U$511,9,FALSE)) -> 
A124: 119 | B124: 2 | F124: =IFERROR(SMALL(Do!$F$12:$F$511,Do_Ordem!$A124),"") ->  | G124: =IFERROR(VLOOKUP(F124,Do!$F$12:$R$511,13,FALSE)+F124,"") ->  | H124: =IF($F124="","",VLOOKUP($F124,Do!$F$12:$U$511,8,FALSE)) ->  | I124: =IF(VLOOKUP(F124,Do!$F$12:$U$511,9,FALSE)="","",VLOOKUP(F124,Do!$F$12:$U$511,9,FALSE)) -> 
A125: 120 | B125: 1 | F125: =IFERROR(SMALL(Do!$F$12:$F$511,Do_Ordem!$A125),"") ->  | G125: =IFERROR(VLOOKUP(F125,Do!$F$12:$R$511,13,FALSE)+F125,"") ->  | H125: =IF($F125="","",VLOOKUP($F125,Do!$F$12:$U$511,8,FALSE)) ->  | I125: =IF(VLOOKUP(F125,Do!$F$12:$U$511,9,FALSE)="","",VLOOKUP(F125,Do!$F$12:$U$511,9,FALSE)) -> 
A126: 121 | B126: 2 | F126: =IFERROR(SMALL(Do!$F$12:$F$511,Do_Ordem!$A126),"") ->  | G126: =IFERROR(VLOOKUP(F126,Do!$F$12:$R$511,13,FALSE)+F126,"") ->  | H126: =IF($F126="","",VLOOKUP($F126,Do!$F$12:$U$511,8,FALSE)) ->  | I126: =IF(VLOOKUP(F126,Do!$F$12:$U$511,9,FALSE)="","",VLOOKUP(F126,Do!$F$12:$U$511,9,FALSE)) -> 
A127: 122 | B127: 1 | F127: =IFERROR(SMALL(Do!$F$12:$F$511,Do_Ordem!$A127),"") ->  | G127: =IFERROR(VLOOKUP(F127,Do!$F$12:$R$511,13,FALSE)+F127,"") ->  | H127: =IF($F127="","",VLOOKUP($F127,Do!$F$12:$U$511,8,FALSE)) ->  | I127: =IF(VLOOKUP(F127,Do!$F$12:$U$511,9,FALSE)="","",VLOOKUP(F127,Do!$F$12:$U$511,9,FALSE)) -> 
A128: 123 | B128: 2 | F128: =IFERROR(SMALL(Do!$F$12:$F$511,Do_Ordem!$A128),"") ->  | G128: =IFERROR(VLOOKUP(F128,Do!$F$12:$R$511,13,FALSE)+F128,"") ->  | H128: =IF($F128="","",VLOOKUP($F128,Do!$F$12:$U$511,8,FALSE)) ->  | I128: =IF(VLOOKUP(F128,Do!$F$12:$U$511,9,FALSE)="","",VLOOKUP(F128,Do!$F$12:$U$511,9,FALSE)) -> 
A129: 124 | B129: 1 | F129: =IFERROR(SMALL(Do!$F$12:$F$511,Do_Ordem!$A129),"") ->  | G129: =IFERROR(VLOOKUP(F129,Do!$F$12:$R$511,13,FALSE)+F129,"") ->  | H129: =IF($F129="","",VLOOKUP($F129,Do!$F$12:$U$511,8,FALSE)) ->  | I129: =IF(VLOOKUP(F129,Do!$F$12:$U$511,9,FALSE)="","",VLOOKUP(F129,Do!$F$12:$U$511,9,FALSE)) -> 
A130: 125 | B130: 2 | F130: =IFERROR(SMALL(Do!$F$12:$F$511,Do_Ordem!$A130),"") ->  | G130: =IFERROR(VLOOKUP(F130,Do!$F$12:$R$511,13,FALSE)+F130,"") ->  | H130: =IF($F130="","",VLOOKUP($F130,Do!$F$12:$U$511,8,FALSE)) ->  | I130: =IF(VLOOKUP(F130,Do!$F$12:$U$511,9,FALSE)="","",VLOOKUP(F130,Do!$F$12:$U$511,9,FALSE)) -> 
A131: 126 | B131: 1 | F131: =IFERROR(SMALL(Do!$F$12:$F$511,Do_Ordem!$A131),"") ->  | G131: =IFERROR(VLOOKUP(F131,Do!$F$12:$R$511,13,FALSE)+F131,"") ->  | H131: =IF($F131="","",VLOOKUP($F131,Do!$F$12:$U$511,8,FALSE)) ->  | I131: =IF(VLOOKUP(F131,Do!$F$12:$U$511,9,FALSE)="","",VLOOKUP(F131,Do!$F$12:$U$511,9,FALSE)) -> 
A132: 127 | B132: 2 | F132: =IFERROR(SMALL(Do!$F$12:$F$511,Do_Ordem!$A132),"") ->  | G132: =IFERROR(VLOOKUP(F132,Do!$F$12:$R$511,13,FALSE)+F132,"") ->  | H132: =IF($F132="","",VLOOKUP($F132,Do!$F$12:$U$511,8,FALSE)) ->  | I132: =IF(VLOOKUP(F132,Do!$F$12:$U$511,9,FALSE)="","",VLOOKUP(F132,Do!$F$12:$U$511,9,FALSE)) -> 
A133: 128 | B133: 1 | F133: =IFERROR(SMALL(Do!$F$12:$F$511,Do_Ordem!$A133),"") ->  | G133: =IFERROR(VLOOKUP(F133,Do!$F$12:$R$511,13,FALSE)+F133,"") ->  | H133: =IF($F133="","",VLOOKUP($F133,Do!$F$12:$U$511,8,FALSE)) ->  | I133: =IF(VLOOKUP(F133,Do!$F$12:$U$511,9,FALSE)="","",VLOOKUP(F133,Do!$F$12:$U$511,9,FALSE)) -> 
A134: 129 | B134: 2 | F134: =IFERROR(SMALL(Do!$F$12:$F$511,Do_Ordem!$A134),"") ->  | G134: =IFERROR(VLOOKUP(F134,Do!$F$12:$R$511,13,FALSE)+F134,"") ->  | H134: =IF($F134="","",VLOOKUP($F134,Do!$F$12:$U$511,8,FALSE)) ->  | I134: =IF(VLOOKUP(F134,Do!$F$12:$U$511,9,FALSE)="","",VLOOKUP(F134,Do!$F$12:$U$511,9,FALSE)) -> 
A135: 130 | B135: 1 | F135: =IFERROR(SMALL(Do!$F$12:$F$511,Do_Ordem!$A135),"") ->  | G135: =IFERROR(VLOOKUP(F135,Do!$F$12:$R$511,13,FALSE)+F135,"") ->  | H135: =IF($F135="","",VLOOKUP($F135,Do!$F$12:$U$511,8,FALSE)) ->  | I135: =IF(VLOOKUP(F135,Do!$F$12:$U$511,9,FALSE)="","",VLOOKUP(F135,Do!$F$12:$U$511,9,FALSE)) -> 
A136: 131 | B136: 2 | F136: =IFERROR(SMALL(Do!$F$12:$F$511,Do_Ordem!$A136),"") ->  | G136: =IFERROR(VLOOKUP(F136,Do!$F$12:$R$511,13,FALSE)+F136,"") ->  | H136: =IF($F136="","",VLOOKUP($F136,Do!$F$12:$U$511,8,FALSE)) ->  | I136: =IF(VLOOKUP(F136,Do!$F$12:$U$511,9,FALSE)="","",VLOOKUP(F136,Do!$F$12:$U$511,9,FALSE)) -> 
A137: 132 | B137: 1 | F137: =IFERROR(SMALL(Do!$F$12:$F$511,Do_Ordem!$A137),"") ->  | G137: =IFERROR(VLOOKUP(F137,Do!$F$12:$R$511,13,FALSE)+F137,"") ->  | H137: =IF($F137="","",VLOOKUP($F137,Do!$F$12:$U$511,8,FALSE)) ->  | I137: =IF(VLOOKUP(F137,Do!$F$12:$U$511,9,FALSE)="","",VLOOKUP(F137,Do!$F$12:$U$511,9,FALSE)) -> 
A138: 133 | B138: 2 | F138: =IFERROR(SMALL(Do!$F$12:$F$511,Do_Ordem!$A138),"") ->  | G138: =IFERROR(VLOOKUP(F138,Do!$F$12:$R$511,13,FALSE)+F138,"") ->  | H138: =IF($F138="","",VLOOKUP($F138,Do!$F$12:$U$511,8,FALSE)) ->  | I138: =IF(VLOOKUP(F138,Do!$F$12:$U$511,9,FALSE)="","",VLOOKUP(F138,Do!$F$12:$U$511,9,FALSE)) -> 
A139: 134 | B139: 1 | F139: =IFERROR(SMALL(Do!$F$12:$F$511,Do_Ordem!$A139),"") ->  | G139: =IFERROR(VLOOKUP(F139,Do!$F$12:$R$511,13,FALSE)+F139,"") ->  | H139: =IF($F139="","",VLOOKUP($F139,Do!$F$12:$U$511,8,FALSE)) ->  | I139: =IF(VLOOKUP(F139,Do!$F$12:$U$511,9,FALSE)="","",VLOOKUP(F139,Do!$F$12:$U$511,9,FALSE)) -> 
A140: 135 | B140: 2 | F140: =IFERROR(SMALL(Do!$F$12:$F$511,Do_Ordem!$A140),"") ->  | G140: =IFERROR(VLOOKUP(F140,Do!$F$12:$R$511,13,FALSE)+F140,"") ->  | H140: =IF($F140="","",VLOOKUP($F140,Do!$F$12:$U$511,8,FALSE)) ->  | I140: =IF(VLOOKUP(F140,Do!$F$12:$U$511,9,FALSE)="","",VLOOKUP(F140,Do!$F$12:$U$511,9,FALSE)) -> 
A141: 136 | B141: 1 | F141: =IFERROR(SMALL(Do!$F$12:$F$511,Do_Ordem!$A141),"") ->  | G141: =IFERROR(VLOOKUP(F141,Do!$F$12:$R$511,13,FALSE)+F141,"") ->  | H141: =IF($F141="","",VLOOKUP($F141,Do!$F$12:$U$511,8,FALSE)) ->  | I141: =IF(VLOOKUP(F141,Do!$F$12:$U$511,9,FALSE)="","",VLOOKUP(F141,Do!$F$12:$U$511,9,FALSE)) -> 
A142: 137 | B142: 2 | F142: =IFERROR(SMALL(Do!$F$12:$F$511,Do_Ordem!$A142),"") ->  | G142: =IFERROR(VLOOKUP(F142,Do!$F$12:$R$511,13,FALSE)+F142,"") ->  | H142: =IF($F142="","",VLOOKUP($F142,Do!$F$12:$U$511,8,FALSE)) ->  | I142: =IF(VLOOKUP(F142,Do!$F$12:$U$511,9,FALSE)="","",VLOOKUP(F142,Do!$F$12:$U$511,9,FALSE)) -> 
A143: 138 | B143: 1 | F143: =IFERROR(SMALL(Do!$F$12:$F$511,Do_Ordem!$A143),"") ->  | G143: =IFERROR(VLOOKUP(F143,Do!$F$12:$R$511,13,FALSE)+F143,"") ->  | H143: =IF($F143="","",VLOOKUP($F143,Do!$F$12:$U$511,8,FALSE)) ->  | I143: =IF(VLOOKUP(F143,Do!$F$12:$U$511,9,FALSE)="","",VLOOKUP(F143,Do!$F$12:$U$511,9,FALSE)) -> 
A144: 139 | B144: 2 | F144: =IFERROR(SMALL(Do!$F$12:$F$511,Do_Ordem!$A144),"") ->  | G144: =IFERROR(VLOOKUP(F144,Do!$F$12:$R$511,13,FALSE)+F144,"") ->  | H144: =IF($F144="","",VLOOKUP($F144,Do!$F$12:$U$511,8,FALSE)) ->  | I144: =IF(VLOOKUP(F144,Do!$F$12:$U$511,9,FALSE)="","",VLOOKUP(F144,Do!$F$12:$U$511,9,FALSE)) -> 
A145: 140 | B145: 1 | F145: =IFERROR(SMALL(Do!$F$12:$F$511,Do_Ordem!$A145),"") ->  | G145: =IFERROR(VLOOKUP(F145,Do!$F$12:$R$511,13,FALSE)+F145,"") ->  | H145: =IF($F145="","",VLOOKUP($F145,Do!$F$12:$U$511,8,FALSE)) ->  | I145: =IF(VLOOKUP(F145,Do!$F$12:$U$511,9,FALSE)="","",VLOOKUP(F145,Do!$F$12:$U$511,9,FALSE)) -> 
A146: 141 | B146: 2 | F146: =IFERROR(SMALL(Do!$F$12:$F$511,Do_Ordem!$A146),"") ->  | G146: =IFERROR(VLOOKUP(F146,Do!$F$12:$R$511,13,FALSE)+F146,"") ->  | H146: =IF($F146="","",VLOOKUP($F146,Do!$F$12:$U$511,8,FALSE)) ->  | I146: =IF(VLOOKUP(F146,Do!$F$12:$U$511,9,FALSE)="","",VLOOKUP(F146,Do!$F$12:$U$511,9,FALSE)) -> 
A147: 142 | B147: 1 | F147: =IFERROR(SMALL(Do!$F$12:$F$511,Do_Ordem!$A147),"") ->  | G147: =IFERROR(VLOOKUP(F147,Do!$F$12:$R$511,13,FALSE)+F147,"") ->  | H147: =IF($F147="","",VLOOKUP($F147,Do!$F$12:$U$511,8,FALSE)) ->  | I147: =IF(VLOOKUP(F147,Do!$F$12:$U$511,9,FALSE)="","",VLOOKUP(F147,Do!$F$12:$U$511,9,FALSE)) -> 
A148: 143 | B148: 2 | F148: =IFERROR(SMALL(Do!$F$12:$F$511,Do_Ordem!$A148),"") ->  | G148: =IFERROR(VLOOKUP(F148,Do!$F$12:$R$511,13,FALSE)+F148,"") ->  | H148: =IF($F148="","",VLOOKUP($F148,Do!$F$12:$U$511,8,FALSE)) ->  | I148: =IF(VLOOKUP(F148,Do!$F$12:$U$511,9,FALSE)="","",VLOOKUP(F148,Do!$F$12:$U$511,9,FALSE)) -> 
A149: 144 | B149: 1 | F149: =IFERROR(SMALL(Do!$F$12:$F$511,Do_Ordem!$A149),"") ->  | G149: =IFERROR(VLOOKUP(F149,Do!$F$12:$R$511,13,FALSE)+F149,"") ->  | H149: =IF($F149="","",VLOOKUP($F149,Do!$F$12:$U$511,8,FALSE)) ->  | I149: =IF(VLOOKUP(F149,Do!$F$12:$U$511,9,FALSE)="","",VLOOKUP(F149,Do!$F$12:$U$511,9,FALSE)) -> 
A150: 145 | B150: 2 | F150: =IFERROR(SMALL(Do!$F$12:$F$511,Do_Ordem!$A150),"") ->  | G150: =IFERROR(VLOOKUP(F150,Do!$F$12:$R$511,13,FALSE)+F150,"") ->  | H150: =IF($F150="","",VLOOKUP($F150,Do!$F$12:$U$511,8,FALSE)) ->  | I150: =IF(VLOOKUP(F150,Do!$F$12:$U$511,9,FALSE)="","",VLOOKUP(F150,Do!$F$12:$U$511,9,FALSE)) -> 
A151: 146 | B151: 1 | F151: =IFERROR(SMALL(Do!$F$12:$F$511,Do_Ordem!$A151),"") ->  | G151: =IFERROR(VLOOKUP(F151,Do!$F$12:$R$511,13,FALSE)+F151,"") ->  | H151: =IF($F151="","",VLOOKUP($F151,Do!$F$12:$U$511,8,FALSE)) ->  | I151: =IF(VLOOKUP(F151,Do!$F$12:$U$511,9,FALSE)="","",VLOOKUP(F151,Do!$F$12:$U$511,9,FALSE)) -> 
A152: 147 | B152: 2 | F152: =IFERROR(SMALL(Do!$F$12:$F$511,Do_Ordem!$A152),"") ->  | G152: =IFERROR(VLOOKUP(F152,Do!$F$12:$R$511,13,FALSE)+F152,"") ->  | H152: =IF($F152="","",VLOOKUP($F152,Do!$F$12:$U$511,8,FALSE)) ->  | I152: =IF(VLOOKUP(F152,Do!$F$12:$U$511,9,FALSE)="","",VLOOKUP(F152,Do!$F$12:$U$511,9,FALSE)) -> 
A153: 148 | B153: 1 | F153: =IFERROR(SMALL(Do!$F$12:$F$511,Do_Ordem!$A153),"") ->  | G153: =IFERROR(VLOOKUP(F153,Do!$F$12:$R$511,13,FALSE)+F153,"") ->  | H153: =IF($F153="","",VLOOKUP($F153,Do!$F$12:$U$511,8,FALSE)) ->  | I153: =IF(VLOOKUP(F153,Do!$F$12:$U$511,9,FALSE)="","",VLOOKUP(F153,Do!$F$12:$U$511,9,FALSE)) -> 
A154: 149 | B154: 2 | F154: =IFERROR(SMALL(Do!$F$12:$F$511,Do_Ordem!$A154),"") ->  | G154: =IFERROR(VLOOKUP(F154,Do!$F$12:$R$511,13,FALSE)+F154,"") ->  | H154: =IF($F154="","",VLOOKUP($F154,Do!$F$12:$U$511,8,FALSE)) ->  | I154: =IF(VLOOKUP(F154,Do!$F$12:$U$511,9,FALSE)="","",VLOOKUP(F154,Do!$F$12:$U$511,9,FALSE)) -> 
A155: 150 | B155: 1 | F155: =IFERROR(SMALL(Do!$F$12:$F$511,Do_Ordem!$A155),"") ->  | G155: =IFERROR(VLOOKUP(F155,Do!$F$12:$R$511,13,FALSE)+F155,"") ->  | H155: =IF($F155="","",VLOOKUP($F155,Do!$F$12:$U$511,8,FALSE)) ->  | I155: =IF(VLOOKUP(F155,Do!$F$12:$U$511,9,FALSE)="","",VLOOKUP(F155,Do!$F$12:$U$511,9,FALSE)) -> 
A156: 151 | B156: 2 | F156: =IFERROR(SMALL(Do!$F$12:$F$511,Do_Ordem!$A156),"") ->  | G156: =IFERROR(VLOOKUP(F156,Do!$F$12:$R$511,13,FALSE)+F156,"") ->  | H156: =IF($F156="","",VLOOKUP($F156,Do!$F$12:$U$511,8,FALSE)) ->  | I156: =IF(VLOOKUP(F156,Do!$F$12:$U$511,9,FALSE)="","",VLOOKUP(F156,Do!$F$12:$U$511,9,FALSE)) -> 
A157: 152 | B157: 1 | F157: =IFERROR(SMALL(Do!$F$12:$F$511,Do_Ordem!$A157),"") ->  | G157: =IFERROR(VLOOKUP(F157,Do!$F$12:$R$511,13,FALSE)+F157,"") ->  | H157: =IF($F157="","",VLOOKUP($F157,Do!$F$12:$U$511,8,FALSE)) ->  | I157: =IF(VLOOKUP(F157,Do!$F$12:$U$511,9,FALSE)="","",VLOOKUP(F157,Do!$F$12:$U$511,9,FALSE)) -> 
A158: 153 | B158: 2 | F158: =IFERROR(SMALL(Do!$F$12:$F$511,Do_Ordem!$A158),"") ->  | G158: =IFERROR(VLOOKUP(F158,Do!$F$12:$R$511,13,FALSE)+F158,"") ->  | H158: =IF($F158="","",VLOOKUP($F158,Do!$F$12:$U$511,8,FALSE)) ->  | I158: =IF(VLOOKUP(F158,Do!$F$12:$U$511,9,FALSE)="","",VLOOKUP(F158,Do!$F$12:$U$511,9,FALSE)) -> 
A159: 154 | B159: 1 | F159: =IFERROR(SMALL(Do!$F$12:$F$511,Do_Ordem!$A159),"") ->  | G159: =IFERROR(VLOOKUP(F159,Do!$F$12:$R$511,13,FALSE)+F159,"") ->  | H159: =IF($F159="","",VLOOKUP($F159,Do!$F$12:$U$511,8,FALSE)) ->  | I159: =IF(VLOOKUP(F159,Do!$F$12:$U$511,9,FALSE)="","",VLOOKUP(F159,Do!$F$12:$U$511,9,FALSE)) -> 
A160: 155 | B160: 2 | F160: =IFERROR(SMALL(Do!$F$12:$F$511,Do_Ordem!$A160),"") ->  | G160: =IFERROR(VLOOKUP(F160,Do!$F$12:$R$511,13,FALSE)+F160,"") ->  | H160: =IF($F160="","",VLOOKUP($F160,Do!$F$12:$U$511,8,FALSE)) ->  | I160: =IF(VLOOKUP(F160,Do!$F$12:$U$511,9,FALSE)="","",VLOOKUP(F160,Do!$F$12:$U$511,9,FALSE)) -> 
A161: 156 | B161: 1 | F161: =IFERROR(SMALL(Do!$F$12:$F$511,Do_Ordem!$A161),"") ->  | G161: =IFERROR(VLOOKUP(F161,Do!$F$12:$R$511,13,FALSE)+F161,"") ->  | H161: =IF($F161="","",VLOOKUP($F161,Do!$F$12:$U$511,8,FALSE)) ->  | I161: =IF(VLOOKUP(F161,Do!$F$12:$U$511,9,FALSE)="","",VLOOKUP(F161,Do!$F$12:$U$511,9,FALSE)) -> 
A162: 157 | B162: 2 | F162: =IFERROR(SMALL(Do!$F$12:$F$511,Do_Ordem!$A162),"") ->  | G162: =IFERROR(VLOOKUP(F162,Do!$F$12:$R$511,13,FALSE)+F162,"") ->  | H162: =IF($F162="","",VLOOKUP($F162,Do!$F$12:$U$511,8,FALSE)) ->  | I162: =IF(VLOOKUP(F162,Do!$F$12:$U$511,9,FALSE)="","",VLOOKUP(F162,Do!$F$12:$U$511,9,FALSE)) -> 
A163: 158 | B163: 1 | F163: =IFERROR(SMALL(Do!$F$12:$F$511,Do_Ordem!$A163),"") ->  | G163: =IFERROR(VLOOKUP(F163,Do!$F$12:$R$511,13,FALSE)+F163,"") ->  | H163: =IF($F163="","",VLOOKUP($F163,Do!$F$12:$U$511,8,FALSE)) ->  | I163: =IF(VLOOKUP(F163,Do!$F$12:$U$511,9,FALSE)="","",VLOOKUP(F163,Do!$F$12:$U$511,9,FALSE)) -> 
A164: 159 | B164: 2 | F164: =IFERROR(SMALL(Do!$F$12:$F$511,Do_Ordem!$A164),"") ->  | G164: =IFERROR(VLOOKUP(F164,Do!$F$12:$R$511,13,FALSE)+F164,"") ->  | H164: =IF($F164="","",VLOOKUP($F164,Do!$F$12:$U$511,8,FALSE)) ->  | I164: =IF(VLOOKUP(F164,Do!$F$12:$U$511,9,FALSE)="","",VLOOKUP(F164,Do!$F$12:$U$511,9,FALSE)) -> 
A165: 160 | B165: 1 | F165: =IFERROR(SMALL(Do!$F$12:$F$511,Do_Ordem!$A165),"") ->  | G165: =IFERROR(VLOOKUP(F165,Do!$F$12:$R$511,13,FALSE)+F165,"") ->  | H165: =IF($F165="","",VLOOKUP($F165,Do!$F$12:$U$511,8,FALSE)) ->  | I165: =IF(VLOOKUP(F165,Do!$F$12:$U$511,9,FALSE)="","",VLOOKUP(F165,Do!$F$12:$U$511,9,FALSE)) -> 
A166: 161 | B166: 2 | F166: =IFERROR(SMALL(Do!$F$12:$F$511,Do_Ordem!$A166),"") ->  | G166: =IFERROR(VLOOKUP(F166,Do!$F$12:$R$511,13,FALSE)+F166,"") ->  | H166: =IF($F166="","",VLOOKUP($F166,Do!$F$12:$U$511,8,FALSE)) ->  | I166: =IF(VLOOKUP(F166,Do!$F$12:$U$511,9,FALSE)="","",VLOOKUP(F166,Do!$F$12:$U$511,9,FALSE)) -> 
A167: 162 | B167: 1 | F167: =IFERROR(SMALL(Do!$F$12:$F$511,Do_Ordem!$A167),"") ->  | G167: =IFERROR(VLOOKUP(F167,Do!$F$12:$R$511,13,FALSE)+F167,"") ->  | H167: =IF($F167="","",VLOOKUP($F167,Do!$F$12:$U$511,8,FALSE)) ->  | I167: =IF(VLOOKUP(F167,Do!$F$12:$U$511,9,FALSE)="","",VLOOKUP(F167,Do!$F$12:$U$511,9,FALSE)) -> 
A168: 163 | B168: 2 | F168: =IFERROR(SMALL(Do!$F$12:$F$511,Do_Ordem!$A168),"") ->  | G168: =IFERROR(VLOOKUP(F168,Do!$F$12:$R$511,13,FALSE)+F168,"") ->  | H168: =IF($F168="","",VLOOKUP($F168,Do!$F$12:$U$511,8,FALSE)) ->  | I168: =IF(VLOOKUP(F168,Do!$F$12:$U$511,9,FALSE)="","",VLOOKUP(F168,Do!$F$12:$U$511,9,FALSE)) -> 
A169: 164 | B169: 1 | F169: =IFERROR(SMALL(Do!$F$12:$F$511,Do_Ordem!$A169),"") ->  | G169: =IFERROR(VLOOKUP(F169,Do!$F$12:$R$511,13,FALSE)+F169,"") ->  | H169: =IF($F169="","",VLOOKUP($F169,Do!$F$12:$U$511,8,FALSE)) ->  | I169: =IF(VLOOKUP(F169,Do!$F$12:$U$511,9,FALSE)="","",VLOOKUP(F169,Do!$F$12:$U$511,9,FALSE)) -> 
A170: 165 | B170: 2 | F170: =IFERROR(SMALL(Do!$F$12:$F$511,Do_Ordem!$A170),"") ->  | G170: =IFERROR(VLOOKUP(F170,Do!$F$12:$R$511,13,FALSE)+F170,"") ->  | H170: =IF($F170="","",VLOOKUP($F170,Do!$F$12:$U$511,8,FALSE)) ->  | I170: =IF(VLOOKUP(F170,Do!$F$12:$U$511,9,FALSE)="","",VLOOKUP(F170,Do!$F$12:$U$511,9,FALSE)) -> 
A171: 166 | B171: 1 | F171: =IFERROR(SMALL(Do!$F$12:$F$511,Do_Ordem!$A171),"") ->  | G171: =IFERROR(VLOOKUP(F171,Do!$F$12:$R$511,13,FALSE)+F171,"") ->  | H171: =IF($F171="","",VLOOKUP($F171,Do!$F$12:$U$511,8,FALSE)) ->  | I171: =IF(VLOOKUP(F171,Do!$F$12:$U$511,9,FALSE)="","",VLOOKUP(F171,Do!$F$12:$U$511,9,FALSE)) -> 
A172: 167 | B172: 2 | F172: =IFERROR(SMALL(Do!$F$12:$F$511,Do_Ordem!$A172),"") ->  | G172: =IFERROR(VLOOKUP(F172,Do!$F$12:$R$511,13,FALSE)+F172,"") ->  | H172: =IF($F172="","",VLOOKUP($F172,Do!$F$12:$U$511,8,FALSE)) ->  | I172: =IF(VLOOKUP(F172,Do!$F$12:$U$511,9,FALSE)="","",VLOOKUP(F172,Do!$F$12:$U$511,9,FALSE)) -> 
A173: 168 | B173: 1 | F173: =IFERROR(SMALL(Do!$F$12:$F$511,Do_Ordem!$A173),"") ->  | G173: =IFERROR(VLOOKUP(F173,Do!$F$12:$R$511,13,FALSE)+F173,"") ->  | H173: =IF($F173="","",VLOOKUP($F173,Do!$F$12:$U$511,8,FALSE)) ->  | I173: =IF(VLOOKUP(F173,Do!$F$12:$U$511,9,FALSE)="","",VLOOKUP(F173,Do!$F$12:$U$511,9,FALSE)) -> 
A174: 169 | B174: 2 | F174: =IFERROR(SMALL(Do!$F$12:$F$511,Do_Ordem!$A174),"") ->  | G174: =IFERROR(VLOOKUP(F174,Do!$F$12:$R$511,13,FALSE)+F174,"") ->  | H174: =IF($F174="","",VLOOKUP($F174,Do!$F$12:$U$511,8,FALSE)) ->  | I174: =IF(VLOOKUP(F174,Do!$F$12:$U$511,9,FALSE)="","",VLOOKUP(F174,Do!$F$12:$U$511,9,FALSE)) -> 
A175: 170 | B175: 1 | F175: =IFERROR(SMALL(Do!$F$12:$F$511,Do_Ordem!$A175),"") ->  | G175: =IFERROR(VLOOKUP(F175,Do!$F$12:$R$511,13,FALSE)+F175,"") ->  | H175: =IF($F175="","",VLOOKUP($F175,Do!$F$12:$U$511,8,FALSE)) ->  | I175: =IF(VLOOKUP(F175,Do!$F$12:$U$511,9,FALSE)="","",VLOOKUP(F175,Do!$F$12:$U$511,9,FALSE)) -> 
A176: 171 | B176: 2 | F176: =IFERROR(SMALL(Do!$F$12:$F$511,Do_Ordem!$A176),"") ->  | G176: =IFERROR(VLOOKUP(F176,Do!$F$12:$R$511,13,FALSE)+F176,"") ->  | H176: =IF($F176="","",VLOOKUP($F176,Do!$F$12:$U$511,8,FALSE)) ->  | I176: =IF(VLOOKUP(F176,Do!$F$12:$U$511,9,FALSE)="","",VLOOKUP(F176,Do!$F$12:$U$511,9,FALSE)) -> 
A177: 172 | B177: 1 | F177: =IFERROR(SMALL(Do!$F$12:$F$511,Do_Ordem!$A177),"") ->  | G177: =IFERROR(VLOOKUP(F177,Do!$F$12:$R$511,13,FALSE)+F177,"") ->  | H177: =IF($F177="","",VLOOKUP($F177,Do!$F$12:$U$511,8,FALSE)) ->  | I177: =IF(VLOOKUP(F177,Do!$F$12:$U$511,9,FALSE)="","",VLOOKUP(F177,Do!$F$12:$U$511,9,FALSE)) -> 
A178: 173 | B178: 2 | F178: =IFERROR(SMALL(Do!$F$12:$F$511,Do_Ordem!$A178),"") ->  | G178: =IFERROR(VLOOKUP(F178,Do!$F$12:$R$511,13,FALSE)+F178,"") ->  | H178: =IF($F178="","",VLOOKUP($F178,Do!$F$12:$U$511,8,FALSE)) ->  | I178: =IF(VLOOKUP(F178,Do!$F$12:$U$511,9,FALSE)="","",VLOOKUP(F178,Do!$F$12:$U$511,9,FALSE)) -> 
A179: 174 | B179: 1 | F179: =IFERROR(SMALL(Do!$F$12:$F$511,Do_Ordem!$A179),"") ->  | G179: =IFERROR(VLOOKUP(F179,Do!$F$12:$R$511,13,FALSE)+F179,"") ->  | H179: =IF($F179="","",VLOOKUP($F179,Do!$F$12:$U$511,8,FALSE)) ->  | I179: =IF(VLOOKUP(F179,Do!$F$12:$U$511,9,FALSE)="","",VLOOKUP(F179,Do!$F$12:$U$511,9,FALSE)) -> 
A180: 175 | B180: 2 | F180: =IFERROR(SMALL(Do!$F$12:$F$511,Do_Ordem!$A180),"") ->  | G180: =IFERROR(VLOOKUP(F180,Do!$F$12:$R$511,13,FALSE)+F180,"") ->  | H180: =IF($F180="","",VLOOKUP($F180,Do!$F$12:$U$511,8,FALSE)) ->  | I180: =IF(VLOOKUP(F180,Do!$F$12:$U$511,9,FALSE)="","",VLOOKUP(F180,Do!$F$12:$U$511,9,FALSE)) -> 
A181: 176 | B181: 1 | F181: =IFERROR(SMALL(Do!$F$12:$F$511,Do_Ordem!$A181),"") ->  | G181: =IFERROR(VLOOKUP(F181,Do!$F$12:$R$511,13,FALSE)+F181,"") ->  | H181: =IF($F181="","",VLOOKUP($F181,Do!$F$12:$U$511,8,FALSE)) ->  | I181: =IF(VLOOKUP(F181,Do!$F$12:$U$511,9,FALSE)="","",VLOOKUP(F181,Do!$F$12:$U$511,9,FALSE)) -> 
A182: 177 | B182: 2 | F182: =IFERROR(SMALL(Do!$F$12:$F$511,Do_Ordem!$A182),"") ->  | G182: =IFERROR(VLOOKUP(F182,Do!$F$12:$R$511,13,FALSE)+F182,"") ->  | H182: =IF($F182="","",VLOOKUP($F182,Do!$F$12:$U$511,8,FALSE)) ->  | I182: =IF(VLOOKUP(F182,Do!$F$12:$U$511,9,FALSE)="","",VLOOKUP(F182,Do!$F$12:$U$511,9,FALSE)) -> 
A183: 178 | B183: 1 | F183: =IFERROR(SMALL(Do!$F$12:$F$511,Do_Ordem!$A183),"") ->  | G183: =IFERROR(VLOOKUP(F183,Do!$F$12:$R$511,13,FALSE)+F183,"") ->  | H183: =IF($F183="","",VLOOKUP($F183,Do!$F$12:$U$511,8,FALSE)) ->  | I183: =IF(VLOOKUP(F183,Do!$F$12:$U$511,9,FALSE)="","",VLOOKUP(F183,Do!$F$12:$U$511,9,FALSE)) -> 
A184: 179 | B184: 2 | F184: =IFERROR(SMALL(Do!$F$12:$F$511,Do_Ordem!$A184),"") ->  | G184: =IFERROR(VLOOKUP(F184,Do!$F$12:$R$511,13,FALSE)+F184,"") ->  | H184: =IF($F184="","",VLOOKUP($F184,Do!$F$12:$U$511,8,FALSE)) ->  | I184: =IF(VLOOKUP(F184,Do!$F$12:$U$511,9,FALSE)="","",VLOOKUP(F184,Do!$F$12:$U$511,9,FALSE)) -> 
A185: 180 | B185: 1 | F185: =IFERROR(SMALL(Do!$F$12:$F$511,Do_Ordem!$A185),"") ->  | G185: =IFERROR(VLOOKUP(F185,Do!$F$12:$R$511,13,FALSE)+F185,"") ->  | H185: =IF($F185="","",VLOOKUP($F185,Do!$F$12:$U$511,8,FALSE)) ->  | I185: =IF(VLOOKUP(F185,Do!$F$12:$U$511,9,FALSE)="","",VLOOKUP(F185,Do!$F$12:$U$511,9,FALSE)) -> 
A186: 181 | B186: 2 | F186: =IFERROR(SMALL(Do!$F$12:$F$511,Do_Ordem!$A186),"") ->  | G186: =IFERROR(VLOOKUP(F186,Do!$F$12:$R$511,13,FALSE)+F186,"") ->  | H186: =IF($F186="","",VLOOKUP($F186,Do!$F$12:$U$511,8,FALSE)) ->  | I186: =IF(VLOOKUP(F186,Do!$F$12:$U$511,9,FALSE)="","",VLOOKUP(F186,Do!$F$12:$U$511,9,FALSE)) -> 
A187: 182 | B187: 1 | F187: =IFERROR(SMALL(Do!$F$12:$F$511,Do_Ordem!$A187),"") ->  | G187: =IFERROR(VLOOKUP(F187,Do!$F$12:$R$511,13,FALSE)+F187,"") ->  | H187: =IF($F187="","",VLOOKUP($F187,Do!$F$12:$U$511,8,FALSE)) ->  | I187: =IF(VLOOKUP(F187,Do!$F$12:$U$511,9,FALSE)="","",VLOOKUP(F187,Do!$F$12:$U$511,9,FALSE)) -> 
A188: 183 | B188: 2 | F188: =IFERROR(SMALL(Do!$F$12:$F$511,Do_Ordem!$A188),"") ->  | G188: =IFERROR(VLOOKUP(F188,Do!$F$12:$R$511,13,FALSE)+F188,"") ->  | H188: =IF($F188="","",VLOOKUP($F188,Do!$F$12:$U$511,8,FALSE)) ->  | I188: =IF(VLOOKUP(F188,Do!$F$12:$U$511,9,FALSE)="","",VLOOKUP(F188,Do!$F$12:$U$511,9,FALSE)) -> 
A189: 184 | B189: 1 | F189: =IFERROR(SMALL(Do!$F$12:$F$511,Do_Ordem!$A189),"") ->  | G189: =IFERROR(VLOOKUP(F189,Do!$F$12:$R$511,13,FALSE)+F189,"") ->  | H189: =IF($F189="","",VLOOKUP($F189,Do!$F$12:$U$511,8,FALSE)) ->  | I189: =IF(VLOOKUP(F189,Do!$F$12:$U$511,9,FALSE)="","",VLOOKUP(F189,Do!$F$12:$U$511,9,FALSE)) -> 
A190: 185 | B190: 2 | F190: =IFERROR(SMALL(Do!$F$12:$F$511,Do_Ordem!$A190),"") ->  | G190: =IFERROR(VLOOKUP(F190,Do!$F$12:$R$511,13,FALSE)+F190,"") ->  | H190: =IF($F190="","",VLOOKUP($F190,Do!$F$12:$U$511,8,FALSE)) ->  | I190: =IF(VLOOKUP(F190,Do!$F$12:$U$511,9,FALSE)="","",VLOOKUP(F190,Do!$F$12:$U$511,9,FALSE)) -> 
A191: 186 | B191: 1 | F191: =IFERROR(SMALL(Do!$F$12:$F$511,Do_Ordem!$A191),"") ->  | G191: =IFERROR(VLOOKUP(F191,Do!$F$12:$R$511,13,FALSE)+F191,"") ->  | H191: =IF($F191="","",VLOOKUP($F191,Do!$F$12:$U$511,8,FALSE)) ->  | I191: =IF(VLOOKUP(F191,Do!$F$12:$U$511,9,FALSE)="","",VLOOKUP(F191,Do!$F$12:$U$511,9,FALSE)) -> 
A192: 187 | B192: 2 | F192: =IFERROR(SMALL(Do!$F$12:$F$511,Do_Ordem!$A192),"") ->  | G192: =IFERROR(VLOOKUP(F192,Do!$F$12:$R$511,13,FALSE)+F192,"") ->  | H192: =IF($F192="","",VLOOKUP($F192,Do!$F$12:$U$511,8,FALSE)) ->  | I192: =IF(VLOOKUP(F192,Do!$F$12:$U$511,9,FALSE)="","",VLOOKUP(F192,Do!$F$12:$U$511,9,FALSE)) -> 
A193: 188 | B193: 1 | F193: =IFERROR(SMALL(Do!$F$12:$F$511,Do_Ordem!$A193),"") ->  | G193: =IFERROR(VLOOKUP(F193,Do!$F$12:$R$511,13,FALSE)+F193,"") ->  | H193: =IF($F193="","",VLOOKUP($F193,Do!$F$12:$U$511,8,FALSE)) ->  | I193: =IF(VLOOKUP(F193,Do!$F$12:$U$511,9,FALSE)="","",VLOOKUP(F193,Do!$F$12:$U$511,9,FALSE)) -> 
A194: 189 | B194: 2 | F194: =IFERROR(SMALL(Do!$F$12:$F$511,Do_Ordem!$A194),"") ->  | G194: =IFERROR(VLOOKUP(F194,Do!$F$12:$R$511,13,FALSE)+F194,"") ->  | H194: =IF($F194="","",VLOOKUP($F194,Do!$F$12:$U$511,8,FALSE)) ->  | I194: =IF(VLOOKUP(F194,Do!$F$12:$U$511,9,FALSE)="","",VLOOKUP(F194,Do!$F$12:$U$511,9,FALSE)) -> 
A195: 190 | B195: 1 | F195: =IFERROR(SMALL(Do!$F$12:$F$511,Do_Ordem!$A195),"") ->  | G195: =IFERROR(VLOOKUP(F195,Do!$F$12:$R$511,13,FALSE)+F195,"") ->  | H195: =IF($F195="","",VLOOKUP($F195,Do!$F$12:$U$511,8,FALSE)) ->  | I195: =IF(VLOOKUP(F195,Do!$F$12:$U$511,9,FALSE)="","",VLOOKUP(F195,Do!$F$12:$U$511,9,FALSE)) -> 
A196: 191 | B196: 2 | F196: =IFERROR(SMALL(Do!$F$12:$F$511,Do_Ordem!$A196),"") ->  | G196: =IFERROR(VLOOKUP(F196,Do!$F$12:$R$511,13,FALSE)+F196,"") ->  | H196: =IF($F196="","",VLOOKUP($F196,Do!$F$12:$U$511,8,FALSE)) ->  | I196: =IF(VLOOKUP(F196,Do!$F$12:$U$511,9,FALSE)="","",VLOOKUP(F196,Do!$F$12:$U$511,9,FALSE)) -> 
A197: 192 | B197: 1 | F197: =IFERROR(SMALL(Do!$F$12:$F$511,Do_Ordem!$A197),"") ->  | G197: =IFERROR(VLOOKUP(F197,Do!$F$12:$R$511,13,FALSE)+F197,"") ->  | H197: =IF($F197="","",VLOOKUP($F197,Do!$F$12:$U$511,8,FALSE)) ->  | I197: =IF(VLOOKUP(F197,Do!$F$12:$U$511,9,FALSE)="","",VLOOKUP(F197,Do!$F$12:$U$511,9,FALSE)) -> 
A198: 193 | B198: 2 | F198: =IFERROR(SMALL(Do!$F$12:$F$511,Do_Ordem!$A198),"") ->  | G198: =IFERROR(VLOOKUP(F198,Do!$F$12:$R$511,13,FALSE)+F198,"") ->  | H198: =IF($F198="","",VLOOKUP($F198,Do!$F$12:$U$511,8,FALSE)) ->  | I198: =IF(VLOOKUP(F198,Do!$F$12:$U$511,9,FALSE)="","",VLOOKUP(F198,Do!$F$12:$U$511,9,FALSE)) -> 
A199: 194 | B199: 1 | F199: =IFERROR(SMALL(Do!$F$12:$F$511,Do_Ordem!$A199),"") ->  | G199: =IFERROR(VLOOKUP(F199,Do!$F$12:$R$511,13,FALSE)+F199,"") ->  | H199: =IF($F199="","",VLOOKUP($F199,Do!$F$12:$U$511,8,FALSE)) ->  | I199: =IF(VLOOKUP(F199,Do!$F$12:$U$511,9,FALSE)="","",VLOOKUP(F199,Do!$F$12:$U$511,9,FALSE)) -> 
A200: 195 | B200: 2 | F200: =IFERROR(SMALL(Do!$F$12:$F$511,Do_Ordem!$A200),"") ->  | G200: =IFERROR(VLOOKUP(F200,Do!$F$12:$R$511,13,FALSE)+F200,"") ->  | H200: =IF($F200="","",VLOOKUP($F200,Do!$F$12:$U$511,8,FALSE)) ->  | I200: =IF(VLOOKUP(F200,Do!$F$12:$U$511,9,FALSE)="","",VLOOKUP(F200,Do!$F$12:$U$511,9,FALSE)) -> 
A201: 196 | B201: 1 | F201: =IFERROR(SMALL(Do!$F$12:$F$511,Do_Ordem!$A201),"") ->  | G201: =IFERROR(VLOOKUP(F201,Do!$F$12:$R$511,13,FALSE)+F201,"") ->  | H201: =IF($F201="","",VLOOKUP($F201,Do!$F$12:$U$511,8,FALSE)) ->  | I201: =IF(VLOOKUP(F201,Do!$F$12:$U$511,9,FALSE)="","",VLOOKUP(F201,Do!$F$12:$U$511,9,FALSE)) -> 
... 304 more rows

Sheet Check
A1: 0.446875 | B1: 0.71875 | C1: Sim
A2: ANDAMENTO | B2: PRAZO | C2: STATUS_PREV | D2: STATUS | E2: PRAZO | G2: Normal
A3: Cancelado | B3: Indiferente | C3: Cancelado | D3: Cancelado | E3: - | G3: Cancelado
A4: Não executado | B4: indiferente | C4: Não executado | D4: Não executado | E4: - | G4: Não executado
A5: Normal / "Em branco" | C5: Executando dentro do prazo | D5: Executando | E5: Dentro do prazo
A6: Normal / "Em branco" | C6: Executando com atraso | D6: Executando | E6: Com atraso
A7: Normal / "Em branco" | C7: Erro na data final | D7: - | E7: Erro na data
A8: Normal / "Em branco" | C8: Concluído dentro do prazo | D8: Concluído | E8: Dentro do prazo
A9: Normal / "Em branco" | C9: Concluído com atraso | D9: Concluído | E9: Com atraso
D10: Não iniciado | E10: Dentro do prazo
D11: Não iniciado | E11: Com atraso
AJ13: HOJE
A14: ERROS | H14: RANQUE | AA14: CAUSA | AB14: FATORES | AD14: AÇÕES | AG14: PRAZO | AJ14: 2018-12-19 | AL14: ORÇAMENTO / CUSTO | AP14: RESULTADO | AS14: RESULTADO OBTIDO / OBSERVAÇÕES | AU14: NÍVEL DE SATISFAÇÃO
A15: Coluna AÇÕES > ANDAMENTO sem preenchimento. | D15: Resultado não preenchido em ação já concluída. | E15: Nível final de satisfação não preenchido em ação já concluída. | H15: satisfação | I15: Contribuíram | J15: Ñ contribuirá, | K15: Como esperado | L15: Não foi como esperado | O15: Erro na data, prazo inicial em branco e prazo final já preenchido | P15: Erro na data, prazo final menor do que o prazo inicial | Q15: NN | AD15: PLANO DE AÇÃO | AE15: ANDAMENTO | AG15: INÍCIO | AH15: FINALIZADO EM: | AI15: STATUS | AJ15: PRAZO | AL15: PREVISTO | AM15: FINAL | AN15: SALDO | AP15: CONFORME ESPERADO? | AQ15: CONTRUBUÍU COM A CAUSA? | AU15: ANTERIOR | AV15: FINAL
F16: 2018-09-06T00:00:00.001 | G16: 1,01 - Sistema de geração de pedidos defasado | H16: 1.25000016 | I16: 16 | K16: 16 | M16: 2018-09-06T00:00:00.001 | N16: 2018-09-26T00:00:00.001 | Q16: 10016 | R16: 31016 | Y16: 1 | AA16: MÁQUINAS | AB16: 1,01 - Sistema de geração de pedidos defasado | AD16: Adquirir novo sistema de pedidos. | AE16: Normal | AG16: 2018-09-06 | AH16: 2018-09-26 | AI16: Concluído | AJ16: Dentro do prazo | AL16: 600 | AM16: 1200 | AN16: 600 | AP16: Sim | AQ16: Sim | AS16: Foi adquirido novo sistema e já foi implantado. O treinamento inicial já foi realizado. | AU16: 0.4 | AV16: 0.9
F17: 2018-09-11T00:00:00.001 | G17: 1,02 - Poucas máquinas de recebimento de pagamentos | H17: 1.00000017 | I17: 17 | K17: 17 | M17: 2018-09-11T00:00:00.001 | N17: 2018-10-01T00:00:00.001 | Q17: 10017 | R17: 31017 | Y17: 2 | AA17: MÁQUINAS | AB17: 1,02 - Poucas máquinas de recebimento de pagamentos | AD17: Adquirir novas máquinas de operadoras de cartões. | AE17: Normal | AG17: 2018-09-11 | AH17: 2018-10-01 | AI17: Concluído | AJ17: Dentro do prazo | AL17: 800 | AM17: 400 | AN17: -400 | AP17: Sim | AQ17: Sim | AS17: Adquirido duas novas máquinas sendo uma delas de uma nova operadora de cartão, já estão em funcionamento. | AU17: 0.5 | AV17: 1
F18: 2018-09-16T00:00:00.002 | G18: 1,03 - Fogão industrial avariado | H18: 0.4166668467 | I18: 18 | K18: 18 | M18: 2018-09-16T00:00:00.002 | N18: 2018-09-26T00:00:00.002 | Q18: 10018 | R18: 31018 | Y18: 3 | AA18: MÁQUINAS | AB18: 1,03 - Fogão industrial avariado | AD18: Consertar avarias existentes. | AE18: Normal | AG18: 2018-09-16 | AH18: 2018-09-26 | AI18: Concluído | AJ18: Dentro do prazo | AL18: 450 | AM18: 800 | AN18: 350 | AP18: Sim | AQ18: Sim | AS18: Manutenção realizada com empresa terceirizada. | AU18: 0.6 | AV18: 0.85
F19: 2024-03-13T00:00:00.002 | G19: 1,04 - Máquina de corte de frios avariada | H19: 1.9e-07 | J19: 19 | L19: 19 | M19: 2018-09-21T00:00:00.002 | N19: 2018-09-28T00:00:00.002 | Q19: 40019 | R19: 54019 | Y19: 4 | AA19: MÁQUINAS | AB19: 1,04 - Máquina de corte de frios avariada | AD19: Comprar nova máquina de frios. | AE19: Cancelado | AG19: 2018-09-21 | AH19: 2018-09-28 | AI19: Cancelado | AJ19: - | AL19: 3500 | AM19: 0 | AN19: -3500 | AP19: Não | AQ19: Não | AS19: Máquina nova não foi adquirida, a máquina desejada está com preço muito mais elevado do que esperado | AU19: 0.3 | AV19: 0.3
F20: 2018-09-26T00:00:00.002 | G20: 1,05 - Refrigerador está com capacidade máxima | H20: 0.4285716286 | I20: 20 | K20: 20 | M20: 2018-09-26T00:00:00.002 | N20: 2018-11-05T00:00:00.002 | Q20: 10020 | R20: 30020 | Y20: 5 | AA20: MÁQUINAS | AB20: 1,05 - Refrigerador está com capacidade máxima | AD20: Adquirir novo refrigerador | AE20: Normal | AG20: 2018-09-26 | AH20: 2018-11-05 | AI20: Concluído | AJ20: Com atraso | AL20: 2000 | AM20: 2150 | AN20: 150 | AP20: Sim | AQ20: Sim | AS20: Foi adquirido o novo refrigerador | AU20: 0.7 | AV20: 1
F21: 2021-06-27T00:00:00.002 | G21: 2,01 - Sistema de pedidos à produção ineficiente | H21: 2.1e-07 | J21: 21 | L21: 21 | M21: 2018-10-01T00:00:00.002 | N21: 2018-10-11T00:00:00.002 | Q21: 40021 | R21: 44021 | Y21: 6 | AA21: MÉTODO | AB21: 2,01 - Sistema de pedidos à produção ineficiente | AD21: Criar novo procedimento | AE21: Não executado | AG21: 2018-10-01 | AH21: 2018-10-11 | AI21: Não executado | AJ21: - | AL21: 550 | AN21: -550 | AP21: Não | AQ21: Não | AS21: Tarefa não foi realizada, a troca recente de funcionários dificultou o tempo necessário para a execução da tarefa, | AU21: 0.35 | AV21: 0.35
F22: 2018-10-06T00:00:00.002 | G22: 2,02 - Controle de estoques de produtos secundários inexistente. | H22: 0.6666668867 | I22: 22 | K22: 22 | M22: 2018-10-06T00:00:00.002 | N22: 2018-12-05T00:00:00.002 | Q22: 10022 | R22: 30022 | Y22: 7 | AA22: MÉTODO | AB22: 2,02 - Controle de estoques de produtos secundários inexistente. | AD22: Criar um controle de estoque | AE22: Normal | AG22: 2018-10-06 | AH22: 2018-12-05 | AI22: Concluído | AJ22: Com atraso | AL22: 500 | AM22: 450 | AN22: -50 | AP22: Sim | AQ22: Sim | AS22: Adquirida ferramenta de estoque e colaboradores foram treinados para realizar a tarefa diária. | AU22: 0.3 | AV22: 0.5
F23: 2018-10-11T00:00:00.002 | G23: 3,01 - Fornecedor de defumados com baixa qualidade | H23: 1.50000023 | I23: 23 | K23: 23 | M23: 2018-10-11T00:00:00.002 | N23: 2018-10-31T00:00:00.002 | Q23: 10023 | R23: 31023 | Y23: 8 | AA23: MATERIAL | AB23: 3,01 - Fornecedor de defumados com baixa qualidade | AD23: Contratar novo fornecedor | AE23: Normal | AG23: 2018-10-11 | AH23: 2018-10-31 | AI23: Concluído | AJ23: Dentro do prazo | AL23: 0 | AM23: 50 | AN23: 50 | AP23: Sim | AQ23: Sim | AS23: Troca efetuada com sucesso | AU23: 0.2 | AV23: 0.5
F24: 2018-10-16T00:00:00.002 | G24: 3,02 - Falta de insumos básicos constantemente | H24: -0.1428569029 | J24: 24 | K24: 24 | M24: 2018-10-16T00:00:00.002 | N24: 2018-10-26T00:00:00.002 | Q24: 30024 | R24: 31024 | Y24: 9 | AA24: MATERIAL | AB24: 3,02 - Falta de insumos básicos constantemente | AD24: Melhorar procedimento de compra | AE24: Normal | AG24: 2018-10-16 | AH24: 2018-10-26 | AI24: Concluído | AJ24: Dentro do prazo | AL24: 0 | AM24: 100 | AN24: 100 | AP24: Sim | AQ24: Não | AS24: Foi realizado novo sistema de pedidos de compras mas ainda resulta em diversos problemas com falta de produtos básicos devido aos prazos | AU24: 0.7 | AV24: 0.6
F25: 2018-10-21T00:00:00.002 | G25: 3,03 - Falta produtos secundários constantemente. | H25: 1.666666917 | I25: 25 | K25: 25 | M25: 2018-10-21T00:00:00.002 | N25: 2018-10-28T00:00:00.002 | Q25: 10025 | R25: 31025 | Y25: 10 | AA25: MATERIAL | AB25: 3,03 - Falta produtos secundários constantemente. | AD25: Desenvolver procedimento do novo controle de estoque | AE25: Normal | AG25: 2018-10-21 | AH25: 2018-10-28 | AI25: Concluído | AJ25: Dentro do prazo | AL25: 600 | AM25: 500 | AN25: -100 | AP25: Sim | AQ25: Sim | AS25: Controle adquirido e em funcionamento. Treinamento também foi aplicado. | AU25: 0.3 | AV25: 0.8
F26: 2018-10-26T00:00:00.002 | G26: 4,01 - Atendentes do delivery constantemente com dúvidas | H26: 1.00000026 | I26: 26 | K26: 26 | M26: 2018-10-26T00:00:00.002 | N26: 2018-11-15T00:00:00.002 | Q26: 10026 | R26: 31026 | Y26: 11 | AA26: MÃO-DE-OBRA | AB26: 4,01 - Atendentes do delivery constantemente com dúvidas | AD26: Criar um plano de treinamento periódico | AE26: Normal | AG26: 2018-10-26 | AH26: 2018-11-15 | AI26: Concluído | AJ26: Dentro do prazo | AL26: 0 | AM26: 0 | AN26: 0 | AP26: Sim | AQ26: Sim | AS26: Treinamento inicial realizado e planejamento para reciclagem também elaborado | AU26: 0.4 | AV26: 0.8
F27: 2018-09-06T00:00:00.002 | G27: 4,02 - Garçons desmotivados. | H27: 2.7e-07 | J27: 27 | K27: 27 | M27: 2018-09-06T00:00:00.002 | N27: 2018-09-16T00:00:00.002 | Q27: 30027 | R27: 31027 | Y27: 12 | AA27: MÃO-DE-OBRA | AB27: 4,02 - Garçons desmotivados. | AD27: Desenvolver treinamento periódico e melhorar plano de benefícios. | AE27: Normal | AG27: 2018-09-06 | AH27: 2018-09-16 | AI27: Concluído | AJ27: Dentro do prazo | AL27: 0 | AM27: 0 | AN27: 0 | AP27: Sim | AQ27: Não | AS27: Treinamento efetuado e novo benefício atribuído mas ainda não surtiu efeitos imediatos. | AU27: 0.7 | AV27: 0.7
F28: 2018-09-11T00:00:00.002 | G28: 4,03 - Atraso nas entregas pelos motoboys | H28: 2.166666947 | I28: 28 | L28: 28 | M28: 2018-09-11T00:00:00.002 | N28: 2018-09-18T00:00:00.002 | Q28: 20028 | R28: 31028 | Y28: 13 | AA28: MÃO-DE-OBRA | AB28: 4,03 - Atraso nas entregas pelos motoboys | AD28: Diminuir quantidade de clientes atendidos por vez e aumentar quantidade de entregadores. | AE28: Normal | AG28: 2018-09-11 | AH28: 2018-09-18 | AI28: Concluído | AJ28: Dentro do prazo | AL28: 350 | AM28: 500 | AN28: 150 | AP28: Não | AQ28: Sim | AS28: Criado novo sistema que difere do planejado mas está surtindo efeitos, foram criadas áreas distintas onde pode-se levar quantidades limitadas dependendo do local | AU28: 0.3 | AV28: 0.95
F29: 2018-09-25T00:00:00.003 | G29: 5,01 - Não há sistema para a padronização da produção | H29: 2.9e-07 | J29: 29 | L29: 29 | M29: 2018-09-25T00:00:00.003 | N29: 2018-10-15T00:00:00.003 | Q29: 40029 | R29: 30029 | Y29: 14 | AA29: MEDIDA | AB29: 5,01 - Não há sistema para a padronização da produção | AD29: Desenvolver sistema de padronização da produção | AE29: Normal | AG29: 2018-09-25 | AH29: 2018-10-15 | AI29: Concluído | AJ29: Com atraso | AL29: 400 | AM29: 700 | AN29: 300 | AP29: Não | AQ29: Não | AS29: Sistema novo criado mas gerou diversos outros problemas não foi possível criar a padronização por enquanto. | AU29: 0.4 | AV29: 0.4
F30: 2018-09-26T00:00:00.003 | G30: 6,01 - Falta de espaço no balcão do forno | H30: 0.6666669667 | I30: 30 | L30: 30 | M30: 2018-09-26T00:00:00.003 | N30: 2018-10-06T00:00:00.003 | Q30: 20030 | R30: 31030 | Y30: 15 | AA30: MEIO AMBIENTE | AB30: 6,01 - Falta de espaço no balcão do forno | AD30: Reformar balcão da cozinha | AE30: Normal | AG30: 2018-09-26 | AH30: 2018-10-06 | AI30: Concluído | AJ30: Dentro do prazo | AL30: 2500 | AM30: 4000 | AN30: 1500 | AP30: Não | AQ30: Sim | AS30: Foram necessários outras modificações estruturais além das previstas mas o resultado foi excelente. | AU30: 0.6 | AV30: 1
F31: 2018-09-11T00:00:00.003 | G31: 6,02 - Dias frios área externa está inutilizada. | H31: 1.12500031 | I31: 31 | K31: 31 | M31: 2018-09-11T00:00:00.003 | N31: 2018-10-11T00:00:00.003 | Q31: 10031 | R31: 31031 | Y31: 16 | AA31: MEIO AMBIENTE | AB31: 6,02 - Dias frios área externa está inutilizada. | AD31: Adquirir aquecedores externos | AE31: Normal | AG31: 2018-09-11 | AH31: 2018-10-11 | AI31: Concluído | AJ31: Dentro do prazo | AL31: 3000 | AM31: 1800 | AN31: -1200 | AP31: Sim | AQ31: Sim | AS31: Aquisição dos equipamentos e instalações concluídas, a área externa está com melhor condições para atender os clientes em dias mais frios. | AU31: 0.4 | AV31: 0.85
Y32: 17 | AL32: 0 | AN32: 0 | AU32: 0
Y33: 18 | AL33: 0 | AN33: 0 | AU33: 0
Y34: 19 | AL34: 0 | AN34: 0 | AU34: 0
Y35: 20 | AL35: 0 | AN35: 0 | AU35: 0
Y36: 21 | AL36: 0 | AN36: 0 | AU36: 0
Y37: 22 | AL37: 0 | AN37: 0 | AU37: 0
Y38: 23 | AL38: 0 | AN38: 0 | AU38: 0
Y39: 24 | AL39: 0 | AN39: 0 | AU39: 0
Y40: 25 | AL40: 0 | AN40: 0 | AU40: 0
Y41: 26 | AL41: 0 | AN41: 0 | AU41: 0
Y42: 27 | AL42: 0 | AN42: 0 | AU42: 0
Y43: 28 | AL43: 0 | AN43: 0 | AU43: 0
Y44: 29 | AL44: 0 | AN44: 0 | AU44: 0
Y45: 30 | AL45: 0 | AN45: 0 | AU45: 0
Y46: 31 | AL46: 0 | AN46: 0 | AU46: 0
Y47: 32 | AL47: 0 | AN47: 0 | AU47: 0
Y48: 33 | AL48: 0 | AN48: 0 | AU48: 0
Y49: 34 | AL49: 0 | AN49: 0 | AU49: 0
Y50: 35 | AL50: 0 | AN50: 0 | AU50: 0
Y51: 36 | AL51: 0 | AN51: 0 | AU51: 0
Y52: 37 | AL52: 0 | AN52: 0 | AU52: 0
Y53: 38 | AL53: 0 | AN53: 0 | AU53: 0
Y54: 39 | AL54: 0 | AN54: 0 | AU54: 0
Y55: 40 | AL55: 0 | AN55: 0 | AU55: 0
Y56: 41 | AL56: 0 | AN56: 0 | AU56: 0
Y57: 42 | AL57: 0 | AN57: 0 | AU57: 0
Y58: 43 | AL58: 0 | AN58: 0 | AU58: 0
Y59: 44 | AL59: 0 | AN59: 0 | AU59: 0
Y60: 45 | AL60: 0 | AN60: 0 | AU60: 0
Y61: 46 | AL61: 0 | AN61: 0 | AU61: 0
Y62: 47 | AL62: 0 | AN62: 0 | AU62: 0
Y63: 48 | AL63: 0 | AN63: 0 | AU63: 0
Y64: 49 | AL64: 0 | AN64: 0 | AU64: 0
Y65: 50 | AL65: 0 | AN65: 0 | AU65: 0
Y66: 51 | AL66: 0 | AN66: 0 | AU66: 0
Y67: 52 | AL67: 0 | AN67: 0 | AU67: 0
Y68: 53 | AL68: 0 | AN68: 0 | AU68: 0
Y69: 54 | AL69: 0 | AN69: 0 | AU69: 0
Y70: 55 | AL70: 0 | AN70: 0 | AU70: 0
Y71: 56 | AL71: 0 | AN71: 0 | AU71: 0
Y72: 57 | AL72: 0 | AN72: 0 | AU72: 0
Y73: 58 | AL73: 0 | AN73: 0 | AU73: 0
Y74: 59 | AL74: 0 | AN74: 0 | AU74: 0
Y75: 60 | AL75: 0 | AN75: 0 | AU75: 0
Y76: 61 | AL76: 0 | AN76: 0 | AU76: 0
Y77: 62 | AL77: 0 | AN77: 0 | AU77: 0
Y78: 63 | AL78: 0 | AN78: 0 | AU78: 0
Y79: 64 | AL79: 0 | AN79: 0 | AU79: 0
Y80: 65 | AL80: 0 | AN80: 0 | AU80: 0
Y81: 66 | AL81: 0 | AN81: 0 | AU81: 0
Y82: 67 | AL82: 0 | AN82: 0 | AU82: 0
Y83: 68 | AL83: 0 | AN83: 0 | AU83: 0
Y84: 69 | AL84: 0 | AN84: 0 | AU84: 0
Y85: 70 | AL85: 0 | AN85: 0 | AU85: 0
Y86: 71 | AL86: 0 | AN86: 0 | AU86: 0
Y87: 72 | AL87: 0 | AN87: 0 | AU87: 0
Y88: 73 | AL88: 0 | AN88: 0 | AU88: 0
Y89: 74 | AL89: 0 | AN89: 0 | AU89: 0
Y90: 75 | AL90: 0 | AN90: 0 | AU90: 0
Y91: 76 | AL91: 0 | AN91: 0 | AU91: 0
Y92: 77 | AL92: 0 | AN92: 0 | AU92: 0
Y93: 78 | AL93: 0 | AN93: 0 | AU93: 0
Y94: 79 | AL94: 0 | AN94: 0 | AU94: 0
Y95: 80 | AL95: 0 | AN95: 0 | AU95: 0
Y96: 81 | AL96: 0 | AN96: 0 | AU96: 0
Y97: 82 | AL97: 0 | AN97: 0 | AU97: 0
Y98: 83 | AL98: 0 | AN98: 0 | AU98: 0
Y99: 84 | AL99: 0 | AN99: 0 | AU99: 0
Y100: 85 | AL100: 0 | AN100: 0 | AU100: 0
Y101: 86 | AL101: 0 | AN101: 0 | AU101: 0
Y102: 87 | AL102: 0 | AN102: 0 | AU102: 0
Y103: 88 | AL103: 0 | AN103: 0 | AU103: 0
Y104: 89 | AL104: 0 | AN104: 0 | AU104: 0
Y105: 90 | AL105: 0 | AN105: 0 | AU105: 0
Y106: 91 | AL106: 0 | AN106: 0 | AU106: 0
Y107: 92 | AL107: 0 | AN107: 0 | AU107: 0
Y108: 93 | AL108: 0 | AN108: 0 | AU108: 0
Y109: 94 | AL109: 0 | AN109: 0 | AU109: 0
Y110: 95 | AL110: 0 | AN110: 0 | AU110: 0
Y111: 96 | AL111: 0 | AN111: 0 | AU111: 0
Y112: 97 | AL112: 0 | AN112: 0 | AU112: 0
Y113: 98 | AL113: 0 | AN113: 0 | AU113: 0
Y114: 99 | AL114: 0 | AN114: 0 | AU114: 0
Y115: 100 | AL115: 0 | AN115: 0 | AU115: 0
Y116: 101 | AL116: 0 | AN116: 0 | AU116: 0
Y117: 102 | AL117: 0 | AN117: 0 | AU117: 0
Y118: 103 | AL118: 0 | AN118: 0 | AU118: 0
Y119: 104 | AL119: 0 | AN119: 0 | AU119: 0
Y120: 105 | AL120: 0 | AN120: 0 | AU120: 0
Y121: 106 | AL121: 0 | AN121: 0 | AU121: 0
Y122: 107 | AL122: 0 | AN122: 0 | AU122: 0
Y123: 108 | AL123: 0 | AN123: 0 | AU123: 0
Y124: 109 | AL124: 0 | AN124: 0 | AU124: 0
Y125: 110 | AL125: 0 | AN125: 0 | AU125: 0
Y126: 111 | AL126: 0 | AN126: 0 | AU126: 0
Y127: 112 | AL127: 0 | AN127: 0 | AU127: 0
Y128: 113 | AL128: 0 | AN128: 0 | AU128: 0
Y129: 114 | AL129: 0 | AN129: 0 | AU129: 0
Y130: 115 | AL130: 0 | AN130: 0 | AU130: 0
Y131: 116 | AL131: 0 | AN131: 0 | AU131: 0
Y132: 117 | AL132: 0 | AN132: 0 | AU132: 0
Y133: 118 | AL133: 0 | AN133: 0 | AU133: 0
Y134: 119 | AL134: 0 | AN134: 0 | AU134: 0
Y135: 120 | AL135: 0 | AN135: 0 | AU135: 0
Y136: 121 | AL136: 0 | AN136: 0 | AU136: 0
Y137: 122 | AL137: 0 | AN137: 0 | AU137: 0
Y138: 123 | AL138: 0 | AN138: 0 | AU138: 0
Y139: 124 | AL139: 0 | AN139: 0 | AU139: 0
Y140: 125 | AL140: 0 | AN140: 0 | AU140: 0
Y141: 126 | AL141: 0 | AN141: 0 | AU141: 0
Y142: 127 | AL142: 0 | AN142: 0 | AU142: 0
Y143: 128 | AL143: 0 | AN143: 0 | AU143: 0
Y144: 129 | AL144: 0 | AN144: 0 | AU144: 0
Y145: 130 | AL145: 0 | AN145: 0 | AU145: 0
Y146: 131 | AL146: 0 | AN146: 0 | AU146: 0
Y147: 132 | AL147: 0 | AN147: 0 | AU147: 0
Y148: 133 | AL148: 0 | AN148: 0 | AU148: 0
Y149: 134 | AL149: 0 | AN149: 0 | AU149: 0
Y150: 135 | AL150: 0 | AN150: 0 | AU150: 0
Y151: 136 | AL151: 0 | AN151: 0 | AU151: 0
Y152: 137 | AL152: 0 | AN152: 0 | AU152: 0
Y153: 138 | AL153: 0 | AN153: 0 | AU153: 0
Y154: 139 | AL154: 0 | AN154: 0 | AU154: 0
Y155: 140 | AL155: 0 | AN155: 0 | AU155: 0
Y156: 141 | AL156: 0 | AN156: 0 | AU156: 0
Y157: 142 | AL157: 0 | AN157: 0 | AU157: 0
Y158: 143 | AL158: 0 | AN158: 0 | AU158: 0
Y159: 144 | AL159: 0 | AN159: 0 | AU159: 0
Y160: 145 | AL160: 0 | AN160: 0 | AU160: 0
Y161: 146 | AL161: 0 | AN161: 0 | AU161: 0
Y162: 147 | AL162: 0 | AN162: 0 | AU162: 0
Y163: 148 | AL163: 0 | AN163: 0 | AU163: 0
Y164: 149 | AL164: 0 | AN164: 0 | AU164: 0
Y165: 150 | AL165: 0 | AN165: 0 | AU165: 0
Y166: 151 | AL166: 0 | AN166: 0 | AU166: 0
Y167: 152 | AL167: 0 | AN167: 0 | AU167: 0
Y168: 153 | AL168: 0 | AN168: 0 | AU168: 0
Y169: 154 | AL169: 0 | AN169: 0 | AU169: 0
Y170: 155 | AL170: 0 | AN170: 0 | AU170: 0
Y171: 156 | AL171: 0 | AN171: 0 | AU171: 0
Y172: 157 | AL172: 0 | AN172: 0 | AU172: 0
Y173: 158 | AL173: 0 | AN173: 0 | AU173: 0
Y174: 159 | AL174: 0 | AN174: 0 | AU174: 0
Y175: 160 | AL175: 0 | AN175: 0 | AU175: 0
Y176: 161 | AL176: 0 | AN176: 0 | AU176: 0
Y177: 162 | AL177: 0 | AN177: 0 | AU177: 0
Y178: 163 | AL178: 0 | AN178: 0 | AU178: 0
Y179: 164 | AL179: 0 | AN179: 0 | AU179: 0
Y180: 165 | AL180: 0 | AN180: 0 | AU180: 0
Y181: 166 | AL181: 0 | AN181: 0 | AU181: 0
Y182: 167 | AL182: 0 | AN182: 0 | AU182: 0
Y183: 168 | AL183: 0 | AN183: 0 | AU183: 0
Y184: 169 | AL184: 0 | AN184: 0 | AU184: 0
Y185: 170 | AL185: 0 | AN185: 0 | AU185: 0
Y186: 171 | AL186: 0 | AN186: 0 | AU186: 0
Y187: 172 | AL187: 0 | AN187: 0 | AU187: 0
Y188: 173 | AL188: 0 | AN188: 0 | AU188: 0
Y189: 174 | AL189: 0 | AN189: 0 | AU189: 0
Y190: 175 | AL190: 0 | AN190: 0 | AU190: 0
Y191: 176 | AL191: 0 | AN191: 0 | AU191: 0
Y192: 177 | AL192: 0 | AN192: 0 | AU192: 0
Y193: 178 | AL193: 0 | AN193: 0 | AU193: 0
Y194: 179 | AL194: 0 | AN194: 0 | AU194: 0
Y195: 180 | AL195: 0 | AN195: 0 | AU195: 0
Y196: 181 | AL196: 0 | AN196: 0 | AU196: 0
Y197: 182 | AL197: 0 | AN197: 0 | AU197: 0
Y198: 183 | AL198: 0 | AN198: 0 | AU198: 0
Y199: 184 | AL199: 0 | AN199: 0 | AU199: 0
Y200: 185 | AL200: 0 | AN200: 0 | AU200: 0
Y201: 186 | AL201: 0 | AN201: 0 | AU201: 0
... 314 more rows

Sheet Check_Ordem
A1: 43348 | B1: 96.00000022 | N1: 1 | O1: 2 | P1: 3 | Q1: 4 | R1: 5 | S1: 6 | T1: 7 | U1: 8 | V1: 9 | W1: 10 | X1: 11 | Y1: 12 | Z1: 13 | AA1: 14 | AB1: 15 | AC1: 16 | AD1: 17 | AE1: 18 | AF1: 19 | AG1: 20 | AH1: 21 | AI1: 22 | AJ1: 23 | AK1: 24 | AL1: 25 | AM1: 26 | AN1: 27 | AO1: 28 | AP1: 29 | AQ1: 30 | AR1: 31 | AS1: 32 | AT1: 33 | AU1: 34 | AV1: 35 | AW1: 36 | AX1: 37 | AY1: 38 | AZ1: 39 | BA1: 40 | BB1: 41 | BC1: 42 | BD1: 43 | BE1: 44 | BF1: 45 | BG1: 46 | BH1: 47 | BI1: 48 | BJ1: 49 | BK1: 50 | BL1: 51 | BM1: 52 | BN1: 53 | BO1: 54 | BP1: 55 | BQ1: 56 | BR1: 57 | BS1: 58 | BT1: 59 | BU1: 60 | BV1: 61 | BW1: 62 | BX1: 63 | BY1: 64 | BZ1: 65 | CA1: 66 | CB1: 67 | CC1: 68 | CD1: 69 | CE1: 70 | CF1: 71 | CG1: 72 | CH1: 73 | CI1: 74 | CJ1: 75 | CK1: 76 | CL1: 77 | CM1: 78 | CN1: 79 | CO1: 80 | CP1: 81 | CQ1: 82 | CR1: 83 | CS1: 84 | CT1: 85 | CU1: 86 | CV1: 87 | CW1: 88 | CX1: 89 | CY1: 90 | CZ1: 91 | DA1: 92 | DB1: 93 | DC1: 94 | DD1: 95 | DE1: 96 | DF1: 97 | DG1: 98 | DH1: 99 | DI1: 100
A2: 43444 | B2: 0.9696969719 | N2: 43348 | O2: 43349.93939 | P2: 43350.90909 | Q2: 43351.87879 | R2: 43352.84848 | S2: 43353.81818 | T2: 43354.78788 | U2: 43355.75758 | V2: 43356.72727 | W2: 43357.69697 | X2: 43358.66667 | Y2: 43359.63636 | Z2: 43360.60606 | AA2: 43361.57576 | AB2: 43362.54545 | AC2: 43363.51515 | AD2: 43364.48485 | AE2: 43365.45455 | AF2: 43366.42424 | AG2: 43367.39394 | AH2: 43368.36364 | AI2: 43369.33333 | AJ2: 43370.30303 | AK2: 43371.27273 | AL2: 43372.24242 | AM2: 43373.21212 | AN2: 43374.18182 | AO2: 43375.15152 | AP2: 43376.12121 | AQ2: 43377.09091 | AR2: 43378.06061 | AS2: 43379.0303 | AT2: 43380 | AU2: 43380.9697 | AV2: 43381.93939 | AW2: 43382.90909 | AX2: 43383.87879 | AY2: 43384.84848 | AZ2: 43385.81818 | BA2: 43386.78788 | BB2: 43387.75758 | BC2: 43388.72727 | BD2: 43389.69697 | BE2: 43390.66667 | BF2: 43391.63636 | BG2: 43392.60606 | BH2: 43393.57576 | BI2: 43394.54545 | BJ2: 43395.51515 | BK2: 43396.48485 | BL2: 43397.45455 | BM2: 43398.42424 | BN2: 43399.39394 | BO2: 43400.36364 | BP2: 43401.33333 | BQ2: 43402.30303 | BR2: 43403.27273 | BS2: 43404.24242 | BT2: 43405.21212 | BU2: 43406.18182 | BV2: 43407.15152 | BW2: 43408.12121 | BX2: 43409.09091 | BY2: 43410.06061 | BZ2: 43411.0303 | CA2: 43412 | CB2: 43412.9697 | CC2: 43413.93939 | CD2: 43414.90909 | CE2: 43415.87879 | CF2: 43416.84849 | CG2: 43417.81818 | CH2: 43418.78788 | CI2: 43419.75758 | CJ2: 43420.72727 | CK2: 43421.69697 | CL2: 43422.66667 | CM2: 43423.63636 | CN2: 43424.60606 | CO2: 43425.57576 | CP2: 43426.54545 | CQ2: 43427.51515 | CR2: 43428.48485 | CS2: 43429.45455 | CT2: 43430.42424 | CU2: 43431.39394 | CV2: 43432.36364 | CW2: 43433.33333 | CX2: 43434.30303 | CY2: 43435.27273 | CZ2: 43436.24242 | DA2: 43437.21212 | DB2: 43438.18182 | DC2: 43439.15152 | DD2: 43440.12121 | DE2: 43441.09091 | DF2: 43442.06061 | DG2: 43443.0303 | DH2: 43444 | DI2: 43444.9697
F7: DO - PROGRAMAÇÃO | N7: 2018-09-05T00:00:00.001 | R7: 2018-09-09T20:21:49.093 | V7: 2018-09-13T17:27:16.366 | Z7: 2018-09-17T14:32:43.640 | AD7: 2018-09-21T11:38:10.913 | AH7: 2018-09-25T08:43:38.187 | AL7: 2018-09-29T05:49:05.460 | AP7: 2018-10-03T02:54:32.734 | AT7: 2018-10-07T00:00:00.007 | AX7: 2018-10-10T21:05:27.281 | BB7: 2018-10-14T18:10:54.554 | BF7: 2018-10-18T15:16:21.828 | BJ7: 2018-10-22T12:21:49.101 | BN7: 2018-10-26T09:27:16.375 | BR7: 2018-10-30T06:32:43.648 | BV7: 2018-11-03T03:38:10.922 | BZ7: 2018-11-07T00:43:38.195 | CD7: 2018-11-10T21:49:05.469 | CH7: 2018-11-14T18:54:32.742 | CL7: 2018-11-18T16:00:00.016 | CP7: 2018-11-22T13:05:27.289 | CT7: 2018-11-26T10:10:54.563 | CX7: 2018-11-30T07:16:21.836 | DB7: 2018-12-04T04:21:49.110 | DF7: 2018-12-08T01:27:16.383 | DJ7: =DI2 -> 2018-12-10T23:16:21.838
F8: FATOR | G8: AÇÃO | H8: PLANO | I8: DURAÇÃO | K8: PRAZO | N8: 2018-09-05T00:00:00.001 | AB8: - | AC8: - | AD8: - | AE8: - | AF8: - | AG8: - | AH8: - | AI8: - | AJ8: - | AK8: - | AL8: - | AM8: - | AN8: - | AO8: - | AP8: - | AQ8: - | AR8: - | AS8: - | AT8: - | AU8: - | AV8: - | AW8: - | AX8: - | AY8: - | AZ8: - | BA8: - | BB8: - | BC8: - | BD8: - | BE8: - | BF8: - | BG8: - | BH8: - | BI8: - | BJ8: - | BK8: - | BL8: - | BM8: - | BN8: - | BO8: - | BP8: - | BQ8: - | BR8: - | BS8: - | BT8: - | BU8: - | BV8: - | BW8: - | BX8: - | BY8: - | BZ8: - | CA8: - | CB8: - | CC8: - | CD8: - | CE8: - | CF8: - | CG8: - | CH8: - | CI8: - | CJ8: - | CK8: - | CL8: - | CM8: - | CN8: - | CO8: - | CP8: - | CQ8: - | CR8: - | CS8: - | CT8: - | CU8: - | CV8: 2018-12-10T00:00:00.020
I9: TOTAL | J9: DIFERENÇA | K9: DE: | L9: ATÉ: | M9: ALTERAÇÃO
A10: -4 | B10: 1 | C10: 2018-09-05T00:00:00.001 | F10: 1,01 - Sistema de geração de pedidos defasado | G10: Adquirir novo sistema de pedidos. | H10: PREVISTO: | I10: 24 | J10: -5 | K10: 2018-09-05 | L10: 2018-09-30 | M10: -4 | N10: x | O10: x | P10: x | Q10: x | R10: x | S10: x | T10: x | U10: x | V10: x | W10: x | X10: x | Y10: x | Z10: x | AA10: x | AB10: x | AC10: x | AD10: x | AE10: x | AF10: x | AG10: x | AH10: x | AI10: x | AJ10: x | AK10: x | AL10: x
A11: -4 | B11: 1 | H11: REAL: | I11: 19 | K11: 2018-09-06 | L11: 2018-09-26 | M11: antecipado | O11: y | P11: y | Q11: y | R11: y | S11: y | T11: y | U11: y | V11: y | W11: y | X11: y | Y11: y | Z11: y | AA11: y | AB11: y | AC11: y | AD11: y | AE11: y | AF11: y | AG11: y | AH11: y
A12: -2 | B12: 2 | C12: 2018-09-05T00:00:00.002 | F12: 4,03 - Atraso nas entregas pelos motoboys | G12: Diminuir quantidade de clientes atendidos por vez e aumentar quantidade de entregadores. | H12: PREVISTO: | I12: 14 | J12: -8 | K12: 2018-09-05 | L12: 2018-09-20 | M12: -2 | N12: x | O12: x | P12: x | Q12: x | R12: x | S12: x | T12: x | U12: x | V12: x | W12: x | X12: x | Y12: x | Z12: x | AA12: x | AB12: x
A13: -2 | B13: 2 | H13: REAL: | I13: 6 | K13: 2018-09-11 | L13: 2018-09-18 | M13: antecipado | T13: y | U13: y | V13: y | W13: y | X13: y | Y13: y | Z13: y
A14: 25 | B14: 3 | C14: 2018-09-10T00:00:00.002 | F14: 5,01 - Não há sistema para a padronização da produção | G14: Desenvolver sistema de padronização da produção | H14: PREVISTO: | I14: 9 | J14: 10 | K14: 2018-09-10 | L14: 2018-09-20 | M14: 25 | N14: - | O14: - | P14: - | Q14: - | R14: - | S14: x | T14: x | U14: x | V14: x | W14: x | X14: x | Y14: x | Z14: x | AA14: x | AB14: x
A15: 25 | B15: 3 | H15: REAL: | I15: 19 | K15: 2018-09-25 | L15: 2018-10-15 | M15: de atraso | AH15: y | AI15: y | AJ15: y | AK15: y | AL15: y | AM15: y | AN15: y | AO15: y | AP15: y | AQ15: y | AR15: y | AS15: y | AT15: y | AU15: y | AV15: y | AW15: y | AX15: y | AY15: y | AZ15: y | BA15: y | BB15: y
A16: -20 | B16: 4 | C16: 2018-09-11T00:00:00.001 | F16: 1,02 - Poucas máquinas de recebimento de pagamentos | G16: Adquirir novas máquinas de operadoras de cartões. | H16: PREVISTO: | I16: 39 | J16: -20 | K16: 2018-09-11 | L16: 2018-10-21 | M16: -20 | N16: - | O16: - | P16: - | Q16: - | R16: - | S16: - | T16: x | U16: x | V16: x | W16: x | X16: x | Y16: x | Z16: x | AA16: x | AB16: x | AC16: x | AD16: x | AE16: x | AF16: x | AG16: x | AH16: x | AI16: x | AJ16: x | AK16: x | AL16: x | AM16: x | AN16: x | AO16: x | AP16: x | AQ16: x | AR16: x | AS16: x | AT16: x | AU16: x | AV16: x | AW16: x | AX16: x | AY16: x | AZ16: x | BA16: x | BB16: x | BC16: x | BD16: x | BE16: x | BF16: x | BG16: x | BH16: x
A17: -20 | B17: 4 | H17: REAL: | I17: 19 | K17: 2018-09-11 | L17: 2018-10-01 | M17: antecipado | T17: y | U17: y | V17: y | W17: y | X17: y | Y17: y | Z17: y | AA17: y | AB17: y | AC17: y | AD17: y | AE17: y | AF17: y | AG17: y | AH17: y | AI17: y | AJ17: y | AK17: y | AL17: y | AM17: y
A18: 0 | B18: 5 | C18: 2018-09-16T00:00:00.001 | F18: 1,03 - Fogão industrial avariado | G18: Consertar avarias existentes. | H18: PREVISTO: | I18: 9 | J18: 0 | K18: 2018-09-16 | L18: 2018-09-26 | M18: 0 | N18: - | O18: - | P18: - | Q18: - | R18: - | S18: - | T18: - | U18: - | V18: - | W18: - | X18: - | Y18: x | Z18: x | AA18: x | AB18: x | AC18: x | AD18: x | AE18: x | AF18: x | AG18: x | AH18: x
A19: 0 | B19: 5 | H19: REAL: | I19: 9 | K19: 2018-09-16 | L19: 2018-09-26 | Y19: y | Z19: y | AA19: y | AB19: y | AC19: y | AD19: y | AE19: y | AF19: y | AG19: y | AH19: y
A20: 5 | B20: 6 | C20: 2018-10-06T00:00:00.001 | F20: 1,05 - Refrigerador está com capacidade máxima | G20: Adquirir novo refrigerador | H20: PREVISTO: | I20: 24 | J20: 15 | K20: 2018-10-06 | L20: 2018-10-31 | M20: 5 | N20: - | O20: - | P20: - | Q20: - | R20: - | S20: - | T20: - | U20: - | V20: - | W20: - | X20: - | Y20: - | Z20: - | AA20: - | AB20: - | AC20: - | AD20: - | AE20: - | AF20: - | AG20: - | AH20: - | AI20: - | AJ20: - | AK20: - | AL20: - | AM20: - | AN20: - | AO20: - | AP20: - | AQ20: - | AR20: - | AS20: x | AT20: x | AU20: x | AV20: x | AW20: x | AX20: x | AY20: x | AZ20: x | BA20: x | BB20: x | BC20: x | BD20: x | BE20: x | BF20: x | BG20: x | BH20: x | BI20: x | BJ20: x | BK20: x | BL20: x | BM20: x | BN20: x | BO20: x | BP20: x | BQ20: x | BR20: x
A21: 5 | B21: 6 | H21: REAL: | I21: 39 | K21: 2018-09-26 | L21: 2018-11-05 | M21: de atraso | AI21: y | AJ21: y | AK21: y | AL21: y | AM21: y | AN21: y | AO21: y | AP21: y | AQ21: y | AR21: y | AS21: y | AT21: y | AU21: y | AV21: y | AW21: y | AX21: y | AY21: y | AZ21: y | BA21: y | BB21: y | BC21: y | BD21: y | BE21: y | BF21: y | BG21: y | BH21: y | BI21: y | BJ21: y | BK21: y | BL21: y | BM21: y | BN21: y | BO21: y | BP21: y | BQ21: y | BR21: y | BS21: y | BT21: y | BU21: y | BV21: y | BW21: y
A22: -35 | B22: 7 | C22: 2018-10-06T00:00:00.002 | F22: 6,01 - Falta de espaço no balcão do forno | G22: Reformar balcão da cozinha | H22: PREVISTO: | I22: 34 | J22: -25 | K22: 2018-10-06 | L22: 2018-11-10 | M22: -35 | N22: - | O22: - | P22: - | Q22: - | R22: - | S22: - | T22: - | U22: - | V22: - | W22: - | X22: - | Y22: - | Z22: - | AA22: - | AB22: - | AC22: - | AD22: - | AE22: - | AF22: - | AG22: - | AH22: - | AI22: - | AJ22: - | AK22: - | AL22: - | AM22: - | AN22: - | AO22: - | AP22: - | AQ22: - | AR22: - | AS22: x | AT22: x | AU22: x | AV22: x | AW22: x | AX22: x | AY22: x | AZ22: x | BA22: x | BB22: x | BC22: x | BD22: x | BE22: x | BF22: x | BG22: x | BH22: x | BI22: x | BJ22: x | BK22: x | BL22: x | BM22: x | BN22: x | BO22: x | BP22: x | BQ22: x | BR22: x | BS22: x | BT22: x | BU22: x | BV22: x | BW22: x | BX22: x | BY22: x | BZ22: x | CA22: x | CB22: x | CC22: x
A23: -35 | B23: 7 | H23: REAL: | I23: 9 | K23: 2018-09-26 | L23: 2018-10-06 | M23: antecipado | AI23: y | AJ23: y | AK23: y | AL23: y | AM23: y | AN23: y | AO23: y | AP23: y | AQ23: y | AR23: y
A24: 5 | B24: 8 | C24: 2018-10-21T00:00:00.002 | F24: 2,02 - Controle de estoques de produtos secundários inexistente. | G24: Criar um controle de estoque | H24: PREVISTO: | I24: 39 | J24: 20 | K24: 2018-10-21 | L24: 2018-11-30 | M24: 5 | N24: - | O24: - | P24: - | Q24: - | R24: - | S24: - | T24: - | U24: - | V24: - | W24: - | X24: - | Y24: - | Z24: - | AA24: - | AB24: - | AC24: - | AD24: - | AE24: - | AF24: - | AG24: - | AH24: - | AI24: - | AJ24: - | AK24: - | AL24: - | AM24: - | AN24: - | AO24: - | AP24: - | AQ24: - | AR24: - | AS24: - | AT24: - | AU24: - | AV24: - | AW24: - | AX24: - | AY24: - | AZ24: - | BA24: - | BB24: - | BC24: - | BD24: - | BE24: - | BF24: - | BG24: - | BH24: - | BI24: x | BJ24: x | BK24: x | BL24: x | BM24: x | BN24: x | BO24: x | BP24: x | BQ24: x | BR24: x | BS24: x | BT24: x | BU24: x | BV24: x | BW24: x | BX24: x | BY24: x | BZ24: x | CA24: x | CB24: x | CC24: x | CD24: x | CE24: x | CF24: x | CG24: x | CH24: x | CI24: x | CJ24: x | CK24: x | CL24: x | CM24: x | CN24: x | CO24: x | CP24: x | CQ24: x | CR24: x | CS24: x | CT24: x | CU24: x | CV24: x | CW24: x
A25: 5 | B25: 8 | H25: REAL: | I25: 59 | K25: 2018-10-06 | L25: 2018-12-05 | M25: de atraso | AS25: y | AT25: y | AU25: y | AV25: y | AW25: y | AX25: y | AY25: y | AZ25: y | BA25: y | BB25: y | BC25: y | BD25: y | BE25: y | BF25: y | BG25: y | BH25: y | BI25: y | BJ25: y | BK25: y | BL25: y | BM25: y | BN25: y | BO25: y | BP25: y | BQ25: y | BR25: y | BS25: y | BT25: y | BU25: y | BV25: y | BW25: y | BX25: y | BY25: y | BZ25: y | CA25: y | CB25: y | CC25: y | CD25: y | CE25: y | CF25: y | CG25: y | CH25: y | CI25: y | CJ25: y | CK25: y | CL25: y | CM25: y | CN25: y | CO25: y | CP25: y | CQ25: y | CR25: y | CS25: y | CT25: y | CU25: y | CV25: y | CW25: y | CX25: y | CY25: y | CZ25: y | DA25: y | DB25: y
A26: 0 | B26: 9 | C26: 2018-10-26T00:00:00.002 | F26: 3,01 - Fornecedor de defumados com baixa qualidade | G26: Contratar novo fornecedor | H26: PREVISTO: | I26: 4 | J26: 15 | K26: 2018-10-26 | L26: 2018-10-31 | M26: 0 | N26: - | O26: - | P26: - | Q26: - | R26: - | S26: - | T26: - | U26: - | V26: - | W26: - | X26: - | Y26: - | Z26: - | AA26: - | AB26: - | AC26: - | AD26: - | AE26: - | AF26: - | AG26: - | AH26: - | AI26: - | AJ26: - | AK26: - | AL26: - | AM26: - | AN26: - | AO26: - | AP26: - | AQ26: - | AR26: - | AS26: - | AT26: - | AU26: - | AV26: - | AW26: - | AX26: - | AY26: - | AZ26: - | BA26: - | BB26: - | BC26: - | BD26: - | BE26: - | BF26: - | BG26: - | BH26: - | BI26: - | BJ26: - | BK26: - | BL26: - | BM26: - | BN26: x | BO26: x | BP26: x | BQ26: x | BR26: x
A27: 0 | B27: 9 | H27: REAL: | I27: 19 | K27: 2018-10-11 | L27: 2018-10-31 | AY27: y | AZ27: y | BA27: y | BB27: y | BC27: y | BD27: y | BE27: y | BF27: y | BG27: y | BH27: y | BI27: y | BJ27: y | BK27: y | BL27: y | BM27: y | BN27: y | BO27: y | BP27: y | BQ27: y | BR27: y
A28: -25 | B28: 10 | C28: 2018-10-26T00:00:00.002 | F28: 3,02 - Falta de insumos básicos constantemente | G28: Melhorar procedimento de compra | H28: PREVISTO: | I28: 24 | J28: -15 | K28: 2018-10-26 | L28: 2018-11-20 | M28: -25 | N28: - | O28: - | P28: - | Q28: - | R28: - | S28: - | T28: - | U28: - | V28: - | W28: - | X28: - | Y28: - | Z28: - | AA28: - | AB28: - | AC28: - | AD28: - | AE28: - | AF28: - | AG28: - | AH28: - | AI28: - | AJ28: - | AK28: - | AL28: - | AM28: - | AN28: - | AO28: - | AP28: - | AQ28: - | AR28: - | AS28: - | AT28: - | AU28: - | AV28: - | AW28: - | AX28: - | AY28: - | AZ28: - | BA28: - | BB28: - | BC28: - | BD28: - | BE28: - | BF28: - | BG28: - | BH28: - | BI28: - | BJ28: - | BK28: - | BL28: - | BM28: - | BN28: x | BO28: x | BP28: x | BQ28: x | BR28: x | BS28: x | BT28: x | BU28: x | BV28: x | BW28: x | BX28: x | BY28: x | BZ28: x | CA28: x | CB28: x | CC28: x | CD28: x | CE28: x | CF28: x | CG28: x | CH28: x | CI28: x | CJ28: x | CK28: x | CL28: x | CM28: x
A29: -25 | B29: 10 | H29: REAL: | I29: 9 | K29: 2018-10-16 | L29: 2018-10-26 | M29: antecipado | BD29: y | BE29: y | BF29: y | BG29: y | BH29: y | BI29: y | BJ29: y | BK29: y | BL29: y | BM29: y
A30: -43 | B30: 11 | C30: 2018-10-31T00:00:00.002 | F30: 3,03 - Falta produtos secundários constantemente. | G30: Desenvolver procedimento do novo controle de estoque | H30: PREVISTO: | I30: 39 | J30: -33 | K30: 2018-10-31 | L30: 2018-12-10 | M30: -43 | N30: - | O30: - | P30: - | Q30: - | R30: - | S30: - | T30: - | U30: - | V30: - | W30: - | X30: - | Y30: - | Z30: - | AA30: - | AB30: - | AC30: - | AD30: - | AE30: - | AF30: - | AG30: - | AH30: - | AI30: - | AJ30: - | AK30: - | AL30: - | AM30: - | AN30: - | AO30: - | AP30: - | AQ30: - | AR30: - | AS30: - | AT30: - | AU30: - | AV30: - | AW30: - | AX30: - | AY30: - | AZ30: - | BA30: - | BB30: - | BC30: - | BD30: - | BE30: - | BF30: - | BG30: - | BH30: - | BI30: - | BJ30: - | BK30: - | BL30: - | BM30: - | BN30: - | BO30: - | BP30: - | BQ30: - | BR30: - | BS30: x | BT30: x | BU30: x | BV30: x | BW30: x | BX30: x | BY30: x | BZ30: x | CA30: x | CB30: x | CC30: x | CD30: x | CE30: x | CF30: x | CG30: x | CH30: x | CI30: x | CJ30: x | CK30: x | CL30: x | CM30: x | CN30: x | CO30: x | CP30: x | CQ30: x | CR30: x | CS30: x | CT30: x | CU30: x | CV30: x | CW30: x | CX30: x | CY30: x | CZ30: x | DA30: x | DB30: x | DC30: x | DD30: x | DE30: x | DF30: x | DG30: x
A31: -43 | B31: 11 | H31: REAL: | I31: 6 | K31: 2018-10-21 | L31: 2018-10-28 | M31: antecipado | BI31: y | BJ31: y | BK31: y | BL31: y | BM31: y | BN31: y | BO31: y
A32: -20 | B32: 12 | C32: 2018-11-05T00:00:00.002 | F32: 4,01 - Atendentes do delivery constantemente com dúvidas | G32: Criar um plano de treinamento periódico | H32: PREVISTO: | I32: 29 | J32: -10 | K32: 2018-11-05 | L32: 2018-12-05 | M32: -20 | N32: - | O32: - | P32: - | Q32: - | R32: - | S32: - | T32: - | U32: - | V32: - | W32: - | X32: - | Y32: - | Z32: - | AA32: - | AB32: - | AC32: - | AD32: - | AE32: - | AF32: - | AG32: - | AH32: - | AI32: - | AJ32: - | AK32: - | AL32: - | AM32: - | AN32: - | AO32: - | AP32: - | AQ32: - | AR32: - | AS32: - | AT32: - | AU32: - | AV32: - | AW32: - | AX32: - | AY32: - | AZ32: - | BA32: - | BB32: - | BC32: - | BD32: - | BE32: - | BF32: - | BG32: - | BH32: - | BI32: - | BJ32: - | BK32: - | BL32: - | BM32: - | BN32: - | BO32: - | BP32: - | BQ32: - | BR32: - | BS32: - | BT32: - | BU32: - | BV32: - | BW32: - | BX32: x | BY32: x | BZ32: x | CA32: x | CB32: x | CC32: x | CD32: x | CE32: x | CF32: x | CG32: x | CH32: x | CI32: x | CJ32: x | CK32: x | CL32: x | CM32: x | CN32: x | CO32: x | CP32: x | CQ32: x | CR32: x | CS32: x | CT32: x | CU32: x | CV32: x | CW32: x | CX32: x | CY32: x | CZ32: x | DA32: x | DB32: x
A33: -20 | B33: 12 | H33: REAL: | I33: 19 | K33: 2018-10-26 | L33: 2018-11-15 | M33: antecipado | BN33: y | BO33: y | BP33: y | BQ33: y | BR33: y | BS33: y | BT33: y | BU33: y | BV33: y | BW33: y | BX33: y | BY33: y | BZ33: y | CA33: y | CB33: y | CC33: y | CD33: y | CE33: y | CF33: y | CG33: y | CH33: y
A34: -40 | B34: 13 | C34: 2018-11-05T00:00:00.002 | F34: 6,02 - Dias frios área externa está inutilizada. | G34: Adquirir aquecedores externos | H34: PREVISTO: | I34: 14 | J34: 15 | K34: 2018-11-05 | L34: 2018-11-20 | M34: -40 | N34: - | O34: - | P34: - | Q34: - | R34: - | S34: - | T34: - | U34: - | V34: - | W34: - | X34: - | Y34: - | Z34: - | AA34: - | AB34: - | AC34: - | AD34: - | AE34: - | AF34: - | AG34: - | AH34: - | AI34: - | AJ34: - | AK34: - | AL34: - | AM34: - | AN34: - | AO34: - | AP34: - | AQ34: - | AR34: - | AS34: - | AT34: - | AU34: - | AV34: - | AW34: - | AX34: - | AY34: - | AZ34: - | BA34: - | BB34: - | BC34: - | BD34: - | BE34: - | BF34: - | BG34: - | BH34: - | BI34: - | BJ34: - | BK34: - | BL34: - | BM34: - | BN34: - | BO34: - | BP34: - | BQ34: - | BR34: - | BS34: - | BT34: - | BU34: - | BV34: - | BW34: - | BX34: x | BY34: x | BZ34: x | CA34: x | CB34: x | CC34: x | CD34: x | CE34: x | CF34: x | CG34: x | CH34: x | CI34: x | CJ34: x | CK34: x | CL34: x | CM34: x
A35: -40 | B35: 13 | H35: REAL: | I35: 29 | K35: 2018-09-11 | L35: 2018-10-11 | M35: antecipado | T35: y | U35: y | V35: y | W35: y | X35: y | Y35: y | Z35: y | AA35: y | AB35: y | AC35: y | AD35: y | AE35: y | AF35: y | AG35: y | AH35: y | AI35: y | AJ35: y | AK35: y | AL35: y | AM35: y | AN35: y | AO35: y | AP35: y | AQ35: y | AR35: y | AS35: y | AT35: y | AU35: y | AV35: y | AW35: y | AX35: y
A36: -85 | B36: 14 | C36: 2018-11-10T00:00:00.002 | F36: 4,02 - Garçons desmotivados. | G36: Desenvolver treinamento periódico e melhorar plano de benefícios. | H36: PREVISTO: | I36: 29 | J36: -20 | K36: 2018-11-10 | L36: 2018-12-10 | M36: -85 | N36: - | O36: - | P36: - | Q36: - | R36: - | S36: - | T36: - | U36: - | V36: - | W36: - | X36: - | Y36: - | Z36: - | AA36: - | AB36: - | AC36: - | AD36: - | AE36: - | AF36: - | AG36: - | AH36: - | AI36: - | AJ36: - | AK36: - | AL36: - | AM36: - | AN36: - | AO36: - | AP36: - | AQ36: - | AR36: - | AS36: - | AT36: - | AU36: - | AV36: - | AW36: - | AX36: - | AY36: - | AZ36: - | BA36: - | BB36: - | BC36: - | BD36: - | BE36: - | BF36: - | BG36: - | BH36: - | BI36: - | BJ36: - | BK36: - | BL36: - | BM36: - | BN36: - | BO36: - | BP36: - | BQ36: - | BR36: - | BS36: - | BT36: - | BU36: - | BV36: - | BW36: - | BX36: - | BY36: - | BZ36: - | CA36: - | CB36: - | CC36: - | CD36: x | CE36: x | CF36: x | CG36: x | CH36: x | CI36: x | CJ36: x | CK36: x | CL36: x | CM36: x | CN36: x | CO36: x | CP36: x | CQ36: x | CR36: x | CS36: x | CT36: x | CU36: x | CV36: x | CW36: x | CX36: x | CY36: x | CZ36: x | DA36: x | DB36: x | DC36: x | DD36: x | DE36: x | DF36: x | DG36: x
A37: -85 | B37: 14 | H37: REAL: | I37: 9 | K37: 2018-09-06 | L37: 2018-09-16 | M37: antecipado | O37: y | P37: y | Q37: y | R37: y | S37: y | T37: y | U37: y | V37: y | W37: y | X37: y
B38: 15 | C38: 2021-07-12T00:00:00.001 | F38: 2,01 - Sistema de pedidos à produção ineficiente | G38: Criar novo procedimento | H38: PREVISTO: | I38: 39 | J38: Não executado | K38: 2018-10-16 | L38: 2018-11-25 | N38: - | O38: - | P38: - | Q38: - | R38: - | S38: - | T38: - | U38: - | V38: - | W38: - | X38: - | Y38: - | Z38: - | AA38: - | AB38: - | AC38: - | AD38: - | AE38: - | AF38: - | AG38: - | AH38: - | AI38: - | AJ38: - | AK38: - | AL38: - | AM38: - | AN38: - | AO38: - | AP38: - | AQ38: - | AR38: - | AS38: - | AT38: - | AU38: - | AV38: - | AW38: - | AX38: - | AY38: - | AZ38: - | BA38: - | BB38: - | BC38: - | BD38: x | BE38: x | BF38: x | BG38: x | BH38: x | BI38: x | BJ38: x | BK38: x | BL38: x | BM38: x | BN38: x | BO38: x | BP38: x | BQ38: x | BR38: x | BS38: x | BT38: x | BU38: x | BV38: x | BW38: x | BX38: x | BY38: x | BZ38: x | CA38: x | CB38: x | CC38: x | CD38: x | CE38: x | CF38: x | CG38: x | CH38: x | CI38: x | CJ38: x | CK38: x | CL38: x | CM38: x | CN38: x | CO38: x | CP38: x | CQ38: x | CR38: x
B39: 15 | H39: REAL:
B40: 16 | C40: 2024-03-13T00:00:00.001 | F40: 1,04 - Máquina de corte de frios avariada | G40: Comprar nova máquina de frios. | H40: PREVISTO: | I40: 24 | J40: Cancelado | K40: 2018-09-21 | L40: 2018-10-16 | N40: - | O40: - | P40: - | Q40: - | R40: - | S40: - | T40: - | U40: - | V40: - | W40: - | X40: - | Y40: - | Z40: - | AA40: - | AB40: - | AC40: - | AD40: x | AE40: x | AF40: x | AG40: x | AH40: x | AI40: x | AJ40: x | AK40: x | AL40: x | AM40: x | AN40: x | AO40: x | AP40: x | AQ40: x | AR40: x | AS40: x | AT40: x | AU40: x | AV40: x | AW40: x | AX40: x | AY40: x | AZ40: x | BA40: x | BB40: x | BC40: x
B41: 16 | H41: REAL:
B42: 17 | N42: - | O42: - | P42: - | Q42: - | R42: - | S42: - | T42: - | U42: - | V42: - | W42: - | X42: - | Y42: - | Z42: - | AA42: - | AB42: - | AC42: - | AD42: - | AE42: - | AF42: - | AG42: - | AH42: - | AI42: - | AJ42: - | AK42: - | AL42: - | AM42: - | AN42: - | AO42: - | AP42: - | AQ42: - | AR42: - | AS42: - | AT42: - | AU42: - | AV42: - | AW42: - | AX42: - | AY42: - | AZ42: - | BA42: - | BB42: - | BC42: - | BD42: - | BE42: - | BF42: - | BG42: - | BH42: - | BI42: - | BJ42: - | BK42: - | BL42: - | BM42: - | BN42: - | BO42: - | BP42: - | BQ42: - | BR42: - | BS42: - | BT42: - | BU42: - | BV42: - | BW42: - | BX42: - | BY42: - | BZ42: - | CA42: - | CB42: - | CC42: - | CD42: - | CE42: - | CF42: - | CG42: - | CH42: - | CI42: - | CJ42: - | CK42: - | CL42: - | CM42: - | CN42: - | CO42: - | CP42: - | CQ42: - | CR42: - | CS42: - | CT42: - | CU42: - | CV42: - | CW42: - | CX42: - | CY42: - | CZ42: - | DA42: - | DB42: - | DC42: - | DD42: - | DE42: - | DF42: - | DG42: - | DH42: - | DI42: -
B43: 17
B44: 18 | N44: - | O44: - | P44: - | Q44: - | R44: - | S44: - | T44: - | U44: - | V44: - | W44: - | X44: - | Y44: - | Z44: - | AA44: - | AB44: - | AC44: - | AD44: - | AE44: - | AF44: - | AG44: - | AH44: - | AI44: - | AJ44: - | AK44: - | AL44: - | AM44: - | AN44: - | AO44: - | AP44: - | AQ44: - | AR44: - | AS44: - | AT44: - | AU44: - | AV44: - | AW44: - | AX44: - | AY44: - | AZ44: - | BA44: - | BB44: - | BC44: - | BD44: - | BE44: - | BF44: - | BG44: - | BH44: - | BI44: - | BJ44: - | BK44: - | BL44: - | BM44: - | BN44: - | BO44: - | BP44: - | BQ44: - | BR44: - | BS44: - | BT44: - | BU44: - | BV44: - | BW44: - | BX44: - | BY44: - | BZ44: - | CA44: - | CB44: - | CC44: - | CD44: - | CE44: - | CF44: - | CG44: - | CH44: - | CI44: - | CJ44: - | CK44: - | CL44: - | CM44: - | CN44: - | CO44: - | CP44: - | CQ44: - | CR44: - | CS44: - | CT44: - | CU44: - | CV44: - | CW44: - | CX44: - | CY44: - | CZ44: - | DA44: - | DB44: - | DC44: - | DD44: - | DE44: - | DF44: - | DG44: - | DH44: - | DI44: -
B45: 18
B46: 19 | N46: - | O46: - | P46: - | Q46: - | R46: - | S46: - | T46: - | U46: - | V46: - | W46: - | X46: - | Y46: - | Z46: - | AA46: - | AB46: - | AC46: - | AD46: - | AE46: - | AF46: - | AG46: - | AH46: - | AI46: - | AJ46: - | AK46: - | AL46: - | AM46: - | AN46: - | AO46: - | AP46: - | AQ46: - | AR46: - | AS46: - | AT46: - | AU46: - | AV46: - | AW46: - | AX46: - | AY46: - | AZ46: - | BA46: - | BB46: - | BC46: - | BD46: - | BE46: - | BF46: - | BG46: - | BH46: - | BI46: - | BJ46: - | BK46: - | BL46: - | BM46: - | BN46: - | BO46: - | BP46: - | BQ46: - | BR46: - | BS46: - | BT46: - | BU46: - | BV46: - | BW46: - | BX46: - | BY46: - | BZ46: - | CA46: - | CB46: - | CC46: - | CD46: - | CE46: - | CF46: - | CG46: - | CH46: - | CI46: - | CJ46: - | CK46: - | CL46: - | CM46: - | CN46: - | CO46: - | CP46: - | CQ46: - | CR46: - | CS46: - | CT46: - | CU46: - | CV46: - | CW46: - | CX46: - | CY46: - | CZ46: - | DA46: - | DB46: - | DC46: - | DD46: - | DE46: - | DF46: - | DG46: - | DH46: - | DI46: -
B47: 19
B48: 20 | N48: - | O48: - | P48: - | Q48: - | R48: - | S48: - | T48: - | U48: - | V48: - | W48: - | X48: - | Y48: - | Z48: - | AA48: - | AB48: - | AC48: - | AD48: - | AE48: - | AF48: - | AG48: - | AH48: - | AI48: - | AJ48: - | AK48: - | AL48: - | AM48: - | AN48: - | AO48: - | AP48: - | AQ48: - | AR48: - | AS48: - | AT48: - | AU48: - | AV48: - | AW48: - | AX48: - | AY48: - | AZ48: - | BA48: - | BB48: - | BC48: - | BD48: - | BE48: - | BF48: - | BG48: - | BH48: - | BI48: - | BJ48: - | BK48: - | BL48: - | BM48: - | BN48: - | BO48: - | BP48: - | BQ48: - | BR48: - | BS48: - | BT48: - | BU48: - | BV48: - | BW48: - | BX48: - | BY48: - | BZ48: - | CA48: - | CB48: - | CC48: - | CD48: - | CE48: - | CF48: - | CG48: - | CH48: - | CI48: - | CJ48: - | CK48: - | CL48: - | CM48: - | CN48: - | CO48: - | CP48: - | CQ48: - | CR48: - | CS48: - | CT48: - | CU48: - | CV48: - | CW48: - | CX48: - | CY48: - | CZ48: - | DA48: - | DB48: - | DC48: - | DD48: - | DE48: - | DF48: - | DG48: - | DH48: - | DI48: -
B49: 20
B50: 21 | N50: - | O50: - | P50: - | Q50: - | R50: - | S50: - | T50: - | U50: - | V50: - | W50: - | X50: - | Y50: - | Z50: - | AA50: - | AB50: - | AC50: - | AD50: - | AE50: - | AF50: - | AG50: - | AH50: - | AI50: - | AJ50: - | AK50: - | AL50: - | AM50: - | AN50: - | AO50: - | AP50: - | AQ50: - | AR50: - | AS50: - | AT50: - | AU50: - | AV50: - | AW50: - | AX50: - | AY50: - | AZ50: - | BA50: - | BB50: - | BC50: - | BD50: - | BE50: - | BF50: - | BG50: - | BH50: - | BI50: - | BJ50: - | BK50: - | BL50: - | BM50: - | BN50: - | BO50: - | BP50: - | BQ50: - | BR50: - | BS50: - | BT50: - | BU50: - | BV50: - | BW50: - | BX50: - | BY50: - | BZ50: - | CA50: - | CB50: - | CC50: - | CD50: - | CE50: - | CF50: - | CG50: - | CH50: - | CI50: - | CJ50: - | CK50: - | CL50: - | CM50: - | CN50: - | CO50: - | CP50: - | CQ50: - | CR50: - | CS50: - | CT50: - | CU50: - | CV50: - | CW50: - | CX50: - | CY50: - | CZ50: - | DA50: - | DB50: - | DC50: - | DD50: - | DE50: - | DF50: - | DG50: - | DH50: - | DI50: -
B51: 21
B52: 22 | N52: - | O52: - | P52: - | Q52: - | R52: - | S52: - | T52: - | U52: - | V52: - | W52: - | X52: - | Y52: - | Z52: - | AA52: - | AB52: - | AC52: - | AD52: - | AE52: - | AF52: - | AG52: - | AH52: - | AI52: - | AJ52: - | AK52: - | AL52: - | AM52: - | AN52: - | AO52: - | AP52: - | AQ52: - | AR52: - | AS52: - | AT52: - | AU52: - | AV52: - | AW52: - | AX52: - | AY52: - | AZ52: - | BA52: - | BB52: - | BC52: - | BD52: - | BE52: - | BF52: - | BG52: - | BH52: - | BI52: - | BJ52: - | BK52: - | BL52: - | BM52: - | BN52: - | BO52: - | BP52: - | BQ52: - | BR52: - | BS52: - | BT52: - | BU52: - | BV52: - | BW52: - | BX52: - | BY52: - | BZ52: - | CA52: - | CB52: - | CC52: - | CD52: - | CE52: - | CF52: - | CG52: - | CH52: - | CI52: - | CJ52: - | CK52: - | CL52: - | CM52: - | CN52: - | CO52: - | CP52: - | CQ52: - | CR52: - | CS52: - | CT52: - | CU52: - | CV52: - | CW52: - | CX52: - | CY52: - | CZ52: - | DA52: - | DB52: - | DC52: - | DD52: - | DE52: - | DF52: - | DG52: - | DH52: - | DI52: -
B53: 22
B54: 23 | N54: - | O54: - | P54: - | Q54: - | R54: - | S54: - | T54: - | U54: - | V54: - | W54: - | X54: - | Y54: - | Z54: - | AA54: - | AB54: - | AC54: - | AD54: - | AE54: - | AF54: - | AG54: - | AH54: - | AI54: - | AJ54: - | AK54: - | AL54: - | AM54: - | AN54: - | AO54: - | AP54: - | AQ54: - | AR54: - | AS54: - | AT54: - | AU54: - | AV54: - | AW54: - | AX54: - | AY54: - | AZ54: - | BA54: - | BB54: - | BC54: - | BD54: - | BE54: - | BF54: - | BG54: - | BH54: - | BI54: - | BJ54: - | BK54: - | BL54: - | BM54: - | BN54: - | BO54: - | BP54: - | BQ54: - | BR54: - | BS54: - | BT54: - | BU54: - | BV54: - | BW54: - | BX54: - | BY54: - | BZ54: - | CA54: - | CB54: - | CC54: - | CD54: - | CE54: - | CF54: - | CG54: - | CH54: - | CI54: - | CJ54: - | CK54: - | CL54: - | CM54: - | CN54: - | CO54: - | CP54: - | CQ54: - | CR54: - | CS54: - | CT54: - | CU54: - | CV54: - | CW54: - | CX54: - | CY54: - | CZ54: - | DA54: - | DB54: - | DC54: - | DD54: - | DE54: - | DF54: - | DG54: - | DH54: - | DI54: -
B55: 23
B56: 24 | N56: - | O56: - | P56: - | Q56: - | R56: - | S56: - | T56: - | U56: - | V56: - | W56: - | X56: - | Y56: - | Z56: - | AA56: - | AB56: - | AC56: - | AD56: - | AE56: - | AF56: - | AG56: - | AH56: - | AI56: - | AJ56: - | AK56: - | AL56: - | AM56: - | AN56: - | AO56: - | AP56: - | AQ56: - | AR56: - | AS56: - | AT56: - | AU56: - | AV56: - | AW56: - | AX56: - | AY56: - | AZ56: - | BA56: - | BB56: - | BC56: - | BD56: - | BE56: - | BF56: - | BG56: - | BH56: - | BI56: - | BJ56: - | BK56: - | BL56: - | BM56: - | BN56: - | BO56: - | BP56: - | BQ56: - | BR56: - | BS56: - | BT56: - | BU56: - | BV56: - | BW56: - | BX56: - | BY56: - | BZ56: - | CA56: - | CB56: - | CC56: - | CD56: - | CE56: - | CF56: - | CG56: - | CH56: - | CI56: - | CJ56: - | CK56: - | CL56: - | CM56: - | CN56: - | CO56: - | CP56: - | CQ56: - | CR56: - | CS56: - | CT56: - | CU56: - | CV56: - | CW56: - | CX56: - | CY56: - | CZ56: - | DA56: - | DB56: - | DC56: - | DD56: - | DE56: - | DF56: - | DG56: - | DH56: - | DI56: -
B57: 24
B58: 25 | N58: - | O58: - | P58: - | Q58: - | R58: - | S58: - | T58: - | U58: - | V58: - | W58: - | X58: - | Y58: - | Z58: - | AA58: - | AB58: - | AC58: - | AD58: - | AE58: - | AF58: - | AG58: - | AH58: - | AI58: - | AJ58: - | AK58: - | AL58: - | AM58: - | AN58: - | AO58: - | AP58: - | AQ58: - | AR58: - | AS58: - | AT58: - | AU58: - | AV58: - | AW58: - | AX58: - | AY58: - | AZ58: - | BA58: - | BB58: - | BC58: - | BD58: - | BE58: - | BF58: - | BG58: - | BH58: - | BI58: - | BJ58: - | BK58: - | BL58: - | BM58: - | BN58: - | BO58: - | BP58: - | BQ58: - | BR58: - | BS58: - | BT58: - | BU58: - | BV58: - | BW58: - | BX58: - | BY58: - | BZ58: - | CA58: - | CB58: - | CC58: - | CD58: - | CE58: - | CF58: - | CG58: - | CH58: - | CI58: - | CJ58: - | CK58: - | CL58: - | CM58: - | CN58: - | CO58: - | CP58: - | CQ58: - | CR58: - | CS58: - | CT58: - | CU58: - | CV58: - | CW58: - | CX58: - | CY58: - | CZ58: - | DA58: - | DB58: - | DC58: - | DD58: - | DE58: - | DF58: - | DG58: - | DH58: - | DI58: -
B59: 25
B60: 26 | N60: - | O60: - | P60: - | Q60: - | R60: - | S60: - | T60: - | U60: - | V60: - | W60: - | X60: - | Y60: - | Z60: - | AA60: - | AB60: - | AC60: - | AD60: - | AE60: - | AF60: - | AG60: - | AH60: - | AI60: - | AJ60: - | AK60: - | AL60: - | AM60: - | AN60: - | AO60: - | AP60: - | AQ60: - | AR60: - | AS60: - | AT60: - | AU60: - | AV60: - | AW60: - | AX60: - | AY60: - | AZ60: - | BA60: - | BB60: - | BC60: - | BD60: - | BE60: - | BF60: - | BG60: - | BH60: - | BI60: - | BJ60: - | BK60: - | BL60: - | BM60: - | BN60: - | BO60: - | BP60: - | BQ60: - | BR60: - | BS60: - | BT60: - | BU60: - | BV60: - | BW60: - | BX60: - | BY60: - | BZ60: - | CA60: - | CB60: - | CC60: - | CD60: - | CE60: - | CF60: - | CG60: - | CH60: - | CI60: - | CJ60: - | CK60: - | CL60: - | CM60: - | CN60: - | CO60: - | CP60: - | CQ60: - | CR60: - | CS60: - | CT60: - | CU60: - | CV60: - | CW60: - | CX60: - | CY60: - | CZ60: - | DA60: - | DB60: - | DC60: - | DD60: - | DE60: - | DF60: - | DG60: - | DH60: - | DI60: -
B61: 26
B62: 27 | N62: - | O62: - | P62: - | Q62: - | R62: - | S62: - | T62: - | U62: - | V62: - | W62: - | X62: - | Y62: - | Z62: - | AA62: - | AB62: - | AC62: - | AD62: - | AE62: - | AF62: - | AG62: - | AH62: - | AI62: - | AJ62: - | AK62: - | AL62: - | AM62: - | AN62: - | AO62: - | AP62: - | AQ62: - | AR62: - | AS62: - | AT62: - | AU62: - | AV62: - | AW62: - | AX62: - | AY62: - | AZ62: - | BA62: - | BB62: - | BC62: - | BD62: - | BE62: - | BF62: - | BG62: - | BH62: - | BI62: - | BJ62: - | BK62: - | BL62: - | BM62: - | BN62: - | BO62: - | BP62: - | BQ62: - | BR62: - | BS62: - | BT62: - | BU62: - | BV62: - | BW62: - | BX62: - | BY62: - | BZ62: - | CA62: - | CB62: - | CC62: - | CD62: - | CE62: - | CF62: - | CG62: - | CH62: - | CI62: - | CJ62: - | CK62: - | CL62: - | CM62: - | CN62: - | CO62: - | CP62: - | CQ62: - | CR62: - | CS62: - | CT62: - | CU62: - | CV62: - | CW62: - | CX62: - | CY62: - | CZ62: - | DA62: - | DB62: - | DC62: - | DD62: - | DE62: - | DF62: - | DG62: - | DH62: - | DI62: -
B63: 27
B64: 28 | N64: - | O64: - | P64: - | Q64: - | R64: - | S64: - | T64: - | U64: - | V64: - | W64: - | X64: - | Y64: - | Z64: - | AA64: - | AB64: - | AC64: - | AD64: - | AE64: - | AF64: - | AG64: - | AH64: - | AI64: - | AJ64: - | AK64: - | AL64: - | AM64: - | AN64: - | AO64: - | AP64: - | AQ64: - | AR64: - | AS64: - | AT64: - | AU64: - | AV64: - | AW64: - | AX64: - | AY64: - | AZ64: - | BA64: - | BB64: - | BC64: - | BD64: - | BE64: - | BF64: - | BG64: - | BH64: - | BI64: - | BJ64: - | BK64: - | BL64: - | BM64: - | BN64: - | BO64: - | BP64: - | BQ64: - | BR64: - | BS64: - | BT64: - | BU64: - | BV64: - | BW64: - | BX64: - | BY64: - | BZ64: - | CA64: - | CB64: - | CC64: - | CD64: - | CE64: - | CF64: - | CG64: - | CH64: - | CI64: - | CJ64: - | CK64: - | CL64: - | CM64: - | CN64: - | CO64: - | CP64: - | CQ64: - | CR64: - | CS64: - | CT64: - | CU64: - | CV64: - | CW64: - | CX64: - | CY64: - | CZ64: - | DA64: - | DB64: - | DC64: - | DD64: - | DE64: - | DF64: - | DG64: - | DH64: - | DI64: -
B65: 28
B66: 29 | N66: - | O66: - | P66: - | Q66: - | R66: - | S66: - | T66: - | U66: - | V66: - | W66: - | X66: - | Y66: - | Z66: - | AA66: - | AB66: - | AC66: - | AD66: - | AE66: - | AF66: - | AG66: - | AH66: - | AI66: - | AJ66: - | AK66: - | AL66: - | AM66: - | AN66: - | AO66: - | AP66: - | AQ66: - | AR66: - | AS66: - | AT66: - | AU66: - | AV66: - | AW66: - | AX66: - | AY66: - | AZ66: - | BA66: - | BB66: - | BC66: - | BD66: - | BE66: - | BF66: - | BG66: - | BH66: - | BI66: - | BJ66: - | BK66: - | BL66: - | BM66: - | BN66: - | BO66: - | BP66: - | BQ66: - | BR66: - | BS66: - | BT66: - | BU66: - | BV66: - | BW66: - | BX66: - | BY66: - | BZ66: - | CA66: - | CB66: - | CC66: - | CD66: - | CE66: - | CF66: - | CG66: - | CH66: - | CI66: - | CJ66: - | CK66: - | CL66: - | CM66: - | CN66: - | CO66: - | CP66: - | CQ66: - | CR66: - | CS66: - | CT66: - | CU66: - | CV66: - | CW66: - | CX66: - | CY66: - | CZ66: - | DA66: - | DB66: - | DC66: - | DD66: - | DE66: - | DF66: - | DG66: - | DH66: - | DI66: -
B67: 29
B68: 30 | N68: - | O68: - | P68: - | Q68: - | R68: - | S68: - | T68: - | U68: - | V68: - | W68: - | X68: - | Y68: - | Z68: - | AA68: - | AB68: - | AC68: - | AD68: - | AE68: - | AF68: - | AG68: - | AH68: - | AI68: - | AJ68: - | AK68: - | AL68: - | AM68: - | AN68: - | AO68: - | AP68: - | AQ68: - | AR68: - | AS68: - | AT68: - | AU68: - | AV68: - | AW68: - | AX68: - | AY68: - | AZ68: - | BA68: - | BB68: - | BC68: - | BD68: - | BE68: - | BF68: - | BG68: - | BH68: - | BI68: - | BJ68: - | BK68: - | BL68: - | BM68: - | BN68: - | BO68: - | BP68: - | BQ68: - | BR68: - | BS68: - | BT68: - | BU68: - | BV68: - | BW68: - | BX68: - | BY68: - | BZ68: - | CA68: - | CB68: - | CC68: - | CD68: - | CE68: - | CF68: - | CG68: - | CH68: - | CI68: - | CJ68: - | CK68: - | CL68: - | CM68: - | CN68: - | CO68: - | CP68: - | CQ68: - | CR68: - | CS68: - | CT68: - | CU68: - | CV68: - | CW68: - | CX68: - | CY68: - | CZ68: - | DA68: - | DB68: - | DC68: - | DD68: - | DE68: - | DF68: - | DG68: - | DH68: - | DI68: -
B69: 30
B70: 31 | N70: - | O70: - | P70: - | Q70: - | R70: - | S70: - | T70: - | U70: - | V70: - | W70: - | X70: - | Y70: - | Z70: - | AA70: - | AB70: - | AC70: - | AD70: - | AE70: - | AF70: - | AG70: - | AH70: - | AI70: - | AJ70: - | AK70: - | AL70: - | AM70: - | AN70: - | AO70: - | AP70: - | AQ70: - | AR70: - | AS70: - | AT70: - | AU70: - | AV70: - | AW70: - | AX70: - | AY70: - | AZ70: - | BA70: - | BB70: - | BC70: - | BD70: - | BE70: - | BF70: - | BG70: - | BH70: - | BI70: - | BJ70: - | BK70: - | BL70: - | BM70: - | BN70: - | BO70: - | BP70: - | BQ70: - | BR70: - | BS70: - | BT70: - | BU70: - | BV70: - | BW70: - | BX70: - | BY70: - | BZ70: - | CA70: - | CB70: - | CC70: - | CD70: - | CE70: - | CF70: - | CG70: - | CH70: - | CI70: - | CJ70: - | CK70: - | CL70: - | CM70: - | CN70: - | CO70: - | CP70: - | CQ70: - | CR70: - | CS70: - | CT70: - | CU70: - | CV70: - | CW70: - | CX70: - | CY70: - | CZ70: - | DA70: - | DB70: - | DC70: - | DD70: - | DE70: - | DF70: - | DG70: - | DH70: - | DI70: -
B71: 31
B72: 32 | N72: - | O72: - | P72: - | Q72: - | R72: - | S72: - | T72: - | U72: - | V72: - | W72: - | X72: - | Y72: - | Z72: - | AA72: - | AB72: - | AC72: - | AD72: - | AE72: - | AF72: - | AG72: - | AH72: - | AI72: - | AJ72: - | AK72: - | AL72: - | AM72: - | AN72: - | AO72: - | AP72: - | AQ72: - | AR72: - | AS72: - | AT72: - | AU72: - | AV72: - | AW72: - | AX72: - | AY72: - | AZ72: - | BA72: - | BB72: - | BC72: - | BD72: - | BE72: - | BF72: - | BG72: - | BH72: - | BI72: - | BJ72: - | BK72: - | BL72: - | BM72: - | BN72: - | BO72: - | BP72: - | BQ72: - | BR72: - | BS72: - | BT72: - | BU72: - | BV72: - | BW72: - | BX72: - | BY72: - | BZ72: - | CA72: - | CB72: - | CC72: - | CD72: - | CE72: - | CF72: - | CG72: - | CH72: - | CI72: - | CJ72: - | CK72: - | CL72: - | CM72: - | CN72: - | CO72: - | CP72: - | CQ72: - | CR72: - | CS72: - | CT72: - | CU72: - | CV72: - | CW72: - | CX72: - | CY72: - | CZ72: - | DA72: - | DB72: - | DC72: - | DD72: - | DE72: - | DF72: - | DG72: - | DH72: - | DI72: -
B73: 32
B74: 33 | N74: - | O74: - | P74: - | Q74: - | R74: - | S74: - | T74: - | U74: - | V74: - | W74: - | X74: - | Y74: - | Z74: - | AA74: - | AB74: - | AC74: - | AD74: - | AE74: - | AF74: - | AG74: - | AH74: - | AI74: - | AJ74: - | AK74: - | AL74: - | AM74: - | AN74: - | AO74: - | AP74: - | AQ74: - | AR74: - | AS74: - | AT74: - | AU74: - | AV74: - | AW74: - | AX74: - | AY74: - | AZ74: - | BA74: - | BB74: - | BC74: - | BD74: - | BE74: - | BF74: - | BG74: - | BH74: - | BI74: - | BJ74: - | BK74: - | BL74: - | BM74: - | BN74: - | BO74: - | BP74: - | BQ74: - | BR74: - | BS74: - | BT74: - | BU74: - | BV74: - | BW74: - | BX74: - | BY74: - | BZ74: - | CA74: - | CB74: - | CC74: - | CD74: - | CE74: - | CF74: - | CG74: - | CH74: - | CI74: - | CJ74: - | CK74: - | CL74: - | CM74: - | CN74: - | CO74: - | CP74: - | CQ74: - | CR74: - | CS74: - | CT74: - | CU74: - | CV74: - | CW74: - | CX74: - | CY74: - | CZ74: - | DA74: - | DB74: - | DC74: - | DD74: - | DE74: - | DF74: - | DG74: - | DH74: - | DI74: -
B75: 33
B76: 34 | N76: - | O76: - | P76: - | Q76: - | R76: - | S76: - | T76: - | U76: - | V76: - | W76: - | X76: - | Y76: - | Z76: - | AA76: - | AB76: - | AC76: - | AD76: - | AE76: - | AF76: - | AG76: - | AH76: - | AI76: - | AJ76: - | AK76: - | AL76: - | AM76: - | AN76: - | AO76: - | AP76: - | AQ76: - | AR76: - | AS76: - | AT76: - | AU76: - | AV76: - | AW76: - | AX76: - | AY76: - | AZ76: - | BA76: - | BB76: - | BC76: - | BD76: - | BE76: - | BF76: - | BG76: - | BH76: - | BI76: - | BJ76: - | BK76: - | BL76: - | BM76: - | BN76: - | BO76: - | BP76: - | BQ76: - | BR76: - | BS76: - | BT76: - | BU76: - | BV76: - | BW76: - | BX76: - | BY76: - | BZ76: - | CA76: - | CB76: - | CC76: - | CD76: - | CE76: - | CF76: - | CG76: - | CH76: - | CI76: - | CJ76: - | CK76: - | CL76: - | CM76: - | CN76: - | CO76: - | CP76: - | CQ76: - | CR76: - | CS76: - | CT76: - | CU76: - | CV76: - | CW76: - | CX76: - | CY76: - | CZ76: - | DA76: - | DB76: - | DC76: - | DD76: - | DE76: - | DF76: - | DG76: - | DH76: - | DI76: -
B77: 34
B78: 35 | N78: - | O78: - | P78: - | Q78: - | R78: - | S78: - | T78: - | U78: - | V78: - | W78: - | X78: - | Y78: - | Z78: - | AA78: - | AB78: - | AC78: - | AD78: - | AE78: - | AF78: - | AG78: - | AH78: - | AI78: - | AJ78: - | AK78: - | AL78: - | AM78: - | AN78: - | AO78: - | AP78: - | AQ78: - | AR78: - | AS78: - | AT78: - | AU78: - | AV78: - | AW78: - | AX78: - | AY78: - | AZ78: - | BA78: - | BB78: - | BC78: - | BD78: - | BE78: - | BF78: - | BG78: - | BH78: - | BI78: - | BJ78: - | BK78: - | BL78: - | BM78: - | BN78: - | BO78: - | BP78: - | BQ78: - | BR78: - | BS78: - | BT78: - | BU78: - | BV78: - | BW78: - | BX78: - | BY78: - | BZ78: - | CA78: - | CB78: - | CC78: - | CD78: - | CE78: - | CF78: - | CG78: - | CH78: - | CI78: - | CJ78: - | CK78: - | CL78: - | CM78: - | CN78: - | CO78: - | CP78: - | CQ78: - | CR78: - | CS78: - | CT78: - | CU78: - | CV78: - | CW78: - | CX78: - | CY78: - | CZ78: - | DA78: - | DB78: - | DC78: - | DD78: - | DE78: - | DF78: - | DG78: - | DH78: - | DI78: -
B79: 35
B80: 36 | N80: - | O80: - | P80: - | Q80: - | R80: - | S80: - | T80: - | U80: - | V80: - | W80: - | X80: - | Y80: - | Z80: - | AA80: - | AB80: - | AC80: - | AD80: - | AE80: - | AF80: - | AG80: - | AH80: - | AI80: - | AJ80: - | AK80: - | AL80: - | AM80: - | AN80: - | AO80: - | AP80: - | AQ80: - | AR80: - | AS80: - | AT80: - | AU80: - | AV80: - | AW80: - | AX80: - | AY80: - | AZ80: - | BA80: - | BB80: - | BC80: - | BD80: - | BE80: - | BF80: - | BG80: - | BH80: - | BI80: - | BJ80: - | BK80: - | BL80: - | BM80: - | BN80: - | BO80: - | BP80: - | BQ80: - | BR80: - | BS80: - | BT80: - | BU80: - | BV80: - | BW80: - | BX80: - | BY80: - | BZ80: - | CA80: - | CB80: - | CC80: - | CD80: - | CE80: - | CF80: - | CG80: - | CH80: - | CI80: - | CJ80: - | CK80: - | CL80: - | CM80: - | CN80: - | CO80: - | CP80: - | CQ80: - | CR80: - | CS80: - | CT80: - | CU80: - | CV80: - | CW80: - | CX80: - | CY80: - | CZ80: - | DA80: - | DB80: - | DC80: - | DD80: - | DE80: - | DF80: - | DG80: - | DH80: - | DI80: -
B81: 36
B82: 37 | N82: - | O82: - | P82: - | Q82: - | R82: - | S82: - | T82: - | U82: - | V82: - | W82: - | X82: - | Y82: - | Z82: - | AA82: - | AB82: - | AC82: - | AD82: - | AE82: - | AF82: - | AG82: - | AH82: - | AI82: - | AJ82: - | AK82: - | AL82: - | AM82: - | AN82: - | AO82: - | AP82: - | AQ82: - | AR82: - | AS82: - | AT82: - | AU82: - | AV82: - | AW82: - | AX82: - | AY82: - | AZ82: - | BA82: - | BB82: - | BC82: - | BD82: - | BE82: - | BF82: - | BG82: - | BH82: - | BI82: - | BJ82: - | BK82: - | BL82: - | BM82: - | BN82: - | BO82: - | BP82: - | BQ82: - | BR82: - | BS82: - | BT82: - | BU82: - | BV82: - | BW82: - | BX82: - | BY82: - | BZ82: - | CA82: - | CB82: - | CC82: - | CD82: - | CE82: - | CF82: - | CG82: - | CH82: - | CI82: - | CJ82: - | CK82: - | CL82: - | CM82: - | CN82: - | CO82: - | CP82: - | CQ82: - | CR82: - | CS82: - | CT82: - | CU82: - | CV82: - | CW82: - | CX82: - | CY82: - | CZ82: - | DA82: - | DB82: - | DC82: - | DD82: - | DE82: - | DF82: - | DG82: - | DH82: - | DI82: -
B83: 37
B84: 38 | N84: - | O84: - | P84: - | Q84: - | R84: - | S84: - | T84: - | U84: - | V84: - | W84: - | X84: - | Y84: - | Z84: - | AA84: - | AB84: - | AC84: - | AD84: - | AE84: - | AF84: - | AG84: - | AH84: - | AI84: - | AJ84: - | AK84: - | AL84: - | AM84: - | AN84: - | AO84: - | AP84: - | AQ84: - | AR84: - | AS84: - | AT84: - | AU84: - | AV84: - | AW84: - | AX84: - | AY84: - | AZ84: - | BA84: - | BB84: - | BC84: - | BD84: - | BE84: - | BF84: - | BG84: - | BH84: - | BI84: - | BJ84: - | BK84: - | BL84: - | BM84: - | BN84: - | BO84: - | BP84: - | BQ84: - | BR84: - | BS84: - | BT84: - | BU84: - | BV84: - | BW84: - | BX84: - | BY84: - | BZ84: - | CA84: - | CB84: - | CC84: - | CD84: - | CE84: - | CF84: - | CG84: - | CH84: - | CI84: - | CJ84: - | CK84: - | CL84: - | CM84: - | CN84: - | CO84: - | CP84: - | CQ84: - | CR84: - | CS84: - | CT84: - | CU84: - | CV84: - | CW84: - | CX84: - | CY84: - | CZ84: - | DA84: - | DB84: - | DC84: - | DD84: - | DE84: - | DF84: - | DG84: - | DH84: - | DI84: -
B85: 38
B86: 39 | N86: - | O86: - | P86: - | Q86: - | R86: - | S86: - | T86: - | U86: - | V86: - | W86: - | X86: - | Y86: - | Z86: - | AA86: - | AB86: - | AC86: - | AD86: - | AE86: - | AF86: - | AG86: - | AH86: - | AI86: - | AJ86: - | AK86: - | AL86: - | AM86: - | AN86: - | AO86: - | AP86: - | AQ86: - | AR86: - | AS86: - | AT86: - | AU86: - | AV86: - | AW86: - | AX86: - | AY86: - | AZ86: - | BA86: - | BB86: - | BC86: - | BD86: - | BE86: - | BF86: - | BG86: - | BH86: - | BI86: - | BJ86: - | BK86: - | BL86: - | BM86: - | BN86: - | BO86: - | BP86: - | BQ86: - | BR86: - | BS86: - | BT86: - | BU86: - | BV86: - | BW86: - | BX86: - | BY86: - | BZ86: - | CA86: - | CB86: - | CC86: - | CD86: - | CE86: - | CF86: - | CG86: - | CH86: - | CI86: - | CJ86: - | CK86: - | CL86: - | CM86: - | CN86: - | CO86: - | CP86: - | CQ86: - | CR86: - | CS86: - | CT86: - | CU86: - | CV86: - | CW86: - | CX86: - | CY86: - | CZ86: - | DA86: - | DB86: - | DC86: - | DD86: - | DE86: - | DF86: - | DG86: - | DH86: - | DI86: -
B87: 39
B88: 40 | N88: - | O88: - | P88: - | Q88: - | R88: - | S88: - | T88: - | U88: - | V88: - | W88: - | X88: - | Y88: - | Z88: - | AA88: - | AB88: - | AC88: - | AD88: - | AE88: - | AF88: - | AG88: - | AH88: - | AI88: - | AJ88: - | AK88: - | AL88: - | AM88: - | AN88: - | AO88: - | AP88: - | AQ88: - | AR88: - | AS88: - | AT88: - | AU88: - | AV88: - | AW88: - | AX88: - | AY88: - | AZ88: - | BA88: - | BB88: - | BC88: - | BD88: - | BE88: - | BF88: - | BG88: - | BH88: - | BI88: - | BJ88: - | BK88: - | BL88: - | BM88: - | BN88: - | BO88: - | BP88: - | BQ88: - | BR88: - | BS88: - | BT88: - | BU88: - | BV88: - | BW88: - | BX88: - | BY88: - | BZ88: - | CA88: - | CB88: - | CC88: - | CD88: - | CE88: - | CF88: - | CG88: - | CH88: - | CI88: - | CJ88: - | CK88: - | CL88: - | CM88: - | CN88: - | CO88: - | CP88: - | CQ88: - | CR88: - | CS88: - | CT88: - | CU88: - | CV88: - | CW88: - | CX88: - | CY88: - | CZ88: - | DA88: - | DB88: - | DC88: - | DD88: - | DE88: - | DF88: - | DG88: - | DH88: - | DI88: -
B89: 40
B90: 41 | N90: - | O90: - | P90: - | Q90: - | R90: - | S90: - | T90: - | U90: - | V90: - | W90: - | X90: - | Y90: - | Z90: - | AA90: - | AB90: - | AC90: - | AD90: - | AE90: - | AF90: - | AG90: - | AH90: - | AI90: - | AJ90: - | AK90: - | AL90: - | AM90: - | AN90: - | AO90: - | AP90: - | AQ90: - | AR90: - | AS90: - | AT90: - | AU90: - | AV90: - | AW90: - | AX90: - | AY90: - | AZ90: - | BA90: - | BB90: - | BC90: - | BD90: - | BE90: - | BF90: - | BG90: - | BH90: - | BI90: - | BJ90: - | BK90: - | BL90: - | BM90: - | BN90: - | BO90: - | BP90: - | BQ90: - | BR90: - | BS90: - | BT90: - | BU90: - | BV90: - | BW90: - | BX90: - | BY90: - | BZ90: - | CA90: - | CB90: - | CC90: - | CD90: - | CE90: - | CF90: - | CG90: - | CH90: - | CI90: - | CJ90: - | CK90: - | CL90: - | CM90: - | CN90: - | CO90: - | CP90: - | CQ90: - | CR90: - | CS90: - | CT90: - | CU90: - | CV90: - | CW90: - | CX90: - | CY90: - | CZ90: - | DA90: - | DB90: - | DC90: - | DD90: - | DE90: - | DF90: - | DG90: - | DH90: - | DI90: -
B91: 41
B92: 42 | N92: - | O92: - | P92: - | Q92: - | R92: - | S92: - | T92: - | U92: - | V92: - | W92: - | X92: - | Y92: - | Z92: - | AA92: - | AB92: - | AC92: - | AD92: - | AE92: - | AF92: - | AG92: - | AH92: - | AI92: - | AJ92: - | AK92: - | AL92: - | AM92: - | AN92: - | AO92: - | AP92: - | AQ92: - | AR92: - | AS92: - | AT92: - | AU92: - | AV92: - | AW92: - | AX92: - | AY92: - | AZ92: - | BA92: - | BB92: - | BC92: - | BD92: - | BE92: - | BF92: - | BG92: - | BH92: - | BI92: - | BJ92: - | BK92: - | BL92: - | BM92: - | BN92: - | BO92: - | BP92: - | BQ92: - | BR92: - | BS92: - | BT92: - | BU92: - | BV92: - | BW92: - | BX92: - | BY92: - | BZ92: - | CA92: - | CB92: - | CC92: - | CD92: - | CE92: - | CF92: - | CG92: - | CH92: - | CI92: - | CJ92: - | CK92: - | CL92: - | CM92: - | CN92: - | CO92: - | CP92: - | CQ92: - | CR92: - | CS92: - | CT92: - | CU92: - | CV92: - | CW92: - | CX92: - | CY92: - | CZ92: - | DA92: - | DB92: - | DC92: - | DD92: - | DE92: - | DF92: - | DG92: - | DH92: - | DI92: -
B93: 42
B94: 43 | N94: - | O94: - | P94: - | Q94: - | R94: - | S94: - | T94: - | U94: - | V94: - | W94: - | X94: - | Y94: - | Z94: - | AA94: - | AB94: - | AC94: - | AD94: - | AE94: - | AF94: - | AG94: - | AH94: - | AI94: - | AJ94: - | AK94: - | AL94: - | AM94: - | AN94: - | AO94: - | AP94: - | AQ94: - | AR94: - | AS94: - | AT94: - | AU94: - | AV94: - | AW94: - | AX94: - | AY94: - | AZ94: - | BA94: - | BB94: - | BC94: - | BD94: - | BE94: - | BF94: - | BG94: - | BH94: - | BI94: - | BJ94: - | BK94: - | BL94: - | BM94: - | BN94: - | BO94: - | BP94: - | BQ94: - | BR94: - | BS94: - | BT94: - | BU94: - | BV94: - | BW94: - | BX94: - | BY94: - | BZ94: - | CA94: - | CB94: - | CC94: - | CD94: - | CE94: - | CF94: - | CG94: - | CH94: - | CI94: - | CJ94: - | CK94: - | CL94: - | CM94: - | CN94: - | CO94: - | CP94: - | CQ94: - | CR94: - | CS94: - | CT94: - | CU94: - | CV94: - | CW94: - | CX94: - | CY94: - | CZ94: - | DA94: - | DB94: - | DC94: - | DD94: - | DE94: - | DF94: - | DG94: - | DH94: - | DI94: -
B95: 43
B96: 44 | N96: - | O96: - | P96: - | Q96: - | R96: - | S96: - | T96: - | U96: - | V96: - | W96: - | X96: - | Y96: - | Z96: - | AA96: - | AB96: - | AC96: - | AD96: - | AE96: - | AF96: - | AG96: - | AH96: - | AI96: - | AJ96: - | AK96: - | AL96: - | AM96: - | AN96: - | AO96: - | AP96: - | AQ96: - | AR96: - | AS96: - | AT96: - | AU96: - | AV96: - | AW96: - | AX96: - | AY96: - | AZ96: - | BA96: - | BB96: - | BC96: - | BD96: - | BE96: - | BF96: - | BG96: - | BH96: - | BI96: - | BJ96: - | BK96: - | BL96: - | BM96: - | BN96: - | BO96: - | BP96: - | BQ96: - | BR96: - | BS96: - | BT96: - | BU96: - | BV96: - | BW96: - | BX96: - | BY96: - | BZ96: - | CA96: - | CB96: - | CC96: - | CD96: - | CE96: - | CF96: - | CG96: - | CH96: - | CI96: - | CJ96: - | CK96: - | CL96: - | CM96: - | CN96: - | CO96: - | CP96: - | CQ96: - | CR96: - | CS96: - | CT96: - | CU96: - | CV96: - | CW96: - | CX96: - | CY96: - | CZ96: - | DA96: - | DB96: - | DC96: - | DD96: - | DE96: - | DF96: - | DG96: - | DH96: - | DI96: -
B97: 44
B98: 45 | N98: - | O98: - | P98: - | Q98: - | R98: - | S98: - | T98: - | U98: - | V98: - | W98: - | X98: - | Y98: - | Z98: - | AA98: - | AB98: - | AC98: - | AD98: - | AE98: - | AF98: - | AG98: - | AH98: - | AI98: - | AJ98: - | AK98: - | AL98: - | AM98: - | AN98: - | AO98: - | AP98: - | AQ98: - | AR98: - | AS98: - | AT98: - | AU98: - | AV98: - | AW98: - | AX98: - | AY98: - | AZ98: - | BA98: - | BB98: - | BC98: - | BD98: - | BE98: - | BF98: - | BG98: - | BH98: - | BI98: - | BJ98: - | BK98: - | BL98: - | BM98: - | BN98: - | BO98: - | BP98: - | BQ98: - | BR98: - | BS98: - | BT98: - | BU98: - | BV98: - | BW98: - | BX98: - | BY98: - | BZ98: - | CA98: - | CB98: - | CC98: - | CD98: - | CE98: - | CF98: - | CG98: - | CH98: - | CI98: - | CJ98: - | CK98: - | CL98: - | CM98: - | CN98: - | CO98: - | CP98: - | CQ98: - | CR98: - | CS98: - | CT98: - | CU98: - | CV98: - | CW98: - | CX98: - | CY98: - | CZ98: - | DA98: - | DB98: - | DC98: - | DD98: - | DE98: - | DF98: - | DG98: - | DH98: - | DI98: -
B99: 45
B100: 46 | N100: - | O100: - | P100: - | Q100: - | R100: - | S100: - | T100: - | U100: - | V100: - | W100: - | X100: - | Y100: - | Z100: - | AA100: - | AB100: - | AC100: - | AD100: - | AE100: - | AF100: - | AG100: - | AH100: - | AI100: - | AJ100: - | AK100: - | AL100: - | AM100: - | AN100: - | AO100: - | AP100: - | AQ100: - | AR100: - | AS100: - | AT100: - | AU100: - | AV100: - | AW100: - | AX100: - | AY100: - | AZ100: - | BA100: - | BB100: - | BC100: - | BD100: - | BE100: - | BF100: - | BG100: - | BH100: - | BI100: - | BJ100: - | BK100: - | BL100: - | BM100: - | BN100: - | BO100: - | BP100: - | BQ100: - | BR100: - | BS100: - | BT100: - | BU100: - | BV100: - | BW100: - | BX100: - | BY100: - | BZ100: - | CA100: - | CB100: - | CC100: - | CD100: - | CE100: - | CF100: - | CG100: - | CH100: - | CI100: - | CJ100: - | CK100: - | CL100: - | CM100: - | CN100: - | CO100: - | CP100: - | CQ100: - | CR100: - | CS100: - | CT100: - | CU100: - | CV100: - | CW100: - | CX100: - | CY100: - | CZ100: - | DA100: - | DB100: - | DC100: - | DD100: - | DE100: - | DF100: - | DG100: - | DH100: - | DI100: -
B101: 46
B102: 47 | N102: - | O102: - | P102: - | Q102: - | R102: - | S102: - | T102: - | U102: - | V102: - | W102: - | X102: - | Y102: - | Z102: - | AA102: - | AB102: - | AC102: - | AD102: - | AE102: - | AF102: - | AG102: - | AH102: - | AI102: - | AJ102: - | AK102: - | AL102: - | AM102: - | AN102: - | AO102: - | AP102: - | AQ102: - | AR102: - | AS102: - | AT102: - | AU102: - | AV102: - | AW102: - | AX102: - | AY102: - | AZ102: - | BA102: - | BB102: - | BC102: - | BD102: - | BE102: - | BF102: - | BG102: - | BH102: - | BI102: - | BJ102: - | BK102: - | BL102: - | BM102: - | BN102: - | BO102: - | BP102: - | BQ102: - | BR102: - | BS102: - | BT102: - | BU102: - | BV102: - | BW102: - | BX102: - | BY102: - | BZ102: - | CA102: - | CB102: - | CC102: - | CD102: - | CE102: - | CF102: - | CG102: - | CH102: - | CI102: - | CJ102: - | CK102: - | CL102: - | CM102: - | CN102: - | CO102: - | CP102: - | CQ102: - | CR102: - | CS102: - | CT102: - | CU102: - | CV102: - | CW102: - | CX102: - | CY102: - | CZ102: - | DA102: - | DB102: - | DC102: - | DD102: - | DE102: - | DF102: - | DG102: - | DH102: - | DI102: -
B103: 47
B104: 48 | N104: - | O104: - | P104: - | Q104: - | R104: - | S104: - | T104: - | U104: - | V104: - | W104: - | X104: - | Y104: - | Z104: - | AA104: - | AB104: - | AC104: - | AD104: - | AE104: - | AF104: - | AG104: - | AH104: - | AI104: - | AJ104: - | AK104: - | AL104: - | AM104: - | AN104: - | AO104: - | AP104: - | AQ104: - | AR104: - | AS104: - | AT104: - | AU104: - | AV104: - | AW104: - | AX104: - | AY104: - | AZ104: - | BA104: - | BB104: - | BC104: - | BD104: - | BE104: - | BF104: - | BG104: - | BH104: - | BI104: - | BJ104: - | BK104: - | BL104: - | BM104: - | BN104: - | BO104: - | BP104: - | BQ104: - | BR104: - | BS104: - | BT104: - | BU104: - | BV104: - | BW104: - | BX104: - | BY104: - | BZ104: - | CA104: - | CB104: - | CC104: - | CD104: - | CE104: - | CF104: - | CG104: - | CH104: - | CI104: - | CJ104: - | CK104: - | CL104: - | CM104: - | CN104: - | CO104: - | CP104: - | CQ104: - | CR104: - | CS104: - | CT104: - | CU104: - | CV104: - | CW104: - | CX104: - | CY104: - | CZ104: - | DA104: - | DB104: - | DC104: - | DD104: - | DE104: - | DF104: - | DG104: - | DH104: - | DI104: -
B105: 48
B106: 49 | N106: - | O106: - | P106: - | Q106: - | R106: - | S106: - | T106: - | U106: - | V106: - | W106: - | X106: - | Y106: - | Z106: - | AA106: - | AB106: - | AC106: - | AD106: - | AE106: - | AF106: - | AG106: - | AH106: - | AI106: - | AJ106: - | AK106: - | AL106: - | AM106: - | AN106: - | AO106: - | AP106: - | AQ106: - | AR106: - | AS106: - | AT106: - | AU106: - | AV106: - | AW106: - | AX106: - | AY106: - | AZ106: - | BA106: - | BB106: - | BC106: - | BD106: - | BE106: - | BF106: - | BG106: - | BH106: - | BI106: - | BJ106: - | BK106: - | BL106: - | BM106: - | BN106: - | BO106: - | BP106: - | BQ106: - | BR106: - | BS106: - | BT106: - | BU106: - | BV106: - | BW106: - | BX106: - | BY106: - | BZ106: - | CA106: - | CB106: - | CC106: - | CD106: - | CE106: - | CF106: - | CG106: - | CH106: - | CI106: - | CJ106: - | CK106: - | CL106: - | CM106: - | CN106: - | CO106: - | CP106: - | CQ106: - | CR106: - | CS106: - | CT106: - | CU106: - | CV106: - | CW106: - | CX106: - | CY106: - | CZ106: - | DA106: - | DB106: - | DC106: - | DD106: - | DE106: - | DF106: - | DG106: - | DH106: - | DI106: -
B107: 49
B108: 50 | N108: - | O108: - | P108: - | Q108: - | R108: - | S108: - | T108: - | U108: - | V108: - | W108: - | X108: - | Y108: - | Z108: - | AA108: - | AB108: - | AC108: - | AD108: - | AE108: - | AF108: - | AG108: - | AH108: - | AI108: - | AJ108: - | AK108: - | AL108: - | AM108: - | AN108: - | AO108: - | AP108: - | AQ108: - | AR108: - | AS108: - | AT108: - | AU108: - | AV108: - | AW108: - | AX108: - | AY108: - | AZ108: - | BA108: - | BB108: - | BC108: - | BD108: - | BE108: - | BF108: - | BG108: - | BH108: - | BI108: - | BJ108: - | BK108: - | BL108: - | BM108: - | BN108: - | BO108: - | BP108: - | BQ108: - | BR108: - | BS108: - | BT108: - | BU108: - | BV108: - | BW108: - | BX108: - | BY108: - | BZ108: - | CA108: - | CB108: - | CC108: - | CD108: - | CE108: - | CF108: - | CG108: - | CH108: - | CI108: - | CJ108: - | CK108: - | CL108: - | CM108: - | CN108: - | CO108: - | CP108: - | CQ108: - | CR108: - | CS108: - | CT108: - | CU108: - | CV108: - | CW108: - | CX108: - | CY108: - | CZ108: - | DA108: - | DB108: - | DC108: - | DD108: - | DE108: - | DF108: - | DG108: - | DH108: - | DI108: -
B109: 50
B110: 51 | N110: - | O110: - | P110: - | Q110: - | R110: - | S110: - | T110: - | U110: - | V110: - | W110: - | X110: - | Y110: - | Z110: - | AA110: - | AB110: - | AC110: - | AD110: - | AE110: - | AF110: - | AG110: - | AH110: - | AI110: - | AJ110: - | AK110: - | AL110: - | AM110: - | AN110: - | AO110: - | AP110: - | AQ110: - | AR110: - | AS110: - | AT110: - | AU110: - | AV110: - | AW110: - | AX110: - | AY110: - | AZ110: - | BA110: - | BB110: - | BC110: - | BD110: - | BE110: - | BF110: - | BG110: - | BH110: - | BI110: - | BJ110: - | BK110: - | BL110: - | BM110: - | BN110: - | BO110: - | BP110: - | BQ110: - | BR110: - | BS110: - | BT110: - | BU110: - | BV110: - | BW110: - | BX110: - | BY110: - | BZ110: - | CA110: - | CB110: - | CC110: - | CD110: - | CE110: - | CF110: - | CG110: - | CH110: - | CI110: - | CJ110: - | CK110: - | CL110: - | CM110: - | CN110: - | CO110: - | CP110: - | CQ110: - | CR110: - | CS110: - | CT110: - | CU110: - | CV110: - | CW110: - | CX110: - | CY110: - | CZ110: - | DA110: - | DB110: - | DC110: - | DD110: - | DE110: - | DF110: - | DG110: - | DH110: - | DI110: -
B111: 51
B112: 52 | N112: - | O112: - | P112: - | Q112: - | R112: - | S112: - | T112: - | U112: - | V112: - | W112: - | X112: - | Y112: - | Z112: - | AA112: - | AB112: - | AC112: - | AD112: - | AE112: - | AF112: - | AG112: - | AH112: - | AI112: - | AJ112: - | AK112: - | AL112: - | AM112: - | AN112: - | AO112: - | AP112: - | AQ112: - | AR112: - | AS112: - | AT112: - | AU112: - | AV112: - | AW112: - | AX112: - | AY112: - | AZ112: - | BA112: - | BB112: - | BC112: - | BD112: - | BE112: - | BF112: - | BG112: - | BH112: - | BI112: - | BJ112: - | BK112: - | BL112: - | BM112: - | BN112: - | BO112: - | BP112: - | BQ112: - | BR112: - | BS112: - | BT112: - | BU112: - | BV112: - | BW112: - | BX112: - | BY112: - | BZ112: - | CA112: - | CB112: - | CC112: - | CD112: - | CE112: - | CF112: - | CG112: - | CH112: - | CI112: - | CJ112: - | CK112: - | CL112: - | CM112: - | CN112: - | CO112: - | CP112: - | CQ112: - | CR112: - | CS112: - | CT112: - | CU112: - | CV112: - | CW112: - | CX112: - | CY112: - | CZ112: - | DA112: - | DB112: - | DC112: - | DD112: - | DE112: - | DF112: - | DG112: - | DH112: - | DI112: -
B113: 52
B114: 53 | N114: - | O114: - | P114: - | Q114: - | R114: - | S114: - | T114: - | U114: - | V114: - | W114: - | X114: - | Y114: - | Z114: - | AA114: - | AB114: - | AC114: - | AD114: - | AE114: - | AF114: - | AG114: - | AH114: - | AI114: - | AJ114: - | AK114: - | AL114: - | AM114: - | AN114: - | AO114: - | AP114: - | AQ114: - | AR114: - | AS114: - | AT114: - | AU114: - | AV114: - | AW114: - | AX114: - | AY114: - | AZ114: - | BA114: - | BB114: - | BC114: - | BD114: - | BE114: - | BF114: - | BG114: - | BH114: - | BI114: - | BJ114: - | BK114: - | BL114: - | BM114: - | BN114: - | BO114: - | BP114: - | BQ114: - | BR114: - | BS114: - | BT114: - | BU114: - | BV114: - | BW114: - | BX114: - | BY114: - | BZ114: - | CA114: - | CB114: - | CC114: - | CD114: - | CE114: - | CF114: - | CG114: - | CH114: - | CI114: - | CJ114: - | CK114: - | CL114: - | CM114: - | CN114: - | CO114: - | CP114: - | CQ114: - | CR114: - | CS114: - | CT114: - | CU114: - | CV114: - | CW114: - | CX114: - | CY114: - | CZ114: - | DA114: - | DB114: - | DC114: - | DD114: - | DE114: - | DF114: - | DG114: - | DH114: - | DI114: -
B115: 53
B116: 54 | N116: - | O116: - | P116: - | Q116: - | R116: - | S116: - | T116: - | U116: - | V116: - | W116: - | X116: - | Y116: - | Z116: - | AA116: - | AB116: - | AC116: - | AD116: - | AE116: - | AF116: - | AG116: - | AH116: - | AI116: - | AJ116: - | AK116: - | AL116: - | AM116: - | AN116: - | AO116: - | AP116: - | AQ116: - | AR116: - | AS116: - | AT116: - | AU116: - | AV116: - | AW116: - | AX116: - | AY116: - | AZ116: - | BA116: - | BB116: - | BC116: - | BD116: - | BE116: - | BF116: - | BG116: - | BH116: - | BI116: - | BJ116: - | BK116: - | BL116: - | BM116: - | BN116: - | BO116: - | BP116: - | BQ116: - | BR116: - | BS116: - | BT116: - | BU116: - | BV116: - | BW116: - | BX116: - | BY116: - | BZ116: - | CA116: - | CB116: - | CC116: - | CD116: - | CE116: - | CF116: - | CG116: - | CH116: - | CI116: - | CJ116: - | CK116: - | CL116: - | CM116: - | CN116: - | CO116: - | CP116: - | CQ116: - | CR116: - | CS116: - | CT116: - | CU116: - | CV116: - | CW116: - | CX116: - | CY116: - | CZ116: - | DA116: - | DB116: - | DC116: - | DD116: - | DE116: - | DF116: - | DG116: - | DH116: - | DI116: -
B117: 54
B118: 55 | N118: - | O118: - | P118: - | Q118: - | R118: - | S118: - | T118: - | U118: - | V118: - | W118: - | X118: - | Y118: - | Z118: - | AA118: - | AB118: - | AC118: - | AD118: - | AE118: - | AF118: - | AG118: - | AH118: - | AI118: - | AJ118: - | AK118: - | AL118: - | AM118: - | AN118: - | AO118: - | AP118: - | AQ118: - | AR118: - | AS118: - | AT118: - | AU118: - | AV118: - | AW118: - | AX118: - | AY118: - | AZ118: - | BA118: - | BB118: - | BC118: - | BD118: - | BE118: - | BF118: - | BG118: - | BH118: - | BI118: - | BJ118: - | BK118: - | BL118: - | BM118: - | BN118: - | BO118: - | BP118: - | BQ118: - | BR118: - | BS118: - | BT118: - | BU118: - | BV118: - | BW118: - | BX118: - | BY118: - | BZ118: - | CA118: - | CB118: - | CC118: - | CD118: - | CE118: - | CF118: - | CG118: - | CH118: - | CI118: - | CJ118: - | CK118: - | CL118: - | CM118: - | CN118: - | CO118: - | CP118: - | CQ118: - | CR118: - | CS118: - | CT118: - | CU118: - | CV118: - | CW118: - | CX118: - | CY118: - | CZ118: - | DA118: - | DB118: - | DC118: - | DD118: - | DE118: - | DF118: - | DG118: - | DH118: - | DI118: -
B119: 55
B120: 56 | N120: - | O120: - | P120: - | Q120: - | R120: - | S120: - | T120: - | U120: - | V120: - | W120: - | X120: - | Y120: - | Z120: - | AA120: - | AB120: - | AC120: - | AD120: - | AE120: - | AF120: - | AG120: - | AH120: - | AI120: - | AJ120: - | AK120: - | AL120: - | AM120: - | AN120: - | AO120: - | AP120: - | AQ120: - | AR120: - | AS120: - | AT120: - | AU120: - | AV120: - | AW120: - | AX120: - | AY120: - | AZ120: - | BA120: - | BB120: - | BC120: - | BD120: - | BE120: - | BF120: - | BG120: - | BH120: - | BI120: - | BJ120: - | BK120: - | BL120: - | BM120: - | BN120: - | BO120: - | BP120: - | BQ120: - | BR120: - | BS120: - | BT120: - | BU120: - | BV120: - | BW120: - | BX120: - | BY120: - | BZ120: - | CA120: - | CB120: - | CC120: - | CD120: - | CE120: - | CF120: - | CG120: - | CH120: - | CI120: - | CJ120: - | CK120: - | CL120: - | CM120: - | CN120: - | CO120: - | CP120: - | CQ120: - | CR120: - | CS120: - | CT120: - | CU120: - | CV120: - | CW120: - | CX120: - | CY120: - | CZ120: - | DA120: - | DB120: - | DC120: - | DD120: - | DE120: - | DF120: - | DG120: - | DH120: - | DI120: -
B121: 56
B122: 57 | N122: - | O122: - | P122: - | Q122: - | R122: - | S122: - | T122: - | U122: - | V122: - | W122: - | X122: - | Y122: - | Z122: - | AA122: - | AB122: - | AC122: - | AD122: - | AE122: - | AF122: - | AG122: - | AH122: - | AI122: - | AJ122: - | AK122: - | AL122: - | AM122: - | AN122: - | AO122: - | AP122: - | AQ122: - | AR122: - | AS122: - | AT122: - | AU122: - | AV122: - | AW122: - | AX122: - | AY122: - | AZ122: - | BA122: - | BB122: - | BC122: - | BD122: - | BE122: - | BF122: - | BG122: - | BH122: - | BI122: - | BJ122: - | BK122: - | BL122: - | BM122: - | BN122: - | BO122: - | BP122: - | BQ122: - | BR122: - | BS122: - | BT122: - | BU122: - | BV122: - | BW122: - | BX122: - | BY122: - | BZ122: - | CA122: - | CB122: - | CC122: - | CD122: - | CE122: - | CF122: - | CG122: - | CH122: - | CI122: - | CJ122: - | CK122: - | CL122: - | CM122: - | CN122: - | CO122: - | CP122: - | CQ122: - | CR122: - | CS122: - | CT122: - | CU122: - | CV122: - | CW122: - | CX122: - | CY122: - | CZ122: - | DA122: - | DB122: - | DC122: - | DD122: - | DE122: - | DF122: - | DG122: - | DH122: - | DI122: -
B123: 57
B124: 58 | N124: - | O124: - | P124: - | Q124: - | R124: - | S124: - | T124: - | U124: - | V124: - | W124: - | X124: - | Y124: - | Z124: - | AA124: - | AB124: - | AC124: - | AD124: - | AE124: - | AF124: - | AG124: - | AH124: - | AI124: - | AJ124: - | AK124: - | AL124: - | AM124: - | AN124: - | AO124: - | AP124: - | AQ124: - | AR124: - | AS124: - | AT124: - | AU124: - | AV124: - | AW124: - | AX124: - | AY124: - | AZ124: - | BA124: - | BB124: - | BC124: - | BD124: - | BE124: - | BF124: - | BG124: - | BH124: - | BI124: - | BJ124: - | BK124: - | BL124: - | BM124: - | BN124: - | BO124: - | BP124: - | BQ124: - | BR124: - | BS124: - | BT124: - | BU124: - | BV124: - | BW124: - | BX124: - | BY124: - | BZ124: - | CA124: - | CB124: - | CC124: - | CD124: - | CE124: - | CF124: - | CG124: - | CH124: - | CI124: - | CJ124: - | CK124: - | CL124: - | CM124: - | CN124: - | CO124: - | CP124: - | CQ124: - | CR124: - | CS124: - | CT124: - | CU124: - | CV124: - | CW124: - | CX124: - | CY124: - | CZ124: - | DA124: - | DB124: - | DC124: - | DD124: - | DE124: - | DF124: - | DG124: - | DH124: - | DI124: -
B125: 58
B126: 59 | N126: - | O126: - | P126: - | Q126: - | R126: - | S126: - | T126: - | U126: - | V126: - | W126: - | X126: - | Y126: - | Z126: - | AA126: - | AB126: - | AC126: - | AD126: - | AE126: - | AF126: - | AG126: - | AH126: - | AI126: - | AJ126: - | AK126: - | AL126: - | AM126: - | AN126: - | AO126: - | AP126: - | AQ126: - | AR126: - | AS126: - | AT126: - | AU126: - | AV126: - | AW126: - | AX126: - | AY126: - | AZ126: - | BA126: - | BB126: - | BC126: - | BD126: - | BE126: - | BF126: - | BG126: - | BH126: - | BI126: - | BJ126: - | BK126: - | BL126: - | BM126: - | BN126: - | BO126: - | BP126: - | BQ126: - | BR126: - | BS126: - | BT126: - | BU126: - | BV126: - | BW126: - | BX126: - | BY126: - | BZ126: - | CA126: - | CB126: - | CC126: - | CD126: - | CE126: - | CF126: - | CG126: - | CH126: - | CI126: - | CJ126: - | CK126: - | CL126: - | CM126: - | CN126: - | CO126: - | CP126: - | CQ126: - | CR126: - | CS126: - | CT126: - | CU126: - | CV126: - | CW126: - | CX126: - | CY126: - | CZ126: - | DA126: - | DB126: - | DC126: - | DD126: - | DE126: - | DF126: - | DG126: - | DH126: - | DI126: -
B127: 59
B128: 60 | N128: - | O128: - | P128: - | Q128: - | R128: - | S128: - | T128: - | U128: - | V128: - | W128: - | X128: - | Y128: - | Z128: - | AA128: - | AB128: - | AC128: - | AD128: - | AE128: - | AF128: - | AG128: - | AH128: - | AI128: - | AJ128: - | AK128: - | AL128: - | AM128: - | AN128: - | AO128: - | AP128: - | AQ128: - | AR128: - | AS128: - | AT128: - | AU128: - | AV128: - | AW128: - | AX128: - | AY128: - | AZ128: - | BA128: - | BB128: - | BC128: - | BD128: - | BE128: - | BF128: - | BG128: - | BH128: - | BI128: - | BJ128: - | BK128: - | BL128: - | BM128: - | BN128: - | BO128: - | BP128: - | BQ128: - | BR128: - | BS128: - | BT128: - | BU128: - | BV128: - | BW128: - | BX128: - | BY128: - | BZ128: - | CA128: - | CB128: - | CC128: - | CD128: - | CE128: - | CF128: - | CG128: - | CH128: - | CI128: - | CJ128: - | CK128: - | CL128: - | CM128: - | CN128: - | CO128: - | CP128: - | CQ128: - | CR128: - | CS128: - | CT128: - | CU128: - | CV128: - | CW128: - | CX128: - | CY128: - | CZ128: - | DA128: - | DB128: - | DC128: - | DD128: - | DE128: - | DF128: - | DG128: - | DH128: - | DI128: -
B129: 60
B130: 61 | N130: - | O130: - | P130: - | Q130: - | R130: - | S130: - | T130: - | U130: - | V130: - | W130: - | X130: - | Y130: - | Z130: - | AA130: - | AB130: - | AC130: - | AD130: - | AE130: - | AF130: - | AG130: - | AH130: - | AI130: - | AJ130: - | AK130: - | AL130: - | AM130: - | AN130: - | AO130: - | AP130: - | AQ130: - | AR130: - | AS130: - | AT130: - | AU130: - | AV130: - | AW130: - | AX130: - | AY130: - | AZ130: - | BA130: - | BB130: - | BC130: - | BD130: - | BE130: - | BF130: - | BG130: - | BH130: - | BI130: - | BJ130: - | BK130: - | BL130: - | BM130: - | BN130: - | BO130: - | BP130: - | BQ130: - | BR130: - | BS130: - | BT130: - | BU130: - | BV130: - | BW130: - | BX130: - | BY130: - | BZ130: - | CA130: - | CB130: - | CC130: - | CD130: - | CE130: - | CF130: - | CG130: - | CH130: - | CI130: - | CJ130: - | CK130: - | CL130: - | CM130: - | CN130: - | CO130: - | CP130: - | CQ130: - | CR130: - | CS130: - | CT130: - | CU130: - | CV130: - | CW130: - | CX130: - | CY130: - | CZ130: - | DA130: - | DB130: - | DC130: - | DD130: - | DE130: - | DF130: - | DG130: - | DH130: - | DI130: -
B131: 61
B132: 62 | N132: - | O132: - | P132: - | Q132: - | R132: - | S132: - | T132: - | U132: - | V132: - | W132: - | X132: - | Y132: - | Z132: - | AA132: - | AB132: - | AC132: - | AD132: - | AE132: - | AF132: - | AG132: - | AH132: - | AI132: - | AJ132: - | AK132: - | AL132: - | AM132: - | AN132: - | AO132: - | AP132: - | AQ132: - | AR132: - | AS132: - | AT132: - | AU132: - | AV132: - | AW132: - | AX132: - | AY132: - | AZ132: - | BA132: - | BB132: - | BC132: - | BD132: - | BE132: - | BF132: - | BG132: - | BH132: - | BI132: - | BJ132: - | BK132: - | BL132: - | BM132: - | BN132: - | BO132: - | BP132: - | BQ132: - | BR132: - | BS132: - | BT132: - | BU132: - | BV132: - | BW132: - | BX132: - | BY132: - | BZ132: - | CA132: - | CB132: - | CC132: - | CD132: - | CE132: - | CF132: - | CG132: - | CH132: - | CI132: - | CJ132: - | CK132: - | CL132: - | CM132: - | CN132: - | CO132: - | CP132: - | CQ132: - | CR132: - | CS132: - | CT132: - | CU132: - | CV132: - | CW132: - | CX132: - | CY132: - | CZ132: - | DA132: - | DB132: - | DC132: - | DD132: - | DE132: - | DF132: - | DG132: - | DH132: - | DI132: -
B133: 62
B134: 63 | N134: - | O134: - | P134: - | Q134: - | R134: - | S134: - | T134: - | U134: - | V134: - | W134: - | X134: - | Y134: - | Z134: - | AA134: - | AB134: - | AC134: - | AD134: - | AE134: - | AF134: - | AG134: - | AH134: - | AI134: - | AJ134: - | AK134: - | AL134: - | AM134: - | AN134: - | AO134: - | AP134: - | AQ134: - | AR134: - | AS134: - | AT134: - | AU134: - | AV134: - | AW134: - | AX134: - | AY134: - | AZ134: - | BA134: - | BB134: - | BC134: - | BD134: - | BE134: - | BF134: - | BG134: - | BH134: - | BI134: - | BJ134: - | BK134: - | BL134: - | BM134: - | BN134: - | BO134: - | BP134: - | BQ134: - | BR134: - | BS134: - | BT134: - | BU134: - | BV134: - | BW134: - | BX134: - | BY134: - | BZ134: - | CA134: - | CB134: - | CC134: - | CD134: - | CE134: - | CF134: - | CG134: - | CH134: - | CI134: - | CJ134: - | CK134: - | CL134: - | CM134: - | CN134: - | CO134: - | CP134: - | CQ134: - | CR134: - | CS134: - | CT134: - | CU134: - | CV134: - | CW134: - | CX134: - | CY134: - | CZ134: - | DA134: - | DB134: - | DC134: - | DD134: - | DE134: - | DF134: - | DG134: - | DH134: - | DI134: -
B135: 63
B136: 64 | N136: - | O136: - | P136: - | Q136: - | R136: - | S136: - | T136: - | U136: - | V136: - | W136: - | X136: - | Y136: - | Z136: - | AA136: - | AB136: - | AC136: - | AD136: - | AE136: - | AF136: - | AG136: - | AH136: - | AI136: - | AJ136: - | AK136: - | AL136: - | AM136: - | AN136: - | AO136: - | AP136: - | AQ136: - | AR136: - | AS136: - | AT136: - | AU136: - | AV136: - | AW136: - | AX136: - | AY136: - | AZ136: - | BA136: - | BB136: - | BC136: - | BD136: - | BE136: - | BF136: - | BG136: - | BH136: - | BI136: - | BJ136: - | BK136: - | BL136: - | BM136: - | BN136: - | BO136: - | BP136: - | BQ136: - | BR136: - | BS136: - | BT136: - | BU136: - | BV136: - | BW136: - | BX136: - | BY136: - | BZ136: - | CA136: - | CB136: - | CC136: - | CD136: - | CE136: - | CF136: - | CG136: - | CH136: - | CI136: - | CJ136: - | CK136: - | CL136: - | CM136: - | CN136: - | CO136: - | CP136: - | CQ136: - | CR136: - | CS136: - | CT136: - | CU136: - | CV136: - | CW136: - | CX136: - | CY136: - | CZ136: - | DA136: - | DB136: - | DC136: - | DD136: - | DE136: - | DF136: - | DG136: - | DH136: - | DI136: -
B137: 64
B138: 65 | N138: - | O138: - | P138: - | Q138: - | R138: - | S138: - | T138: - | U138: - | V138: - | W138: - | X138: - | Y138: - | Z138: - | AA138: - | AB138: - | AC138: - | AD138: - | AE138: - | AF138: - | AG138: - | AH138: - | AI138: - | AJ138: - | AK138: - | AL138: - | AM138: - | AN138: - | AO138: - | AP138: - | AQ138: - | AR138: - | AS138: - | AT138: - | AU138: - | AV138: - | AW138: - | AX138: - | AY138: - | AZ138: - | BA138: - | BB138: - | BC138: - | BD138: - | BE138: - | BF138: - | BG138: - | BH138: - | BI138: - | BJ138: - | BK138: - | BL138: - | BM138: - | BN138: - | BO138: - | BP138: - | BQ138: - | BR138: - | BS138: - | BT138: - | BU138: - | BV138: - | BW138: - | BX138: - | BY138: - | BZ138: - | CA138: - | CB138: - | CC138: - | CD138: - | CE138: - | CF138: - | CG138: - | CH138: - | CI138: - | CJ138: - | CK138: - | CL138: - | CM138: - | CN138: - | CO138: - | CP138: - | CQ138: - | CR138: - | CS138: - | CT138: - | CU138: - | CV138: - | CW138: - | CX138: - | CY138: - | CZ138: - | DA138: - | DB138: - | DC138: - | DD138: - | DE138: - | DF138: - | DG138: - | DH138: - | DI138: -
B139: 65
B140: 66 | N140: - | O140: - | P140: - | Q140: - | R140: - | S140: - | T140: - | U140: - | V140: - | W140: - | X140: - | Y140: - | Z140: - | AA140: - | AB140: - | AC140: - | AD140: - | AE140: - | AF140: - | AG140: - | AH140: - | AI140: - | AJ140: - | AK140: - | AL140: - | AM140: - | AN140: - | AO140: - | AP140: - | AQ140: - | AR140: - | AS140: - | AT140: - | AU140: - | AV140: - | AW140: - | AX140: - | AY140: - | AZ140: - | BA140: - | BB140: - | BC140: - | BD140: - | BE140: - | BF140: - | BG140: - | BH140: - | BI140: - | BJ140: - | BK140: - | BL140: - | BM140: - | BN140: - | BO140: - | BP140: - | BQ140: - | BR140: - | BS140: - | BT140: - | BU140: - | BV140: - | BW140: - | BX140: - | BY140: - | BZ140: - | CA140: - | CB140: - | CC140: - | CD140: - | CE140: - | CF140: - | CG140: - | CH140: - | CI140: - | CJ140: - | CK140: - | CL140: - | CM140: - | CN140: - | CO140: - | CP140: - | CQ140: - | CR140: - | CS140: - | CT140: - | CU140: - | CV140: - | CW140: - | CX140: - | CY140: - | CZ140: - | DA140: - | DB140: - | DC140: - | DD140: - | DE140: - | DF140: - | DG140: - | DH140: - | DI140: -
B141: 66
B142: 67 | N142: - | O142: - | P142: - | Q142: - | R142: - | S142: - | T142: - | U142: - | V142: - | W142: - | X142: - | Y142: - | Z142: - | AA142: - | AB142: - | AC142: - | AD142: - | AE142: - | AF142: - | AG142: - | AH142: - | AI142: - | AJ142: - | AK142: - | AL142: - | AM142: - | AN142: - | AO142: - | AP142: - | AQ142: - | AR142: - | AS142: - | AT142: - | AU142: - | AV142: - | AW142: - | AX142: - | AY142: - | AZ142: - | BA142: - | BB142: - | BC142: - | BD142: - | BE142: - | BF142: - | BG142: - | BH142: - | BI142: - | BJ142: - | BK142: - | BL142: - | BM142: - | BN142: - | BO142: - | BP142: - | BQ142: - | BR142: - | BS142: - | BT142: - | BU142: - | BV142: - | BW142: - | BX142: - | BY142: - | BZ142: - | CA142: - | CB142: - | CC142: - | CD142: - | CE142: - | CF142: - | CG142: - | CH142: - | CI142: - | CJ142: - | CK142: - | CL142: - | CM142: - | CN142: - | CO142: - | CP142: - | CQ142: - | CR142: - | CS142: - | CT142: - | CU142: - | CV142: - | CW142: - | CX142: - | CY142: - | CZ142: - | DA142: - | DB142: - | DC142: - | DD142: - | DE142: - | DF142: - | DG142: - | DH142: - | DI142: -
B143: 67
B144: 68 | N144: - | O144: - | P144: - | Q144: - | R144: - | S144: - | T144: - | U144: - | V144: - | W144: - | X144: - | Y144: - | Z144: - | AA144: - | AB144: - | AC144: - | AD144: - | AE144: - | AF144: - | AG144: - | AH144: - | AI144: - | AJ144: - | AK144: - | AL144: - | AM144: - | AN144: - | AO144: - | AP144: - | AQ144: - | AR144: - | AS144: - | AT144: - | AU144: - | AV144: - | AW144: - | AX144: - | AY144: - | AZ144: - | BA144: - | BB144: - | BC144: - | BD144: - | BE144: - | BF144: - | BG144: - | BH144: - | BI144: - | BJ144: - | BK144: - | BL144: - | BM144: - | BN144: - | BO144: - | BP144: - | BQ144: - | BR144: - | BS144: - | BT144: - | BU144: - | BV144: - | BW144: - | BX144: - | BY144: - | BZ144: - | CA144: - | CB144: - | CC144: - | CD144: - | CE144: - | CF144: - | CG144: - | CH144: - | CI144: - | CJ144: - | CK144: - | CL144: - | CM144: - | CN144: - | CO144: - | CP144: - | CQ144: - | CR144: - | CS144: - | CT144: - | CU144: - | CV144: - | CW144: - | CX144: - | CY144: - | CZ144: - | DA144: - | DB144: - | DC144: - | DD144: - | DE144: - | DF144: - | DG144: - | DH144: - | DI144: -
B145: 68
B146: 69 | N146: - | O146: - | P146: - | Q146: - | R146: - | S146: - | T146: - | U146: - | V146: - | W146: - | X146: - | Y146: - | Z146: - | AA146: - | AB146: - | AC146: - | AD146: - | AE146: - | AF146: - | AG146: - | AH146: - | AI146: - | AJ146: - | AK146: - | AL146: - | AM146: - | AN146: - | AO146: - | AP146: - | AQ146: - | AR146: - | AS146: - | AT146: - | AU146: - | AV146: - | AW146: - | AX146: - | AY146: - | AZ146: - | BA146: - | BB146: - | BC146: - | BD146: - | BE146: - | BF146: - | BG146: - | BH146: - | BI146: - | BJ146: - | BK146: - | BL146: - | BM146: - | BN146: - | BO146: - | BP146: - | BQ146: - | BR146: - | BS146: - | BT146: - | BU146: - | BV146: - | BW146: - | BX146: - | BY146: - | BZ146: - | CA146: - | CB146: - | CC146: - | CD146: - | CE146: - | CF146: - | CG146: - | CH146: - | CI146: - | CJ146: - | CK146: - | CL146: - | CM146: - | CN146: - | CO146: - | CP146: - | CQ146: - | CR146: - | CS146: - | CT146: - | CU146: - | CV146: - | CW146: - | CX146: - | CY146: - | CZ146: - | DA146: - | DB146: - | DC146: - | DD146: - | DE146: - | DF146: - | DG146: - | DH146: - | DI146: -
B147: 69
B148: 70 | N148: - | O148: - | P148: - | Q148: - | R148: - | S148: - | T148: - | U148: - | V148: - | W148: - | X148: - | Y148: - | Z148: - | AA148: - | AB148: - | AC148: - | AD148: - | AE148: - | AF148: - | AG148: - | AH148: - | AI148: - | AJ148: - | AK148: - | AL148: - | AM148: - | AN148: - | AO148: - | AP148: - | AQ148: - | AR148: - | AS148: - | AT148: - | AU148: - | AV148: - | AW148: - | AX148: - | AY148: - | AZ148: - | BA148: - | BB148: - | BC148: - | BD148: - | BE148: - | BF148: - | BG148: - | BH148: - | BI148: - | BJ148: - | BK148: - | BL148: - | BM148: - | BN148: - | BO148: - | BP148: - | BQ148: - | BR148: - | BS148: - | BT148: - | BU148: - | BV148: - | BW148: - | BX148: - | BY148: - | BZ148: - | CA148: - | CB148: - | CC148: - | CD148: - | CE148: - | CF148: - | CG148: - | CH148: - | CI148: - | CJ148: - | CK148: - | CL148: - | CM148: - | CN148: - | CO148: - | CP148: - | CQ148: - | CR148: - | CS148: - | CT148: - | CU148: - | CV148: - | CW148: - | CX148: - | CY148: - | CZ148: - | DA148: - | DB148: - | DC148: - | DD148: - | DE148: - | DF148: - | DG148: - | DH148: - | DI148: -
B149: 70
B150: 71 | N150: - | O150: - | P150: - | Q150: - | R150: - | S150: - | T150: - | U150: - | V150: - | W150: - | X150: - | Y150: - | Z150: - | AA150: - | AB150: - | AC150: - | AD150: - | AE150: - | AF150: - | AG150: - | AH150: - | AI150: - | AJ150: - | AK150: - | AL150: - | AM150: - | AN150: - | AO150: - | AP150: - | AQ150: - | AR150: - | AS150: - | AT150: - | AU150: - | AV150: - | AW150: - | AX150: - | AY150: - | AZ150: - | BA150: - | BB150: - | BC150: - | BD150: - | BE150: - | BF150: - | BG150: - | BH150: - | BI150: - | BJ150: - | BK150: - | BL150: - | BM150: - | BN150: - | BO150: - | BP150: - | BQ150: - | BR150: - | BS150: - | BT150: - | BU150: - | BV150: - | BW150: - | BX150: - | BY150: - | BZ150: - | CA150: - | CB150: - | CC150: - | CD150: - | CE150: - | CF150: - | CG150: - | CH150: - | CI150: - | CJ150: - | CK150: - | CL150: - | CM150: - | CN150: - | CO150: - | CP150: - | CQ150: - | CR150: - | CS150: - | CT150: - | CU150: - | CV150: - | CW150: - | CX150: - | CY150: - | CZ150: - | DA150: - | DB150: - | DC150: - | DD150: - | DE150: - | DF150: - | DG150: - | DH150: - | DI150: -
B151: 71
B152: 72 | N152: - | O152: - | P152: - | Q152: - | R152: - | S152: - | T152: - | U152: - | V152: - | W152: - | X152: - | Y152: - | Z152: - | AA152: - | AB152: - | AC152: - | AD152: - | AE152: - | AF152: - | AG152: - | AH152: - | AI152: - | AJ152: - | AK152: - | AL152: - | AM152: - | AN152: - | AO152: - | AP152: - | AQ152: - | AR152: - | AS152: - | AT152: - | AU152: - | AV152: - | AW152: - | AX152: - | AY152: - | AZ152: - | BA152: - | BB152: - | BC152: - | BD152: - | BE152: - | BF152: - | BG152: - | BH152: - | BI152: - | BJ152: - | BK152: - | BL152: - | BM152: - | BN152: - | BO152: - | BP152: - | BQ152: - | BR152: - | BS152: - | BT152: - | BU152: - | BV152: - | BW152: - | BX152: - | BY152: - | BZ152: - | CA152: - | CB152: - | CC152: - | CD152: - | CE152: - | CF152: - | CG152: - | CH152: - | CI152: - | CJ152: - | CK152: - | CL152: - | CM152: - | CN152: - | CO152: - | CP152: - | CQ152: - | CR152: - | CS152: - | CT152: - | CU152: - | CV152: - | CW152: - | CX152: - | CY152: - | CZ152: - | DA152: - | DB152: - | DC152: - | DD152: - | DE152: - | DF152: - | DG152: - | DH152: - | DI152: -
B153: 72
B154: 73 | N154: - | O154: - | P154: - | Q154: - | R154: - | S154: - | T154: - | U154: - | V154: - | W154: - | X154: - | Y154: - | Z154: - | AA154: - | AB154: - | AC154: - | AD154: - | AE154: - | AF154: - | AG154: - | AH154: - | AI154: - | AJ154: - | AK154: - | AL154: - | AM154: - | AN154: - | AO154: - | AP154: - | AQ154: - | AR154: - | AS154: - | AT154: - | AU154: - | AV154: - | AW154: - | AX154: - | AY154: - | AZ154: - | BA154: - | BB154: - | BC154: - | BD154: - | BE154: - | BF154: - | BG154: - | BH154: - | BI154: - | BJ154: - | BK154: - | BL154: - | BM154: - | BN154: - | BO154: - | BP154: - | BQ154: - | BR154: - | BS154: - | BT154: - | BU154: - | BV154: - | BW154: - | BX154: - | BY154: - | BZ154: - | CA154: - | CB154: - | CC154: - | CD154: - | CE154: - | CF154: - | CG154: - | CH154: - | CI154: - | CJ154: - | CK154: - | CL154: - | CM154: - | CN154: - | CO154: - | CP154: - | CQ154: - | CR154: - | CS154: - | CT154: - | CU154: - | CV154: - | CW154: - | CX154: - | CY154: - | CZ154: - | DA154: - | DB154: - | DC154: - | DD154: - | DE154: - | DF154: - | DG154: - | DH154: - | DI154: -
B155: 73
B156: 74 | N156: - | O156: - | P156: - | Q156: - | R156: - | S156: - | T156: - | U156: - | V156: - | W156: - | X156: - | Y156: - | Z156: - | AA156: - | AB156: - | AC156: - | AD156: - | AE156: - | AF156: - | AG156: - | AH156: - | AI156: - | AJ156: - | AK156: - | AL156: - | AM156: - | AN156: - | AO156: - | AP156: - | AQ156: - | AR156: - | AS156: - | AT156: - | AU156: - | AV156: - | AW156: - | AX156: - | AY156: - | AZ156: - | BA156: - | BB156: - | BC156: - | BD156: - | BE156: - | BF156: - | BG156: - | BH156: - | BI156: - | BJ156: - | BK156: - | BL156: - | BM156: - | BN156: - | BO156: - | BP156: - | BQ156: - | BR156: - | BS156: - | BT156: - | BU156: - | BV156: - | BW156: - | BX156: - | BY156: - | BZ156: - | CA156: - | CB156: - | CC156: - | CD156: - | CE156: - | CF156: - | CG156: - | CH156: - | CI156: - | CJ156: - | CK156: - | CL156: - | CM156: - | CN156: - | CO156: - | CP156: - | CQ156: - | CR156: - | CS156: - | CT156: - | CU156: - | CV156: - | CW156: - | CX156: - | CY156: - | CZ156: - | DA156: - | DB156: - | DC156: - | DD156: - | DE156: - | DF156: - | DG156: - | DH156: - | DI156: -
B157: 74
B158: 75 | N158: - | O158: - | P158: - | Q158: - | R158: - | S158: - | T158: - | U158: - | V158: - | W158: - | X158: - | Y158: - | Z158: - | AA158: - | AB158: - | AC158: - | AD158: - | AE158: - | AF158: - | AG158: - | AH158: - | AI158: - | AJ158: - | AK158: - | AL158: - | AM158: - | AN158: - | AO158: - | AP158: - | AQ158: - | AR158: - | AS158: - | AT158: - | AU158: - | AV158: - | AW158: - | AX158: - | AY158: - | AZ158: - | BA158: - | BB158: - | BC158: - | BD158: - | BE158: - | BF158: - | BG158: - | BH158: - | BI158: - | BJ158: - | BK158: - | BL158: - | BM158: - | BN158: - | BO158: - | BP158: - | BQ158: - | BR158: - | BS158: - | BT158: - | BU158: - | BV158: - | BW158: - | BX158: - | BY158: - | BZ158: - | CA158: - | CB158: - | CC158: - | CD158: - | CE158: - | CF158: - | CG158: - | CH158: - | CI158: - | CJ158: - | CK158: - | CL158: - | CM158: - | CN158: - | CO158: - | CP158: - | CQ158: - | CR158: - | CS158: - | CT158: - | CU158: - | CV158: - | CW158: - | CX158: - | CY158: - | CZ158: - | DA158: - | DB158: - | DC158: - | DD158: - | DE158: - | DF158: - | DG158: - | DH158: - | DI158: -
B159: 75
B160: 76 | N160: - | O160: - | P160: - | Q160: - | R160: - | S160: - | T160: - | U160: - | V160: - | W160: - | X160: - | Y160: - | Z160: - | AA160: - | AB160: - | AC160: - | AD160: - | AE160: - | AF160: - | AG160: - | AH160: - | AI160: - | AJ160: - | AK160: - | AL160: - | AM160: - | AN160: - | AO160: - | AP160: - | AQ160: - | AR160: - | AS160: - | AT160: - | AU160: - | AV160: - | AW160: - | AX160: - | AY160: - | AZ160: - | BA160: - | BB160: - | BC160: - | BD160: - | BE160: - | BF160: - | BG160: - | BH160: - | BI160: - | BJ160: - | BK160: - | BL160: - | BM160: - | BN160: - | BO160: - | BP160: - | BQ160: - | BR160: - | BS160: - | BT160: - | BU160: - | BV160: - | BW160: - | BX160: - | BY160: - | BZ160: - | CA160: - | CB160: - | CC160: - | CD160: - | CE160: - | CF160: - | CG160: - | CH160: - | CI160: - | CJ160: - | CK160: - | CL160: - | CM160: - | CN160: - | CO160: - | CP160: - | CQ160: - | CR160: - | CS160: - | CT160: - | CU160: - | CV160: - | CW160: - | CX160: - | CY160: - | CZ160: - | DA160: - | DB160: - | DC160: - | DD160: - | DE160: - | DF160: - | DG160: - | DH160: - | DI160: -
B161: 76
B162: 77 | N162: - | O162: - | P162: - | Q162: - | R162: - | S162: - | T162: - | U162: - | V162: - | W162: - | X162: - | Y162: - | Z162: - | AA162: - | AB162: - | AC162: - | AD162: - | AE162: - | AF162: - | AG162: - | AH162: - | AI162: - | AJ162: - | AK162: - | AL162: - | AM162: - | AN162: - | AO162: - | AP162: - | AQ162: - | AR162: - | AS162: - | AT162: - | AU162: - | AV162: - | AW162: - | AX162: - | AY162: - | AZ162: - | BA162: - | BB162: - | BC162: - | BD162: - | BE162: - | BF162: - | BG162: - | BH162: - | BI162: - | BJ162: - | BK162: - | BL162: - | BM162: - | BN162: - | BO162: - | BP162: - | BQ162: - | BR162: - | BS162: - | BT162: - | BU162: - | BV162: - | BW162: - | BX162: - | BY162: - | BZ162: - | CA162: - | CB162: - | CC162: - | CD162: - | CE162: - | CF162: - | CG162: - | CH162: - | CI162: - | CJ162: - | CK162: - | CL162: - | CM162: - | CN162: - | CO162: - | CP162: - | CQ162: - | CR162: - | CS162: - | CT162: - | CU162: - | CV162: - | CW162: - | CX162: - | CY162: - | CZ162: - | DA162: - | DB162: - | DC162: - | DD162: - | DE162: - | DF162: - | DG162: - | DH162: - | DI162: -
B163: 77
B164: 78 | N164: - | O164: - | P164: - | Q164: - | R164: - | S164: - | T164: - | U164: - | V164: - | W164: - | X164: - | Y164: - | Z164: - | AA164: - | AB164: - | AC164: - | AD164: - | AE164: - | AF164: - | AG164: - | AH164: - | AI164: - | AJ164: - | AK164: - | AL164: - | AM164: - | AN164: - | AO164: - | AP164: - | AQ164: - | AR164: - | AS164: - | AT164: - | AU164: - | AV164: - | AW164: - | AX164: - | AY164: - | AZ164: - | BA164: - | BB164: - | BC164: - | BD164: - | BE164: - | BF164: - | BG164: - | BH164: - | BI164: - | BJ164: - | BK164: - | BL164: - | BM164: - | BN164: - | BO164: - | BP164: - | BQ164: - | BR164: - | BS164: - | BT164: - | BU164: - | BV164: - | BW164: - | BX164: - | BY164: - | BZ164: - | CA164: - | CB164: - | CC164: - | CD164: - | CE164: - | CF164: - | CG164: - | CH164: - | CI164: - | CJ164: - | CK164: - | CL164: - | CM164: - | CN164: - | CO164: - | CP164: - | CQ164: - | CR164: - | CS164: - | CT164: - | CU164: - | CV164: - | CW164: - | CX164: - | CY164: - | CZ164: - | DA164: - | DB164: - | DC164: - | DD164: - | DE164: - | DF164: - | DG164: - | DH164: - | DI164: -
B165: 78
B166: 79 | N166: - | O166: - | P166: - | Q166: - | R166: - | S166: - | T166: - | U166: - | V166: - | W166: - | X166: - | Y166: - | Z166: - | AA166: - | AB166: - | AC166: - | AD166: - | AE166: - | AF166: - | AG166: - | AH166: - | AI166: - | AJ166: - | AK166: - | AL166: - | AM166: - | AN166: - | AO166: - | AP166: - | AQ166: - | AR166: - | AS166: - | AT166: - | AU166: - | AV166: - | AW166: - | AX166: - | AY166: - | AZ166: - | BA166: - | BB166: - | BC166: - | BD166: - | BE166: - | BF166: - | BG166: - | BH166: - | BI166: - | BJ166: - | BK166: - | BL166: - | BM166: - | BN166: - | BO166: - | BP166: - | BQ166: - | BR166: - | BS166: - | BT166: - | BU166: - | BV166: - | BW166: - | BX166: - | BY166: - | BZ166: - | CA166: - | CB166: - | CC166: - | CD166: - | CE166: - | CF166: - | CG166: - | CH166: - | CI166: - | CJ166: - | CK166: - | CL166: - | CM166: - | CN166: - | CO166: - | CP166: - | CQ166: - | CR166: - | CS166: - | CT166: - | CU166: - | CV166: - | CW166: - | CX166: - | CY166: - | CZ166: - | DA166: - | DB166: - | DC166: - | DD166: - | DE166: - | DF166: - | DG166: - | DH166: - | DI166: -
B167: 79
B168: 80 | N168: - | O168: - | P168: - | Q168: - | R168: - | S168: - | T168: - | U168: - | V168: - | W168: - | X168: - | Y168: - | Z168: - | AA168: - | AB168: - | AC168: - | AD168: - | AE168: - | AF168: - | AG168: - | AH168: - | AI168: - | AJ168: - | AK168: - | AL168: - | AM168: - | AN168: - | AO168: - | AP168: - | AQ168: - | AR168: - | AS168: - | AT168: - | AU168: - | AV168: - | AW168: - | AX168: - | AY168: - | AZ168: - | BA168: - | BB168: - | BC168: - | BD168: - | BE168: - | BF168: - | BG168: - | BH168: - | BI168: - | BJ168: - | BK168: - | BL168: - | BM168: - | BN168: - | BO168: - | BP168: - | BQ168: - | BR168: - | BS168: - | BT168: - | BU168: - | BV168: - | BW168: - | BX168: - | BY168: - | BZ168: - | CA168: - | CB168: - | CC168: - | CD168: - | CE168: - | CF168: - | CG168: - | CH168: - | CI168: - | CJ168: - | CK168: - | CL168: - | CM168: - | CN168: - | CO168: - | CP168: - | CQ168: - | CR168: - | CS168: - | CT168: - | CU168: - | CV168: - | CW168: - | CX168: - | CY168: - | CZ168: - | DA168: - | DB168: - | DC168: - | DD168: - | DE168: - | DF168: - | DG168: - | DH168: - | DI168: -
B169: 80
B170: 81 | N170: - | O170: - | P170: - | Q170: - | R170: - | S170: - | T170: - | U170: - | V170: - | W170: - | X170: - | Y170: - | Z170: - | AA170: - | AB170: - | AC170: - | AD170: - | AE170: - | AF170: - | AG170: - | AH170: - | AI170: - | AJ170: - | AK170: - | AL170: - | AM170: - | AN170: - | AO170: - | AP170: - | AQ170: - | AR170: - | AS170: - | AT170: - | AU170: - | AV170: - | AW170: - | AX170: - | AY170: - | AZ170: - | BA170: - | BB170: - | BC170: - | BD170: - | BE170: - | BF170: - | BG170: - | BH170: - | BI170: - | BJ170: - | BK170: - | BL170: - | BM170: - | BN170: - | BO170: - | BP170: - | BQ170: - | BR170: - | BS170: - | BT170: - | BU170: - | BV170: - | BW170: - | BX170: - | BY170: - | BZ170: - | CA170: - | CB170: - | CC170: - | CD170: - | CE170: - | CF170: - | CG170: - | CH170: - | CI170: - | CJ170: - | CK170: - | CL170: - | CM170: - | CN170: - | CO170: - | CP170: - | CQ170: - | CR170: - | CS170: - | CT170: - | CU170: - | CV170: - | CW170: - | CX170: - | CY170: - | CZ170: - | DA170: - | DB170: - | DC170: - | DD170: - | DE170: - | DF170: - | DG170: - | DH170: - | DI170: -
B171: 81
B172: 82 | N172: - | O172: - | P172: - | Q172: - | R172: - | S172: - | T172: - | U172: - | V172: - | W172: - | X172: - | Y172: - | Z172: - | AA172: - | AB172: - | AC172: - | AD172: - | AE172: - | AF172: - | AG172: - | AH172: - | AI172: - | AJ172: - | AK172: - | AL172: - | AM172: - | AN172: - | AO172: - | AP172: - | AQ172: - | AR172: - | AS172: - | AT172: - | AU172: - | AV172: - | AW172: - | AX172: - | AY172: - | AZ172: - | BA172: - | BB172: - | BC172: - | BD172: - | BE172: - | BF172: - | BG172: - | BH172: - | BI172: - | BJ172: - | BK172: - | BL172: - | BM172: - | BN172: - | BO172: - | BP172: - | BQ172: - | BR172: - | BS172: - | BT172: - | BU172: - | BV172: - | BW172: - | BX172: - | BY172: - | BZ172: - | CA172: - | CB172: - | CC172: - | CD172: - | CE172: - | CF172: - | CG172: - | CH172: - | CI172: - | CJ172: - | CK172: - | CL172: - | CM172: - | CN172: - | CO172: - | CP172: - | CQ172: - | CR172: - | CS172: - | CT172: - | CU172: - | CV172: - | CW172: - | CX172: - | CY172: - | CZ172: - | DA172: - | DB172: - | DC172: - | DD172: - | DE172: - | DF172: - | DG172: - | DH172: - | DI172: -
B173: 82
B174: 83 | N174: - | O174: - | P174: - | Q174: - | R174: - | S174: - | T174: - | U174: - | V174: - | W174: - | X174: - | Y174: - | Z174: - | AA174: - | AB174: - | AC174: - | AD174: - | AE174: - | AF174: - | AG174: - | AH174: - | AI174: - | AJ174: - | AK174: - | AL174: - | AM174: - | AN174: - | AO174: - | AP174: - | AQ174: - | AR174: - | AS174: - | AT174: - | AU174: - | AV174: - | AW174: - | AX174: - | AY174: - | AZ174: - | BA174: - | BB174: - | BC174: - | BD174: - | BE174: - | BF174: - | BG174: - | BH174: - | BI174: - | BJ174: - | BK174: - | BL174: - | BM174: - | BN174: - | BO174: - | BP174: - | BQ174: - | BR174: - | BS174: - | BT174: - | BU174: - | BV174: - | BW174: - | BX174: - | BY174: - | BZ174: - | CA174: - | CB174: - | CC174: - | CD174: - | CE174: - | CF174: - | CG174: - | CH174: - | CI174: - | CJ174: - | CK174: - | CL174: - | CM174: - | CN174: - | CO174: - | CP174: - | CQ174: - | CR174: - | CS174: - | CT174: - | CU174: - | CV174: - | CW174: - | CX174: - | CY174: - | CZ174: - | DA174: - | DB174: - | DC174: - | DD174: - | DE174: - | DF174: - | DG174: - | DH174: - | DI174: -
B175: 83
B176: 84 | N176: - | O176: - | P176: - | Q176: - | R176: - | S176: - | T176: - | U176: - | V176: - | W176: - | X176: - | Y176: - | Z176: - | AA176: - | AB176: - | AC176: - | AD176: - | AE176: - | AF176: - | AG176: - | AH176: - | AI176: - | AJ176: - | AK176: - | AL176: - | AM176: - | AN176: - | AO176: - | AP176: - | AQ176: - | AR176: - | AS176: - | AT176: - | AU176: - | AV176: - | AW176: - | AX176: - | AY176: - | AZ176: - | BA176: - | BB176: - | BC176: - | BD176: - | BE176: - | BF176: - | BG176: - | BH176: - | BI176: - | BJ176: - | BK176: - | BL176: - | BM176: - | BN176: - | BO176: - | BP176: - | BQ176: - | BR176: - | BS176: - | BT176: - | BU176: - | BV176: - | BW176: - | BX176: - | BY176: - | BZ176: - | CA176: - | CB176: - | CC176: - | CD176: - | CE176: - | CF176: - | CG176: - | CH176: - | CI176: - | CJ176: - | CK176: - | CL176: - | CM176: - | CN176: - | CO176: - | CP176: - | CQ176: - | CR176: - | CS176: - | CT176: - | CU176: - | CV176: - | CW176: - | CX176: - | CY176: - | CZ176: - | DA176: - | DB176: - | DC176: - | DD176: - | DE176: - | DF176: - | DG176: - | DH176: - | DI176: -
B177: 84
B178: 85 | N178: - | O178: - | P178: - | Q178: - | R178: - | S178: - | T178: - | U178: - | V178: - | W178: - | X178: - | Y178: - | Z178: - | AA178: - | AB178: - | AC178: - | AD178: - | AE178: - | AF178: - | AG178: - | AH178: - | AI178: - | AJ178: - | AK178: - | AL178: - | AM178: - | AN178: - | AO178: - | AP178: - | AQ178: - | AR178: - | AS178: - | AT178: - | AU178: - | AV178: - | AW178: - | AX178: - | AY178: - | AZ178: - | BA178: - | BB178: - | BC178: - | BD178: - | BE178: - | BF178: - | BG178: - | BH178: - | BI178: - | BJ178: - | BK178: - | BL178: - | BM178: - | BN178: - | BO178: - | BP178: - | BQ178: - | BR178: - | BS178: - | BT178: - | BU178: - | BV178: - | BW178: - | BX178: - | BY178: - | BZ178: - | CA178: - | CB178: - | CC178: - | CD178: - | CE178: - | CF178: - | CG178: - | CH178: - | CI178: - | CJ178: - | CK178: - | CL178: - | CM178: - | CN178: - | CO178: - | CP178: - | CQ178: - | CR178: - | CS178: - | CT178: - | CU178: - | CV178: - | CW178: - | CX178: - | CY178: - | CZ178: - | DA178: - | DB178: - | DC178: - | DD178: - | DE178: - | DF178: - | DG178: - | DH178: - | DI178: -
B179: 85
B180: 86 | N180: - | O180: - | P180: - | Q180: - | R180: - | S180: - | T180: - | U180: - | V180: - | W180: - | X180: - | Y180: - | Z180: - | AA180: - | AB180: - | AC180: - | AD180: - | AE180: - | AF180: - | AG180: - | AH180: - | AI180: - | AJ180: - | AK180: - | AL180: - | AM180: - | AN180: - | AO180: - | AP180: - | AQ180: - | AR180: - | AS180: - | AT180: - | AU180: - | AV180: - | AW180: - | AX180: - | AY180: - | AZ180: - | BA180: - | BB180: - | BC180: - | BD180: - | BE180: - | BF180: - | BG180: - | BH180: - | BI180: - | BJ180: - | BK180: - | BL180: - | BM180: - | BN180: - | BO180: - | BP180: - | BQ180: - | BR180: - | BS180: - | BT180: - | BU180: - | BV180: - | BW180: - | BX180: - | BY180: - | BZ180: - | CA180: - | CB180: - | CC180: - | CD180: - | CE180: - | CF180: - | CG180: - | CH180: - | CI180: - | CJ180: - | CK180: - | CL180: - | CM180: - | CN180: - | CO180: - | CP180: - | CQ180: - | CR180: - | CS180: - | CT180: - | CU180: - | CV180: - | CW180: - | CX180: - | CY180: - | CZ180: - | DA180: - | DB180: - | DC180: - | DD180: - | DE180: - | DF180: - | DG180: - | DH180: - | DI180: -
B181: 86
B182: 87 | N182: - | O182: - | P182: - | Q182: - | R182: - | S182: - | T182: - | U182: - | V182: - | W182: - | X182: - | Y182: - | Z182: - | AA182: - | AB182: - | AC182: - | AD182: - | AE182: - | AF182: - | AG182: - | AH182: - | AI182: - | AJ182: - | AK182: - | AL182: - | AM182: - | AN182: - | AO182: - | AP182: - | AQ182: - | AR182: - | AS182: - | AT182: - | AU182: - | AV182: - | AW182: - | AX182: - | AY182: - | AZ182: - | BA182: - | BB182: - | BC182: - | BD182: - | BE182: - | BF182: - | BG182: - | BH182: - | BI182: - | BJ182: - | BK182: - | BL182: - | BM182: - | BN182: - | BO182: - | BP182: - | BQ182: - | BR182: - | BS182: - | BT182: - | BU182: - | BV182: - | BW182: - | BX182: - | BY182: - | BZ182: - | CA182: - | CB182: - | CC182: - | CD182: - | CE182: - | CF182: - | CG182: - | CH182: - | CI182: - | CJ182: - | CK182: - | CL182: - | CM182: - | CN182: - | CO182: - | CP182: - | CQ182: - | CR182: - | CS182: - | CT182: - | CU182: - | CV182: - | CW182: - | CX182: - | CY182: - | CZ182: - | DA182: - | DB182: - | DC182: - | DD182: - | DE182: - | DF182: - | DG182: - | DH182: - | DI182: -
B183: 87
B184: 88 | N184: - | O184: - | P184: - | Q184: - | R184: - | S184: - | T184: - | U184: - | V184: - | W184: - | X184: - | Y184: - | Z184: - | AA184: - | AB184: - | AC184: - | AD184: - | AE184: - | AF184: - | AG184: - | AH184: - | AI184: - | AJ184: - | AK184: - | AL184: - | AM184: - | AN184: - | AO184: - | AP184: - | AQ184: - | AR184: - | AS184: - | AT184: - | AU184: - | AV184: - | AW184: - | AX184: - | AY184: - | AZ184: - | BA184: - | BB184: - | BC184: - | BD184: - | BE184: - | BF184: - | BG184: - | BH184: - | BI184: - | BJ184: - | BK184: - | BL184: - | BM184: - | BN184: - | BO184: - | BP184: - | BQ184: - | BR184: - | BS184: - | BT184: - | BU184: - | BV184: - | BW184: - | BX184: - | BY184: - | BZ184: - | CA184: - | CB184: - | CC184: - | CD184: - | CE184: - | CF184: - | CG184: - | CH184: - | CI184: - | CJ184: - | CK184: - | CL184: - | CM184: - | CN184: - | CO184: - | CP184: - | CQ184: - | CR184: - | CS184: - | CT184: - | CU184: - | CV184: - | CW184: - | CX184: - | CY184: - | CZ184: - | DA184: - | DB184: - | DC184: - | DD184: - | DE184: - | DF184: - | DG184: - | DH184: - | DI184: -
B185: 88
B186: 89 | N186: - | O186: - | P186: - | Q186: - | R186: - | S186: - | T186: - | U186: - | V186: - | W186: - | X186: - | Y186: - | Z186: - | AA186: - | AB186: - | AC186: - | AD186: - | AE186: - | AF186: - | AG186: - | AH186: - | AI186: - | AJ186: - | AK186: - | AL186: - | AM186: - | AN186: - | AO186: - | AP186: - | AQ186: - | AR186: - | AS186: - | AT186: - | AU186: - | AV186: - | AW186: - | AX186: - | AY186: - | AZ186: - | BA186: - | BB186: - | BC186: - | BD186: - | BE186: - | BF186: - | BG186: - | BH186: - | BI186: - | BJ186: - | BK186: - | BL186: - | BM186: - | BN186: - | BO186: - | BP186: - | BQ186: - | BR186: - | BS186: - | BT186: - | BU186: - | BV186: - | BW186: - | BX186: - | BY186: - | BZ186: - | CA186: - | CB186: - | CC186: - | CD186: - | CE186: - | CF186: - | CG186: - | CH186: - | CI186: - | CJ186: - | CK186: - | CL186: - | CM186: - | CN186: - | CO186: - | CP186: - | CQ186: - | CR186: - | CS186: - | CT186: - | CU186: - | CV186: - | CW186: - | CX186: - | CY186: - | CZ186: - | DA186: - | DB186: - | DC186: - | DD186: - | DE186: - | DF186: - | DG186: - | DH186: - | DI186: -
B187: 89
B188: 90 | N188: - | O188: - | P188: - | Q188: - | R188: - | S188: - | T188: - | U188: - | V188: - | W188: - | X188: - | Y188: - | Z188: - | AA188: - | AB188: - | AC188: - | AD188: - | AE188: - | AF188: - | AG188: - | AH188: - | AI188: - | AJ188: - | AK188: - | AL188: - | AM188: - | AN188: - | AO188: - | AP188: - | AQ188: - | AR188: - | AS188: - | AT188: - | AU188: - | AV188: - | AW188: - | AX188: - | AY188: - | AZ188: - | BA188: - | BB188: - | BC188: - | BD188: - | BE188: - | BF188: - | BG188: - | BH188: - | BI188: - | BJ188: - | BK188: - | BL188: - | BM188: - | BN188: - | BO188: - | BP188: - | BQ188: - | BR188: - | BS188: - | BT188: - | BU188: - | BV188: - | BW188: - | BX188: - | BY188: - | BZ188: - | CA188: - | CB188: - | CC188: - | CD188: - | CE188: - | CF188: - | CG188: - | CH188: - | CI188: - | CJ188: - | CK188: - | CL188: - | CM188: - | CN188: - | CO188: - | CP188: - | CQ188: - | CR188: - | CS188: - | CT188: - | CU188: - | CV188: - | CW188: - | CX188: - | CY188: - | CZ188: - | DA188: - | DB188: - | DC188: - | DD188: - | DE188: - | DF188: - | DG188: - | DH188: - | DI188: -
B189: 90
B190: 91 | N190: - | O190: - | P190: - | Q190: - | R190: - | S190: - | T190: - | U190: - | V190: - | W190: - | X190: - | Y190: - | Z190: - | AA190: - | AB190: - | AC190: - | AD190: - | AE190: - | AF190: - | AG190: - | AH190: - | AI190: - | AJ190: - | AK190: - | AL190: - | AM190: - | AN190: - | AO190: - | AP190: - | AQ190: - | AR190: - | AS190: - | AT190: - | AU190: - | AV190: - | AW190: - | AX190: - | AY190: - | AZ190: - | BA190: - | BB190: - | BC190: - | BD190: - | BE190: - | BF190: - | BG190: - | BH190: - | BI190: - | BJ190: - | BK190: - | BL190: - | BM190: - | BN190: - | BO190: - | BP190: - | BQ190: - | BR190: - | BS190: - | BT190: - | BU190: - | BV190: - | BW190: - | BX190: - | BY190: - | BZ190: - | CA190: - | CB190: - | CC190: - | CD190: - | CE190: - | CF190: - | CG190: - | CH190: - | CI190: - | CJ190: - | CK190: - | CL190: - | CM190: - | CN190: - | CO190: - | CP190: - | CQ190: - | CR190: - | CS190: - | CT190: - | CU190: - | CV190: - | CW190: - | CX190: - | CY190: - | CZ190: - | DA190: - | DB190: - | DC190: - | DD190: - | DE190: - | DF190: - | DG190: - | DH190: - | DI190: -
B191: 91
B192: 92 | N192: - | O192: - | P192: - | Q192: - | R192: - | S192: - | T192: - | U192: - | V192: - | W192: - | X192: - | Y192: - | Z192: - | AA192: - | AB192: - | AC192: - | AD192: - | AE192: - | AF192: - | AG192: - | AH192: - | AI192: - | AJ192: - | AK192: - | AL192: - | AM192: - | AN192: - | AO192: - | AP192: - | AQ192: - | AR192: - | AS192: - | AT192: - | AU192: - | AV192: - | AW192: - | AX192: - | AY192: - | AZ192: - | BA192: - | BB192: - | BC192: - | BD192: - | BE192: - | BF192: - | BG192: - | BH192: - | BI192: - | BJ192: - | BK192: - | BL192: - | BM192: - | BN192: - | BO192: - | BP192: - | BQ192: - | BR192: - | BS192: - | BT192: - | BU192: - | BV192: - | BW192: - | BX192: - | BY192: - | BZ192: - | CA192: - | CB192: - | CC192: - | CD192: - | CE192: - | CF192: - | CG192: - | CH192: - | CI192: - | CJ192: - | CK192: - | CL192: - | CM192: - | CN192: - | CO192: - | CP192: - | CQ192: - | CR192: - | CS192: - | CT192: - | CU192: - | CV192: - | CW192: - | CX192: - | CY192: - | CZ192: - | DA192: - | DB192: - | DC192: - | DD192: - | DE192: - | DF192: - | DG192: - | DH192: - | DI192: -
B193: 92
B194: 93 | N194: - | O194: - | P194: - | Q194: - | R194: - | S194: - | T194: - | U194: - | V194: - | W194: - | X194: - | Y194: - | Z194: - | AA194: - | AB194: - | AC194: - | AD194: - | AE194: - | AF194: - | AG194: - | AH194: - | AI194: - | AJ194: - | AK194: - | AL194: - | AM194: - | AN194: - | AO194: - | AP194: - | AQ194: - | AR194: - | AS194: - | AT194: - | AU194: - | AV194: - | AW194: - | AX194: - | AY194: - | AZ194: - | BA194: - | BB194: - | BC194: - | BD194: - | BE194: - | BF194: - | BG194: - | BH194: - | BI194: - | BJ194: - | BK194: - | BL194: - | BM194: - | BN194: - | BO194: - | BP194: - | BQ194: - | BR194: - | BS194: - | BT194: - | BU194: - | BV194: - | BW194: - | BX194: - | BY194: - | BZ194: - | CA194: - | CB194: - | CC194: - | CD194: - | CE194: - | CF194: - | CG194: - | CH194: - | CI194: - | CJ194: - | CK194: - | CL194: - | CM194: - | CN194: - | CO194: - | CP194: - | CQ194: - | CR194: - | CS194: - | CT194: - | CU194: - | CV194: - | CW194: - | CX194: - | CY194: - | CZ194: - | DA194: - | DB194: - | DC194: - | DD194: - | DE194: - | DF194: - | DG194: - | DH194: - | DI194: -
B195: 93
B196: 94 | N196: - | O196: - | P196: - | Q196: - | R196: - | S196: - | T196: - | U196: - | V196: - | W196: - | X196: - | Y196: - | Z196: - | AA196: - | AB196: - | AC196: - | AD196: - | AE196: - | AF196: - | AG196: - | AH196: - | AI196: - | AJ196: - | AK196: - | AL196: - | AM196: - | AN196: - | AO196: - | AP196: - | AQ196: - | AR196: - | AS196: - | AT196: - | AU196: - | AV196: - | AW196: - | AX196: - | AY196: - | AZ196: - | BA196: - | BB196: - | BC196: - | BD196: - | BE196: - | BF196: - | BG196: - | BH196: - | BI196: - | BJ196: - | BK196: - | BL196: - | BM196: - | BN196: - | BO196: - | BP196: - | BQ196: - | BR196: - | BS196: - | BT196: - | BU196: - | BV196: - | BW196: - | BX196: - | BY196: - | BZ196: - | CA196: - | CB196: - | CC196: - | CD196: - | CE196: - | CF196: - | CG196: - | CH196: - | CI196: - | CJ196: - | CK196: - | CL196: - | CM196: - | CN196: - | CO196: - | CP196: - | CQ196: - | CR196: - | CS196: - | CT196: - | CU196: - | CV196: - | CW196: - | CX196: - | CY196: - | CZ196: - | DA196: - | DB196: - | DC196: - | DD196: - | DE196: - | DF196: - | DG196: - | DH196: - | DI196: -
B197: 94
B198: 95 | N198: - | O198: - | P198: - | Q198: - | R198: - | S198: - | T198: - | U198: - | V198: - | W198: - | X198: - | Y198: - | Z198: - | AA198: - | AB198: - | AC198: - | AD198: - | AE198: - | AF198: - | AG198: - | AH198: - | AI198: - | AJ198: - | AK198: - | AL198: - | AM198: - | AN198: - | AO198: - | AP198: - | AQ198: - | AR198: - | AS198: - | AT198: - | AU198: - | AV198: - | AW198: - | AX198: - | AY198: - | AZ198: - | BA198: - | BB198: - | BC198: - | BD198: - | BE198: - | BF198: - | BG198: - | BH198: - | BI198: - | BJ198: - | BK198: - | BL198: - | BM198: - | BN198: - | BO198: - | BP198: - | BQ198: - | BR198: - | BS198: - | BT198: - | BU198: - | BV198: - | BW198: - | BX198: - | BY198: - | BZ198: - | CA198: - | CB198: - | CC198: - | CD198: - | CE198: - | CF198: - | CG198: - | CH198: - | CI198: - | CJ198: - | CK198: - | CL198: - | CM198: - | CN198: - | CO198: - | CP198: - | CQ198: - | CR198: - | CS198: - | CT198: - | CU198: - | CV198: - | CW198: - | CX198: - | CY198: - | CZ198: - | DA198: - | DB198: - | DC198: - | DD198: - | DE198: - | DF198: - | DG198: - | DH198: - | DI198: -
B199: 95
B200: 96 | N200: - | O200: - | P200: - | Q200: - | R200: - | S200: - | T200: - | U200: - | V200: - | W200: - | X200: - | Y200: - | Z200: - | AA200: - | AB200: - | AC200: - | AD200: - | AE200: - | AF200: - | AG200: - | AH200: - | AI200: - | AJ200: - | AK200: - | AL200: - | AM200: - | AN200: - | AO200: - | AP200: - | AQ200: - | AR200: - | AS200: - | AT200: - | AU200: - | AV200: - | AW200: - | AX200: - | AY200: - | AZ200: - | BA200: - | BB200: - | BC200: - | BD200: - | BE200: - | BF200: - | BG200: - | BH200: - | BI200: - | BJ200: - | BK200: - | BL200: - | BM200: - | BN200: - | BO200: - | BP200: - | BQ200: - | BR200: - | BS200: - | BT200: - | BU200: - | BV200: - | BW200: - | BX200: - | BY200: - | BZ200: - | CA200: - | CB200: - | CC200: - | CD200: - | CE200: - | CF200: - | CG200: - | CH200: - | CI200: - | CJ200: - | CK200: - | CL200: - | CM200: - | CN200: - | CO200: - | CP200: - | CQ200: - | CR200: - | CS200: - | CT200: - | CU200: - | CV200: - | CW200: - | CX200: - | CY200: - | CZ200: - | DA200: - | DB200: - | DC200: - | DD200: - | DE200: - | DF200: - | DG200: - | DH200: - | DI200: -
B201: 96
B202: 97 | N202: - | O202: - | P202: - | Q202: - | R202: - | S202: - | T202: - | U202: - | V202: - | W202: - | X202: - | Y202: - | Z202: - | AA202: - | AB202: - | AC202: - | AD202: - | AE202: - | AF202: - | AG202: - | AH202: - | AI202: - | AJ202: - | AK202: - | AL202: - | AM202: - | AN202: - | AO202: - | AP202: - | AQ202: - | AR202: - | AS202: - | AT202: - | AU202: - | AV202: - | AW202: - | AX202: - | AY202: - | AZ202: - | BA202: - | BB202: - | BC202: - | BD202: - | BE202: - | BF202: - | BG202: - | BH202: - | BI202: - | BJ202: - | BK202: - | BL202: - | BM202: - | BN202: - | BO202: - | BP202: - | BQ202: - | BR202: - | BS202: - | BT202: - | BU202: - | BV202: - | BW202: - | BX202: - | BY202: - | BZ202: - | CA202: - | CB202: - | CC202: - | CD202: - | CE202: - | CF202: - | CG202: - | CH202: - | CI202: - | CJ202: - | CK202: - | CL202: - | CM202: - | CN202: - | CO202: - | CP202: - | CQ202: - | CR202: - | CS202: - | CT202: - | CU202: - | CV202: - | CW202: - | CX202: - | CY202: - | CZ202: - | DA202: - | DB202: - | DC202: - | DD202: - | DE202: - | DF202: - | DG202: - | DH202: - | DI202: -
B203: 97
B204: 98 | N204: - | O204: - | P204: - | Q204: - | R204: - | S204: - | T204: - | U204: - | V204: - | W204: - | X204: - | Y204: - | Z204: - | AA204: - | AB204: - | AC204: - | AD204: - | AE204: - | AF204: - | AG204: - | AH204: - | AI204: - | AJ204: - | AK204: - | AL204: - | AM204: - | AN204: - | AO204: - | AP204: - | AQ204: - | AR204: - | AS204: - | AT204: - | AU204: - | AV204: - | AW204: - | AX204: - | AY204: - | AZ204: - | BA204: - | BB204: - | BC204: - | BD204: - | BE204: - | BF204: - | BG204: - | BH204: - | BI204: - | BJ204: - | BK204: - | BL204: - | BM204: - | BN204: - | BO204: - | BP204: - | BQ204: - | BR204: - | BS204: - | BT204: - | BU204: - | BV204: - | BW204: - | BX204: - | BY204: - | BZ204: - | CA204: - | CB204: - | CC204: - | CD204: - | CE204: - | CF204: - | CG204: - | CH204: - | CI204: - | CJ204: - | CK204: - | CL204: - | CM204: - | CN204: - | CO204: - | CP204: - | CQ204: - | CR204: - | CS204: - | CT204: - | CU204: - | CV204: - | CW204: - | CX204: - | CY204: - | CZ204: - | DA204: - | DB204: - | DC204: - | DD204: - | DE204: - | DF204: - | DG204: - | DH204: - | DI204: -
... 358 more rows

Sheet Act
A1: Sim
N3: ACT | O3: (Alavancar / Ajustar / Atuar / Agir)
N4: Caso não tenha mais pendências de preenchimento e os planos de ações tenham sido finalizados está na hora de tomar ações corretivas sobre as diferenças significativas entre os resultados reais e planejados.
N7: PROXIMOS PASSOS:
N8: Analisar as diferenças para determinar suas causas.
N9: Determinar onde aplicar as mudanças que incluem a melhoria do processo ou produto.
N10: Refinar com maiores detalhes na iteração seguinte do ciclo,
N12: AÇÕES:
N13: Analisar os próximos relatórios e preencher a aba de PROVIDÊNCIAS que já podem ser identificadas para iniciar o próximo ciclo PDCA, através de ações corretivas, preventivas ou de melhorias, afim de melhorar o processo existente
N17: PENDÊNCIAS: | S17: INFORMAÇÕES RESUMIDAS SOBRE O PROBLEMA:
N19: A SUA PLANILHA NÃO POSSUI NENHUMA PENDÊNCIA. | S19: TOTAIS | T19: QUANTIDADE | U19: %
N21: SEM PREENCHIMENTO DE RESULTADO DE CONTRIBUIÇÃO COM A CAUSA | Q21: 0 | S21: TOTAL DE FATORES IDENTIFICADOS | T21: 16 | U21: 1
N22: SEM PREENCHIMENTO DE RESULTADO CONFORME ESPERADO | Q22: 0
N23: AÇÕES AINDA CADASTRADAS COMO NÃO INICIADAS | Q23: 0 | S23: AÇÕES QUE CONTRIBUIRAM COM A CAUSA | T23: 11 | U23: 0.6875
N24: AÇÕES AINDA CADASTRADAS COMO EM EXECUÇÃO | Q24: 0 | S24: AÇÕES QUE NÃO CONTRIBURIAM COM A CAUSA | T24: 5 | U24: 0.3125
S25: FATORES SEM PREENCHIMENTO DE RESULTADO | T25: 0 | U25: 0
N26: AÇÕES QUE CONTRIBUIRAM COM A CAUSA | Q26: 0.6875
S27: AÇÕES CONFORME O ESPERADO | T27: 11 | U27: 0.6875
Q28: ^^^ Ainda tem fatores sem o preenchimento correto, verificar pendências. ^^^ | S28: AÇÕES QUE NÃO OCORREAM CONFORME ESPERADO | T28: 5 | U28: 0.3125
N29: AÇÕES CONFORME O ESPERADO | Q29: 0.6875 | S29: FATORES SEM PREENCHIMENTO DE RESULTADO | T29: 0 | U29: 0
Q31: ^^^ Ainda tem fatores sem o preenchimento correto, verificar pendências. ^^^ | S31: AÇÕES CONCLUÍDAS | T31: 14 | U31: 0.875
N32: AUMENTO NA SATISFAÇÃO | Q32: 0.6083916084 | S32: AÇÕES NÃO INICIADAS | T32: 0 | U32: 0
S33: AÇÕES EM EXECUÇÃO | T33: 0 | U33: 0
Q34: ^^^ Ainda tem fatores concluídos sem satisfação final preenchida, verificar pendências. ^^^ | S34: AÇÕES CANCELADAS | T34: 1 | U34: 0.0625
S35: AÇÕES NÃO EXECUTADAS | T35: 1 | U35: 0.0625
S36: AÇÕES COM ERRO NA DATA | T36: 0 | U36: 0
N58: CUSTOS COM ANDAMENTO CLASSIFICADO COMO "NORMAL" | R58: (não são considerados "cancelados" e "não executados").
N60: CUSTO TOTAL PREVISTO | Q60: 11200
N63: CUSTO TOTAL REAL | Q63: 12650
N66: CUSTO MAIOR QUE PREVISTO EM: | Q66: 1450
N73: PRAZOS | Previsão x Real | R73: (não são considerados "cancelados" e "não executados").
N75: PRAZO | O75: INÍCIO | P75: FIM | Q75: DURAÇÃO
N76: PREVISÃO | O76: 2018-09-05T00:00:00.001 | P76: 2018-12-10T00:00:00.020 | Q76: 97.00000022
N77: REAL | O77: 2018-09-06T00:00:00.001 | P77: 2018-12-05T00:00:00.002 | Q77: 91.00000001
N78: DIFERENÇA | O78: 1.000000004 | P78: -5.000000208 | Q78: -6.000000212
O79: DE ATRASO PARA INICIAR | P79: ANTECIPADO DO PRAZO FINAL PROJETADO | Q79: DE DURÇÃO MENOR DO QUE PROJETADA
A136: 7
A137: 8
A138: 9
A139: 10
A140: 11
A141: 12
A142: 13
A143: 14
A144: 15
A145: 16
A146: 17
A147: 18
A148: 19
A149: 20
A150: 21
A151: 22
A152: 23
A153: 24
A154: 25
A155: 26
A156: 27
A157: 28
A158: 29
A159: 30
A160: 31
A161: 32
A162: 33
A163: 34
A164: 35
A165: 36
A166: 37
A167: 38
A168: 39
A169: 40
A170: 41
A171: 42
A172: 43

Sheet Act_Result
A1: Sim | B1: Não | C1: SEM PREENCHIMENTO | G1: x | H1: Não executado | I1: Executando | J1: Concluído | K1: Não iniciado | L1: Dentro do prazo | M1: Com atraso | N1: Erro na data | O1: Cancelado | R1: =Plan!T6 -> Sim
B7: R | C7: Q | D7: S | G7: x | I7: RESULTADOS > PROVIDÊNCIAS
B9: Não | D9: 0 | G9: x | I9: FATOR / PLANO DE AÇÃO | K9: RESULT. ESPERADO / COMO? | L9: CONTRUBUÍU COM A CAUSA? | M9: CONFORME ESPERADO? | N9: RESULTADO OBTIDO / OBSERVAÇÕES | O9: STATUS / PRAZO | P9: PROVIDÊNCIAS PRÓX. CICLO | Q9: TIPO DE AÇÃO | R9: SATISFAÇÃO FINAL
A10: 1 | B10: 40029 | G10: x | I10: 1 | J10: 5,01 - Não há sistema para a padronização da produção | K10: Produto com qualidade constante, menor variação entre pedidos e agilizar produção | L10: Não | M10: Não | N10: Sistema novo criado mas gerou diversos outros problemas não foi possível criar a padronização por enquanto. | O10: Concluído | P10: Criar novo procedimento - Realizar pré-testes antes da implantação | Q10: CORRETIVA | R10: 0.4
B11: 40029 | G11: x | I11: Desenvolver sistema de padronização da produção | K11: Confeccionar modelo padrão dos produtos e quantificar cada item utilizado. | O11: Com atraso
A12: 2 | B12: 40021 | G12: x | I12: 2 | J12: 2,01 - Sistema de pedidos à produção ineficiente | K12: Diminuir erros de pedido a cozinha | L12: Não | M12: Não | N12: Tarefa não foi realizada, a troca recente de funcionários dificultou o tempo necessário para a execução da tarefa, | O12: Não executado | P12: Implantar novo sistema de pedidos a produção. | Q12: PREVENTIIVA | R12: 0.35
B13: 40021 | G13: x | I13: Criar novo procedimento | K13: Testar variações de sistema de pedido e averiguar o mais eficiente com ênfase em minimizar erros. | O13: -
A14: 3 | B14: 40019 | G14: x | I14: 3 | J14: 1,04 - Máquina de corte de frios avariada | K14: Aumentar qualidade do produto final e agilizar procedimentos na cozinha | L14: Não | M14: Não | N14: Máquina nova não foi adquirida, a máquina desejada está com preço muito mais elevado do que esperado | O14: Cancelado | P14: Adquirir nova máquina de corte de frios; | Q14: MELHORIA | R14: 0.3
B15: 40019 | G15: x | I15: Comprar nova máquina de frios. | K15: Aquisição de nova máquina | O15: -
A16: 4 | B16: 30027 | G16: x | I16: 4 | J16: 4,02 - Garçons desmotivados. | K16: Garçons mais motivados com o trabalho desenvolvido. | L16: Não | M16: Sim | N16: Treinamento efetuado e novo benefício atribuído mas ainda não surtiu efeitos imediatos. | O16: Concluído | P16: Implantar uma pesquisa de clima e descobrir ao fundo quais os problemas que vem desmotivando os colaboradores e corrigir os problemas levantados. | Q16: MELHORIA | R16: 0.7
B17: 30027 | G17: x | I17: Desenvolver treinamento periódico e melhorar plano de benefícios. | K17: Desenvolver treinamento trimestral e aumentar em 2% a participação na receita da venda da carta de vinhos. | O17: Dentro do prazo
A18: 5 | B18: 30024 | G18: x | I18: 5 | J18: 3,02 - Falta de insumos básicos constantemente | K18: Evitar falta de insumos básicos | L18: Não | M18: Sim | N18: Foi realizado novo sistema de pedidos de compras mas ainda resulta em diversos problemas com falta de produtos básicos devido aos prazos | O18: Concluído | P18: Implantar um novo sistema de pedidos com aumento da quantidade de estoque de alguns produtos para evitar de ficar sem insumos básicos. | Q18: PREVENTIVA | R18: 0.6
B19: 30024 | G19: x | I19: Melhorar procedimento de compra | K19: Melhorar o procedimento existente e treinar o funcionário responsável. | O19: Dentro do prazo
A20: 6 | B20: 20030 | G20: x | I20: 6 | J20: 6,01 - Falta de espaço no balcão do forno | K20: Mais espaço para o trabalho da cozinha | L20: Sim | M20: Não | N20: Foram necessários outras modificações estruturais além das previstas mas o resultado foi excelente. | O20: Concluído | P20: Sem providências para o próximo ciclo | Q20: SEM PROVIDÊNCIA | R20: 1
B21: 20030 | G21: x | I21: Reformar balcão da cozinha | K21: Aumentar em 2,00m o balcão da cozinha | O21: Dentro do prazo
A22: 7 | B22: 20028 | G22: x | I22: 7 | J22: 4,03 - Atraso nas entregas pelos motoboys | K22: Diminuir o tempo de entrega para os últimos clientes | L22: Sim | M22: Não | N22: Criado novo sistema que difere do planejado mas está surtindo efeitos, foram criadas áreas distintas onde pode-se levar quantidades limitadas dependendo do local | O22: Concluído | P22: Sem providências para o próximo ciclo | Q22: SEM PROVIDÊNCIA | R22: 0.95
B23: 20028 | G23: x | I23: Diminuir quantidade de clientes atendidos por vez e aumentar quantidade de entregadores. | K23: Limitar a entrega de 2 pedidos por viagem junto com a contratação de novos motoboys (custo equipamento básico). | O23: Dentro do prazo
A24: 8 | B24: 10031 | G24: x | I24: 8 | J24: 6,02 - Dias frios área externa está inutilizada. | K24: Aumentar o conforto dos clientes em dias frios. | L24: Sim | M24: Sim | N24: Aquisição dos equipamentos e instalações concluídas, a área externa está com melhor condições para atender os clientes em dias mais frios. | O24: Concluído | P24: Sem providências para o próximo ciclo | Q24: SEM PROVIDÊNCIA | R24: 0.85
B25: 10031 | G25: x | I25: Adquirir aquecedores externos | K25: Cotar com 3 empresa aquecedores à gás para as áreas externa e adquiri o de menor custo. | O25: Dentro do prazo
A26: 9 | B26: 10026 | G26: x | I26: 9 | J26: 4,01 - Atendentes do delivery constantemente com dúvidas | K26: Evitar insatisfação do cliente com erros de pedidos e demora no atendimento. | L26: Sim | M26: Sim | N26: Treinamento inicial realizado e planejamento para reciclagem também elaborado | O26: Concluído | P26: Verificar e melhorar o planejamento de reciclagem | Q26: PREVENTIVA | R26: 0.8
B27: 10026 | G27: x | I27: Criar um plano de treinamento periódico | K27: Criar plano de treinamento trimestral | O27: Dentro do prazo
A28: 10 | B28: 10025 | G28: x | I28: 10 | J28: 3,03 - Falta produtos secundários constantemente. | K28: Evitar falta de produtos frequentemente solicitado pelos clientes. | L28: Sim | M28: Sim | N28: Controle adquirido e em funcionamento. Treinamento também foi aplicado. | O28: Concluído | P28: Continuar com novos treinamentos para evitar erros futuros. | Q28: PREVENTIVA | R28: 0.8
B29: 10025 | G29: x | I29: Desenvolver procedimento do novo controle de estoque | K29: Criar controle de estoque para produtos secundários com atualização diária. | O29: Dentro do prazo
A30: 11 | B30: 10023 | G30: x | I30: 11 | J30: 3,01 - Fornecedor de defumados com baixa qualidade | K30: Aumentar qualidade do produto final | L30: Sim | M30: Sim | N30: Troca efetuada com sucesso | O30: Concluído | P30: Verificar novos insumos que necessitam de novos fornecedores afim de melhor a qualidade do produto final. | Q30: MELHORIA | R30: 0.5
B31: 10023 | G31: x | I31: Contratar novo fornecedor | K31: Contratar novo fornecedor de melhor qualidade dentro do teto de preços fixado. | O31: Dentro do prazo
A32: 12 | B32: 10022 | G32: x | I32: 12 | J32: 2,02 - Controle de estoques de produtos secundários inexistente. | K32: Evitar falta de produtos frequentemente solicitado pelos clientes. | L32: Sim | M32: Sim | N32: Adquirida ferramenta de estoque e colaboradores foram treinados para realizar a tarefa diária. | O32: Concluído | P32: Sem providências para o próximo ciclo, o sistema implantado já é suficiente, apenas continuar com o treinamento. | Q32: SEM PROVIDÊNCIA | R32: 0.5
B33: 10022 | G33: x | I33: Criar um controle de estoque | K33: Contratar um software e instalar procedimento. | O33: Com atraso
A34: 13 | B34: 10020 | G34: x | I34: 13 | J34: 1,05 - Refrigerador está com capacidade máxima | K34: Aumentar a capacidade do estoque de bebidas e aumentar a variedade de opções | L34: Sim | M34: Sim | N34: Foi adquirido o novo refrigerador | O34: Concluído | P34: Sem providências para o próximo ciclo | Q34: SEM PROVIDÊNCIA | R34: 1
B35: 10020 | G35: x | I35: Adquirir novo refrigerador | K35: Aquisição de nova máquina | O35: Com atraso
A36: 14 | B36: 10018 | G36: x | I36: 14 | J36: 1,03 - Fogão industrial avariado | K36: Melhorar a eficiência na cozinha | L36: Sim | M36: Sim | N36: Manutenção realizada com empresa terceirizada. | O36: Concluído | P36: Criar contrato de manutenção periódica e preventiva para os principais equipamentos da cozinha | Q36: PREVENTIVA | R36: 0.85
B37: 10018 | G37: x | I37: Consertar avarias existentes. | K37: Contratação de empresa de manutenção | O37: Dentro do prazo
A38: 15 | B38: 10017 | G38: x | I38: 15 | J38: 1,02 - Poucas máquinas de recebimento de pagamentos | K38: Diminuir tempo do delivery deixando mais dinâmico | L38: Sim | M38: Sim | N38: Adquirido duas novas máquinas sendo uma delas de uma nova operadora de cartão, já estão em funcionamento. | O38: Concluído | P38: Sem providências para o próximo ciclo | Q38: SEM PROVIDÊNCIA | R38: 1
B39: 10017 | G39: x | I39: Adquirir novas máquinas de operadoras de cartões. | K39: Cotar e adquirir novas máquinas | O39: Dentro do prazo
A40: 16 | B40: 10016 | G40: x | I40: 16 | J40: 1,01 - Sistema de geração de pedidos defasado | K40: Diminuir erros dos cadastros e constantes falhas do sistema | L40: Sim | M40: Sim | N40: Foi adquirido novo sistema e já foi implantado. O treinamento inicial já foi realizado. | O40: Concluído | P40: Utilizar funcionalidades do novo sistema que ainda não estão sendo aproveitadas | Q40: MELHORIA | R40: 0.9
B41: 10016 | G41: x | I41: Adquirir novo sistema de pedidos. | K41: Contratação de novo serviço e treinamento dos funcionários envolvidos | O41: Dentro do prazo
A42: 17 | B42: - | I42: 17
B43: -
A44: 18 | B44: - | I44: 18
B45: -
A46: 19 | B46: - | I46: 19
B47: -
A48: 20 | B48: - | I48: 20
B49: -
A50: 21 | B50: - | I50: 21
B51: -
A52: 22 | B52: - | I52: 22
B53: -
A54: 23 | B54: - | I54: 23
B55: -
A56: 24 | B56: - | I56: 24
B57: -
A58: 25 | B58: - | I58: 25
B59: -
A60: 26 | B60: - | I60: 26
B61: -
A62: 27 | B62: - | I62: 27
B63: -
A64: 28 | B64: - | I64: 28
B65: -
A66: 29 | B66: - | I66: 29
B67: -
A68: 30 | B68: - | I68: 30
B69: -
A70: 31 | B70: - | I70: 31
B71: -
A72: 32 | B72: - | I72: 32
B73: -
A74: 33 | B74: - | I74: 33
B75: -
A76: 34 | B76: - | I76: 34
B77: -
A78: 35 | B78: - | I78: 35
B79: -
A80: 36 | B80: - | I80: 36
B81: -
A82: 37 | B82: - | I82: 37
B83: -
A84: 38 | B84: - | I84: 38
B85: -
A86: 39 | B86: - | I86: 39
B87: -
A88: 40 | B88: - | I88: 40
B89: -
A90: 41 | B90: - | I90: 41
B91: -
A92: 42 | B92: - | I92: 42
B93: -
A94: 43 | B94: - | I94: 43
B95: -
A96: 44 | B96: - | I96: 44
B97: -
A98: 45 | B98: - | I98: 45
B99: -
A100: 46 | B100: - | I100: 46
B101: -
A102: 47 | B102: - | I102: 47
B103: -
A104: 48 | B104: - | I104: 48
B105: -
A106: 49 | B106: - | I106: 49
B107: -
A108: 50 | B108: - | I108: 50
B109: -
A110: 51 | B110: - | I110: 51
B111: -
A112: 52 | B112: - | I112: 52
B113: -
A114: 53 | B114: - | I114: 53
B115: -
A116: 54 | B116: - | I116: 54
B117: -
A118: 55 | B118: - | I118: 55
B119: -
A120: 56 | B120: - | I120: 56
B121: -
A122: 57 | B122: - | I122: 57
B123: -
A124: 58 | B124: - | I124: 58
B125: -
A126: 59 | B126: - | I126: 59
B127: -
A128: 60 | B128: - | I128: 60
B129: -
A130: 61 | B130: - | I130: 61
B131: -
A132: 62 | B132: - | I132: 62
B133: -
A134: 63 | B134: - | I134: 63
B135: -
A136: 64 | B136: - | I136: 64
B137: -
A138: 65 | B138: - | I138: 65
B139: -
A140: 66 | B140: - | I140: 66
B141: -
A142: 67 | B142: - | I142: 67
B143: -
A144: 68 | B144: - | I144: 68
B145: -
A146: 69 | B146: - | I146: 69
B147: -
A148: 70 | B148: - | I148: 70
B149: -
A150: 71 | B150: - | I150: 71
B151: -
A152: 72 | B152: - | I152: 72
B153: -
A154: 73 | B154: - | I154: 73
B155: -
A156: 74 | B156: - | I156: 74
B157: -
A158: 75 | B158: - | I158: 75
B159: -
A160: 76 | B160: - | I160: 76
B161: -
A162: 77 | B162: - | I162: 77
B163: -
A164: 78 | B164: - | I164: 78
B165: -
A166: 79 | B166: - | I166: 79
B167: -
A168: 80 | B168: - | I168: 80
B169: -
A170: 81 | B170: - | I170: 81
B171: -
A172: 82 | B172: - | I172: 82
B173: -
A174: 83 | B174: - | I174: 83
B175: -
A176: 84 | B176: - | I176: 84
B177: -
A178: 85 | B178: - | I178: 85
B179: -
A180: 86 | B180: - | I180: 86
B181: -
A182: 87 | B182: - | I182: 87
B183: -
A184: 88 | B184: - | I184: 88
B185: -
A186: 89 | B186: - | I186: 89
B187: -
A188: 90 | B188: - | I188: 90
B189: -
A190: 91 | B190: - | I190: 91
B191: -
A192: 92 | B192: - | I192: 92
B193: -
A194: 93 | B194: - | I194: 93
B195: -
A196: 94 | B196: - | I196: 94
B197: -
A198: 95 | B198: - | I198: 95
B199: -
A200: 96 | B200: - | I200: 96
B201: -
A202: 97 | B202: - | I202: 97
B203: -
A204: 98 | B204: - | I204: 98
B205: -
A206: 99 | B206: - | I206: 99
... 813 more rows

Sheet Act_Sat
A1: Sim
N5: =IF(A1="Não","RELATÓRIO NÃO SE APLICA POIS FOI OPTADO NÃO MENSURAR A SATISFAÇÃO","FATORES POR SATISFAÇÃO FINAL") -> FATORES POR SATISFAÇÃO FINAL
N7: FATOR | O7: AÇÃO: | P7: RESULTADO OBTIDO / OBSERVAÇÕES | R7: SATISFAÇÃO ANTERIOR | T7: META DE SATISFAÇÃO | U7: VARIAÇÃO ESPERADA | W7: SATISFAÇÃO FINAL | X7: VARIAÇÃO REAL | Z7: SUPEROU A META EM
A8: 1 | N8: 4,03 - Atraso nas entregas pelos motoboys | O8: Diminuir quantidade de clientes atendidos por vez e aumentar quantidade de entregadores. | P8: Criado novo sistema que difere do planejado mas está surtindo efeitos, foram criadas áreas distintas onde pode-se levar quantidades limitadas dependendo do local | R8: 0.3 | T8: 0.7 | U8: 1.333333333 | W8: 0.95 | X8: 2.166666947 | Z8: 0.3571428571
A9: 2 | N9: 3,03 - Falta produtos secundários constantemente. | O9: Desenvolver procedimento do novo controle de estoque | P9: Controle adquirido e em funcionamento. Treinamento também foi aplicado. | R9: 0.3 | T9: 0.7 | U9: 1.333333333 | W9: 0.8 | X9: 1.666666917 | Z9: 0.1428571429
A10: 3 | N10: 3,01 - Fornecedor de defumados com baixa qualidade | O10: Contratar novo fornecedor | P10: Troca efetuada com sucesso | R10: 0.2 | T10: 0.8 | U10: 3 | W10: 0.5 | X10: 1.50000023
A11: 4 | N11: 1,01 - Sistema de geração de pedidos defasado | O11: Adquirir novo sistema de pedidos. | P11: Foi adquirido novo sistema e já foi implantado. O treinamento inicial já foi realizado. | R11: 0.4 | T11: 0.9 | U11: 1.25 | W11: 0.9 | X11: 1.25000016
A12: 5 | N12: 6,02 - Dias frios área externa está inutilizada. | O12: Adquirir aquecedores externos | P12: Aquisição dos equipamentos e instalações concluídas, a área externa está com melhor condições para atender os clientes em dias mais frios. | R12: 0.4 | T12: 0.8 | U12: 1 | W12: 0.85 | X12: 1.12500031 | Z12: 0.0625
A13: 6 | N13: 4,01 - Atendentes do delivery constantemente com dúvidas | O13: Criar um plano de treinamento periódico | P13: Treinamento inicial realizado e planejamento para reciclagem também elaborado | R13: 0.4 | T13: 0.7 | U13: 0.75 | W13: 0.8 | X13: 1.00000026 | Z13: 0.1428571429
A14: 7 | N14: 1,02 - Poucas máquinas de recebimento de pagamentos | O14: Adquirir novas máquinas de operadoras de cartões. | P14: Adquirido duas novas máquinas sendo uma delas de uma nova operadora de cartão, já estão em funcionamento. | R14: 0.5 | T14: 1 | U14: 1 | W14: 1 | X14: 1.00000017
A15: 8 | N15: 6,01 - Falta de espaço no balcão do forno | O15: Reformar balcão da cozinha | P15: Foram necessários outras modificações estruturais além das previstas mas o resultado foi excelente. | R15: 0.6 | T15: 0.8 | U15: 0.3333333333 | W15: 1 | X15: 0.6666669667 | Z15: 0.25
A16: 9 | N16: 2,02 - Controle de estoques de produtos secundários inexistente. | O16: Criar um controle de estoque | P16: Adquirida ferramenta de estoque e colaboradores foram treinados para realizar a tarefa diária. | R16: 0.3 | T16: 0.8 | U16: 1.666666667 | W16: 0.5 | X16: 0.6666668867
A17: 10 | N17: 1,05 - Refrigerador está com capacidade máxima | O17: Adquirir novo refrigerador | P17: Foi adquirido o novo refrigerador | R17: 0.7 | T17: 1 | U17: 0.4285714286 | W17: 1 | X17: 0.4285716286
A18: 11 | N18: 1,03 - Fogão industrial avariado | O18: Consertar avarias existentes. | P18: Manutenção realizada com empresa terceirizada. | R18: 0.6 | T18: 0.9 | U18: 0.5 | W18: 0.85 | X18: 0.4166668467
A19: 12 | N19: 5,01 - Não há sistema para a padronização da produção | O19: Desenvolver sistema de padronização da produção | P19: Sistema novo criado mas gerou diversos outros problemas não foi possível criar a padronização por enquanto. | R19: 0.4 | T19: 1 | U19: 1.5 | W19: 0.4 | X19: 2.9e-07
A20: 13 | N20: 4,02 - Garçons desmotivados. | O20: Desenvolver treinamento periódico e melhorar plano de benefícios. | P20: Treinamento efetuado e novo benefício atribuído mas ainda não surtiu efeitos imediatos. | R20: 0.7 | T20: 0.9 | U20: 0.2857142857 | W20: 0.7 | X20: 2.7e-07
A21: 14 | N21: 2,01 - Sistema de pedidos à produção ineficiente | O21: Criar novo procedimento | P21: Tarefa não foi realizada, a troca recente de funcionários dificultou o tempo necessário para a execução da tarefa, | R21: 0.35 | T21: 0.8 | U21: 1.285714286 | W21: 0.35 | X21: 2.1e-07
A22: 15 | N22: 1,04 - Máquina de corte de frios avariada | O22: Comprar nova máquina de frios. | P22: Máquina nova não foi adquirida, a máquina desejada está com preço muito mais elevado do que esperado | R22: 0.3 | T22: 1 | U22: 2.333333333 | W22: 0.3 | X22: 1.9e-07
A23: 16 | N23: 3,02 - Falta de insumos básicos constantemente | O23: Melhorar procedimento de compra | P23: Foi realizado novo sistema de pedidos de compras mas ainda resulta em diversos problemas com falta de produtos básicos devido aos prazos | R23: 0.7 | T23: 1 | U23: 0.4285714286 | W23: 0.6 | X23: -0.1428569029
A24: 17
A25: 18
A26: 19
A27: 20
A28: 21
A29: 22
A30: 23
A31: 24
A32: 25
A33: 26
A34: 27
A35: 28
A36: 29
A37: 30
A38: 31
A39: 32
A40: 33
A41: 34
A42: 35 | I42: CONTRUIBUIRAM COM A CAUSA
A43: 36 | I43: CONFORME O ESPERADO
A44: 37 | I44: ANDAMENTO
A45: 38
A46: 39
A47: 40
A48: 41
A49: 42
A50: 43
A51: 44
A52: 45
A53: 46
A54: 47
A55: 48
A56: 49
A57: 50
A58: 51
A59: 52
A60: 53
A61: 54
A62: 55
A63: 56
A64: 57
A65: 58
A66: 59
A67: 60
A68: 61
A69: 62
A70: 63
A71: 64
A72: 65
A73: 66
A74: 67
A75: 68
A76: 69
A77: 70
A78: 71
A79: 72
A80: 73
A81: 74
A82: 75
A83: 76
A84: 77
A85: 78
A86: 79
A87: 80
A88: 81
A89: 82
A90: 83
A91: 84
A92: 85
A93: 86
A94: 87
A95: 88
A96: 89
A97: 90
A98: 91
A99: 92
A100: 93
A101: 94
A102: 95
A103: 96
A104: 97
A105: 98
A106: 99
A107: 100
A108: 101
A109: 102
A110: 103
A111: 104
A112: 105
A113: 106
A114: 107
A115: 108
A116: 109
A117: 110
A118: 111
A119: 112
A120: 113
A121: 114
A122: 115
A123: 116
A124: 117
A125: 118
A126: 119
A127: 120
A128: 121
A129: 122
A130: 123
A131: 124
A132: 125
A133: 126
A134: 127
A135: 128
A136: 129
A137: 130
A138: 131
A139: 132
A140: 133
A141: 134
A142: 135
A143: 136
A144: 137
A145: 138
A146: 139
A147: 140
A148: 141
A149: 142
A150: 143
A151: 144
A152: 145
A153: 146
A154: 147
A155: 148
A156: 149
A157: 150
A158: 151
A159: 152
A160: 153
A161: 154
A162: 155
A163: 156
A164: 157
A165: 158
A166: 159
A167: 160
A168: 161
A169: 162
A170: 163
A171: 164
A172: 165
A173: 166
A174: 167
A175: 168
A176: 169
A177: 170
A178: 171
A179: 172
A180: 173
A181: 174
A182: 175
A183: 176
A184: 177
A185: 178
A186: 179
A187: 180
A188: 181
A189: 182
A190: 183
A191: 184
A192: 185
A193: 186
A194: 187
A195: 188
A196: 189
A197: 190
A198: 191
A199: 192
A200: 193
A201: 194
A202: 195
A203: 196
A204: 197
... 303 more rows

Sheet Act_Causas
A1: Sim | B1: Sim | C1: Não | H1: x
H2: x
H3: x
H4: x
H5: x | N5: =IF(A1="Não","RELATÓRIO NÃO SE APLICA POIS FOI OPTADO NÃO MENSURAR A SATISFAÇÃO","FATORES POR SATISFAÇÃO FINAL") -> FATORES POR SATISFAÇÃO FINAL
H6: x
H7: x | R7: ANDAMENTO | Y7: RESULTADO | AD7: SATISFAÇÃO
H8: x | N8: ID | O8: CAUSA | P8: TOTAL DE FATORES | R8: NORMAL | S8: % | T8: NÃO EXECUTADO | U8: % | V8: CANCELADO | W8: % | Y8: CONTRIBUIRAM COM A CAUSA | Z8: % | AA8: CONFORME O ESPERADO | AB8: % | AD8: SATISFAÇÃO ANTERIOR | AF8: META | AG8: ALTERAÇÃO ESPERADA | AI8: SATISFAÇÃO FINAL | AJ8: ALTERAÇÃO FINAL
A9: 1 | B9: 1 | H9: x | N9: 1 | O9: MÁQUINAS | P9: 5 | R9: 4 | S9: 0.8 | T9: 0 | U9: 0 | V9: 1 | W9: 0.2 | Y9: 4 | Z9: 0.8 | AA9: 4 | AB9: 0.8 | AD9: 0.5 | AF9: 0.96 | AG9: 0.92 | AI9: 0.81 | AJ9: 0.62
A10: 2 | B10: 1 | H10: x | N10: 2 | O10: MÉTODO | P10: 2 | R10: 1 | S10: 0.5 | T10: 1 | U10: 0.5 | V10: 0 | W10: 0 | Y10: 1 | Z10: 0.5 | AA10: 1 | AB10: 0.5 | AD10: 0.325 | AF10: 0.8 | AG10: 1.461538462 | AI10: 0.425 | AJ10: 0.3076923077
A11: 3 | B11: 1 | H11: x | N11: 3 | O11: MATERIAL | P11: 3 | R11: 3 | S11: 1 | T11: 0 | U11: 0 | V11: 0 | W11: 0 | Y11: 2 | Z11: 0.6666666667 | AA11: 3 | AB11: 1 | AD11: 0.4 | AF11: 0.8333333333 | AG11: 1.083333333 | AI11: 0.6333333333 | AJ11: 0.5833333333
A12: 4 | B12: 1 | H12: x | N12: 4 | O12: MÃO-DE-OBRA | P12: 3 | R12: 3 | S12: 1 | T12: 0 | U12: 0 | V12: 0 | W12: 0 | Y12: 2 | Z12: 0.6666666667 | AA12: 2 | AB12: 0.6666666667 | AD12: 0.4666666667 | AF12: 0.7666666667 | AG12: 0.6428571429 | AI12: 0.8166666667 | AJ12: 0.75
A13: 5 | B13: 1 | H13: x | N13: 5 | O13: MEDIDA | P13: 1 | R13: 1 | S13: 1 | T13: 0 | U13: 0 | V13: 0 | W13: 0 | Y13: 0 | Z13: 0 | AA13: 0 | AB13: 0 | AD13: 0.4 | AF13: 1 | AG13: 1.5 | AI13: 0.4 | AJ13: 0
A14: 6 | B14: 1 | H14: x | N14: 6 | O14: MEIO AMBIENTE | P14: 2 | R14: 2 | S14: 1 | T14: 0 | U14: 0 | V14: 0 | W14: 0 | Y14: 2 | Z14: 1 | AA14: 1 | AB14: 0.5 | AD14: 0.5 | AF14: 0.8 | AG14: 0.6 | AI14: 0.925 | AJ14: 0.85
A15: 7 | N15: 7
A16: 8 | N16: 8
A17: 9 | N17: 9
A18: 10 | N18: 10
H19: x | N19: tt | O19: TOTAIS | P19: 16 | R19: 14 | S19: 0.875 | T19: 1 | U19: 0.0625 | V19: 1 | W19: 0.0625 | Y19: 11 | Z19: 0.6875 | AA19: 11 | AB19: 0.6875
H20: x
H21: x | N21: =O8 -> CAUSA | O21: =R8 -> NORMAL | P21: =T8 -> NÃO EXECUTADO | Q21: =V8 -> CANCELADO | R21: =Y8 -> CONTRIBUIRAM COM A CAUSA | S21: =AA8 -> CONFORME O ESPERADO
A22: ACT_CAUSAS_CAUSAS | B22: MÁQUINAS | H22: x | N22: MÁQUINAS | O22: =S9 -> 0.8 | P22: =U9 -> 0 | Q22: =W9 -> 0.2 | R22: =Z9 -> 0.8 | S22: =AB9 -> 0.8
A23: ACT_CAUSAS_NORMAL | B23: 0.5 | H23: x | N23: MÉTODO | O23: 0.5 | P23: 0.5 | Q23: 0 | R23: 0.5 | S23: 0.5
A24: ACT_CAUSAS_NÃO EXECUTADO | B24: 0 | H24: x | N24: MATERIAL | O24: 1 | P24: 0 | Q24: 0 | R24: 0.6666666667 | S24: 1
A25: ACT_CAUSAS_CANCELADO | B25: 0 | H25: x | N25: MÃO-DE-OBRA | O25: 1 | P25: 0 | Q25: 0 | R25: 0.6666666667 | S25: 0.6666666667
A26: ACT_CAUSAS_CONTRIBUIRAM COM A CAUSA | B26: 0 | H26: x | N26: MEDIDA | O26: 1 | P26: 0 | Q26: 0 | R26: 0 | S26: 0
A27: ACT_CAUSAS_CONFORME O ESPERADO | B27: 0.5 | H27: x | N27: MEIO AMBIENTE | O27: 1 | P27: 0 | Q27: 0 | R27: 1 | S27: 0.5
H28: x
H29: x
H30: x
H31: x
H32: x | N32: =SUM($B$9:$B$18) -> 6
H33: x
H34: x
H35: x
H36: x

Sheet Validações
A1: ANDAMENTO | B1: quantidade | C1: SN | D1: AÇÕES | E1: ISHI | F1: 1 | G1: 2 | H1: 3 | I1: 4 | J1: 5 | K1: 6 | L1: 7 | M1: 8 | N1: 9 | O1: 10 | P1: Quantidade | Q1: 11
A2: Normal | B2: 16 | C2: Sim | D2: Em espera | E2: 5 | F2: 5 | G2: 2 | H2: 3 | I2: 3 | J2: 1 | K2: 2 | L2: 0 | M2: 0 | N2: 0 | O2: 0 | P2: Razões | Q2: #VALUE!
A3: Cancelado | C3: Não | D3: A iniciar | P3: Ocorrências | Q3: #VALUE!
A4: Não executado | B4: Check satisfação | D4: Executando | P4: Participação acumulada % | Q4: #VALUE!
B5: 0.6083916084 | D5: Concluído
D6: Cancelado
B7: Marcador
B8: x
B9: y
B10: -
G12: ABA UTILIZADA PARA CÁLCULOS, NÃO ALTERAR!!!
A21: check | C21: maior_check
A22: maior_do | B22: 43444 | C22: 2018-12-10T00:00:00.020
A23: maior_check | B23: 43439 | C23: 2018-12-05T00:00:00.002
A24: menor_do | B24: 43348 | C24: 2018-09-05T00:00:00.001
A25: menor_check | B25: 43349 | C25: 2018-09-06T00:00:00.001
A27: Act
A28: Sim | B28: Ótimo, agora você tem duas opções, você pode aplicar o ciclo PDCA novamente nesse problema para melhorar ainda mais os níveis de satisfação atingindo um desempenho ainda maior. Ou, poderá aplicar a ferramenta PDCA em outro problema, tornando uma rotina em sua empresa a utilização dessa ferramenta na solução de problemas e no aumento de qualidade da sua atividade.
A29: Não | B29: Você deverá refazer o ciclo PDCA, ignorando ou não os fatores problemáticos já resolvidos e/ou incluíndo novos fatores, basta realizar uma cópia da planilha e fazer um novo ciclo PDCA considerando os fatores ainda não resolvidos. Você poderá identificar os problemas ainda não resolvidos na aba RELATÓRIOS.
A33: STATUS | B33: VALOR | C33: PRAZO | D33: VALOR | G33: Não | H33: Não | I33: NãoNão | J33: 40000
A34: Não iniciado | B34: 10000 | C34: Dentro do prazo | D34: 1000 | G34: Não | H34: Sim | I34: NãoSim | J34: 30000
A35: Executando | B35: 20000 | C35: Com atraso | D35: 0 | G35: Sim | H35: Não | I35: SimNão | J35: 20000
A36: Concluído | B36: 30000 | C36: Erro na data | D36: 3000 | G36: Sim | H36: Sim | I36: SimSim | J36: 10000
A37: Não executado | B37: 40000 | C37: - | D37: 4000
A38: Cancelado | B38: 50000

Sheet Base-Fator
A1: 1 | B1: 1,01 - Sistema de geração de pedidos defasado | C1: 1.01 | D1: Sistema de geração de pedidos defasado | E1: 1,01 - Sistema de geração de pedidos defasado | F1: 1 | G1: 1,01 - Sistema de geração de pedidos defasado
A2: 2 | B2: 1,02 - Poucas máquinas de recebimento de pagamentos | C2: 1.02 | D2: Poucas máquinas de recebimento de pagamentos | E2: 1,02 - Poucas máquinas de recebimento de pagamentos | F2: 1 | G2: 1,02 - Poucas máquinas de recebimento de pagamentos
A3: 3 | B3: 1,03 - Fogão industrial avariado | C3: 1.03 | D3: Fogão industrial avariado | E3: 1,03 - Fogão industrial avariado | F3: 1 | G3: 1,03 - Fogão industrial avariado
A4: 4 | B4: 1,04 - Máquina de corte de frios avariada | C4: 1.04 | D4: Máquina de corte de frios avariada | E4: 1,04 - Máquina de corte de frios avariada | F4: 1 | G4: 1,04 - Máquina de corte de frios avariada
A5: 5 | B5: 1,05 - Refrigerador está com capacidade máxima | C5: 1.05 | D5: Refrigerador está com capacidade máxima | E5: 1,05 - Refrigerador está com capacidade máxima | F5: 1 | G5: 1,05 - Refrigerador está com capacidade máxima
A6: 6 | B6: 2,01 - Sistema de pedidos à produção ineficiente | C6: 2.01 | D6: Sistema de pedidos à produção ineficiente | E6: 2,01 - Sistema de pedidos à produção ineficiente | F6: 2 | G6: 2,01 - Sistema de pedidos à produção ineficiente
A7: 7 | B7: 2,02 - Controle de estoques de produtos secundários inexistente. | C7: 2.02 | D7: Controle de estoques de produtos secundários inexistente. | E7: 2,02 - Controle de estoques de produtos secundários inexistente. | F7: 2 | G7: 2,02 - Controle de estoques de produtos secundários inexistente.
A8: 8 | B8: 3,01 - Fornecedor de defumados com baixa qualidade | C8: 3.01 | D8: Fornecedor de defumados com baixa qualidade | E8: 3,01 - Fornecedor de defumados com baixa qualidade | F8: 3 | G8: 3,01 - Fornecedor de defumados com baixa qualidade
A9: 9 | B9: 3,02 - Falta de insumos básicos constantemente | C9: 3.02 | D9: Falta de insumos básicos constantemente | E9: 3,02 - Falta de insumos básicos constantemente | F9: 3 | G9: 3,02 - Falta de insumos básicos constantemente
A10: 10 | B10: 3,03 - Falta produtos secundários constantemente. | C10: 3.03 | D10: Falta produtos secundários constantemente. | E10: 3,03 - Falta produtos secundários constantemente. | F10: 3 | G10: 3,03 - Falta produtos secundários constantemente.
A11: 11 | B11: 4,01 - Atendentes do delivery constantemente com dúvidas | C11: 4.01 | D11: Atendentes do delivery constantemente com dúvidas | E11: 4,01 - Atendentes do delivery constantemente com dúvidas | F11: 4 | G11: 4,01 - Atendentes do delivery constantemente com dúvidas
A12: 12 | B12: 4,02 - Garçons desmotivados. | C12: 4.02 | D12: Garçons desmotivados. | E12: 4,02 - Garçons desmotivados. | F12: 4 | G12: 4,02 - Garçons desmotivados.
A13: 13 | B13: 4,03 - Atraso nas entregas pelos motoboys | C13: 4.03 | D13: Atraso nas entregas pelos motoboys | E13: 4,03 - Atraso nas entregas pelos motoboys | F13: 4 | G13: 4,03 - Atraso nas entregas pelos motoboys
A14: 14 | B14: 5,01 - Não há sistema para a padronização da produção | C14: 5.01 | D14: Não há sistema para a padronização da produção | E14: 5,01 - Não há sistema para a padronização da produção | F14: 5 | G14: 5,01 - Não há sistema para a padronização da produção
A15: 15 | B15: 6,01 - Falta de espaço no balcão do forno | C15: 6.01 | D15: Falta de espaço no balcão do forno | E15: 6,01 - Falta de espaço no balcão do forno | F15: 6 | G15: 6,01 - Falta de espaço no balcão do forno
A16: 16 | B16: 6,02 - Dias frios área externa está inutilizada. | C16: 6.02 | D16: Dias frios área externa está inutilizada. | E16: 6,02 - Dias frios área externa está inutilizada. | F16: 6 | G16: 6,02 - Dias frios área externa está inutilizada.
A17: 17
A18: 18
A19: 19
A20: 20
A21: 21
A22: 22
A23: 23
A24: 24
A25: 25
A26: 26
A27: 27
A28: 28
A29: 29
A30: 30
A31: 31
A32: 32
A33: 33
A34: 34
A35: 35
A36: 36
A37: 37
A38: 38
A39: 39
A40: 40
A41: 41
A42: 42
A43: 43
A44: 44
A45: 45
A46: 46
A47: 47
A48: 48
A49: 49
A50: 50
A51: 51
A52: 52
A53: 53
A54: 54
A55: 55
A56: 56
A57: 57
A58: 58
A59: 59
A60: 60
A61: 61
A62: 62
A63: 63
A64: 64
A65: 65
A66: 66
A67: 67
A68: 68
A69: 69
A70: 70
A71: 71
A72: 72
A73: 73
A74: 74
A75: 75
A76: 76
A77: 77
A78: 78
A79: 79
A80: 80
A81: 81
A82: 82
A83: 83
A84: 84
A85: 85
A86: 86
A87: 87
A88: 88
A89: 89
A90: 90
A91: 91
A92: 92
A93: 93
A94: 94
A95: 95
A96: 96
A97: 97
A98: 98
A99: 99
A100: 100
A101: 101
A102: 102
A103: 103
A104: 104
A105: 105
A106: 106
A107: 107
A108: 108
A109: 109
A110: 110
A111: 111
A112: 112
A113: 113
A114: 114
A115: 115
A116: 116
A117: 117
A118: 118
A119: 119
A120: 120
A121: 121
A122: 122
A123: 123
A124: 124
A125: 125
A126: 126
A127: 127
A128: 128
A129: 129
A130: 130
A131: 131
A132: 132
A133: 133
A134: 134
A135: 135
A136: 136
A137: 137
A138: 138
A139: 139
A140: 140
A141: 141
A142: 142
A143: 143
A144: 144
A145: 145
A146: 146
A147: 147
A148: 148
A149: 149
A150: 150
A151: 151
A152: 152
A153: 153
A154: 154
A155: 155
A156: 156
A157: 157
A158: 158
A159: 159
A160: 160
A161: 161
A162: 162
A163: 163
A164: 164
A165: 165
A166: 166
A167: 167
A168: 168
A169: 169
A170: 170
A171: 171
A172: 172
A173: 173
A174: 174
A175: 175
A176: 176
A177: 177
A178: 178
A179: 179
A180: 180
A181: 181
A182: 182
A183: 183
A184: 184
A185: 185
A186: 186
A187: 187
A188: 188
A189: 189
A190: 190
A191: 191
A192: 192
A193: 193
A194: 194
A195: 195
A196: 196
A197: 197
A198: 198
A199: 199
A200: 200
... 300 more rows

Sheet 1.01
B3: VÍDEOS ENSINANDO A UTILIZAÇÃO DE CADA ABA | L3: NUNCA UTILIZE A FUNÇÃO DO EXCEL RECORTAR (CTRL+X)
B5: Apresentação da planilha: | L5: VÍDEOS ENSINANDO OUTRAS FUNCIONALIDADES PARA A PLANILHA:
C6: https://youtu.be/55TScbX_YAE
B7: Diagrama de Pareto: | L7: Desproteger planilha:
C8: https://youtu.be/kVgEVyl37zU | M8: https://youtu.be/ebX6CT4UWbs
B9: Plan | Planejamento | L9: Exibir abas/guias da planilha:
C10: https://youtu.be/O4kKTKKv6Cw | M10: https://youtu.be/cWmYSOuV17U
B11: Do | Execução | L11: Trocar o logotipo da planilha:
C12: https://youtu.be/3KlJYZF6Z2k | M12: https://youtu.be/mPY21aea9PY
B13: Check | Verificação | L13: Configurar impressão:
C14: https://youtu.be/iiFsvYXoyUA | M14: https://youtu.be/Plk1EbQFeJI
B15: Act | Ação | L15: Formatando linhas e colunas excel:
C16: https://youtu.be/6Jwrs1B01xs | M16: https://youtu.be/0Bd1jAdDFfQ
L17: Congelar Paineis:
M18: https://youtu.be/DTiA511sSXU
L19: Cabeçalho e rodapé:
M20: https://youtu.be/AV6R3DCu1zc

Sheet 1.02
A1: EmpreendedorCurioso.com123
B5: PRIMEIROS PASSOS:
B7: ="1 -" -> 1 - | C7: Habilite a edição da planilha ao topo da página, conforme imagem abaixo;
D11: Essa mensagem aparece pois você baixou o arquivo da internet, é apenas um aviso de segurança do seu computador para te informar isso.
B13: ="2 -" -> 2 - | C13: Habilite a Macro da planilha;
D17: Essa mensagem aparece pois a planilha possui Macros, que auxiliam na exibição de alguns relatórios com a filtragem automática de linhas e colunas.
B20: ="3 -" -> 3 - | C20: Assista os vídeos de Instruções da planilha (mesmo que esteja com pouco tempo);
D25: Assistir os vídeos de instruções é essencial para a correta utilização da planilha, você assistindo todos antes de utilizar a planilha vai evitar possíveis retrabalhos de preenchimento e correções da planilha, assistir os vídeos vai auxiliar você a utilizar a planilha mais rápido e realizar as tarefas apenas uma vez.
B28: ="4 -" -> 4 - | C28: Caso o erro abaixo apareça;
D35: Esse erro pode aparecer ao você tentar navegar nos menus, infelizmente esse é um erro que acontece em sua máquina, não é um problema da planilha, a sua máquina bloqueia a navegação por links (os botões da planilha são links, parecidos com links de internet, mas são links internos da planilha).
D37: A solução é simples, abaixo vou colocar um site da própria página de suporte da Microsoft (criadora do Excel) onde ela ensina a corrigir esse problema em seu compuador, copie e cole ele em seu navegador.
D39: Link: | E39: https://support.microsoft.com/pt-br/help/981149 | J39: ou
B41: ="5 -" -> 5 - | C41: Recomendações básicas da planilha
C42: A - | D42: Nunca utilize a função recortar do Excel (ctrl+x), caso queira "realocar" uma informação copie e cole, mas mesmo assim tome cuidado que após a planilha já possuir algumas pesquisas lançadas algumas abas não são recomendadas que você troque de lugar alguns dados, por isso é importante verificar os vídeos de instruções pois lá é ensinado aonde não poderá fazer isso.
C55: B - | D55: Algumas ampliações na planilha são limitadas, elas são comentadas nos vídeos, mas as que são permitidas fazer a inclusão de novos espaços para preenchimento deverão ser realizadas conforme vídeos de instruções.

Sheet Erros
A1: ="x" -> x
A2: \
C4: PENDÊNCIAS / ERROS DE PREENCHIMENTO | E4: 0
C6: Diagrama de Pareto | E6: 0
D7: Razões sem número de ocorrência especificado: | E7: 0
D8: Número de ocorrência preenchido mas sem Razão descrita: | E8: 0
D9: Pular linha no preenchimento: | E9: 0
C11: Plan - Diagrama de Ishikawa | E11: 0
D12: Porblema a ser solucionado não informado | E12: 0
D13: Nome da CAUSA não informado | E13: 0
D14: Preenchimento fora de sequência, Exemplo: Causa 1 e Causa 3 preenchidas e a Causa 2 está em branco: | E14: 0
D15: Pular linhas no cadastro dos fatores | E15: 0
D16: Nível de satisfação atual não informado: | E16: 0
D17: Nível de satisfação esperado não informado: | E17: 0
A19: =500-COUNTBLANK(Do!$M$12:$M$511) -> 16 | C19: Do | E19: 0
D20: COLUNA FATOR: Existem fatores pré-cadastrados não lançados na aba DO | E20: 0
D21: What | E21: 0
D22: Why | E22: 0
D23: Where | E23: 0
D24: When | Fator sem INÍCIO informado. | E24: 0
D25: When | Fator sem DURAÇÃO informado. | E25: 0
D26: Who | E26: 0
D27: How | E27: 0
D28: How much | E28: 0
C30: Check | E30: 0
D31: Coluna de andamento está sem preenchimento em algum fator. | E31: 0
D32: Erro na data, prazo inicial em branco e prazo final já preenchido | E32: 0
D33: Erro na data, prazo final menor do que o prazo inicial | E33: 0
D34: Resultado não preenchido em ação já concluída. | E34: 0
D35: Nível final de satisfação não preenchido em ação já concluída. | E35: 0

Sheet Resumo
B4: PDCA | F4: RESUMO DO MÉTODO DESSA PLANILHA
C5: O que é PDCA?
C6: Quais são as fases e etapadas do Ciclo PDCA? | F6: PDCA | G6: MASP | H6: FERRAMENTAS:
D7: https://www.empreendedorcurioso.com/planilha-ciclo-pdca/o-que-e-etapas-como-fazer-fases/ | F7: P | G7: Identificar Problema | H7: Diagrama de Pareto
C8: Quais todas as funções da planilha PDCA e como as funções são integradas? | G8: Observação | H8: Diagrama de Ishikawa
D9: https://www.empreendedorcurioso.com/planilha-ciclo-pdca/ | G9: Análise
G10: Plano de ação | H10: 5W2H
B11: DIAGRAMA DE PARETO: | F11: D | G11: Execução
C12: O que é o diagrama de Pareto? | F12: C | G12: Verificação
C13: Como criar um gráfico de pareto? | G13: Bloqueio foi efetivo?
C14: Como incluir custos no gráfico de Pareto? | F14: A | G14: Padronização
D15: https://www.empreendedorcurioso.com/planilha-ciclo-pdca/grafico-de-pareto-diagrama/ | G15: Conclusão
B17: DIAGRAMA DE ISHIKAWA
C18: O que é o diagrama de Ishikawa e qual a sua função?
C19: O que é o método 6m?
C20: Como criar o diagrama espinha de peixe?
D21: https://www.empreendedorcurioso.com/planilha-ciclo-pdca/diagrama-de-ishikawa-espinha-de-peixe/
B23: PLANO DE AÇÃO 5W2H
C24: Como funciona a técnica 5w2hw e como aplicá-la?
C25: Quais os benefícios desse método?
C26: Como criar o plano de ação?
D27: https://www.empreendedorcurioso.com/planilha-ciclo-pdca/plano-de-acao-5w2h/
B29: MASP
C30: O que é o MASP?
C31: Quais são as etapas do MASP?
D32: https://www.empreendedorcurioso.com/planilha-ciclo-pdca/masp-metodo-de-analise-e-solucao-de-problemas/

Sheet 000
